Workbook

Sheet Import
A1: RTA logging Data import
A6: How does this worksheet work?
A7: This worksheet allows you to import RTA logging measurements stored on the Bedrock SMxx. Make sure that the RTA logging result files are copied onto your computer, or that the instrument is attached to USB and accessible as a mass storage device. Then press the button below ("Import RTALOG"). You can now select the measurement data files that you wish to import. NOTE: by using SHIFT and CTRL you can select multiple files for opening. The measurements are imported into the sheet named "Data." Use the sheet named "View" to browse through these measurements, or copy data directly from the "Data" sheet to your own Worksheet for further calculations. Note that importing data changes this worksheet, overwriting earlier data imports. We recommend that you keep the original version of this worksheet in a safe location, and that you use a new copy of this original file for each new project.
A9: RTA logging files can be very large. This can make importing files to take a long time or consume a lot of memory . The number of rows and colums might exceed the limit of the sheet
A11: For support or to download the latest version of this file, please refer to our website
A12: www.bedrock-audio.com
A14: Version 2.6.0
A17: COPYRIGHT (C) Embedded Acoustics BV, 2020
A18: ALL RIGHTS RESERVED. This worksheet contains material protected under International and Federal Copyright Laws and Treaties. Any unauthorized use of this material is prohibited. No part of this worksheet may be reproduced or transmitted in any form or by any means, electronic or mechanical, including photocopying, recording, or by any information storage and retrieval system without express written permission from the author.
A20: DISCLAIMER
A21: THIS DOCUMENT IS PROVIDED "AS IS", WITHOUT WARRANTY OF ANY KIND, EXPRESS OR IMPLIED, INCLUDING BUT NOT LIMITED TO THE WARRANTIES OF MERCHANTABILITY, FITNESS FOR A PARTICULAR PURPOSE AND NONINFRINGEMENT. IN NO EVENT SHALL THE AUTHORS OR COPYRIGHT HOLDERS BE LIABLE FOR ANY CLAIM, DAMAGES OR OTHER LIABILITY, WHETHER IN AN ACTION OF CONTRACT, TORT OR OTHERWISE, ARISING FROM, OUT OF OR IN CONNECTION WITH THE SOFTWARE OR THE USE OR OTHER DEALINGS IN THE SOFTWARE

Sheet View
A1: RTA logging measurement
A3: Date | B3: =OFFSET(Data!B2,0,(View!$B$27-1)*12) -> 2023-01-24
A4: Time | B4: =OFFSET(Data!C2,0,(View!$B$27-1)*12) -> 11:59:06
A6: Current average time (sec) | B6: =MAX(OFFSET(Data!$D$2,0,(View!$B$27-1)*365), 1) -> 1 | E6: Overall | F6: =IF(OFFSET(View!F$30,View!$E$30,0)>0,OFFSET(View!F$30,View!$E$30,0),"") -> 25 | G6: =IF(OFFSET(View!G$30,View!$E$30,0)>0,OFFSET(View!G$30,View!$E$30,0),"") -> 31.5 | H6: =IF(OFFSET(View!H$30,View!$E$30,0)>0,OFFSET(View!H$30,View!$E$30,0),"") -> 40 | I6: =IF(OFFSET(View!I$30,View!$E$30,0)>0,OFFSET(View!I$30,View!$E$30,0),"") -> 50 | J6: =IF(OFFSET(View!J$30,View!$E$30,0)>0,OFFSET(View!J$30,View!$E$30,0),"") -> 63 | K6: =IF(OFFSET(View!K$30,View!$E$30,0)>0,OFFSET(View!K$30,View!$E$30,0),"") -> 80 | L6: =IF(OFFSET(View!L$30,View!$E$30,0)>0,OFFSET(View!L$30,View!$E$30,0),"") -> 100 | M6: =IF(OFFSET(View!M$30,View!$E$30,0)>0,OFFSET(View!M$30,View!$E$30,0),"") -> 125 | N6: =IF(OFFSET(View!N$30,View!$E$30,0)>0,OFFSET(View!N$30,View!$E$30,0),"") -> 160 | O6: =IF(OFFSET(View!O$30,View!$E$30,0)>0,OFFSET(View!O$30,View!$E$30,0),"") -> 200 | P6: =IF(OFFSET(View!P$30,View!$E$30,0)>0,OFFSET(View!P$30,View!$E$30,0),"") -> 250 | Q6: =IF(OFFSET(View!Q$30,View!$E$30,0)>0,OFFSET(View!Q$30,View!$E$30,0),"") -> 315 | R6: =IF(OFFSET(View!R$30,View!$E$30,0)>0,OFFSET(View!R$30,View!$E$30,0),"") -> 400 | S6: =IF(OFFSET(View!S$30,View!$E$30,0)>0,OFFSET(View!S$30,View!$E$30,0),"") -> 500 | T6: =IF(OFFSET(View!T$30,View!$E$30,0)>0,OFFSET(View!T$30,View!$E$30,0),"") -> 625 | U6: =IF(OFFSET(View!U$30,View!$E$30,0)>0,OFFSET(View!U$30,View!$E$30,0),"") -> 800 | V6: =IF(OFFSET(View!V$30,View!$E$30,0)>0,OFFSET(View!V$30,View!$E$30,0),"") -> 1000 | W6: =IF(OFFSET(View!W$30,View!$E$30,0)>0,OFFSET(View!W$30,View!$E$30,0),"") -> 1250 | X6: =IF(OFFSET(View!X$30,View!$E$30,0)>0,OFFSET(View!X$30,View!$E$30,0),"") -> 1600 | Y6: =IF(OFFSET(View!Y$30,View!$E$30,0)>0,OFFSET(View!Y$30,View!$E$30,0),"") -> 2000 | Z6: =IF(OFFSET(View!Z$30,View!$E$30,0)>0,OFFSET(View!Z$30,View!$E$30,0),"") -> 2500 | AA6: =IF(OFFSET(View!AA$30,View!$E$30,0)>0,OFFSET(View!AA$30,View!$E$30,0),"") -> 3150 | AB6: =IF(OFFSET(View!AB$30,View!$E$30,0)>0,OFFSET(View!AB$30,View!$E$30,0),"") -> 4000 | AC6: =IF(OFFSET(View!AC$30,View!$E$30,0)>0,OFFSET(View!AC$30,View!$E$30,0),"") -> 5000 | AD6: =IF(OFFSET(View!AD$30,View!$E$30,0)>0,OFFSET(View!AD$30,View!$E$30,0),"") -> 6250 | AE6: =IF(OFFSET(View!AE$30,View!$E$30,0)>0,OFFSET(View!AE$30,View!$E$30,0),"") -> 8000 | AF6: =IF(OFFSET(View!AF$30,View!$E$30,0)>0,OFFSET(View!AF$30,View!$E$30,0),"") -> 10000 | AG6: =IF(OFFSET(View!AG$30,View!$E$30,0)>0,OFFSET(View!AG$30,View!$E$30,0),"") -> 12500 | AH6: =IF(OFFSET(View!AH$30,View!$E$30,0)>0,OFFSET(View!AH$30,View!$E$30,0),"") -> 16000 | AI6: =IF(OFFSET(View!AI$30,View!$E$30,0)>0,OFFSET(View!AI$30,View!$E$30,0),"") -> 20000 | AJ6: =IF(OFFSET(View!AJ$30,View!$E$30,0)>0,OFFSET(View!AJ$30,View!$E$30,0),"") ->  | AK6: =IF(OFFSET(View!AK$30,View!$E$30,0)>0,OFFSET(View!AK$30,View!$E$30,0),"") ->  | AL6: =IF(OFFSET(View!AL$30,View!$E$30,0)>0,OFFSET(View!AL$30,View!$E$30,0),"") ->  | AM6: =IF(OFFSET(View!AM$30,View!$E$30,0)>0,OFFSET(View!AM$30,View!$E$30,0),"") ->  | AN6: =IF(OFFSET(View!AN$30,View!$E$30,0)>0,OFFSET(View!AN$30,View!$E$30,0),"") ->  | AO6: =IF(OFFSET(View!AO$30,View!$E$30,0)>0,OFFSET(View!AO$30,View!$E$30,0),"") ->  | AP6: =IF(OFFSET(View!AP$30,View!$E$30,0)>0,OFFSET(View!AP$30,View!$E$30,0),"") ->  | AQ6: =IF(OFFSET(View!AQ$30,View!$E$30,0)>0,OFFSET(View!AQ$30,View!$E$30,0),"") ->  | AR6: =IF(OFFSET(View!AR$30,View!$E$30,0)>0,OFFSET(View!AR$30,View!$E$30,0),"") ->  | AS6: =IF(OFFSET(View!AS$30,View!$E$30,0)>0,OFFSET(View!AS$30,View!$E$30,0),"") ->  | AT6: =IF(OFFSET(View!AT$30,View!$E$30,0)>0,OFFSET(View!AT$30,View!$E$30,0),"") ->  | AU6: =IF(OFFSET(View!AU$30,View!$E$30,0)>0,OFFSET(View!AU$30,View!$E$30,0),"") ->  | AV6: =IF(OFFSET(View!AV$30,View!$E$30,0)>0,OFFSET(View!AV$30,View!$E$30,0),"") ->  | AW6: =IF(OFFSET(View!AW$30,View!$E$30,0)>0,OFFSET(View!AW$30,View!$E$30,0),"") ->  | AX6: =IF(OFFSET(View!AX$30,View!$E$30,0)>0,OFFSET(View!AX$30,View!$E$30,0),"") ->  | AY6: =IF(OFFSET(View!AY$30,View!$E$30,0)>0,OFFSET(View!AY$30,View!$E$30,0),"") ->  | AZ6: =IF(OFFSET(View!AZ$30,View!$E$30,0)>0,OFFSET(View!AZ$30,View!$E$30,0),"") ->  | BA6: =IF(OFFSET(View!BA$30,View!$E$30,0)>0,OFFSET(View!BA$30,View!$E$30,0),"") ->  | BB6: =IF(OFFSET(View!BB$30,View!$E$30,0)>0,OFFSET(View!BB$30,View!$E$30,0),"") ->  | BC6: =IF(OFFSET(View!BC$30,View!$E$30,0)>0,OFFSET(View!BC$30,View!$E$30,0),"") ->  | BD6: =IF(OFFSET(View!BD$30,View!$E$30,0)>0,OFFSET(View!BD$30,View!$E$30,0),"") ->  | BE6: =IF(OFFSET(View!BE$30,View!$E$30,0)>0,OFFSET(View!BE$30,View!$E$30,0),"") ->  | BF6: =IF(OFFSET(View!BF$30,View!$E$30,0)>0,OFFSET(View!BF$30,View!$E$30,0),"") ->  | BG6: =IF(OFFSET(View!BG$30,View!$E$30,0)>0,OFFSET(View!BG$30,View!$E$30,0),"") ->  | BH6: =IF(OFFSET(View!BH$30,View!$E$30,0)>0,OFFSET(View!BH$30,View!$E$30,0),"") ->  | BI6: =IF(OFFSET(View!BI$30,View!$E$30,0)>0,OFFSET(View!BI$30,View!$E$30,0),"") ->  | BJ6: =IF(OFFSET(View!BJ$30,View!$E$30,0)>0,OFFSET(View!BJ$30,View!$E$30,0),"") ->  | BK6: =IF(OFFSET(View!BK$30,View!$E$30,0)>0,OFFSET(View!BK$30,View!$E$30,0),"") ->  | BL6: =IF(OFFSET(View!BL$30,View!$E$30,0)>0,OFFSET(View!BL$30,View!$E$30,0),"") ->  | BM6: =IF(OFFSET(View!BM$30,View!$E$30,0)>0,OFFSET(View!BM$30,View!$E$30,0),"") ->  | BN6: =IF(OFFSET(View!BN$30,View!$E$30,0)>0,OFFSET(View!BN$30,View!$E$30,0),"") ->  | BO6: =IF(OFFSET(View!BO$30,View!$E$30,0)>0,OFFSET(View!BO$30,View!$E$30,0),"") ->  | BP6: =IF(OFFSET(View!BP$30,View!$E$30,0)>0,OFFSET(View!BP$30,View!$E$30,0),"") ->  | BQ6: =IF(OFFSET(View!BQ$30,View!$E$30,0)>0,OFFSET(View!BQ$30,View!$E$30,0),"") ->  | BR6: =IF(OFFSET(View!BR$30,View!$E$30,0)>0,OFFSET(View!BR$30,View!$E$30,0),"") ->  | BS6: =IF(OFFSET(View!BS$30,View!$E$30,0)>0,OFFSET(View!BS$30,View!$E$30,0),"") ->  | BT6: =IF(OFFSET(View!BT$30,View!$E$30,0)>0,OFFSET(View!BT$30,View!$E$30,0),"") ->  | BU6: =IF(OFFSET(View!BU$30,View!$E$30,0)>0,OFFSET(View!BU$30,View!$E$30,0),"") ->  | BV6: =IF(OFFSET(View!BV$30,View!$E$30,0)>0,OFFSET(View!BV$30,View!$E$30,0),"") ->  | BW6: =IF(OFFSET(View!BW$30,View!$E$30,0)>0,OFFSET(View!BW$30,View!$E$30,0),"") ->  | BX6: =IF(OFFSET(View!BX$30,View!$E$30,0)>0,OFFSET(View!BX$30,View!$E$30,0),"") ->  | BY6: =IF(OFFSET(View!BY$30,View!$E$30,0)>0,OFFSET(View!BY$30,View!$E$30,0),"") ->  | BZ6: =IF(OFFSET(View!BZ$30,View!$E$30,0)>0,OFFSET(View!BZ$30,View!$E$30,0),"") ->  | CA6: =IF(OFFSET(View!CA$30,View!$E$30,0)>0,OFFSET(View!CA$30,View!$E$30,0),"") ->  | CB6: =IF(OFFSET(View!CB$30,View!$E$30,0)>0,OFFSET(View!CB$30,View!$E$30,0),"") ->  | CC6: =IF(OFFSET(View!CC$30,View!$E$30,0)>0,OFFSET(View!CC$30,View!$E$30,0),"") ->  | CD6: =IF(OFFSET(View!CD$30,View!$E$30,0)>0,OFFSET(View!CD$30,View!$E$30,0),"") ->  | CE6: =IF(OFFSET(View!CE$30,View!$E$30,0)>0,OFFSET(View!CE$30,View!$E$30,0),"") ->  | CF6: =IF(OFFSET(View!CF$30,View!$E$30,0)>0,OFFSET(View!CF$30,View!$E$30,0),"") ->  | CG6: =IF(OFFSET(View!CG$30,View!$E$30,0)>0,OFFSET(View!CG$30,View!$E$30,0),"") ->  | CH6: =IF(OFFSET(View!CH$30,View!$E$30,0)>0,OFFSET(View!CH$30,View!$E$30,0),"") ->  | CI6: =IF(OFFSET(View!CI$30,View!$E$30,0)>0,OFFSET(View!CI$30,View!$E$30,0),"") ->  | CJ6: =IF(OFFSET(View!CJ$30,View!$E$30,0)>0,OFFSET(View!CJ$30,View!$E$30,0),"") ->  | CK6: =IF(OFFSET(View!CK$30,View!$E$30,0)>0,OFFSET(View!CK$30,View!$E$30,0),"") ->  | CL6: =IF(OFFSET(View!CL$30,View!$E$30,0)>0,OFFSET(View!CL$30,View!$E$30,0),"") ->  | CM6: =IF(OFFSET(View!CM$30,View!$E$30,0)>0,OFFSET(View!CM$30,View!$E$30,0),"") ->  | CN6: =IF(OFFSET(View!CN$30,View!$E$30,0)>0,OFFSET(View!CN$30,View!$E$30,0),"") ->  | CO6: =IF(OFFSET(View!CO$30,View!$E$30,0)>0,OFFSET(View!CO$30,View!$E$30,0),"") ->  | CP6: =IF(OFFSET(View!CP$30,View!$E$30,0)>0,OFFSET(View!CP$30,View!$E$30,0),"") ->  | CQ6: =IF(OFFSET(View!CQ$30,View!$E$30,0)>0,OFFSET(View!CQ$30,View!$E$30,0),"") ->  | CR6: =IF(OFFSET(View!CR$30,View!$E$30,0)>0,OFFSET(View!CR$30,View!$E$30,0),"") ->  | CS6: =IF(OFFSET(View!CS$30,View!$E$30,0)>0,OFFSET(View!CS$30,View!$E$30,0),"") ->  | CT6: =IF(OFFSET(View!CT$30,View!$E$30,0)>0,OFFSET(View!CT$30,View!$E$30,0),"") ->  | CU6: =IF(OFFSET(View!CU$30,View!$E$30,0)>0,OFFSET(View!CU$30,View!$E$30,0),"") ->  | CV6: =IF(OFFSET(View!CV$30,View!$E$30,0)>0,OFFSET(View!CV$30,View!$E$30,0),"") ->  | CW6: =IF(OFFSET(View!CW$30,View!$E$30,0)>0,OFFSET(View!CW$30,View!$E$30,0),"") ->  | CX6: =IF(OFFSET(View!CX$30,View!$E$30,0)>0,OFFSET(View!CX$30,View!$E$30,0),"") ->  | CY6: =IF(OFFSET(View!CY$30,View!$E$30,0)>0,OFFSET(View!CY$30,View!$E$30,0),"") ->  | CZ6: =IF(OFFSET(View!CZ$30,View!$E$30,0)>0,OFFSET(View!CZ$30,View!$E$30,0),"") ->  | DA6: =IF(OFFSET(View!DA$30,View!$E$30,0)>0,OFFSET(View!DA$30,View!$E$30,0),"") ->  | DB6: =IF(OFFSET(View!DB$30,View!$E$30,0)>0,OFFSET(View!DB$30,View!$E$30,0),"") ->  | DC6: =IF(OFFSET(View!DC$30,View!$E$30,0)>0,OFFSET(View!DC$30,View!$E$30,0),"") ->  | DD6: =IF(OFFSET(View!DD$30,View!$E$30,0)>0,OFFSET(View!DD$30,View!$E$30,0),"") ->  | DE6: =IF(OFFSET(View!DE$30,View!$E$30,0)>0,OFFSET(View!DE$30,View!$E$30,0),"") ->  | DF6: =IF(OFFSET(View!DF$30,View!$E$30,0)>0,OFFSET(View!DF$30,View!$E$30,0),"") ->  | DG6: =IF(OFFSET(View!DG$30,View!$E$30,0)>0,OFFSET(View!DG$30,View!$E$30,0),"") ->  | DH6: =IF(OFFSET(View!DH$30,View!$E$30,0)>0,OFFSET(View!DH$30,View!$E$30,0),"") ->  | DI6: =IF(OFFSET(View!DI$30,View!$E$30,0)>0,OFFSET(View!DI$30,View!$E$30,0),"") ->  | DJ6: =IF(OFFSET(View!DJ$30,View!$E$30,0)>0,OFFSET(View!DJ$30,View!$E$30,0),"") ->  | DK6: =IF(OFFSET(View!DK$30,View!$E$30,0)>0,OFFSET(View!DK$30,View!$E$30,0),"") ->  | DL6: =IF(OFFSET(View!DL$30,View!$E$30,0)>0,OFFSET(View!DL$30,View!$E$30,0),"") ->  | DM6: =IF(OFFSET(View!DM$30,View!$E$30,0)>0,OFFSET(View!DM$30,View!$E$30,0),"") ->  | DN6: =IF(OFFSET(View!DN$30,View!$E$30,0)>0,OFFSET(View!DN$30,View!$E$30,0),"") ->  | DO6: =IF(OFFSET(View!DO$30,View!$E$30,0)>0,OFFSET(View!DO$30,View!$E$30,0),"") ->  | DP6: =IF(OFFSET(View!DP$30,View!$E$30,0)>0,OFFSET(View!DP$30,View!$E$30,0),"") ->  | DQ6: =IF(OFFSET(View!DQ$30,View!$E$30,0)>0,OFFSET(View!DQ$30,View!$E$30,0),"") ->  | DR6: =IF(OFFSET(View!DR$30,View!$E$30,0)>0,OFFSET(View!DR$30,View!$E$30,0),"") ->  | DS6: =IF(OFFSET(View!DS$30,View!$E$30,0)>0,OFFSET(View!DS$30,View!$E$30,0),"") ->  | DT6: =IF(OFFSET(View!DT$30,View!$E$30,0)>0,OFFSET(View!DT$30,View!$E$30,0),"") ->  | DU6: =IF(OFFSET(View!DU$30,View!$E$30,0)>0,OFFSET(View!DU$30,View!$E$30,0),"") -> 
A7: Bands per octave | B7: =MAX(OFFSET(Data!$E$2,0,(View!$B$27-1)*365), 1) -> 3 | D7: LAEQ | E7: =IF(E$6<>"",OFFSET(Data!C$4,$B$10,(View!$B$27-1)*365),"") -> 72.62242 | F7: =IF(F$6<>"",OFFSET(Data!D$4,$B$10,(View!$B$27-1)*365),"") -> 3.69371 | G7: =IF(G$6<>"",OFFSET(Data!E$4,$B$10,(View!$B$27-1)*365),"") -> -2.85077 | H7: =IF(H$6<>"",OFFSET(Data!F$4,$B$10,(View!$B$27-1)*365),"") -> -7.88548 | I7: =IF(I$6<>"",OFFSET(Data!G$4,$B$10,(View!$B$27-1)*365),"") -> 3.0368 | J7: =IF(J$6<>"",OFFSET(Data!H$4,$B$10,(View!$B$27-1)*365),"") -> -0.52612 | K7: =IF(K$6<>"",OFFSET(Data!I$4,$B$10,(View!$B$27-1)*365),"") -> 13.33997 | L7: =IF(L$6<>"",OFFSET(Data!J$4,$B$10,(View!$B$27-1)*365),"") -> 16.79984 | M7: =IF(M$6<>"",OFFSET(Data!K$4,$B$10,(View!$B$27-1)*365),"") -> 22.788 | N7: =IF(N$6<>"",OFFSET(Data!L$4,$B$10,(View!$B$27-1)*365),"") -> 41.42955 | O7: =IF(O$6<>"",OFFSET(Data!M$4,$B$10,(View!$B$27-1)*365),"") -> 58.70876 | P7: =IF(P$6<>"",OFFSET(Data!N$4,$B$10,(View!$B$27-1)*365),"") -> 64.23128 | Q7: =IF(Q$6<>"",OFFSET(Data!O$4,$B$10,(View!$B$27-1)*365),"") -> 49.39999 | R7: =IF(R$6<>"",OFFSET(Data!P$4,$B$10,(View!$B$27-1)*365),"") -> 55.97031 | S7: =IF(S$6<>"",OFFSET(Data!Q$4,$B$10,(View!$B$27-1)*365),"") -> 57.96183 | T7: =IF(T$6<>"",OFFSET(Data!R$4,$B$10,(View!$B$27-1)*365),"") -> 68.51306 | U7: =IF(U$6<>"",OFFSET(Data!S$4,$B$10,(View!$B$27-1)*365),"") -> 68.53904 | V7: =IF(V$6<>"",OFFSET(Data!T$4,$B$10,(View!$B$27-1)*365),"") -> 56.26263 | W7: =IF(W$6<>"",OFFSET(Data!U$4,$B$10,(View!$B$27-1)*365),"") -> 46.47432 | X7: =IF(X$6<>"",OFFSET(Data!V$4,$B$10,(View!$B$27-1)*365),"") -> 43.95142 | Y7: =IF(Y$6<>"",OFFSET(Data!W$4,$B$10,(View!$B$27-1)*365),"") -> 38.76465 | Z7: =IF(Z$6<>"",OFFSET(Data!X$4,$B$10,(View!$B$27-1)*365),"") -> 38.06508 | AA7: =IF(AA$6<>"",OFFSET(Data!Y$4,$B$10,(View!$B$27-1)*365),"") -> 35.80487 | AB7: =IF(AB$6<>"",OFFSET(Data!Z$4,$B$10,(View!$B$27-1)*365),"") -> 31.14156 | AC7: =IF(AC$6<>"",OFFSET(Data!AA$4,$B$10,(View!$B$27-1)*365),"") -> 32.78831 | AD7: =IF(AD$6<>"",OFFSET(Data!AB$4,$B$10,(View!$B$27-1)*365),"") -> 28.96949 | AE7: =IF(AE$6<>"",OFFSET(Data!AC$4,$B$10,(View!$B$27-1)*365),"") -> 30.24998 | AF7: =IF(AF$6<>"",OFFSET(Data!AD$4,$B$10,(View!$B$27-1)*365),"") -> 24.69662 | AG7: =IF(AG$6<>"",OFFSET(Data!AE$4,$B$10,(View!$B$27-1)*365),"") -> 16.35418 | AH7: =IF(AH$6<>"",OFFSET(Data!AF$4,$B$10,(View!$B$27-1)*365),"") -> 9.63956 | AI7: =IF(AI$6<>"",OFFSET(Data!AG$4,$B$10,(View!$B$27-1)*365),"") -> 3.31582 | AJ7: =IF(AJ$6<>"",OFFSET(Data!AH$4,$B$10,(View!$B$27-1)*365),"") ->  | AK7: =IF(AK$6<>"",OFFSET(Data!AI$4,$B$10,(View!$B$27-1)*365),"") ->  | AL7: =IF(AL$6<>"",OFFSET(Data!AJ$4,$B$10,(View!$B$27-1)*365),"") ->  | AM7: =IF(AM$6<>"",OFFSET(Data!AK$4,$B$10,(View!$B$27-1)*365),"") ->  | AN7: =IF(AN$6<>"",OFFSET(Data!AL$4,$B$10,(View!$B$27-1)*365),"") ->  | AO7: =IF(AO$6<>"",OFFSET(Data!AM$4,$B$10,(View!$B$27-1)*365),"") ->  | AP7: =IF(AP$6<>"",OFFSET(Data!AN$4,$B$10,(View!$B$27-1)*365),"") ->  | AQ7: =IF(AQ$6<>"",OFFSET(Data!AO$4,$B$10,(View!$B$27-1)*365),"") ->  | AR7: =IF(AR$6<>"",OFFSET(Data!AP$4,$B$10,(View!$B$27-1)*365),"") ->  | AS7: =IF(AS$6<>"",OFFSET(Data!AQ$4,$B$10,(View!$B$27-1)*365),"") ->  | AT7: =IF(AT$6<>"",OFFSET(Data!AR$4,$B$10,(View!$B$27-1)*365),"") ->  | AU7: =IF(AU$6<>"",OFFSET(Data!AS$4,$B$10,(View!$B$27-1)*365),"") ->  | AV7: =IF(AV$6<>"",OFFSET(Data!AT$4,$B$10,(View!$B$27-1)*365),"") ->  | AW7: =IF(AW$6<>"",OFFSET(Data!AU$4,$B$10,(View!$B$27-1)*365),"") ->  | AX7: =IF(AX$6<>"",OFFSET(Data!AV$4,$B$10,(View!$B$27-1)*365),"") ->  | AY7: =IF(AY$6<>"",OFFSET(Data!AW$4,$B$10,(View!$B$27-1)*365),"") ->  | AZ7: =IF(AZ$6<>"",OFFSET(Data!AX$4,$B$10,(View!$B$27-1)*365),"") ->  | BA7: =IF(BA$6<>"",OFFSET(Data!AY$4,$B$10,(View!$B$27-1)*365),"") ->  | BB7: =IF(BB$6<>"",OFFSET(Data!AZ$4,$B$10,(View!$B$27-1)*365),"") ->  | BC7: =IF(BC$6<>"",OFFSET(Data!BA$4,$B$10,(View!$B$27-1)*365),"") ->  | BD7: =IF(BD$6<>"",OFFSET(Data!BB$4,$B$10,(View!$B$27-1)*365),"") ->  | BE7: =IF(BE$6<>"",OFFSET(Data!BC$4,$B$10,(View!$B$27-1)*365),"") ->  | BF7: =IF(BF$6<>"",OFFSET(Data!BD$4,$B$10,(View!$B$27-1)*365),"") ->  | BG7: =IF(BG$6<>"",OFFSET(Data!BE$4,$B$10,(View!$B$27-1)*365),"") ->  | BH7: =IF(BH$6<>"",OFFSET(Data!BF$4,$B$10,(View!$B$27-1)*365),"") ->  | BI7: =IF(BI$6<>"",OFFSET(Data!BG$4,$B$10,(View!$B$27-1)*365),"") ->  | BJ7: =IF(BJ$6<>"",OFFSET(Data!BH$4,$B$10,(View!$B$27-1)*365),"") ->  | BK7: =IF(BK$6<>"",OFFSET(Data!BI$4,$B$10,(View!$B$27-1)*365),"") ->  | BL7: =IF(BL$6<>"",OFFSET(Data!BJ$4,$B$10,(View!$B$27-1)*365),"") ->  | BM7: =IF(BM$6<>"",OFFSET(Data!BK$4,$B$10,(View!$B$27-1)*365),"") ->  | BN7: =IF(BN$6<>"",OFFSET(Data!BL$4,$B$10,(View!$B$27-1)*365),"") ->  | BO7: =IF(BO$6<>"",OFFSET(Data!BM$4,$B$10,(View!$B$27-1)*365),"") ->  | BP7: =IF(BP$6<>"",OFFSET(Data!BN$4,$B$10,(View!$B$27-1)*365),"") ->  | BQ7: =IF(BQ$6<>"",OFFSET(Data!BO$4,$B$10,(View!$B$27-1)*365),"") ->  | BR7: =IF(BR$6<>"",OFFSET(Data!BP$4,$B$10,(View!$B$27-1)*365),"") ->  | BS7: =IF(BS$6<>"",OFFSET(Data!BQ$4,$B$10,(View!$B$27-1)*365),"") ->  | BT7: =IF(BT$6<>"",OFFSET(Data!BR$4,$B$10,(View!$B$27-1)*365),"") ->  | BU7: =IF(BU$6<>"",OFFSET(Data!BS$4,$B$10,(View!$B$27-1)*365),"") ->  | BV7: =IF(BV$6<>"",OFFSET(Data!BT$4,$B$10,(View!$B$27-1)*365),"") ->  | BW7: =IF(BW$6<>"",OFFSET(Data!BU$4,$B$10,(View!$B$27-1)*365),"") ->  | BX7: =IF(BX$6<>"",OFFSET(Data!BV$4,$B$10,(View!$B$27-1)*365),"") ->  | BY7: =IF(BY$6<>"",OFFSET(Data!BW$4,$B$10,(View!$B$27-1)*365),"") ->  | BZ7: =IF(BZ$6<>"",OFFSET(Data!BX$4,$B$10,(View!$B$27-1)*365),"") ->  | CA7: =IF(CA$6<>"",OFFSET(Data!BY$4,$B$10,(View!$B$27-1)*365),"") ->  | CB7: =IF(CB$6<>"",OFFSET(Data!BZ$4,$B$10,(View!$B$27-1)*365),"") ->  | CC7: =IF(CC$6<>"",OFFSET(Data!CA$4,$B$10,(View!$B$27-1)*365),"") ->  | CD7: =IF(CD$6<>"",OFFSET(Data!CB$4,$B$10,(View!$B$27-1)*365),"") ->  | CE7: =IF(CE$6<>"",OFFSET(Data!CC$4,$B$10,(View!$B$27-1)*365),"") ->  | CF7: =IF(CF$6<>"",OFFSET(Data!CD$4,$B$10,(View!$B$27-1)*365),"") ->  | CG7: =IF(CG$6<>"",OFFSET(Data!CE$4,$B$10,(View!$B$27-1)*365),"") ->  | CH7: =IF(CH$6<>"",OFFSET(Data!CF$4,$B$10,(View!$B$27-1)*365),"") ->  | CI7: =IF(CI$6<>"",OFFSET(Data!CG$4,$B$10,(View!$B$27-1)*365),"") ->  | CJ7: =IF(CJ$6<>"",OFFSET(Data!CH$4,$B$10,(View!$B$27-1)*365),"") ->  | CK7: =IF(CK$6<>"",OFFSET(Data!CI$4,$B$10,(View!$B$27-1)*365),"") ->  | CL7: =IF(CL$6<>"",OFFSET(Data!CJ$4,$B$10,(View!$B$27-1)*365),"") ->  | CM7: =IF(CM$6<>"",OFFSET(Data!CK$4,$B$10,(View!$B$27-1)*365),"") ->  | CN7: =IF(CN$6<>"",OFFSET(Data!CL$4,$B$10,(View!$B$27-1)*365),"") ->  | CO7: =IF(CO$6<>"",OFFSET(Data!CM$4,$B$10,(View!$B$27-1)*365),"") ->  | CP7: =IF(CP$6<>"",OFFSET(Data!CN$4,$B$10,(View!$B$27-1)*365),"") ->  | CQ7: =IF(CQ$6<>"",OFFSET(Data!CO$4,$B$10,(View!$B$27-1)*365),"") ->  | CR7: =IF(CR$6<>"",OFFSET(Data!CP$4,$B$10,(View!$B$27-1)*365),"") ->  | CS7: =IF(CS$6<>"",OFFSET(Data!CQ$4,$B$10,(View!$B$27-1)*365),"") ->  | CT7: =IF(CT$6<>"",OFFSET(Data!CR$4,$B$10,(View!$B$27-1)*365),"") ->  | CU7: =IF(CU$6<>"",OFFSET(Data!CS$4,$B$10,(View!$B$27-1)*365),"") ->  | CV7: =IF(CV$6<>"",OFFSET(Data!CT$4,$B$10,(View!$B$27-1)*365),"") ->  | CW7: =IF(CW$6<>"",OFFSET(Data!CU$4,$B$10,(View!$B$27-1)*365),"") ->  | CX7: =IF(CX$6<>"",OFFSET(Data!CV$4,$B$10,(View!$B$27-1)*365),"") ->  | CY7: =IF(CY$6<>"",OFFSET(Data!CW$4,$B$10,(View!$B$27-1)*365),"") ->  | CZ7: =IF(CZ$6<>"",OFFSET(Data!CX$4,$B$10,(View!$B$27-1)*365),"") ->  | DA7: =IF(DA$6<>"",OFFSET(Data!CY$4,$B$10,(View!$B$27-1)*365),"") ->  | DB7: =IF(DB$6<>"",OFFSET(Data!CZ$4,$B$10,(View!$B$27-1)*365),"") ->  | DC7: =IF(DC$6<>"",OFFSET(Data!DA$4,$B$10,(View!$B$27-1)*365),"") ->  | DD7: =IF(DD$6<>"",OFFSET(Data!DB$4,$B$10,(View!$B$27-1)*365),"") ->  | DE7: =IF(DE$6<>"",OFFSET(Data!DC$4,$B$10,(View!$B$27-1)*365),"") ->  | DF7: =IF(DF$6<>"",OFFSET(Data!DD$4,$B$10,(View!$B$27-1)*365),"") ->  | DG7: =IF(DG$6<>"",OFFSET(Data!DE$4,$B$10,(View!$B$27-1)*365),"") ->  | DH7: =IF(DH$6<>"",OFFSET(Data!DF$4,$B$10,(View!$B$27-1)*365),"") ->  | DI7: =IF(DI$6<>"",OFFSET(Data!DG$4,$B$10,(View!$B$27-1)*365),"") ->  | DJ7: =IF(DJ$6<>"",OFFSET(Data!DH$4,$B$10,(View!$B$27-1)*365),"") ->  | DK7: =IF(DK$6<>"",OFFSET(Data!DI$4,$B$10,(View!$B$27-1)*365),"") ->  | DL7: =IF(DL$6<>"",OFFSET(Data!DJ$4,$B$10,(View!$B$27-1)*365),"") ->  | DM7: =IF(DM$6<>"",OFFSET(Data!DK$4,$B$10,(View!$B$27-1)*365),"") ->  | DN7: =IF(DN$6<>"",OFFSET(Data!DL$4,$B$10,(View!$B$27-1)*365),"") ->  | DO7: =IF(DO$6<>"",OFFSET(Data!DM$4,$B$10,(View!$B$27-1)*365),"") ->  | DP7: =IF(DP$6<>"",OFFSET(Data!DN$4,$B$10,(View!$B$27-1)*365),"") ->  | DQ7: =IF(DQ$6<>"",OFFSET(Data!DO$4,$B$10,(View!$B$27-1)*365),"") ->  | DR7: =IF(DR$6<>"",OFFSET(Data!DP$4,$B$10,(View!$B$27-1)*365),"") ->  | DS7: =IF(DS$6<>"",OFFSET(Data!DQ$4,$B$10,(View!$B$27-1)*365),"") ->  | DT7: =IF(DT$6<>"",OFFSET(Data!DR$4,$B$10,(View!$B$27-1)*365),"") ->  | DU7: =IF(DU$6<>"",OFFSET(Data!DS$4,$B$10,(View!$B$27-1)*365),"") -> 
A8: Number of bands | B8: =MAX(OFFSET(Data!$F$2,0,(View!$B$27-1)*365), 1) -> 30 | D8: LCEQ | E8: =IF(E$6<>"",OFFSET(Data!C$4,$B$10,(View!$B$27-1)*365 + ($B$8 + 1)),"") -> 77.01147 | F8: =IF(F$6<>"",OFFSET(Data!D$4,$B$10,(View!$B$27-1)*365 + ($B$8 + 1)),"") -> 43.88125 | G8: =IF(G$6<>"",OFFSET(Data!E$4,$B$10,(View!$B$27-1)*365 + ($B$8 + 1)),"") -> 34.53527 | H8: =IF(H$6<>"",OFFSET(Data!F$4,$B$10,(View!$B$27-1)*365 + ($B$8 + 1)),"") -> 24.32912 | I8: =IF(I$6<>"",OFFSET(Data!G$4,$B$10,(View!$B$27-1)*365 + ($B$8 + 1)),"") -> 32.31453 | J8: =IF(J$6<>"",OFFSET(Data!H$4,$B$10,(View!$B$27-1)*365 + ($B$8 + 1)),"") -> 25.87865 | K8: =IF(K$6<>"",OFFSET(Data!I$4,$B$10,(View!$B$27-1)*365 + ($B$8 + 1)),"") -> 35.01451 | L8: =IF(L$6<>"",OFFSET(Data!J$4,$B$10,(View!$B$27-1)*365 + ($B$8 + 1)),"") -> 34.98296 | M8: =IF(M$6<>"",OFFSET(Data!K$4,$B$10,(View!$B$27-1)*365 + ($B$8 + 1)),"") -> 38.18591 | N8: =IF(N$6<>"",OFFSET(Data!L$4,$B$10,(View!$B$27-1)*365 + ($B$8 + 1)),"") -> 54.03004 | O8: =IF(O$6<>"",OFFSET(Data!M$4,$B$10,(View!$B$27-1)*365 + ($B$8 + 1)),"") -> 69.32141 | P8: =IF(P$6<>"",OFFSET(Data!N$4,$B$10,(View!$B$27-1)*365 + ($B$8 + 1)),"") -> 72.64453 | Q8: =IF(Q$6<>"",OFFSET(Data!O$4,$B$10,(View!$B$27-1)*365 + ($B$8 + 1)),"") -> 56.84243 | R8: =IF(R$6<>"",OFFSET(Data!P$4,$B$10,(View!$B$27-1)*365 + ($B$8 + 1)),"") -> 60.65086 | S8: =IF(S$6<>"",OFFSET(Data!Q$4,$B$10,(View!$B$27-1)*365 + ($B$8 + 1)),"") -> 61.24425 | T8: =IF(T$6<>"",OFFSET(Data!R$4,$B$10,(View!$B$27-1)*365 + ($B$8 + 1)),"") -> 70.1014 | U8: =IF(U$6<>"",OFFSET(Data!S$4,$B$10,(View!$B$27-1)*365 + ($B$8 + 1)),"") -> 69.66737 | V8: =IF(V$6<>"",OFFSET(Data!T$4,$B$10,(View!$B$27-1)*365 + ($B$8 + 1)),"") -> 56.22506 | W8: =IF(W$6<>"",OFFSET(Data!U$4,$B$10,(View!$B$27-1)*365 + ($B$8 + 1)),"") -> 45.94994 | X8: =IF(X$6<>"",OFFSET(Data!V$4,$B$10,(View!$B$27-1)*365 + ($B$8 + 1)),"") -> 42.93941 | Y8: =IF(Y$6<>"",OFFSET(Data!W$4,$B$10,(View!$B$27-1)*365 + ($B$8 + 1)),"") -> 37.39052 | Z8: =IF(Z$6<>"",OFFSET(Data!X$4,$B$10,(View!$B$27-1)*365 + ($B$8 + 1)),"") -> 36.49789 | AA8: =IF(AA$6<>"",OFFSET(Data!Y$4,$B$10,(View!$B$27-1)*365 + ($B$8 + 1)),"") -> 34.09861 | AB8: =IF(AB$6<>"",OFFSET(Data!Z$4,$B$10,(View!$B$27-1)*365 + ($B$8 + 1)),"") -> 29.35595 | AC8: =IF(AC$6<>"",OFFSET(Data!AA$4,$B$10,(View!$B$27-1)*365 + ($B$8 + 1)),"") -> 30.94296 | AD8: =IF(AD$6<>"",OFFSET(Data!AB$4,$B$10,(View!$B$27-1)*365 + ($B$8 + 1)),"") -> 27.09016 | AE8: =IF(AE$6<>"",OFFSET(Data!AC$4,$B$10,(View!$B$27-1)*365 + ($B$8 + 1)),"") -> 28.34703 | AF8: =IF(AF$6<>"",OFFSET(Data!AD$4,$B$10,(View!$B$27-1)*365 + ($B$8 + 1)),"") -> 22.78259 | AG8: =IF(AG$6<>"",OFFSET(Data!AE$4,$B$10,(View!$B$27-1)*365 + ($B$8 + 1)),"") -> 14.42918 | AH8: =IF(AH$6<>"",OFFSET(Data!AF$4,$B$10,(View!$B$27-1)*365 + ($B$8 + 1)),"") -> 7.71533 | AI8: =IF(AI$6<>"",OFFSET(Data!AG$4,$B$10,(View!$B$27-1)*365 + ($B$8 + 1)),"") -> 1.36188 | AJ8: =IF(AJ$6<>"",OFFSET(Data!AH$4,$B$10,(View!$B$27-1)*365 + ($B$8 + 1)),"") ->  | AK8: =IF(AK$6<>"",OFFSET(Data!AI$4,$B$10,(View!$B$27-1)*365 + ($B$8 + 1)),"") ->  | AL8: =IF(AL$6<>"",OFFSET(Data!AJ$4,$B$10,(View!$B$27-1)*365 + ($B$8 + 1)),"") ->  | AM8: =IF(AM$6<>"",OFFSET(Data!AK$4,$B$10,(View!$B$27-1)*365 + ($B$8 + 1)),"") ->  | AN8: =IF(AN$6<>"",OFFSET(Data!AL$4,$B$10,(View!$B$27-1)*365 + ($B$8 + 1)),"") ->  | AO8: =IF(AO$6<>"",OFFSET(Data!AM$4,$B$10,(View!$B$27-1)*365 + ($B$8 + 1)),"") ->  | AP8: =IF(AP$6<>"",OFFSET(Data!AN$4,$B$10,(View!$B$27-1)*365 + ($B$8 + 1)),"") ->  | AQ8: =IF(AQ$6<>"",OFFSET(Data!AO$4,$B$10,(View!$B$27-1)*365 + ($B$8 + 1)),"") ->  | AR8: =IF(AR$6<>"",OFFSET(Data!AP$4,$B$10,(View!$B$27-1)*365 + ($B$8 + 1)),"") ->  | AS8: =IF(AS$6<>"",OFFSET(Data!AQ$4,$B$10,(View!$B$27-1)*365 + ($B$8 + 1)),"") ->  | AT8: =IF(AT$6<>"",OFFSET(Data!AR$4,$B$10,(View!$B$27-1)*365 + ($B$8 + 1)),"") ->  | AU8: =IF(AU$6<>"",OFFSET(Data!AS$4,$B$10,(View!$B$27-1)*365 + ($B$8 + 1)),"") ->  | AV8: =IF(AV$6<>"",OFFSET(Data!AT$4,$B$10,(View!$B$27-1)*365 + ($B$8 + 1)),"") ->  | AW8: =IF(AW$6<>"",OFFSET(Data!AU$4,$B$10,(View!$B$27-1)*365 + ($B$8 + 1)),"") ->  | AX8: =IF(AX$6<>"",OFFSET(Data!AV$4,$B$10,(View!$B$27-1)*365 + ($B$8 + 1)),"") ->  | AY8: =IF(AY$6<>"",OFFSET(Data!AW$4,$B$10,(View!$B$27-1)*365 + ($B$8 + 1)),"") ->  | AZ8: =IF(AZ$6<>"",OFFSET(Data!AX$4,$B$10,(View!$B$27-1)*365 + ($B$8 + 1)),"") ->  | BA8: =IF(BA$6<>"",OFFSET(Data!AY$4,$B$10,(View!$B$27-1)*365 + ($B$8 + 1)),"") ->  | BB8: =IF(BB$6<>"",OFFSET(Data!AZ$4,$B$10,(View!$B$27-1)*365 + ($B$8 + 1)),"") ->  | BC8: =IF(BC$6<>"",OFFSET(Data!BA$4,$B$10,(View!$B$27-1)*365 + ($B$8 + 1)),"") ->  | BD8: =IF(BD$6<>"",OFFSET(Data!BB$4,$B$10,(View!$B$27-1)*365 + ($B$8 + 1)),"") ->  | BE8: =IF(BE$6<>"",OFFSET(Data!BC$4,$B$10,(View!$B$27-1)*365 + ($B$8 + 1)),"") ->  | BF8: =IF(BF$6<>"",OFFSET(Data!BD$4,$B$10,(View!$B$27-1)*365 + ($B$8 + 1)),"") ->  | BG8: =IF(BG$6<>"",OFFSET(Data!BE$4,$B$10,(View!$B$27-1)*365 + ($B$8 + 1)),"") ->  | BH8: =IF(BH$6<>"",OFFSET(Data!BF$4,$B$10,(View!$B$27-1)*365 + ($B$8 + 1)),"") ->  | BI8: =IF(BI$6<>"",OFFSET(Data!BG$4,$B$10,(View!$B$27-1)*365 + ($B$8 + 1)),"") ->  | BJ8: =IF(BJ$6<>"",OFFSET(Data!BH$4,$B$10,(View!$B$27-1)*365 + ($B$8 + 1)),"") ->  | BK8: =IF(BK$6<>"",OFFSET(Data!BI$4,$B$10,(View!$B$27-1)*365 + ($B$8 + 1)),"") ->  | BL8: =IF(BL$6<>"",OFFSET(Data!BJ$4,$B$10,(View!$B$27-1)*365 + ($B$8 + 1)),"") ->  | BM8: =IF(BM$6<>"",OFFSET(Data!BK$4,$B$10,(View!$B$27-1)*365 + ($B$8 + 1)),"") ->  | BN8: =IF(BN$6<>"",OFFSET(Data!BL$4,$B$10,(View!$B$27-1)*365 + ($B$8 + 1)),"") ->  | BO8: =IF(BO$6<>"",OFFSET(Data!BM$4,$B$10,(View!$B$27-1)*365 + ($B$8 + 1)),"") ->  | BP8: =IF(BP$6<>"",OFFSET(Data!BN$4,$B$10,(View!$B$27-1)*365 + ($B$8 + 1)),"") ->  | BQ8: =IF(BQ$6<>"",OFFSET(Data!BO$4,$B$10,(View!$B$27-1)*365 + ($B$8 + 1)),"") ->  | BR8: =IF(BR$6<>"",OFFSET(Data!BP$4,$B$10,(View!$B$27-1)*365 + ($B$8 + 1)),"") ->  | BS8: =IF(BS$6<>"",OFFSET(Data!BQ$4,$B$10,(View!$B$27-1)*365 + ($B$8 + 1)),"") ->  | BT8: =IF(BT$6<>"",OFFSET(Data!BR$4,$B$10,(View!$B$27-1)*365 + ($B$8 + 1)),"") ->  | BU8: =IF(BU$6<>"",OFFSET(Data!BS$4,$B$10,(View!$B$27-1)*365 + ($B$8 + 1)),"") ->  | BV8: =IF(BV$6<>"",OFFSET(Data!BT$4,$B$10,(View!$B$27-1)*365 + ($B$8 + 1)),"") ->  | BW8: =IF(BW$6<>"",OFFSET(Data!BU$4,$B$10,(View!$B$27-1)*365 + ($B$8 + 1)),"") ->  | BX8: =IF(BX$6<>"",OFFSET(Data!BV$4,$B$10,(View!$B$27-1)*365 + ($B$8 + 1)),"") ->  | BY8: =IF(BY$6<>"",OFFSET(Data!BW$4,$B$10,(View!$B$27-1)*365 + ($B$8 + 1)),"") ->  | BZ8: =IF(BZ$6<>"",OFFSET(Data!BX$4,$B$10,(View!$B$27-1)*365 + ($B$8 + 1)),"") ->  | CA8: =IF(CA$6<>"",OFFSET(Data!BY$4,$B$10,(View!$B$27-1)*365 + ($B$8 + 1)),"") ->  | CB8: =IF(CB$6<>"",OFFSET(Data!BZ$4,$B$10,(View!$B$27-1)*365 + ($B$8 + 1)),"") ->  | CC8: =IF(CC$6<>"",OFFSET(Data!CA$4,$B$10,(View!$B$27-1)*365 + ($B$8 + 1)),"") ->  | CD8: =IF(CD$6<>"",OFFSET(Data!CB$4,$B$10,(View!$B$27-1)*365 + ($B$8 + 1)),"") ->  | CE8: =IF(CE$6<>"",OFFSET(Data!CC$4,$B$10,(View!$B$27-1)*365 + ($B$8 + 1)),"") ->  | CF8: =IF(CF$6<>"",OFFSET(Data!CD$4,$B$10,(View!$B$27-1)*365 + ($B$8 + 1)),"") ->  | CG8: =IF(CG$6<>"",OFFSET(Data!CE$4,$B$10,(View!$B$27-1)*365 + ($B$8 + 1)),"") ->  | CH8: =IF(CH$6<>"",OFFSET(Data!CF$4,$B$10,(View!$B$27-1)*365 + ($B$8 + 1)),"") ->  | CI8: =IF(CI$6<>"",OFFSET(Data!CG$4,$B$10,(View!$B$27-1)*365 + ($B$8 + 1)),"") ->  | CJ8: =IF(CJ$6<>"",OFFSET(Data!CH$4,$B$10,(View!$B$27-1)*365 + ($B$8 + 1)),"") ->  | CK8: =IF(CK$6<>"",OFFSET(Data!CI$4,$B$10,(View!$B$27-1)*365 + ($B$8 + 1)),"") ->  | CL8: =IF(CL$6<>"",OFFSET(Data!CJ$4,$B$10,(View!$B$27-1)*365 + ($B$8 + 1)),"") ->  | CM8: =IF(CM$6<>"",OFFSET(Data!CK$4,$B$10,(View!$B$27-1)*365 + ($B$8 + 1)),"") ->  | CN8: =IF(CN$6<>"",OFFSET(Data!CL$4,$B$10,(View!$B$27-1)*365 + ($B$8 + 1)),"") ->  | CO8: =IF(CO$6<>"",OFFSET(Data!CM$4,$B$10,(View!$B$27-1)*365 + ($B$8 + 1)),"") ->  | CP8: =IF(CP$6<>"",OFFSET(Data!CN$4,$B$10,(View!$B$27-1)*365 + ($B$8 + 1)),"") ->  | CQ8: =IF(CQ$6<>"",OFFSET(Data!CO$4,$B$10,(View!$B$27-1)*365 + ($B$8 + 1)),"") ->  | CR8: =IF(CR$6<>"",OFFSET(Data!CP$4,$B$10,(View!$B$27-1)*365 + ($B$8 + 1)),"") ->  | CS8: =IF(CS$6<>"",OFFSET(Data!CQ$4,$B$10,(View!$B$27-1)*365 + ($B$8 + 1)),"") ->  | CT8: =IF(CT$6<>"",OFFSET(Data!CR$4,$B$10,(View!$B$27-1)*365 + ($B$8 + 1)),"") ->  | CU8: =IF(CU$6<>"",OFFSET(Data!CS$4,$B$10,(View!$B$27-1)*365 + ($B$8 + 1)),"") ->  | CV8: =IF(CV$6<>"",OFFSET(Data!CT$4,$B$10,(View!$B$27-1)*365 + ($B$8 + 1)),"") ->  | CW8: =IF(CW$6<>"",OFFSET(Data!CU$4,$B$10,(View!$B$27-1)*365 + ($B$8 + 1)),"") ->  | CX8: =IF(CX$6<>"",OFFSET(Data!CV$4,$B$10,(View!$B$27-1)*365 + ($B$8 + 1)),"") ->  | CY8: =IF(CY$6<>"",OFFSET(Data!CW$4,$B$10,(View!$B$27-1)*365 + ($B$8 + 1)),"") ->  | CZ8: =IF(CZ$6<>"",OFFSET(Data!CX$4,$B$10,(View!$B$27-1)*365 + ($B$8 + 1)),"") ->  | DA8: =IF(DA$6<>"",OFFSET(Data!CY$4,$B$10,(View!$B$27-1)*365 + ($B$8 + 1)),"") ->  | DB8: =IF(DB$6<>"",OFFSET(Data!CZ$4,$B$10,(View!$B$27-1)*365 + ($B$8 + 1)),"") ->  | DC8: =IF(DC$6<>"",OFFSET(Data!DA$4,$B$10,(View!$B$27-1)*365 + ($B$8 + 1)),"") ->  | DD8: =IF(DD$6<>"",OFFSET(Data!DB$4,$B$10,(View!$B$27-1)*365 + ($B$8 + 1)),"") ->  | DE8: =IF(DE$6<>"",OFFSET(Data!DC$4,$B$10,(View!$B$27-1)*365 + ($B$8 + 1)),"") ->  | DF8: =IF(DF$6<>"",OFFSET(Data!DD$4,$B$10,(View!$B$27-1)*365 + ($B$8 + 1)),"") ->  | DG8: =IF(DG$6<>"",OFFSET(Data!DE$4,$B$10,(View!$B$27-1)*365 + ($B$8 + 1)),"") ->  | DH8: =IF(DH$6<>"",OFFSET(Data!DF$4,$B$10,(View!$B$27-1)*365 + ($B$8 + 1)),"") ->  | DI8: =IF(DI$6<>"",OFFSET(Data!DG$4,$B$10,(View!$B$27-1)*365 + ($B$8 + 1)),"") ->  | DJ8: =IF(DJ$6<>"",OFFSET(Data!DH$4,$B$10,(View!$B$27-1)*365 + ($B$8 + 1)),"") ->  | DK8: =IF(DK$6<>"",OFFSET(Data!DI$4,$B$10,(View!$B$27-1)*365 + ($B$8 + 1)),"") ->  | DL8: =IF(DL$6<>"",OFFSET(Data!DJ$4,$B$10,(View!$B$27-1)*365 + ($B$8 + 1)),"") ->  | DM8: =IF(DM$6<>"",OFFSET(Data!DK$4,$B$10,(View!$B$27-1)*365 + ($B$8 + 1)),"") ->  | DN8: =IF(DN$6<>"",OFFSET(Data!DL$4,$B$10,(View!$B$27-1)*365 + ($B$8 + 1)),"") ->  | DO8: =IF(DO$6<>"",OFFSET(Data!DM$4,$B$10,(View!$B$27-1)*365 + ($B$8 + 1)),"") ->  | DP8: =IF(DP$6<>"",OFFSET(Data!DN$4,$B$10,(View!$B$27-1)*365 + ($B$8 + 1)),"") ->  | DQ8: =IF(DQ$6<>"",OFFSET(Data!DO$4,$B$10,(View!$B$27-1)*365 + ($B$8 + 1)),"") ->  | DR8: =IF(DR$6<>"",OFFSET(Data!DP$4,$B$10,(View!$B$27-1)*365 + ($B$8 + 1)),"") ->  | DS8: =IF(DS$6<>"",OFFSET(Data!DQ$4,$B$10,(View!$B$27-1)*365 + ($B$8 + 1)),"") ->  | DT8: =IF(DT$6<>"",OFFSET(Data!DR$4,$B$10,(View!$B$27-1)*365 + ($B$8 + 1)),"") ->  | DU8: =IF(DU$6<>"",OFFSET(Data!DS$4,$B$10,(View!$B$27-1)*365 + ($B$8 + 1)),"") -> 
D9: LZEQ | E9: =IF(E$6<>"",OFFSET(Data!C$4,$B$10,(View!$B$27-1)*365 + ($B$8 + 1)*2),"") -> 77.01639 | F9: =IF(F$6<>"",OFFSET(Data!D$4,$B$10,(View!$B$27-1)*365 + ($B$8 + 1)*2),"") -> 48.31781 | G9: =IF(G$6<>"",OFFSET(Data!E$4,$B$10,(View!$B$27-1)*365 + ($B$8 + 1)*2),"") -> 38.13113 | H9: =IF(H$6<>"",OFFSET(Data!F$4,$B$10,(View!$B$27-1)*365 + ($B$8 + 1)*2),"") -> 26.36585 | I9: =IF(I$6<>"",OFFSET(Data!G$4,$B$10,(View!$B$27-1)*365 + ($B$8 + 1)*2),"") -> 33.7256 | J9: =IF(J$6<>"",OFFSET(Data!H$4,$B$10,(View!$B$27-1)*365 + ($B$8 + 1)*2),"") -> 26.89796 | K9: =IF(K$6<>"",OFFSET(Data!I$4,$B$10,(View!$B$27-1)*365 + ($B$8 + 1)*2),"") -> 35.55788 | L9: =IF(L$6<>"",OFFSET(Data!J$4,$B$10,(View!$B$27-1)*365 + ($B$8 + 1)*2),"") -> 35.27953 | M9: =IF(M$6<>"",OFFSET(Data!K$4,$B$10,(View!$B$27-1)*365 + ($B$8 + 1)*2),"") -> 38.35934 | N9: =IF(N$6<>"",OFFSET(Data!L$4,$B$10,(View!$B$27-1)*365 + ($B$8 + 1)*2),"") -> 54.12219 | O9: =IF(O$6<>"",OFFSET(Data!M$4,$B$10,(View!$B$27-1)*365 + ($B$8 + 1)*2),"") -> 69.36831 | P9: =IF(P$6<>"",OFFSET(Data!N$4,$B$10,(View!$B$27-1)*365 + ($B$8 + 1)*2),"") -> 72.6418 | Q9: =IF(Q$6<>"",OFFSET(Data!O$4,$B$10,(View!$B$27-1)*365 + ($B$8 + 1)*2),"") -> 56.82779 | R9: =IF(R$6<>"",OFFSET(Data!P$4,$B$10,(View!$B$27-1)*365 + ($B$8 + 1)*2),"") -> 60.62257 | S9: =IF(S$6<>"",OFFSET(Data!Q$4,$B$10,(View!$B$27-1)*365 + ($B$8 + 1)*2),"") -> 61.2116 | T9: =IF(T$6<>"",OFFSET(Data!R$4,$B$10,(View!$B$27-1)*365 + ($B$8 + 1)*2),"") -> 70.07513 | U9: =IF(U$6<>"",OFFSET(Data!S$4,$B$10,(View!$B$27-1)*365 + ($B$8 + 1)*2),"") -> 69.64411 | V9: =IF(V$6<>"",OFFSET(Data!T$4,$B$10,(View!$B$27-1)*365 + ($B$8 + 1)*2),"") -> 56.22105 | W9: =IF(W$6<>"",OFFSET(Data!U$4,$B$10,(View!$B$27-1)*365 + ($B$8 + 1)*2),"") -> 45.97482 | X9: =IF(X$6<>"",OFFSET(Data!V$4,$B$10,(View!$B$27-1)*365 + ($B$8 + 1)*2),"") -> 43.01131 | Y9: =IF(Y$6<>"",OFFSET(Data!W$4,$B$10,(View!$B$27-1)*365 + ($B$8 + 1)*2),"") -> 37.53834 | Z9: =IF(Z$6<>"",OFFSET(Data!X$4,$B$10,(View!$B$27-1)*365 + ($B$8 + 1)*2),"") -> 36.78999 | AA9: =IF(AA$6<>"",OFFSET(Data!Y$4,$B$10,(View!$B$27-1)*365 + ($B$8 + 1)*2),"") -> 34.60658 | AB9: =IF(AB$6<>"",OFFSET(Data!Z$4,$B$10,(View!$B$27-1)*365 + ($B$8 + 1)*2),"") -> 30.16273 | AC9: =IF(AC$6<>"",OFFSET(Data!AA$4,$B$10,(View!$B$27-1)*365 + ($B$8 + 1)*2),"") -> 32.24132 | AD9: =IF(AD$6<>"",OFFSET(Data!AB$4,$B$10,(View!$B$27-1)*365 + ($B$8 + 1)*2),"") -> 29.11945 | AE9: =IF(AE$6<>"",OFFSET(Data!AC$4,$B$10,(View!$B$27-1)*365 + ($B$8 + 1)*2),"") -> 31.44125 | AF9: =IF(AF$6<>"",OFFSET(Data!AD$4,$B$10,(View!$B$27-1)*365 + ($B$8 + 1)*2),"") -> 26.8283 | AG9: =IF(AG$6<>"",OFFSET(Data!AE$4,$B$10,(View!$B$27-1)*365 + ($B$8 + 1)*2),"") -> 20.44614 | AH9: =IF(AH$6<>"",OFFSET(Data!AF$4,$B$10,(View!$B$27-1)*365 + ($B$8 + 1)*2),"") -> 15.84102 | AI9: =IF(AI$6<>"",OFFSET(Data!AG$4,$B$10,(View!$B$27-1)*365 + ($B$8 + 1)*2),"") -> 12.1882 | AJ9: =IF(AJ$6<>"",OFFSET(Data!AH$4,$B$10,(View!$B$27-1)*365 + ($B$8 + 1)*2),"") ->  | AK9: =IF(AK$6<>"",OFFSET(Data!AI$4,$B$10,(View!$B$27-1)*365 + ($B$8 + 1)*2),"") ->  | AL9: =IF(AL$6<>"",OFFSET(Data!AJ$4,$B$10,(View!$B$27-1)*365 + ($B$8 + 1)*2),"") ->  | AM9: =IF(AM$6<>"",OFFSET(Data!AK$4,$B$10,(View!$B$27-1)*365 + ($B$8 + 1)*2),"") ->  | AN9: =IF(AN$6<>"",OFFSET(Data!AL$4,$B$10,(View!$B$27-1)*365 + ($B$8 + 1)*2),"") ->  | AO9: =IF(AO$6<>"",OFFSET(Data!AM$4,$B$10,(View!$B$27-1)*365 + ($B$8 + 1)*2),"") ->  | AP9: =IF(AP$6<>"",OFFSET(Data!AN$4,$B$10,(View!$B$27-1)*365 + ($B$8 + 1)*2),"") ->  | AQ9: =IF(AQ$6<>"",OFFSET(Data!AO$4,$B$10,(View!$B$27-1)*365 + ($B$8 + 1)*2),"") ->  | AR9: =IF(AR$6<>"",OFFSET(Data!AP$4,$B$10,(View!$B$27-1)*365 + ($B$8 + 1)*2),"") ->  | AS9: =IF(AS$6<>"",OFFSET(Data!AQ$4,$B$10,(View!$B$27-1)*365 + ($B$8 + 1)*2),"") ->  | AT9: =IF(AT$6<>"",OFFSET(Data!AR$4,$B$10,(View!$B$27-1)*365 + ($B$8 + 1)*2),"") ->  | AU9: =IF(AU$6<>"",OFFSET(Data!AS$4,$B$10,(View!$B$27-1)*365 + ($B$8 + 1)*2),"") ->  | AV9: =IF(AV$6<>"",OFFSET(Data!AT$4,$B$10,(View!$B$27-1)*365 + ($B$8 + 1)*2),"") ->  | AW9: =IF(AW$6<>"",OFFSET(Data!AU$4,$B$10,(View!$B$27-1)*365 + ($B$8 + 1)*2),"") ->  | AX9: =IF(AX$6<>"",OFFSET(Data!AV$4,$B$10,(View!$B$27-1)*365 + ($B$8 + 1)*2),"") ->  | AY9: =IF(AY$6<>"",OFFSET(Data!AW$4,$B$10,(View!$B$27-1)*365 + ($B$8 + 1)*2),"") ->  | AZ9: =IF(AZ$6<>"",OFFSET(Data!AX$4,$B$10,(View!$B$27-1)*365 + ($B$8 + 1)*2),"") ->  | BA9: =IF(BA$6<>"",OFFSET(Data!AY$4,$B$10,(View!$B$27-1)*365 + ($B$8 + 1)*2),"") ->  | BB9: =IF(BB$6<>"",OFFSET(Data!AZ$4,$B$10,(View!$B$27-1)*365 + ($B$8 + 1)*2),"") ->  | BC9: =IF(BC$6<>"",OFFSET(Data!BA$4,$B$10,(View!$B$27-1)*365 + ($B$8 + 1)*2),"") ->  | BD9: =IF(BD$6<>"",OFFSET(Data!BB$4,$B$10,(View!$B$27-1)*365 + ($B$8 + 1)*2),"") ->  | BE9: =IF(BE$6<>"",OFFSET(Data!BC$4,$B$10,(View!$B$27-1)*365 + ($B$8 + 1)*2),"") ->  | BF9: =IF(BF$6<>"",OFFSET(Data!BD$4,$B$10,(View!$B$27-1)*365 + ($B$8 + 1)*2),"") ->  | BG9: =IF(BG$6<>"",OFFSET(Data!BE$4,$B$10,(View!$B$27-1)*365 + ($B$8 + 1)*2),"") ->  | BH9: =IF(BH$6<>"",OFFSET(Data!BF$4,$B$10,(View!$B$27-1)*365 + ($B$8 + 1)*2),"") ->  | BI9: =IF(BI$6<>"",OFFSET(Data!BG$4,$B$10,(View!$B$27-1)*365 + ($B$8 + 1)*2),"") ->  | BJ9: =IF(BJ$6<>"",OFFSET(Data!BH$4,$B$10,(View!$B$27-1)*365 + ($B$8 + 1)*2),"") ->  | BK9: =IF(BK$6<>"",OFFSET(Data!BI$4,$B$10,(View!$B$27-1)*365 + ($B$8 + 1)*2),"") ->  | BL9: =IF(BL$6<>"",OFFSET(Data!BJ$4,$B$10,(View!$B$27-1)*365 + ($B$8 + 1)*2),"") ->  | BM9: =IF(BM$6<>"",OFFSET(Data!BK$4,$B$10,(View!$B$27-1)*365 + ($B$8 + 1)*2),"") ->  | BN9: =IF(BN$6<>"",OFFSET(Data!BL$4,$B$10,(View!$B$27-1)*365 + ($B$8 + 1)*2),"") ->  | BO9: =IF(BO$6<>"",OFFSET(Data!BM$4,$B$10,(View!$B$27-1)*365 + ($B$8 + 1)*2),"") ->  | BP9: =IF(BP$6<>"",OFFSET(Data!BN$4,$B$10,(View!$B$27-1)*365 + ($B$8 + 1)*2),"") ->  | BQ9: =IF(BQ$6<>"",OFFSET(Data!BO$4,$B$10,(View!$B$27-1)*365 + ($B$8 + 1)*2),"") ->  | BR9: =IF(BR$6<>"",OFFSET(Data!BP$4,$B$10,(View!$B$27-1)*365 + ($B$8 + 1)*2),"") ->  | BS9: =IF(BS$6<>"",OFFSET(Data!BQ$4,$B$10,(View!$B$27-1)*365 + ($B$8 + 1)*2),"") ->  | BT9: =IF(BT$6<>"",OFFSET(Data!BR$4,$B$10,(View!$B$27-1)*365 + ($B$8 + 1)*2),"") ->  | BU9: =IF(BU$6<>"",OFFSET(Data!BS$4,$B$10,(View!$B$27-1)*365 + ($B$8 + 1)*2),"") ->  | BV9: =IF(BV$6<>"",OFFSET(Data!BT$4,$B$10,(View!$B$27-1)*365 + ($B$8 + 1)*2),"") ->  | BW9: =IF(BW$6<>"",OFFSET(Data!BU$4,$B$10,(View!$B$27-1)*365 + ($B$8 + 1)*2),"") ->  | BX9: =IF(BX$6<>"",OFFSET(Data!BV$4,$B$10,(View!$B$27-1)*365 + ($B$8 + 1)*2),"") ->  | BY9: =IF(BY$6<>"",OFFSET(Data!BW$4,$B$10,(View!$B$27-1)*365 + ($B$8 + 1)*2),"") ->  | BZ9: =IF(BZ$6<>"",OFFSET(Data!BX$4,$B$10,(View!$B$27-1)*365 + ($B$8 + 1)*2),"") ->  | CA9: =IF(CA$6<>"",OFFSET(Data!BY$4,$B$10,(View!$B$27-1)*365 + ($B$8 + 1)*2),"") ->  | CB9: =IF(CB$6<>"",OFFSET(Data!BZ$4,$B$10,(View!$B$27-1)*365 + ($B$8 + 1)*2),"") ->  | CC9: =IF(CC$6<>"",OFFSET(Data!CA$4,$B$10,(View!$B$27-1)*365 + ($B$8 + 1)*2),"") ->  | CD9: =IF(CD$6<>"",OFFSET(Data!CB$4,$B$10,(View!$B$27-1)*365 + ($B$8 + 1)*2),"") ->  | CE9: =IF(CE$6<>"",OFFSET(Data!CC$4,$B$10,(View!$B$27-1)*365 + ($B$8 + 1)*2),"") ->  | CF9: =IF(CF$6<>"",OFFSET(Data!CD$4,$B$10,(View!$B$27-1)*365 + ($B$8 + 1)*2),"") ->  | CG9: =IF(CG$6<>"",OFFSET(Data!CE$4,$B$10,(View!$B$27-1)*365 + ($B$8 + 1)*2),"") ->  | CH9: =IF(CH$6<>"",OFFSET(Data!CF$4,$B$10,(View!$B$27-1)*365 + ($B$8 + 1)*2),"") ->  | CI9: =IF(CI$6<>"",OFFSET(Data!CG$4,$B$10,(View!$B$27-1)*365 + ($B$8 + 1)*2),"") ->  | CJ9: =IF(CJ$6<>"",OFFSET(Data!CH$4,$B$10,(View!$B$27-1)*365 + ($B$8 + 1)*2),"") ->  | CK9: =IF(CK$6<>"",OFFSET(Data!CI$4,$B$10,(View!$B$27-1)*365 + ($B$8 + 1)*2),"") ->  | CL9: =IF(CL$6<>"",OFFSET(Data!CJ$4,$B$10,(View!$B$27-1)*365 + ($B$8 + 1)*2),"") ->  | CM9: =IF(CM$6<>"",OFFSET(Data!CK$4,$B$10,(View!$B$27-1)*365 + ($B$8 + 1)*2),"") ->  | CN9: =IF(CN$6<>"",OFFSET(Data!CL$4,$B$10,(View!$B$27-1)*365 + ($B$8 + 1)*2),"") ->  | CO9: =IF(CO$6<>"",OFFSET(Data!CM$4,$B$10,(View!$B$27-1)*365 + ($B$8 + 1)*2),"") ->  | CP9: =IF(CP$6<>"",OFFSET(Data!CN$4,$B$10,(View!$B$27-1)*365 + ($B$8 + 1)*2),"") ->  | CQ9: =IF(CQ$6<>"",OFFSET(Data!CO$4,$B$10,(View!$B$27-1)*365 + ($B$8 + 1)*2),"") ->  | CR9: =IF(CR$6<>"",OFFSET(Data!CP$4,$B$10,(View!$B$27-1)*365 + ($B$8 + 1)*2),"") ->  | CS9: =IF(CS$6<>"",OFFSET(Data!CQ$4,$B$10,(View!$B$27-1)*365 + ($B$8 + 1)*2),"") ->  | CT9: =IF(CT$6<>"",OFFSET(Data!CR$4,$B$10,(View!$B$27-1)*365 + ($B$8 + 1)*2),"") ->  | CU9: =IF(CU$6<>"",OFFSET(Data!CS$4,$B$10,(View!$B$27-1)*365 + ($B$8 + 1)*2),"") ->  | CV9: =IF(CV$6<>"",OFFSET(Data!CT$4,$B$10,(View!$B$27-1)*365 + ($B$8 + 1)*2),"") ->  | CW9: =IF(CW$6<>"",OFFSET(Data!CU$4,$B$10,(View!$B$27-1)*365 + ($B$8 + 1)*2),"") ->  | CX9: =IF(CX$6<>"",OFFSET(Data!CV$4,$B$10,(View!$B$27-1)*365 + ($B$8 + 1)*2),"") ->  | CY9: =IF(CY$6<>"",OFFSET(Data!CW$4,$B$10,(View!$B$27-1)*365 + ($B$8 + 1)*2),"") ->  | CZ9: =IF(CZ$6<>"",OFFSET(Data!CX$4,$B$10,(View!$B$27-1)*365 + ($B$8 + 1)*2),"") ->  | DA9: =IF(DA$6<>"",OFFSET(Data!CY$4,$B$10,(View!$B$27-1)*365 + ($B$8 + 1)*2),"") ->  | DB9: =IF(DB$6<>"",OFFSET(Data!CZ$4,$B$10,(View!$B$27-1)*365 + ($B$8 + 1)*2),"") ->  | DC9: =IF(DC$6<>"",OFFSET(Data!DA$4,$B$10,(View!$B$27-1)*365 + ($B$8 + 1)*2),"") ->  | DD9: =IF(DD$6<>"",OFFSET(Data!DB$4,$B$10,(View!$B$27-1)*365 + ($B$8 + 1)*2),"") ->  | DE9: =IF(DE$6<>"",OFFSET(Data!DC$4,$B$10,(View!$B$27-1)*365 + ($B$8 + 1)*2),"") ->  | DF9: =IF(DF$6<>"",OFFSET(Data!DD$4,$B$10,(View!$B$27-1)*365 + ($B$8 + 1)*2),"") ->  | DG9: =IF(DG$6<>"",OFFSET(Data!DE$4,$B$10,(View!$B$27-1)*365 + ($B$8 + 1)*2),"") ->  | DH9: =IF(DH$6<>"",OFFSET(Data!DF$4,$B$10,(View!$B$27-1)*365 + ($B$8 + 1)*2),"") ->  | DI9: =IF(DI$6<>"",OFFSET(Data!DG$4,$B$10,(View!$B$27-1)*365 + ($B$8 + 1)*2),"") ->  | DJ9: =IF(DJ$6<>"",OFFSET(Data!DH$4,$B$10,(View!$B$27-1)*365 + ($B$8 + 1)*2),"") ->  | DK9: =IF(DK$6<>"",OFFSET(Data!DI$4,$B$10,(View!$B$27-1)*365 + ($B$8 + 1)*2),"") ->  | DL9: =IF(DL$6<>"",OFFSET(Data!DJ$4,$B$10,(View!$B$27-1)*365 + ($B$8 + 1)*2),"") ->  | DM9: =IF(DM$6<>"",OFFSET(Data!DK$4,$B$10,(View!$B$27-1)*365 + ($B$8 + 1)*2),"") ->  | DN9: =IF(DN$6<>"",OFFSET(Data!DL$4,$B$10,(View!$B$27-1)*365 + ($B$8 + 1)*2),"") ->  | DO9: =IF(DO$6<>"",OFFSET(Data!DM$4,$B$10,(View!$B$27-1)*365 + ($B$8 + 1)*2),"") ->  | DP9: =IF(DP$6<>"",OFFSET(Data!DN$4,$B$10,(View!$B$27-1)*365 + ($B$8 + 1)*2),"") ->  | DQ9: =IF(DQ$6<>"",OFFSET(Data!DO$4,$B$10,(View!$B$27-1)*365 + ($B$8 + 1)*2),"") ->  | DR9: =IF(DR$6<>"",OFFSET(Data!DP$4,$B$10,(View!$B$27-1)*365 + ($B$8 + 1)*2),"") ->  | DS9: =IF(DS$6<>"",OFFSET(Data!DQ$4,$B$10,(View!$B$27-1)*365 + ($B$8 + 1)*2),"") ->  | DT9: =IF(DT$6<>"",OFFSET(Data!DR$4,$B$10,(View!$B$27-1)*365 + ($B$8 + 1)*2),"") ->  | DU9: =IF(DU$6<>"",OFFSET(Data!DS$4,$B$10,(View!$B$27-1)*365 + ($B$8 + 1)*2),"") -> 
A10: Logging entry index | B10: 34
A11: Time | B11: =OFFSET(Data!A$4,$B$10,(View!$B$27-1)*365) -> 11:59:11
A12: Interval (sec) | B12: =OFFSET(Data!B$4,$B$10,(View!$B$27-1)*365) -> 0.1
A26: Filename | B26: =OFFSET(Data!A1,0,(View!$B$27-1)*365) -> MEAS0040
A27: Index | B27: 1
E30: =IF($B$7>3,IF($B$7>6,3,2),IF($B$7>1,1,0)) -> 1 | F30: 31.5 | G30: 63 | H30: 125 | I30: 250 | J30: 500 | K30: 1000 | L30: 2000 | M30: 4000 | N30: 8000 | O30: 16000
F31: 25 | G31: 31.5 | H31: 40 | I31: 50 | J31: 63 | K31: 80 | L31: 100 | M31: 125 | N31: 160 | O31: 200 | P31: 250 | Q31: 315 | R31: 400 | S31: 500 | T31: 625 | U31: 800 | V31: 1000 | W31: 1250 | X31: 1600 | Y31: 2000 | Z31: 2500 | AA31: 3150 | AB31: 4000 | AC31: 5000 | AD31: 6250 | AE31: 8000 | AF31: 10000 | AG31: 12500 | AH31: 16000 | AI31: 20000
F32: 23.7 | G32: 26.6 | H32: 29.9 | I32: 33.5 | J32: 37.6 | K32: 42.2 | L32: 47.3 | M32: 53 | N32: 60 | O32: 67 | P32: 75 | Q32: 84 | R32: 94 | S32: 106 | T32: 119 | U32: 133 | V32: 150 | W32: 168 | X32: 188 | Y32: 211 | Z32: =F32*10 -> 237 | AA32: 266 | AB32: 299 | AC32: 335 | AD32: 376 | AE32: 422 | AF32: 473 | AG32: 530 | AH32: 600 | AI32: 670 | AJ32: 750 | AK32: 840 | AL32: 940 | AM32: 1060 | AN32: 1190 | AO32: 1330 | AP32: 1500 | AQ32: 1680 | AR32: 1880 | AS32: 2110 | AT32: 2370 | AU32: 2660 | AV32: 2990 | AW32: 3350 | AX32: 3760 | AY32: 4220 | AZ32: 4730 | BA32: 5300 | BB32: 6000 | BC32: 6700 | BD32: 7500 | BE32: 8400 | BF32: 9400 | BG32: 10600 | BH32: 11900 | BI32: 13300 | BJ32: 15000 | BK32: 16800 | BL32: 18800 | BM32: 21100
F33: 23 | G33: 24.4 | H33: 25.9 | I33: 27.4 | J33: 29 | K33: 30.7 | L33: 32.5 | M33: 34.5 | N33: 36.5 | O33: 38.7 | P33: 41 | Q33: 43.4 | R33: 46 | S33: 48.7 | T33: 52 | U33: 55 | V33: 58 | W33: 61 | X33: 65 | Y33: 69 | Z33: 73 | AA33: 77 | AB33: 82 | AC33: 87 | AD33: 92 | AE33: 97 | AF33: 103 | AG33: 109 | AH33: 115 | AI33: 122 | AJ33: 130 | AK33: 137 | AL33: 145 | AM33: 154 | AN33: 163 | AO33: 173 | AP33: 183 | AQ33: 194 | AR33: 205 | AS33: 218 | AT33: 230 | AU33: 244 | AV33: 259 | AW33: 274 | AX33: 290 | AY33: 307 | AZ33: 325 | BA33: 345 | BB33: 365 | BC33: 387 | BD33: 410 | BE33: 434 | BF33: 460 | BG33: 487 | BH33: 520 | BI33: 550 | BJ33: 580 | BK33: 610 | BL33: 650 | BM33: 690 | BN33: 730 | BO33: 770 | BP33: 820 | BQ33: 870 | BR33: 920 | BS33: 970 | BT33: 1030 | BU33: 1090 | BV33: 1150 | BW33: 1220 | BX33: 1300 | BY33: 1370 | BZ33: 1450 | CA33: 1540 | CB33: 1630 | CC33: 1730 | CD33: 1830 | CE33: 1940 | CF33: 2050 | CG33: 2180 | CH33: 2300 | CI33: 2440 | CJ33: 2590 | CK33: 2740 | CL33: 2900 | CM33: 3070 | CN33: 3250 | CO33: 3450 | CP33: 3650 | CQ33: 3870 | CR33: 4100 | CS33: 4340 | CT33: 4600 | CU33: 4870 | CV33: 5200 | CW33: 5500 | CX33: 5800 | CY33: 6100 | CZ33: 6500 | DA33: 6900 | DB33: 7300 | DC33: 7700 | DD33: 8200 | DE33: 8700 | DF33: 9200 | DG33: 9700 | DH33: 10300 | DI33: 10900 | DJ33: 11500 | DK33: 12200 | DL33: 13000 | DM33: 13700 | DN33: 14500 | DO33: 15400 | DP33: 16300 | DQ33: 17300 | DR33: 18300 | DS33: 19400 | DT33: 20500 | DU33: 21800

Sheet Data
A1: MEAS0040 | B1: date | C1: time | D1: interval | E1: bandtype | F1: bandcount
B2: 2023-01-24 | C2: 11:59:06 | D2: 0.1 | E2: 3 | F2: 30
A4: time | B4: interval | C4: LAeq | D4: LAeq_25 | E4: LAeq_31.5 | F4: LAeq_40 | G4: LAeq_50 | H4: LAeq_63 | I4: LAeq_80 | J4: LAeq_100 | K4: LAeq_125 | L4: LAeq_160 | M4: LAeq_200 | N4: LAeq_250 | O4: LAeq_315 | P4: LAeq_400 | Q4: LAeq_500 | R4: LAeq_625 | S4: LAeq_800 | T4: LAeq_1000 | U4: LAeq_1250 | V4: LAeq_1600 | W4: LAeq_2000 | X4: LAeq_2500 | Y4: LAeq_3150 | Z4: LAeq_4000 | AA4: LAeq_5000 | AB4: LAeq_6250 | AC4: LAeq_8000 | AD4: LAeq_10000 | AE4: LAeq_12500 | AF4: LAeq_16000 | AG4: LAeq_20000 | AH4: LCeq | AI4: LCeq_25 | AJ4: LCeq_31.5 | AK4: LCeq_40 | AL4: LCeq_50 | AM4: LCeq_63 | AN4: LCeq_80 | AO4: LCeq_100 | AP4: LCeq_125 | AQ4: LCeq_160 | AR4: LCeq_200 | AS4: LCeq_250 | AT4: LCeq_315 | AU4: LCeq_400 | AV4: LCeq_500 | AW4: LCeq_625 | AX4: LCeq_800 | AY4: LCeq_1000 | AZ4: LCeq_1250 | BA4: LCeq_1600 | BB4: LCeq_2000 | BC4: LCeq_2500 | BD4: LCeq_3150 | BE4: LCeq_4000 | BF4: LCeq_5000 | BG4: LCeq_6250 | BH4: LCeq_8000 | BI4: LCeq_10000 | BJ4: LCeq_12500 | BK4: LCeq_16000 | BL4: LCeq_20000 | BM4: LZeq | BN4: LZeq_25 | BO4: LZeq_31.5 | BP4: LZeq_40 | BQ4: LZeq_50 | BR4: LZeq_63 | BS4: LZeq_80 | BT4: LZeq_100 | BU4: LZeq_125 | BV4: LZeq_160 | BW4: LZeq_200 | BX4: LZeq_250 | BY4: LZeq_315 | BZ4: LZeq_400 | CA4: LZeq_500 | CB4: LZeq_625 | CC4: LZeq_800 | CD4: LZeq_1000 | CE4: LZeq_1250 | CF4: LZeq_1600 | CG4: LZeq_2000 | CH4: LZeq_2500 | CI4: LZeq_3150 | CJ4: LZeq_4000 | CK4: LZeq_5000 | CL4: LZeq_6250 | CM4: LZeq_8000 | CN4: LZeq_10000 | CO4: LZeq_12500 | CP4: LZeq_16000 | CQ4: LZeq_20000 | CR4: LAF | CS4: LAS | CT4: LAI | CU4: LCF | CV4: LCS | CW4: LCI | CX4: LZF | CY4: LZS | CZ4: LZI
A5: 11:59:07 | B5: 0.1 | C5: 71.16545 | D5: -7.7928 | E5: -5.63572 | F5: -0.38327 | G5: 5.61946 | H5: 5.13477 | I5: 14.64477 | J5: 12.77139 | K5: 16.56254 | L5: 28.1419 | M5: 44.29326 | N5: 53.86519 | O5: 59.69405 | P5: 60.99086 | Q5: 61.15212 | R5: 64.45569 | S5: 65.26784 | T5: 62.42909 | U5: 59.27133 | V5: 61.20729 | W5: 50.93436 | X5: 49.32824 | Y5: 40.54427 | Z5: 36.46461 | AA5: 36.87332 | AB5: 25.40261 | AC5: 28.43805 | AD5: 28.3215 | AE5: 13.24734 | AF5: 3.79453 | AG5: -0.9477 | AH5: 73.48155 | AI5: 33.04679 | AJ5: 30.55984 | AK5: 30.70159 | AL5: 35.19885 | AM5: 29.95277 | AN5: 36.87014 | AO5: 31.02246 | AP5: 32.16753 | AQ5: 40.38506 | AR5: 54.8932 | AS5: 62.30592 | AT5: 65.82163 | AU5: 66.48105 | AV5: 64.29192 | AW5: 66.19742 | AX5: 66.26002 | AY5: 62.466 | AZ5: 58.62422 | BA5: 60.18043 | BB5: 49.61622 | BC5: 47.78065 | BD5: 38.85419 | BE5: 34.65534 | BF5: 35.04076 | BG5: 23.52389 | BH5: 26.53194 | BI5: 26.40922 | BJ5: 11.3226 | BK5: 1.87044 | BL5: -2.91166 | BM5: 73.47383 | BN5: 37.6747 | BO5: 33.56773 | BP5: 32.40544 | BQ5: 36.61966 | BR5: 30.8139 | BS5: 37.42952 | BT5: 31.31523 | BU5: 32.37132 | BV5: 40.50995 | BW5: 54.94046 | BX5: 62.30803 | BY5: 65.79421 | BZ5: 66.45305 | CA5: 64.2597 | CB5: 66.16936 | CC5: 66.23898 | CD5: 62.46549 | CE5: 58.66074 | CF5: 60.26084 | CG5: 49.77042 | CH5: 48.05972 | CI5: 39.32601 | CJ5: 35.60205 | CK5: 36.17739 | CL5: 25.5022 | CM5: 29.87834 | CN5: 30.24463 | CO5: 17.29714 | CP5: 9.98185 | CQ5: 8.07397 | CR5: 68.46046 | CS5: 61.18763 | CT5: 73.8416 | CU5: 70.81063 | CV5: 63.50688 | CW5: 76.05953 | CX5: 70.80249 | CY5: 63.4991 | CZ5: 76.05428
A6: 11:59:07 | B6: 0.1 | C6: 65.43521 | D6: -6.88699 | E6: -14.94581 | F6: -0.21152 | G6: 14.45865 | H6: 1.11688 | I6: 11.8573 | J6: 12.84756 | K6: 21.158 | L6: 37.18744 | M6: 50.48986 | N6: 53.77541 | O6: 50.94907 | P6: 55.65194 | Q6: 54.81273 | R6: 53.09857 | S6: 49.73441 | T6: 46.46534 | U6: 43.32043 | V6: 45.69669 | W6: 48.72433 | X6: 49.60241 | Y6: 40.04737 | Z6: 33.56474 | AA6: 32.10732 | AB6: 27.72858 | AC6: 26.70011 | AD6: 25.8358 | AE6: 14.96347 | AF6: 6.53573 | AG6: -0.27025 | AH6: 71.74606 | AI6: 33.88758 | AJ6: 22.98954 | AK6: 29.72481 | AL6: 43.83566 | AM6: 26.2384 | AN6: 34.24164 | AO6: 31.1321 | AP6: 36.67618 | AQ6: 49.72901 | AR6: 60.75173 | AS6: 62.76637 | AT6: 57.7485 | AU6: 59.97899 | AV6: 58.50229 | AW6: 55.10318 | AX6: 50.75235 | AY6: 46.47486 | AZ6: 42.76501 | BA6: 44.60101 | BB6: 47.31178 | BC6: 48.04675 | BD6: 38.35316 | BE6: 31.77385 | BF6: 30.26972 | BG6: 25.85387 | BH6: 24.79508 | BI6: 23.92276 | BJ6: 13.03842 | BK6: 4.61105 | BL6: -2.22948 | BM6: 71.76591 | BN6: 38.54617 | BO6: 26.52758 | BP6: 31.29363 | BQ6: 45.33382 | BR6: 27.16204 | BS6: 34.79482 | BT6: 31.41671 | BU6: 36.82924 | BV6: 49.81223 | BW6: 60.8274 | BX6: 62.78782 | BY6: 57.72784 | BZ6: 59.9911 | CA6: 58.4752 | CB6: 55.07561 | CC6: 50.72931 | CD6: 46.47484 | CE6: 42.79515 | CF6: 44.69035 | CG6: 47.50469 | CH6: 48.3398 | CI6: 38.84261 | CJ6: 32.61003 | CK6: 31.4796 | CL6: 27.73003 | CM6: 28.05233 | CN6: 27.875 | CO6: 19.17947 | CP6: 12.52639 | CQ6: 8.65866 | CR6: 63.72663 | CS6: 55.18172 | CT6: 68.6031 | CU6: 70.06775 | CV6: 61.49884 | CW6: 74.96674 | CX6: 70.08414 | CY6: 61.51824 | CZ6: 74.97141
A7: 11:59:08 | B7: 0.1 | C7: 69.30519 | D7: -1.95372 | E7: -8.92491 | F7: -6.94624 | G7: 13.60336 | H7: 5.15635 | I7: 12.55552 | J7: 18.18201 | K7: 22.58701 | L7: 47.26901 | M7: 61.87625 | N7: 51.33706 | O7: 47.87525 | P7: 67.56856 | Q7: 56.498 | R7: 57.47563 | S7: 41.14854 | T7: 47.37013 | U7: 43.65793 | V7: 47.47171 | W7: 51.21164 | X7: 50.48094 | Y7: 37.81696 | Z7: 32.98033 | AA7: 28.00065 | AB7: 26.27227 | AC7: 26.87695 | AD7: 24.91745 | AE7: 13.16909 | AF7: 5.49731 | AG7: -0.44445 | AH7: 75.79523 | AI7: 38.42749 | AJ7: 27.58047 | AK7: 23.94818 | AL7: 42.99164 | AM7: 29.81526 | AN7: 35.02745 | AO7: 36.7244 | AP7: 38.32628 | AQ7: 59.06815 | AR7: 72.73793 | AS7: 60.39208 | AT7: 53.92629 | AU7: 72.2217 | AV7: 60.40742 | AW7: 59.67845 | AX7: 42.05981 | AY7: 47.39149 | AZ7: 43.02406 | BA7: 46.35201 | BB7: 49.84232 | BC7: 48.95013 | BD7: 36.1055 | BE7: 31.20509 | BF7: 26.15776 | BG7: 24.39501 | BH7: 24.97298 | BI7: 23.00436 | BJ7: 11.2448 | BK7: 3.57292 | BL7: -2.40446 | BM7: 75.81191 | BN7: 42.81971 | BO7: 30.92226 | BP7: 25.92437 | BQ7: 44.35394 | BR7: 30.64143 | BS7: 35.66595 | BT7: 37.04214 | BU7: 38.51669 | BV7: 59.12485 | BW7: 72.77493 | BX7: 60.37904 | BY7: 53.90324 | BZ7: 72.1917 | CA7: 60.37335 | CB7: 59.64893 | CC7: 42.03971 | CD7: 47.3905 | CE7: 43.05784 | CF7: 46.4511 | CG7: 50.01635 | CH7: 49.21318 | CI7: 36.63364 | CJ7: 31.95616 | CK7: 27.44321 | CL7: 26.34333 | CM7: 28.14321 | CN7: 26.94289 | CO7: 17.05618 | CP7: 11.67227 | CQ7: 8.50897 | CR7: 66.63327 | CS7: 59.31207 | CT7: 71.48708 | CU7: 73.17023 | CV7: 65.81074 | CW7: 77.61432 | CX7: 73.19241 | CY7: 65.82809 | CZ7: 77.62923
A8: 11:59:08 | B8: 0.1 | C8: 69.28038 | D8: -2.133 | E8: -3.22703 | F8: -10.68017 | G8: 6.90007 | H8: 9.11308 | I8: 15.15037 | J8: 10.03941 | K8: 18.16215 | L8: 45.3165 | M8: 60.73049 | N8: 43.03644 | O8: 44.95621 | P8: 68.85974 | Q8: 48.51846 | R8: 58.40533 | S8: 41.65246 | T8: 43.14398 | U8: 43.02667 | V8: 43.27191 | W8: 52.8492 | X8: 50.01952 | Y8: 41.11122 | Z8: 33.29622 | AA8: 26.80717 | AB8: 27.50132 | AC8: 30.84296 | AD8: 26.96504 | AE8: 14.23082 | AF8: 5.08114 | AG8: -0.85491 | AH8: 75.47241 | AI8: 37.19286 | AJ8: 34.06226 | AK8: 20.06376 | AL8: 36.26081 | AM8: 33.58612 | AN8: 37.10636 | AO8: 28.74554 | AP8: 31.97423 | AQ8: 57.61537 | AR8: 71.64281 | AS8: 52.8205 | AT8: 50.1781 | AU8: 73.65079 | AV8: 52.42986 | AW8: 60.53677 | AX8: 42.5104 | AY8: 43.09679 | AZ8: 42.45773 | BA8: 42.14157 | BB8: 51.43837 | BC8: 48.47659 | BD8: 39.42245 | BE8: 31.52213 | BF8: 24.96215 | BG8: 25.62409 | BH8: 28.93869 | BI8: 25.0526 | BJ8: 12.30679 | BK8: 3.15726 | BL8: -2.81313 | BM8: 75.46732 | BN8: 41.62579 | BO8: 37.24689 | BP8: 21.74129 | BQ8: 37.73536 | BR8: 34.36642 | BS8: 37.64516 | BT8: 29.10686 | BU8: 32.14841 | BV8: 57.69322 | BW8: 71.68312 | BX8: 52.83987 | BY8: 50.15169 | BZ8: 73.62019 | CA8: 52.39917 | CB8: 60.50506 | CC8: 42.48994 | CD8: 43.09716 | CE8: 42.48724 | CF8: 42.23826 | CG8: 51.62825 | CH8: 48.74979 | CI8: 39.89725 | CJ8: 32.26241 | CK8: 26.27868 | CL8: 27.56527 | CM8: 32.13232 | CN8: 28.90443 | CO8: 18.10375 | CP8: 11.22073 | CQ8: 8.09054 | CR8: 66.84551 | CS8: 61.21789 | CT8: 71.46758 | CU8: 72.21688 | CV8: 66.00124 | CW8: 77.01814 | CX8: 72.21816 | CY8: 65.97188 | CZ8: 77.01535
A9: 11:59:08 | B9: 0.1 | C9: 72.28989 | D9: -4.67382 | E9: 0.32344 | F9: -4.50481 | G9: 9.24494 | H9: 1.34552 | I9: 15.73069 | J9: 13.46107 | K9: 24.6065 | L9: 54.40263 | M9: 53.59906 | N9: 37.03113 | O9: 54.1393 | P9: 57.10515 | Q9: 71.03661 | R9: 60.55621 | S9: 53.067 | T9: 49.44938 | U9: 48.45009 | V9: 56.6741 | W9: 52.34798 | X9: 53.08707 | Y9: 39.40964 | Z9: 35.7022 | AA9: 29.9892 | AB9: 29.22562 | AC9: 29.55541 | AD9: 27.39476 | AE9: 17.62216 | AF9: 9.71677 | AG9: 1.38013 | AH9: 75.94674 | AI9: 34.01642 | AJ9: 37.55964 | AK9: 27.97552 | AL9: 38.31131 | AM9: 26.56231 | AN9: 37.59281 | AO9: 31.61585 | AP9: 38.50573 | AQ9: 66.82066 | AR9: 65.1806 | AS9: 46.20576 | AT9: 60.22361 | AU9: 62.0717 | AV9: 74.15698 | AW9: 62.85187 | AX9: 54.04423 | AY9: 49.47034 | AZ9: 47.80261 | BA9: 55.52678 | BB9: 51.06173 | BC9: 51.51308 | BD9: 37.73147 | BE9: 33.91679 | BF9: 28.14468 | BG9: 27.34962 | BH9: 27.65188 | BI9: 25.48138 | BJ9: 15.69729 | BK9: 7.79221 | BL9: -0.57261 | BM9: 75.93753 | BN9: 37.97205 | BO9: 41.05886 | BP9: 30.00729 | BQ9: 39.7713 | BR9: 27.42136 | BS9: 38.09162 | BT9: 31.89608 | BU9: 38.66996 | BV9: 66.89111 | BW9: 65.21715 | BX9: 46.21659 | BY9: 60.20517 | BZ9: 62.04421 | CA9: 74.12477 | CB9: 62.82157 | CC9: 54.02726 | CD9: 49.47089 | CE9: 47.84243 | CF9: 55.63071 | CG9: 51.20977 | CH9: 51.82448 | CI9: 38.1896 | CJ9: 34.70342 | CK9: 29.44503 | CL9: 29.26575 | CM9: 30.79848 | CN9: 29.46761 | CO9: 21.69437 | CP9: 15.79986 | CQ9: 10.1119 | CR9: 69.67882 | CS9: 61.92528 | CT9: 74.53596 | CU9: 73.3476 | CV9: 65.75792 | CW9: 78.09862 | CX9: 73.33871 | CY9: 65.72862 | CZ9: 78.08557
A10: 11:59:08 | B10: 0.1 | C10: 69.90128 | D10: -3.94333 | E10: -3.7224 | F10: -4.84174 | G10: 9.86693 | H10: 5.43309 | I10: 16.95812 | J10: 15.50864 | K10: 31.34861 | L10: 54.43378 | M10: 47.16787 | N10: 42.03096 | O10: 63.84358 | P10: 53.07754 | Q10: 68.31306 | R10: 53.54831 | S10: 48.72054 | T10: 39.50945 | U10: 40.7562 | V10: 42.74184 | W10: 49.49891 | X10: 53.1531 | Y10: 44.57272 | Z10: 33.63845 | AA10: 30.10269 | AB10: 30.98874 | AC10: 30.1441 | AD10: 28.61023 | AE10: 17.71706 | AF10: 10.13731 | AG10: 2.80074 | AH10: 75.0789 | AI10: 35.62532 | AJ10: 33.9103 | AK10: 27.67599 | AL10: 38.8079 | AM10: 30.33073 | AN10: 38.62134 | AO10: 33.60406 | AP10: 46.06834 | AQ10: 67.31717 | AR10: 58.88782 | AS10: 49.11691 | AT10: 70.59113 | AU10: 57.25129 | AV10: 71.77876 | AW10: 55.5734 | AX10: 49.592 | AY10: 39.46282 | AZ10: 40.16135 | BA10: 41.59039 | BB10: 48.06929 | BC10: 51.60364 | BD10: 42.87959 | BE10: 31.86058 | BF10: 28.25317 | BG10: 29.11333 | BH10: 28.23907 | BI10: 26.69679 | BJ10: 15.79263 | BK10: 8.21275 | BL10: 0.85176 | BM10: 75.07111 | BN10: 39.8408 | BO10: 37.3343 | BP10: 29.88789 | BQ10: 40.11777 | BR10: 31.20728 | BS10: 39.14394 | BT10: 33.90112 | BU10: 46.20383 | BV10: 67.39931 | BW10: 58.94107 | BX10: 49.10484 | BY10: 70.57614 | BZ10: 57.21947 | CA10: 71.74652 | CB10: 55.54355 | CC10: 49.56497 | CD10: 39.46346 | CE10: 40.17553 | CF10: 41.68168 | CG10: 48.2597 | CH10: 51.8787 | CI10: 43.36587 | CJ10: 32.61949 | CK10: 29.63071 | CL10: 31.0069 | CM10: 31.48435 | CN10: 30.67445 | CO10: 21.6809 | CP10: 16.3214 | CQ10: 11.47266 | CR10: 68.0442 | CS10: 62.70518 | CT10: 73.11887 | CU10: 72.29847 | CV10: 65.97841 | CW10: 76.71404 | CX10: 72.29005 | CY10: 65.94609 | CZ10: 76.70882
A11: 11:59:08 | B11: 0.1 | C11: 64.30957 | D11: -8.82378 | E11: -6.44788 | F11: -2.31667 | G11: 8.49817 | H11: 6.29536 | I11: 18.7815 | J11: 10.95064 | K11: 26.68392 | L11: 44.24526 | M11: 36.4279 | N11: 42.61118 | O11: 63.22904 | P11: 47.22314 | Q11: 60.68332 | R11: 45.17189 | S11: 45.33382 | T11: 34.27414 | U11: 36.79474 | V11: 35.53124 | W11: 41.15306 | X11: 46.78687 | Y11: 40.72913 | Z11: 32.79959 | AA11: 30.07662 | AB11: 30.44411 | AC11: 27.49137 | AD11: 25.29594 | AE11: 18.71025 | AF11: 12.55373 | AG11: 4.81541 | AH11: 70.23651 | AI11: 31.30077 | AJ11: 29.84442 | AK11: 29.07806 | AL11: 37.77036 | AM11: 31.03829 | AN11: 41.0752 | AO11: 29.35775 | AP11: 41.39476 | AQ11: 57.33558 | AR11: 48.13049 | AS11: 49.97132 | AT11: 69.84204 | AU11: 51.42869 | AV11: 64.27151 | AW11: 47.16441 | AX11: 46.22303 | AY11: 34.27457 | AZ11: 36.14767 | BA11: 34.47885 | BB11: 39.71184 | BC11: 45.23122 | BD11: 39.03117 | BE11: 31.01633 | BF11: 28.22939 | BG11: 28.56753 | BH11: 25.58839 | BI11: 23.38187 | BJ11: 16.78532 | BK11: 10.6292 | BL11: 2.86365 | BM11: 70.23097 | BN11: 35.56664 | BO11: 33.16728 | BP11: 30.83309 | BQ11: 39.26669 | BR11: 31.82916 | BS11: 41.62691 | BT11: 29.67738 | BU11: 41.5377 | BV11: 57.42717 | BW11: 48.18722 | BX11: 49.96141 | BY11: 69.82051 | BZ11: 51.39915 | CA11: 64.2373 | CB11: 47.12926 | CC11: 46.20149 | CD11: 34.27905 | CE11: 36.18829 | CF11: 34.56176 | CG11: 39.90891 | CH11: 45.50867 | CI11: 39.50908 | CJ11: 31.80553 | CK11: 29.56774 | CL11: 30.48464 | CM11: 28.70806 | CN11: 27.44282 | CO11: 22.81672 | CP11: 18.70386 | CQ11: 13.55767 | CR11: 65.43272 | CS11: 62.54991 | CT11: 72.85707 | CU11: 69.14284 | CV11: 65.84227 | CW11: 75.98593 | CX11: 69.12369 | CY11: 65.80982 | CZ11: 76.00902
A12: 11:59:08 | B12: 0.1 | C12: 49.24065 | D12: -6.02777 | E12: -16.89043 | F12: -2.64367 | G12: 7.07367 | H12: 8.12051 | I12: 14.76865 | J12: 13.36082 | K12: 34.70537 | L12: 43.62383 | M12: 25.27636 | N12: 35.18832 | O12: 43.45197 | P12: 34.48051 | Q12: 39.99839 | R12: 33.16049 | S12: 32.15314 | T12: 35.0969 | U12: 36.97401 | V12: 35.71733 | W12: 37.45038 | X12: 37.6256 | Y12: 36.16302 | Z12: 32.75688 | AA12: 28.75094 | AB12: 27.17265 | AC12: 25.31208 | AD12: 22.52049 | AE12: 17.12556 | AF12: 10.72092 | AG12: 3.91562 | AH12: 57.01796 | AI12: 34.53748 | AJ12: 21.44596 | AK12: 28.88611 | AL12: 36.44704 | AM12: 32.34743 | AN12: 36.46706 | AO12: 30.98363 | AP12: 49.54893 | AQ12: 57.01796 | AR12: 36.884 | AS12: 42.93447 | AT12: 50.4776 | AU12: 39.04684 | AV12: 43.65405 | AW12: 35.15804 | AX12: 32.99771 | AY12: 35.0145 | AZ12: 36.38513 | BA12: 34.63152 | BB12: 36.08337 | BC12: 36.0696 | BD12: 34.45607 | BE12: 30.97572 | BF12: 26.90885 | BG12: 25.29523 | BH12: 23.41129 | BI12: 20.60507 | BJ12: 15.20081 | BK12: 8.79652 | BL12: 1.97047 | BM12: 57.11453 | BN12: 39.02563 | BO12: 25.15487 | BP12: 30.88834 | BQ12: 37.78011 | BR12: 33.11514 | BS12: 37.0219 | BT12: 31.25774 | BU12: 49.6923 | BV12: 57.11453 | BW12: 36.93989 | BX12: 42.91658 | BY12: 50.46268 | BZ12: 39.0172 | CA12: 43.62209 | CB12: 35.1213 | CC12: 32.98225 | CD12: 35.01569 | CE12: 36.41261 | CF12: 34.72432 | CG12: 36.2603 | CH12: 36.37206 | CI12: 34.99028 | CJ12: 31.75035 | CK12: 28.18141 | CL12: 27.26389 | CM12: 26.40211 | CN12: 24.8355 | CO12: 21.22688 | CP12: 16.90009 | CQ12: 12.61636 | CR12: 62.11024 | CS12: 62.1354 | CT12: 72.57926 | CU12: 65.86334 | CV12: 65.42796 | CW12: 75.70815 | CX12: 65.84424 | CY12: 65.39551 | CZ12: 75.73123
A13: 11:59:08 | B13: 0.1 | C13: 72.69737 | D13: -1.52994 | E13: -1.79114 | F13: -5.86293 | G13: 2.43742 | H13: 2.52693 | I13: 21.76357 | J13: 12.2421 | K13: 26.30269 | L13: 47.3938 | M13: 58.92052 | N13: 47.33987 | O13: 49.83803 | P13: 61.58616 | Q13: 67.59557 | R13: 68.87257 | S13: 62.9638 | T13: 51.3086 | U13: 48.52289 | V13: 50.57212 | W13: 55.68814 | X13: 52.28417 | Y13: 42.52349 | Z13: 35.13976 | AA13: 32.64008 | AB13: 32.19693 | AC13: 30.64716 | AD13: 29.10885 | AE13: 17.60139 | AF13: 10.70256 | AG13: 3.22366 | AH13: 76.40393 | AI13: 37.61411 | AJ13: 35.27982 | AK13: 27.34517 | AL13: 31.33725 | AM13: 27.37186 | AN13: 44.07816 | AO13: 30.9285 | AP13: 41.50634 | AQ13: 59.31895 | AR13: 70.17694 | AS13: 56.26717 | AT13: 55.66591 | AU13: 66.62843 | AV13: 70.28724 | AW13: 71.23729 | AX13: 64.08326 | AY13: 51.26867 | AZ13: 48.00819 | BA13: 49.44701 | BB13: 54.33212 | BC13: 50.72969 | BD13: 40.84451 | BE13: 33.35444 | BF13: 30.79218 | BG13: 30.32188 | BH13: 28.74255 | BI13: 27.19579 | BJ13: 15.67664 | BK13: 8.77841 | BL13: 1.27395 | BM13: 76.40076 | BN13: 41.69031 | BO13: 38.69029 | BP13: 29.56753 | BQ13: 32.76229 | BR13: 28.26357 | BS13: 44.6147 | BT13: 31.25243 | BU13: 41.66026 | BV13: 59.37859 | BW13: 70.22276 | BX13: 56.27569 | BY13: 55.64271 | BZ13: 66.60126 | CA13: 70.25546 | CB13: 71.20618 | CC13: 64.06059 | CD13: 51.27161 | CE13: 48.03528 | CF13: 49.5472 | CG13: 54.49839 | CH13: 51.01595 | CI13: 41.29417 | CJ13: 34.15305 | CK13: 32.14114 | CL13: 32.19685 | CM13: 31.95446 | CN13: 31.12701 | CO13: 21.70225 | CP13: 16.86568 | CQ13: 11.9329 | CR13: 70.13556 | CS13: 63.11953 | CT13: 74.90205 | CU13: 73.71122 | CV13: 66.42659 | CW13: 78.56236 | CX13: 73.70575 | CY13: 66.42311 | CZ13: 78.56462
A14: 11:59:08 | B14: 0.1 | C14: 60.65161 | D14: -2.61703 | E14: -2.90907 | F14: 0.32352 | G14: 7.84489 | H14: 10.67002 | I14: 26.28056 | J14: 7.64278 | K14: 22.74495 | L14: 36.00791 | M14: 46.41563 | N14: 42.6732 | O14: 35.18844 | P14: 50.04478 | Q14: 56.50129 | R14: 58.40297 | S14: 48.30988 | T14: 40.28011 | U14: 39.06271 | V14: 39.27431 | W14: 41.11394 | X14: 39.70818 | Y14: 37.746 | Z14: 35.24167 | AA14: 31.40111 | AB14: 29.248 | AC14: 26.69126 | AD14: 23.88689 | AE14: 14.55739 | AF14: 8.83584 | AG14: 2.26829 | AH14: 64.05615 | AI14: 37.8763 | AJ14: 34.83849 | AK14: 32.47395 | AL14: 37.12452 | AM14: 34.22803 | AN14: 48.58644 | AO14: 26.18317 | AP14: 37.95071 | AQ14: 48.25143 | AR14: 57.15499 | AS14: 51.74276 | AT14: 41.24326 | AU14: 54.40659 | AV14: 59.33486 | AW14: 60.53502 | AX14: 49.49907 | AY14: 40.31495 | AZ14: 38.42358 | BA14: 38.16122 | BB14: 39.74818 | BC14: 38.13956 | BD14: 36.04182 | BE14: 33.45644 | BF14: 29.55814 | BG14: 27.37091 | BH14: 24.78944 | BI14: 21.97285 | BJ14: 12.6325 | BK14: 6.91155 | BL14: 0.31475 | BM14: 64.14886 | BN14: 42.46112 | BO14: 38.26954 | BP14: 34.51217 | BQ14: 38.53487 | BR14: 34.92724 | BS14: 49.14798 | BT14: 26.52489 | BU14: 38.11356 | BV14: 48.31834 | BW14: 57.18907 | BX14: 51.74973 | BY14: 41.21589 | BZ14: 54.36368 | CA14: 59.30077 | CB14: 60.50462 | CC14: 49.4711 | CD14: 40.30952 | CE14: 38.45746 | CF14: 38.25274 | CG14: 39.91761 | CH14: 38.44011 | CI14: 36.54755 | CJ14: 34.24445 | CK14: 30.83733 | CL14: 29.31079 | CM14: 27.83344 | CN14: 26.02233 | CO14: 18.5595 | CP14: 15.17311 | CQ14: 11.04121 | CR14: 64.11922 | CS14: 62.79405 | CT14: 72.44443 | CU14: 66.42949 | CV14: 65.91804 | CW14: 75.38716 | CX14: 66.39745 | CY14: 65.88569 | CZ14: 75.37903
A15: 11:59:08 | B15: 0.1 | C15: 72.24591 | D15: -2.88605 | E15: -7.78774 | F15: -0.5991 | G15: 4.12107 | H15: 7.46731 | I15: 26.00008 | J15: 8.04546 | K15: 17.21185 | L15: 27.15451 | M15: 40.65996 | N15: 57.4687 | O15: 49.76648 | P15: 43.34644 | Q15: 68.03005 | R15: 64.5315 | S15: 65.741 | T15: 54.11512 | U15: 52.02523 | V15: 51.64603 | W15: 57.85964 | X15: 58.20065 | Y15: 42.4109 | Z15: 34.98702 | AA15: 37.45385 | AB15: 33.05134 | AC15: 32.73989 | AD15: 31.30894 | AE15: 15.58591 | AF15: 7.79915 | AG15: 0.06925 | AH15: 74.80408 | AI15: 38.77769 | AJ15: 28.78216 | AK15: 32.39593 | AL15: 33.92721 | AM15: 31.72364 | AN15: 48.02227 | AO15: 27.25712 | AP15: 33.19355 | AQ15: 39.11913 | AR15: 51.58278 | AS15: 65.53789 | AT15: 57.42928 | AU15: 47.72348 | AV15: 70.77997 | AW15: 67.06464 | AX15: 66.52874 | AY15: 54.15023 | AZ15: 51.47346 | BA15: 50.5484 | BB15: 56.44982 | BC15: 56.6616 | BD15: 40.72948 | BE15: 33.19193 | BF15: 35.61278 | BG15: 31.17424 | BH15: 30.8363 | BI15: 29.39658 | BJ15: 13.66216 | BK15: 5.87452 | BL15: -1.88844 | BM15: 74.79486 | BN15: 43.54124 | BO15: 32.38955 | BP15: 34.4733 | BQ15: 35.39392 | BR15: 32.42307 | BS15: 48.56719 | BT15: 27.66861 | BU15: 33.36072 | BV15: 39.17213 | BW15: 51.61745 | BX15: 65.53458 | BY15: 57.43236 | BZ15: 47.69401 | CA15: 70.75018 | CB15: 67.04426 | CC15: 66.5134 | CD15: 54.15801 | CE15: 51.50656 | CF15: 50.64275 | CG15: 56.64172 | CH15: 56.93445 | CI15: 41.19328 | CJ15: 34.05922 | CK15: 36.86648 | CL15: 33.12664 | CM15: 34.0133 | CN15: 33.24418 | CO15: 19.44053 | CP15: 13.85403 | CQ15: 8.93673 | CR15: 70.42525 | CS15: 63.74476 | CT15: 74.68623 | CU15: 72.97198 | CV15: 66.76716 | CW15: 77.26463 | CX15: 72.9614 | CY15: 66.73546 | CZ15: 77.26688
A16: 11:59:08 | B16: 0.1 | C16: 70.20325 | D16: 1.77214 | E16: -3.63705 | F16: 1.53463 | G16: 7.47862 | H16: 9.94293 | I16: 26.63766 | J16: 21.22939 | K16: 22.66214 | L16: 33.62129 | M16: 50.5551 | N16: 56.9935 | O16: 58.02089 | P16: 58.7342 | Q16: 65.11398 | R16: 66.84404 | S16: 60.77713 | T16: 53.34232 | U16: 52.70821 | V16: 51.9966 | W16: 53.99889 | X16: 57.31051 | Y16: 39.00563 | Z16: 33.89822 | AA16: 34.61658 | AB16: 26.49464 | AC16: 25.77524 | AD16: 24.27985 | AE16: 14.43468 | AF16: 5.97736 | AG16: -1.25426 | AH16: 73.90387 | AI16: 42.44215 | AJ16: 31.49599 | AK16: 35.16474 | AL16: 36.09598 | AM16: 34.9295 | AN16: 48.91746 | AO16: 39.80875 | AP16: 38.13596 | AQ16: 45.36076 | AR16: 61.45388 | AS16: 65.12498 | AT16: 65.32011 | AU16: 63.50236 | AV16: 68.17714 | AW16: 69.16203 | AX16: 61.55785 | AY16: 53.42462 | AZ16: 52.18 | BA16: 50.94077 | BB16: 52.59797 | BC16: 55.77112 | BD16: 37.31659 | BE16: 32.10774 | BF16: 32.78019 | BG16: 24.61731 | BH16: 23.87272 | BI16: 22.36563 | BJ16: 12.51035 | BK16: 4.0527 | BL16: -3.21999 | BM16: 73.89641 | BN16: 47.18328 | BO16: 34.14677 | BP16: 37.52602 | BQ16: 37.45405 | BR16: 35.86207 | BS16: 49.48585 | BT16: 40.12858 | BU16: 38.30987 | BV16: 45.45554 | BW16: 61.49863 | BX16: 65.121 | BY16: 65.30651 | BZ16: 63.47512 | CA16: 68.14041 | CB16: 69.12343 | CC16: 61.5297 | CD16: 53.41508 | CE16: 52.20434 | CF16: 51.02772 | CG16: 52.78099 | CH16: 56.03851 | CI16: 37.79209 | CJ16: 32.94123 | CK16: 33.95937 | CL16: 26.57138 | CM16: 26.97134 | CN16: 26.45479 | CO16: 18.3019 | CP16: 12.02618 | CQ16: 7.75842 | CR16: 66.95668 | CS16: 63.88707 | CT16: 72.06153 | CU16: 70.88417 | CV16: 66.91487 | CW16: 75.56288 | CX16: 70.87844 | CY16: 66.88257 | CZ16: 75.55608
A17: 11:59:09 | B17: 0.1 | C17: 63.6679 | D17: -1.69147 | E17: -4.44379 | F17: 4.49534 | G17: 1.59029 | H17: 7.15286 | I17: 25.69048 | J17: 13.00446 | K17: 21.40987 | L17: 51.3699 | M17: 59.17073 | N17: 47.92334 | O17: 53.90525 | P17: 55.8944 | Q17: 52.92908 | R17: 55.18716 | S17: 53.49921 | T17: 44.94562 | U17: 40.38545 | V17: 38.1422 | W17: 37.13544 | X17: 38.53223 | Y17: 35.25916 | Z17: 29.30537 | AA17: 26.99199 | AB17: 23.63354 | AC17: 19.31227 | AD17: 15.75671 | AE17: 10.90392 | AF17: 5.48219 | AG17: -0.43591 | AH17: 72.16321 | AI17: 38.91545 | AJ17: 32.51113 | AK17: 37.73942 | AL17: 30.50597 | AM17: 31.86451 | AN17: 47.88232 | AO17: 31.40884 | AP17: 35.96605 | AQ17: 63.45049 | AR17: 70.3159 | AS17: 57.02815 | AT17: 59.83358 | AU17: 61.21623 | AV17: 56.05837 | AW17: 57.3697 | AX17: 54.51287 | AY17: 44.88145 | AZ17: 39.8536 | BA17: 37.1319 | BB17: 35.7474 | BC17: 36.98438 | BD17: 33.55628 | BE17: 27.52238 | BF17: 25.15031 | BG17: 21.75407 | BH17: 17.4125 | BI17: 13.84162 | BJ17: 8.97892 | BK17: 3.55798 | BL17: -2.39935 | BM17: 72.20109 | BN17: 43.79505 | BO17: 35.70565 | BP17: 40.05048 | BQ17: 31.93172 | BR17: 32.62545 | BS17: 48.42739 | BT17: 31.66859 | BU17: 36.10797 | BV17: 63.51324 | BW17: 70.36111 | BX17: 57.06795 | BY17: 59.80945 | BZ17: 61.18775 | CA17: 56.02763 | CB17: 57.33796 | CC17: 54.49168 | CD17: 44.88523 | CE17: 39.88225 | CF17: 37.21012 | CG17: 35.92822 | CH17: 37.26765 | CI17: 34.05904 | CJ17: 28.30824 | CK17: 26.42574 | CL17: 23.78589 | CM17: 20.34812 | CN17: 18.02925 | CO17: 15.01362 | CP17: 11.73203 | CQ17: 8.56858 | CR17: 62.96706 | CS17: 63.50474 | CT17: 71.78708 | CU17: 69.43196 | CV17: 66.53341 | CW17: 74.672 | CX17: 69.46729 | CY17: 66.50112 | CZ17: 74.68463
A18: 11:59:09 | B18: 0.1 | C18: 66.29324 | D18: -6.56424 | E18: -0.06695 | F18: 5.09251 | G18: 2.50311 | H18: 8.63226 | I18: 26.65308 | J18: 11.62254 | K18: 16.93071 | L18: 40.04691 | M18: 48.25364 | N18: 59.18238 | O18: 53.97382 | P18: 46.19189 | Q18: 53.80427 | R18: 55.99509 | S18: 57.54163 | T18: 58.49359 | U18: 59.17063 | V18: 56.34969 | W18: 43.2798 | X18: 41.76125 | Y18: 38.71703 | Z18: 32.64333 | AA18: 33.62801 | AB18: 24.74621 | AC18: 29.09579 | AD18: 25.16879 | AE18: 11.62704 | AF18: 3.57462 | AG18: -1.32443 | AH18: 70.4595 | AI18: 33.49033 | AJ18: 36.89578 | AK18: 38.01196 | AL18: 30.34924 | AM18: 32.31042 | AN18: 49.02505 | AO18: 30.79666 | AP18: 31.74807 | AQ18: 52.24436 | AR18: 58.48549 | AS18: 67.63438 | AT18: 61.31044 | AU18: 50.59261 | AV18: 57.2243 | AW18: 57.72243 | AX18: 58.39628 | AY18: 58.46017 | AZ18: 58.59138 | BA18: 55.42121 | BB18: 41.9386 | BC18: 40.20162 | BD18: 37.02421 | BE18: 30.84731 | BF18: 31.79028 | BG18: 22.86619 | BH18: 27.19088 | BI18: 23.25652 | BJ18: 9.70298 | BK18: 1.65032 | BL18: -3.28953 | BM18: 70.47252 | BN18: 38.0396 | BO18: 40.28329 | BP18: 40.1338 | BQ18: 31.56271 | BR18: 33.13517 | BS18: 49.58523 | BT18: 31.13785 | BU18: 31.89188 | BV18: 52.30958 | BW18: 58.49051 | BX18: 67.63286 | BY18: 61.29949 | BZ18: 50.56492 | CA18: 57.19096 | CB18: 57.69765 | CC18: 58.37994 | CD18: 58.46297 | CE18: 58.62315 | CF18: 55.48634 | CG18: 42.10149 | CH18: 40.49233 | CI18: 37.50241 | CJ18: 31.7177 | CK18: 32.9887 | CL18: 24.89895 | CM18: 30.42913 | CN18: 27.10841 | CO18: 15.47741 | CP18: 9.76704 | CQ18: 7.74247 | CR18: 64.02811 | CS18: 63.09413 | CT18: 71.48337 | CU18: 67.84384 | CV18: 66.12783 | CW18: 74.36897 | CX18: 67.85834 | CY18: 66.09553 | CZ18: 74.38155
A19: 11:59:09 | B19: 0.1 | C19: 59.98937 | D19: -3.956 | E19: -5.68421 | F19: 4.00594 | G19: -0.50897 | H19: 6.13961 | I19: 22.94068 | J19: 18.41943 | K19: 20.02941 | L19: 34.25195 | M19: 52.68481 | N19: 45.93826 | O19: 40.80311 | P19: 44.8643 | Q19: 43.42393 | R19: 50.10886 | S19: 48.97834 | T19: 46.24712 | U19: 45.95049 | V19: 44.83944 | W19: 44.5312 | X19: 45.87728 | Y19: 50.22948 | Z19: 55.38057 | AA19: 48.46741 | AB19: 44.4764 | AC19: 42.52307 | AD19: 38.45818 | AE19: 26.4158 | AF19: 22.47185 | AG19: 9.26884 | AH19: 63.61016 | AI19: 35.09231 | AJ19: 31.6601 | AK19: 36.97337 | AL19: 27.58485 | AM19: 30.58579 | AN19: 45.26651 | AO19: 36.76389 | AP19: 35.82466 | AQ19: 46.51917 | AR19: 63.17793 | AS19: 55.10209 | AT19: 47.65783 | AU19: 49.31918 | AV19: 46.76664 | AW19: 51.79259 | AX19: 49.79963 | AY19: 46.2422 | AZ19: 45.34168 | BA19: 43.72868 | BB19: 43.1628 | BC19: 44.29877 | BD19: 48.51885 | BE19: 53.58123 | BF19: 46.6343 | BG19: 42.60035 | BH19: 40.62289 | BI19: 36.54437 | BJ19: 24.49146 | BK19: 20.54662 | BL19: 7.33573 | BM19: 63.85204 | BN19: 38.90084 | BO19: 35.12135 | BP19: 39.04763 | BQ19: 28.87832 | BR19: 31.32893 | BS19: 45.8175 | BT19: 37.06576 | BU19: 36.0144 | BV19: 46.5833 | BW19: 63.20848 | BX19: 55.11135 | BY19: 47.62238 | BZ19: 49.27779 | CA19: 46.72227 | CB19: 51.75123 | CC19: 49.75671 | CD19: 46.23656 | CE19: 45.37235 | CF19: 43.82378 | CG19: 43.34233 | CH19: 44.61336 | CI19: 49.04004 | CJ19: 54.45215 | CK19: 47.80753 | CL19: 44.52583 | CM19: 43.56142 | CN19: 40.5796 | CO19: 30.52329 | CP19: 28.38242 | CQ19: 17.33071 | CR19: 57.31583 | CS19: 62.68184 | CT19: 71.20587 | CU19: 64.05237 | CV19: 65.71588 | CW19: 74.09151 | CX19: 64.08807 | CY19: 65.68356 | CZ19: 74.10408
A20: 11:59:09 | B20: 0.1 | C20: 54.07513 | D20: -1.04131 | E20: -4.09314 | F20: 5.76556 | G20: -4.1627 | H20: -0.39298 | I20: 19.57249 | J20: 12.54669 | K20: 18.6104 | L20: 27.99519 | M20: 38.97694 | N20: 40.56142 | O20: 34.11697 | P20: 33.28954 | Q20: 31.96725 | R20: 37.06182 | S20: 36.04937 | T20: 37.78371 | U20: 38.69952 | V20: 39.14027 | W20: 40.3857 | X20: 42.17197 | Y20: 44.59653 | Z20: 50.50062 | AA20: 45.28098 | AB20: 41.72144 | AC20: 39.80651 | AD20: 35.54932 | AE20: 22.8946 | AF20: 19.70453 | AG20: 6.25939 | AH20: 54.39482 | AI20: 38.83157 | AJ20: 31.62739 | AK20: 38.3992 | AL20: 24.67654 | AM20: 24.13894 | AN20: 41.3579 | AO20: 31.24628 | AP20: 34.28612 | AQ20: 40.39532 | AR20: 49.22302 | AS20: 49.51311 | AT20: 41.10933 | AU20: 38.29818 | AV20: 35.30082 | AW20: 38.83051 | AX20: 36.94363 | AY20: 37.77786 | AZ20: 38.06567 | BA20: 38.0349 | BB20: 39.00512 | BC20: 40.58532 | BD20: 42.88046 | BE20: 48.70224 | BF20: 43.44291 | BG20: 39.84414 | BH20: 37.90699 | BI20: 33.63486 | BJ20: 20.97031 | BK20: 17.77947 | BL20: 4.32275 | BM20: 55.1419 | BN20: 43.11101 | BO20: 34.4634 | BP20: 40.52947 | BQ20: 26.2 | BR20: 24.98921 | BS20: 41.8912 | BT20: 31.56904 | BU20: 34.45326 | BV20: 40.45551 | BW20: 49.24134 | BX20: 49.51881 | BY20: 41.09364 | BZ20: 38.27014 | CA20: 35.26811 | CB20: 38.78498 | CC20: 36.92419 | CD20: 37.78032 | CE20: 38.10043 | CF20: 38.12608 | CG20: 39.16653 | CH20: 40.89867 | CI20: 43.41888 | CJ20: 49.56838 | CK20: 44.65734 | CL20: 41.80427 | CM20: 40.80042 | CN20: 37.72209 | CO20: 27.01943 | CP20: 25.60498 | CQ20: 14.35711 | CR20: 54.0231 | CS20: 62.26529 | CT20: 70.92794 | CU20: 60.84601 | CV20: 65.29935 | CW20: 73.8136 | CX20: 60.88122 | CY20: 65.26703 | CZ20: 73.82616
A21: 11:59:09 | B21: 0.1 | C21: 71.83574 | D21: -1.9827 | E21: -3.74299 | F21: 4.58324 | G21: 4.16469 | H21: 5.78831 | I21: 14.70831 | J21: 13.54477 | K21: 13.20414 | L21: 21.65205 | M21: 35.46031 | N21: 57.42253 | O21: 55.10278 | P21: 54.49772 | Q21: 68.75876 | R21: 60.49879 | S21: 64.42243 | T21: 59.88743 | U21: 52.50403 | V21: 43.15443 | W21: 38.18446 | X21: 46.92075 | Y21: 39.29922 | Z21: 34.79803 | AA21: 32.7494 | AB21: 28.38269 | AC21: 24.47604 | AD21: 21.64306 | AE21: 11.56264 | AF21: 4.99245 | AG21: -0.24006 | AH21: 75.06469 | AI21: 37.50315 | AJ21: 32.19302 | AK21: 36.36501 | AL21: 33.17647 | AM21: 30.50884 | AN21: 36.82911 | AO21: 31.54061 | AP21: 30.03773 | AQ21: 34.32255 | AR21: 45.07436 | AS21: 65.84355 | AT21: 61.9938 | AU21: 59.23361 | AV21: 71.89404 | AW21: 62.79674 | AX21: 65.56772 | AY21: 59.87569 | AZ21: 51.8931 | BA21: 42.19524 | BB21: 36.785 | BC21: 45.35559 | BD21: 37.60043 | BE21: 33.0084 | BF21: 30.90859 | BG21: 26.50677 | BH21: 22.57432 | BI21: 19.72861 | BJ21: 9.6384 | BK21: 3.06785 | BL21: -2.20129 | BM21: 75.04411 | BN21: 41.8436 | BO21: 35.31384 | BP21: 38.27322 | BQ21: 34.58044 | BR21: 31.32176 | BS21: 37.36842 | BT21: 31.82594 | BU21: 30.26044 | BV21: 34.40276 | BW21: 45.09577 | BX21: 65.84782 | BY21: 61.98025 | BZ21: 59.20491 | CA21: 71.86543 | CB21: 62.76793 | CC21: 65.54593 | CD21: 59.87826 | CE21: 51.92736 | CF21: 42.26602 | CG21: 36.97589 | CH21: 45.65015 | CI21: 38.09509 | CJ21: 33.82406 | CK21: 32.16388 | CL21: 28.40118 | CM21: 25.62275 | CN21: 23.84341 | CO21: 15.51611 | CP21: 11.13864 | CQ21: 8.77459 | CR21: 70.08023 | CS21: 63.60751 | CT21: 74.78012 | CU21: 73.27771 | CV21: 66.67702 | CW21: 77.94802 | CX21: 73.255 | CY21: 66.64595 | CZ21: 77.92793
A22: 11:59:09 | B22: 0.1 | C22: 73.90065 | D22: -2.5979 | E22: -8.34837 | F22: 3.78257 | G22: -1.12386 | H22: 3.28934 | I22: 18.43999 | J22: 9.62621 | K22: 19.25161 | L22: 17.02745 | M22: 38.08372 | N22: 57.1196 | O22: 46.32804 | P22: 52.64301 | Q22: 71.52174 | R22: 60.92393 | S22: 68.14713 | T22: 59.9948 | U22: 47.07805 | V22: 40.15816 | W22: 37.33582 | X22: 41.36792 | Y22: 35.54091 | Z22: 34.47446 | AA22: 33.15334 | AB22: 29.71187 | AC22: 27.39676 | AD22: 23.38493 | AE22: 18.36092 | AF22: 11.43457 | AG22: 4.92944 | AH22: 76.79445 | AI22: 36.70151 | AJ22: 28.19063 | AK22: 35.7571 | AL22: 27.19611 | AM22: 29.30946 | AN22: 40.67955 | AO22: 28.29772 | AP22: 35.49539 | AQ22: 29.9074 | AR22: 47.17676 | AS22: 65.7952 | AT22: 53.56817 | AU22: 56.32095 | AV22: 74.86626 | AW22: 62.6534 | AX22: 69.20373 | AY22: 60.05856 | AZ22: 46.57681 | BA22: 39.1477 | BB22: 35.94797 | BC22: 39.81273 | BD22: 33.83141 | BE22: 32.68203 | BF22: 31.31335 | BG22: 27.8337 | BH22: 25.49612 | BI22: 21.46915 | BJ22: 16.4362 | BK22: 9.51039 | BL22: 2.97453 | BM22: 76.77077 | BN22: 40.73051 | BO22: 31.5014 | BP22: 37.70483 | BQ22: 28.57008 | BR22: 30.30119 | BS22: 41.24039 | BT22: 28.62038 | BU22: 35.69116 | BV22: 29.99466 | BW22: 47.1834 | BX22: 65.79678 | BY22: 53.54796 | BZ22: 56.28897 | CA22: 74.83312 | CB22: 62.62548 | CC22: 69.18452 | CD22: 60.05717 | CE22: 46.60475 | CF22: 39.22637 | CG22: 36.12948 | CH22: 40.09621 | CI22: 34.35099 | CJ22: 33.52278 | CK22: 32.55314 | CL22: 29.81344 | CM22: 28.44276 | CN22: 25.75555 | CO22: 22.38827 | CP22: 17.66457 | CQ22: 13.77111 | CR22: 71.4696 | CS22: 65.30083 | CT22: 76.01427 | CU22: 74.32321 | CV22: 68.47588 | CW22: 78.83855 | CX22: 74.29886 | CY22: 68.444 | CZ22: 78.81683
A23: 11:59:09 | B23: 0.1 | C23: 73.24388 | D23: -0.50462 | E23: -14.84042 | F23: 5.775 | G23: 0.35945 | H23: 3.87707 | I23: 15.78806 | J23: 10.86974 | K23: 19.77431 | L23: 22.17435 | M23: 32.45378 | N23: 55.5019 | O23: 56.82296 | P23: 44.47287 | Q23: 69.15687 | R23: 70.40238 | S23: 64.22872 | T23: 57.42049 | U23: 58.14105 | V23: 52.92203 | W23: 42.9259 | X23: 47.04392 | Y23: 37.78471 | Z23: 34.05219 | AA23: 33.86178 | AB23: 32.81484 | AC23: 30.8217 | AD23: 28.08266 | AE23: 21.67307 | AF23: 13.69785 | AG23: 6.26009 | AH23: 75.81297 | AI23: 39.23079 | AJ23: 23.95015 | AK23: 37.95831 | AL23: 29.13144 | AM23: 29.39348 | AN23: 38.02168 | AO23: 29.30436 | AP23: 35.66196 | AQ23: 34.87655 | AR23: 42.47405 | AS23: 63.47266 | AT23: 64.15926 | AU23: 48.90383 | AV23: 71.88596 | AW23: 72.78597 | AX23: 64.9238 | AY23: 57.59021 | AZ23: 57.68441 | BA23: 51.94175 | BB23: 41.53386 | BC23: 45.5014 | BD23: 36.0824 | BE23: 32.26096 | BF23: 32.01995 | BG23: 30.93616 | BH23: 28.92016 | BI23: 26.16729 | BJ23: 19.74853 | BK23: 11.77345 | BL23: 4.30773 | BM23: 75.78849 | BN23: 43.45939 | BO23: 27.91367 | BP23: 39.94969 | BQ23: 30.51317 | BR23: 30.34313 | BS23: 38.58627 | BT23: 29.60935 | BU23: 35.85646 | BV23: 34.96862 | BW23: 42.50122 | BX23: 63.46303 | BY23: 64.15422 | BZ23: 48.87411 | CA23: 71.8516 | CB23: 72.75492 | CC23: 64.89881 | CD23: 57.58374 | CE23: 57.70727 | CF23: 52.0189 | CG23: 41.72806 | CH23: 45.7786 | CI23: 36.58582 | CJ23: 33.09613 | CK23: 33.28674 | CL23: 32.9301 | CM23: 31.95312 | CN23: 30.37002 | CO23: 25.62538 | CP23: 19.88526 | CQ23: 15.02918 | CR23: 70.10593 | CS23: 65.85881 | CT23: 75.19378 | CU23: 72.7545 | CV23: 68.94392 | CW23: 77.6715 | CX23: 72.73101 | CY23: 68.91154 | CZ23: 77.64592
A24: 11:59:09 | B24: 0.1 | C24: 64.17991 | D24: -3.05856 | E24: -7.71865 | F24: 1.76899 | G24: -1.93259 | H24: 8.64684 | I24: 14.65543 | J24: 17.12872 | K24: 15.90836 | L24: 17.66142 | M24: 25.94859 | N24: 48.36014 | O24: 60.99191 | P24: 38.41863 | Q24: 50.42575 | R24: 58.62435 | S24: 43.2382 | T24: 41.99547 | U24: 46.87078 | V24: 47.37417 | W24: 45.58391 | X24: 53.52659 | Y24: 39.15302 | Z24: 33.38255 | AA24: 31.26716 | AB24: 30.95164 | AC24: 32.89835 | AD24: 26.40437 | AE24: 16.81278 | AF24: 9.17386 | AG24: 2.17894 | AH24: 69.57051 | AI24: 36.17097 | AJ24: 28.86094 | AK24: 33.04484 | AL24: 28.39546 | AM24: 32.88535 | AN24: 37.15778 | AO24: 34.97108 | AP24: 32.55433 | AQ24: 30.33647 | AR24: 36.59027 | AS24: 55.92677 | AT24: 68.0543 | AU24: 43.74625 | AV24: 53.25047 | AW24: 60.77744 | AX24: 43.98967 | AY24: 42.12139 | AZ24: 46.30679 | BA24: 46.37151 | BB24: 44.15256 | BC24: 51.97455 | BD24: 37.47038 | BE24: 31.59344 | BF24: 29.42178 | BG24: 29.07192 | BH24: 30.99789 | BI24: 24.49104 | BJ24: 14.88823 | BK24: 7.2494 | BL24: 0.22215 | BM24: 69.56454 | BN24: 40.3232 | BO24: 32.11068 | BP24: 34.75261 | BQ24: 30.05563 | BR24: 33.6247 | BS24: 37.73426 | BT24: 35.24291 | BU24: 32.74837 | BV24: 30.39006 | BW24: 36.61544 | BX24: 55.91957 | BY24: 68.04008 | BZ24: 43.72606 | CA24: 53.21661 | CB24: 60.74706 | CC24: 43.97289 | CD24: 42.12286 | CE24: 46.31746 | CF24: 46.42661 | CG24: 44.35165 | CH24: 52.25613 | CI24: 37.93939 | CJ24: 32.41122 | CK24: 30.71062 | CL24: 31.0983 | CM24: 33.9412 | CN24: 28.58899 | CO24: 20.72934 | CP24: 15.36033 | CQ24: 10.99107 | CR24: 65.74887 | CS24: 65.45412 | CT24: 73.25618 | CU24: 68.77151 | CV24: 68.53852 | CW24: 76.36104 | CX24: 68.73813 | CY24: 68.50614 | CZ24: 76.32326
A25: 11:59:09 | B25: 0.1 | C25: 70.90295 | D25: -5.39297 | E25: -9.92135 | F25: -0.95185 | G25: -5.41986 | H25: 6.11229 | I25: 14.12061 | J25: 20.06612 | K25: 20.49835 | L25: 20.09113 | M25: 23.80281 | N25: 43.82194 | O25: 62.2926 | P25: 38.32632 | Q25: 48.44791 | R25: 66.87903 | S25: 54.93278 | T25: 61.8468 | U25: 62.93164 | V25: 62.0302 | W25: 49.95111 | X25: 51.29198 | Y25: 40.75411 | Z25: 37.13131 | AA25: 36.22742 | AB25: 31.84953 | AC25: 34.55566 | AD25: 27.50294 | AE25: 16.43279 | AF25: 8.25726 | AG25: 1.0565 | AH25: 72.98112 | AI25: 34.19376 | AJ25: 25.64143 | AK25: 30.64564 | AL25: 23.97784 | AM25: 29.60884 | AN25: 36.85811 | AO25: 38.23986 | AP25: 36.11936 | AQ25: 33.34595 | AR25: 34.30418 | AS25: 50.96868 | AT25: 69.05682 | AU25: 44.27835 | AV25: 51.02266 | AW25: 68.89362 | AX25: 55.52069 | AY25: 62.12303 | AZ25: 62.37486 | BA25: 61.01868 | BB25: 48.62808 | BC25: 49.72322 | BD25: 39.07122 | BE25: 35.32824 | BF25: 34.38892 | BG25: 29.97052 | BH25: 32.65448 | BI25: 25.5883 | BJ25: 14.50871 | BK25: 6.33285 | BL25: -0.89738 | BM25: 72.97523 | BN25: 38.38224 | BO25: 28.50292 | BP25: 32.50571 | BQ25: 25.29718 | BR25: 30.30625 | BS25: 37.43591 | BT25: 38.53012 | BU25: 36.29787 | BV25: 33.4501 | BW25: 34.34245 | BX25: 50.9521 | BY25: 69.03871 | BZ25: 44.25395 | CA25: 50.99327 | CB25: 68.86346 | CC25: 55.50764 | CD25: 62.11695 | CE25: 62.40391 | CF25: 61.0958 | CG25: 48.78202 | CH25: 50.01925 | CI25: 39.53308 | CJ25: 36.23072 | CK25: 35.6055 | CL25: 31.97876 | CM25: 35.6254 | CN25: 29.66359 | CO25: 20.31942 | CP25: 14.37221 | CQ25: 9.8229 | CR25: 68.3774 | CS25: 65.04585 | CT25: 73.21561 | CU25: 70.30925 | CV25: 68.12929 | CW25: 76.08393 | CX25: 70.30405 | CY25: 68.09691 | CZ25: 76.04614
A26: 11:59:09 | B26: 0.1 | C26: 63.4 | D26: -7.40334 | E26: -15.11297 | F26: -0.86044 | G26: 2.67459 | H26: 9.41019 | I26: 15.0662 | J26: 13.27073 | K26: 20.03671 | L26: 18.79476 | M26: 22.04198 | N26: 37.10462 | O26: 54.25902 | P26: 35.93404 | Q26: 51.82326 | R26: 60.87504 | S26: 55.58921 | T26: 55.28216 | U26: 55.8802 | V26: 51.1815 | W26: 41.18874 | X26: 41.7175 | Y26: 35.14566 | Z26: 32.23188 | AA26: 30.9035 | AB26: 27.33321 | AC26: 29.65755 | AD26: 22.35589 | AE26: 21.14381 | AF26: 16.30429 | AG26: 7.04062 | AH26: 65.73387 | AI26: 32.96275 | AJ26: 18.838 | AK26: 31.98032 | AL26: 31.21175 | AM26: 34.58647 | AN26: 37.90549 | AO26: 31.5432 | AP26: 34.89614 | AQ26: 32.48601 | AR26: 33.15865 | AS26: 44.61752 | AT26: 61.28924 | AU26: 40.87601 | AV26: 54.52256 | AW26: 62.99036 | AX26: 56.29935 | AY26: 55.41394 | AZ26: 55.30303 | BA26: 50.20864 | BB26: 39.83742 | BC26: 40.16666 | BD26: 33.44234 | BE26: 30.44405 | BF26: 29.06104 | BG26: 25.45306 | BH26: 27.75836 | BI26: 20.43904 | BJ26: 19.21865 | BK26: 14.37953 | BL26: 5.09695 | BM26: 65.74371 | BN26: 37.52721 | BO26: 21.43297 | BP26: 33.99875 | BQ26: 32.62321 | BR26: 35.45224 | BS26: 38.54833 | BT26: 31.8162 | BU26: 35.03074 | BV26: 32.5863 | BW26: 33.20596 | BX26: 44.59973 | BY26: 61.26514 | BZ26: 40.86443 | CA26: 54.49367 | CB26: 62.95837 | CC26: 56.28232 | CD26: 55.40332 | CE26: 55.32904 | CF26: 50.27409 | CG26: 40.0048 | CH26: 40.43812 | CI26: 33.94952 | CJ26: 31.25679 | CK26: 30.33379 | CL26: 27.50141 | CM26: 30.60157 | CN26: 24.85889 | CO26: 25.4156 | CP26: 22.3623 | CQ26: 15.57984 | CR26: 63.59437 | CS26: 64.60548 | CT26: 72.67276 | CU26: 65.72531 | CV26: 67.687 | CW26: 75.77731 | CX26: 65.69391 | CY26: 67.65465 | CZ26: 75.73952
A27: 11:59:10 | B27: 0.1 | C27: 66.54829 | D27: -9.15215 | E27: -10.24549 | F27: 5.18079 | G27: 2.4422 | H27: 10.14275 | I27: 16.41982 | J27: 13.71873 | K27: 19.37749 | L27: 41.45908 | M27: 60.48679 | N27: 53.4864 | O27: 44.53303 | P27: 61.67266 | Q27: 58.25515 | R27: 54.40078 | S27: 54.29757 | T27: 52.3784 | U27: 51.93132 | V27: 42.19918 | W27: 41.16135 | X27: 39.88577 | Y27: 36.43814 | Z27: 32.4897 | AA27: 30.45802 | AB27: 25.71574 | AC27: 24.91998 | AD27: 21.16914 | AE27: 14.83636 | AF27: 7.95102 | AG27: 1.54829 | AH27: 73.91281 | AI27: 31.71793 | AJ27: 25.6198 | AK27: 36.44321 | AL27: 31.62032 | AM27: 34.58094 | AN27: 39.21948 | AO27: 32.29992 | AP27: 34.50198 | AQ27: 53.06348 | AR27: 71.2446 | AS27: 62.87285 | AT27: 50.92492 | AU27: 66.43581 | AV27: 61.84013 | AW27: 56.4296 | AX27: 55.16987 | AY27: 52.39849 | AZ27: 51.40385 | BA27: 41.19167 | BB27: 39.78638 | BC27: 38.33823 | BD27: 34.73212 | BE27: 30.71045 | BF27: 28.61458 | BG27: 23.83808 | BH27: 23.01942 | BI27: 19.25345 | BJ27: 12.91108 | BK27: 6.02645 | BL27: -0.40533 | BM27: 73.93031 | BN27: 36.4537 | BO27: 28.66794 | BP27: 38.30231 | BQ27: 33.09877 | BR27: 35.42274 | BS27: 39.86047 | BT27: 32.62461 | BU27: 34.66627 | BV27: 53.11704 | BW27: 71.28108 | BX27: 62.90386 | BY27: 50.90805 | BZ27: 66.40708 | CA27: 61.80795 | CB27: 56.3997 | CC27: 55.15042 | CD27: 52.39791 | CE27: 51.42976 | CF27: 41.26836 | CG27: 39.96117 | CH27: 38.61999 | CI27: 35.24512 | CJ27: 31.47809 | CK27: 29.88525 | CL27: 25.84084 | CM27: 25.96769 | CN27: 23.50645 | CO27: 18.90656 | CP27: 14.11145 | CQ27: 10.40777 | CR27: 63.541 | CS27: 64.2865 | CT27: 72.40502 | CU27: 71.11096 | CV27: 67.37994 | CW27: 75.51077 | CX27: 71.12846 | CY27: 67.34758 | CZ27: 75.47299
A28: 11:59:10 | B28: 0.1 | C28: 67.03272 | D28: -16.36201 | E28: -9.55682 | F28: 7.49277 | G28: 5.56496 | H28: 11.85742 | I28: 17.47285 | J28: 13.53202 | K28: 21.19497 | L28: 42.31356 | M28: 52.80801 | N28: 58.6916 | O28: 51.84045 | P28: 52.90671 | Q28: 53.25511 | R28: 58.52023 | S28: 62.46131 | T28: 57.7142 | U28: 57.73923 | V28: 52.93576 | W28: 42.33973 | X28: 43.63565 | Y28: 43.54888 | Z28: 47.55256 | AA28: 39.6406 | AB28: 34.71774 | AC28: 34.85912 | AD28: 31.80228 | AE28: 20.21515 | AF28: 14.16064 | AG28: 3.75161 | AH28: 70.55536 | AI28: 25.25638 | AJ28: 27.44754 | AK28: 39.12227 | AL28: 35.63928 | AM28: 35.57317 | AN28: 40.49226 | AO28: 31.9618 | AP28: 36.4023 | AQ28: 54.69687 | AR28: 63.12324 | AS28: 67.20554 | AT28: 59.20203 | AU28: 57.67434 | AV28: 56.32156 | AW28: 60.30238 | AX28: 63.45306 | AY28: 57.69419 | AZ28: 57.13159 | BA28: 52.02075 | BB28: 40.97157 | BC28: 42.07413 | BD28: 41.83623 | BE28: 45.7661 | BF28: 37.82642 | BG28: 32.84152 | BH28: 32.95765 | BI28: 29.88715 | BJ28: 18.29137 | BK28: 12.23547 | BL28: 1.80569 | BM28: 70.56532 | BN28: 30.67325 | BO28: 30.60049 | BP28: 41.0147 | BQ28: 37.22909 | BR28: 36.26319 | BS28: 41.11582 | BT28: 32.25463 | BU28: 36.59566 | BV28: 54.81442 | BW28: 63.15089 | BX28: 67.2005 | BY28: 59.19059 | BZ28: 57.64237 | CA28: 56.28713 | CB28: 60.27528 | CC28: 63.43217 | CD28: 57.69605 | CE28: 57.16535 | CF28: 52.0843 | CG28: 41.14745 | CH28: 42.36852 | CI28: 42.36417 | CJ28: 46.70125 | CK28: 38.95751 | CL28: 34.76228 | CM28: 36.01431 | CN28: 34.07101 | CO28: 24.02817 | CP28: 20.26687 | CQ28: 12.22018 | CR28: 64.15216 | CS28: 63.90404 | CT28: 72.13058 | CU28: 67.62871 | CV28: 66.99727 | CW28: 75.23628 | CX28: 67.64383 | CY28: 66.9649 | CZ28: 75.19851
A29: 11:59:10 | B29: 0.1 | C29: 63.38969 | D29: -9.49965 | E29: -7.79622 | F29: -0.01544 | G29: 11.06326 | H29: 6.48054 | I29: 12.77895 | J29: 15.19157 | K29: 31.91888 | L29: 43.87439 | M29: 40.65032 | N29: 44.93866 | O29: 39.82378 | P29: 41.32504 | Q29: 47.86869 | R29: 48.30875 | S29: 48.85007 | T29: 45.44212 | U29: 46.99055 | V29: 48.42417 | W29: 44.06584 | X29: 47.43867 | Y29: 52.82334 | Z29: 53.12647 | AA29: 47.04996 | AB29: 44.22126 | AC29: 42.37608 | AD29: 35.71379 | AE29: 26.48286 | AF29: 23.85196 | AG29: 10.93865 | AH29: 67.14338 | AI29: 30.2016 | AJ29: 28.14172 | AK29: 30.94671 | AL29: 40.71101 | AM29: 30.86852 | AN29: 35.57948 | AO29: 32.93499 | AP29: 47.05482 | AQ29: 56.76936 | AR29: 51.60694 | AS29: 53.94947 | AT29: 47.40451 | AU29: 46.26033 | AV29: 50.834 | AW29: 50.22708 | AX29: 49.81146 | AY29: 45.43276 | AZ29: 46.40404 | BA29: 47.39288 | BB29: 42.69611 | BC29: 45.86275 | BD29: 51.10315 | BE29: 51.3264 | BF29: 45.20808 | BG29: 42.34476 | BH29: 40.47609 | BI29: 33.79858 | BJ29: 24.55827 | BK29: 21.92702 | BL29: 9.00264 | BM29: 67.22488 | BN29: 34.25764 | BO29: 31.24482 | BP29: 32.7557 | BQ29: 42.22144 | BR29: 31.61387 | BS29: 36.13004 | BT29: 33.20337 | BU29: 47.20583 | BV29: 56.827 | BW29: 51.6299 | BX29: 53.96049 | BY29: 47.4257 | BZ29: 46.23535 | CA29: 50.88888 | CB29: 50.19256 | CC29: 49.79942 | CD29: 45.43945 | CE29: 46.46214 | CF29: 47.47335 | CG29: 42.86872 | CH29: 46.17384 | CI29: 51.64626 | CJ29: 52.16977 | CK29: 46.45793 | CL29: 44.28821 | CM29: 43.38243 | CN29: 38.00541 | CO29: 30.61479 | CP29: 29.84196 | CQ29: 19.09814 | CR29: 62.00617 | CS29: 63.45337 | CT29: 71.82297 | CU29: 65.96101 | CV29: 66.54623 | CW29: 74.92863 | CX29: 66.01455 | CY29: 66.51411 | CZ29: 74.89088
A30: 11:59:10 | B30: 0.1 | C30: 73.72305 | D30: -3.56029 | E30: -4.00492 | F30: -3.7572 | G30: 4.48707 | H30: 10.78646 | I30: 11.37717 | J30: 9.80367 | K30: 22.05035 | L30: 29.46288 | M30: 40.12563 | N30: 60.136 | O30: 53.17207 | P30: 42.23598 | Q30: 70.24587 | R30: 68.15016 | S30: 64.24721 | T30: 60.85683 | U30: 56.0728 | V30: 44.66354 | W30: 40.07909 | X30: 46.32278 | Y30: 39.31091 | Z30: 37.62447 | AA30: 34.33013 | AB30: 30.94925 | AC30: 25.30264 | AD30: 22.04026 | AE30: 15.75385 | AF30: 9.55154 | AG30: 1.2152 | AH30: 76.48135 | AI30: 36.04355 | AJ30: 32.45789 | AK30: 28.78619 | AL30: 33.74636 | AM30: 36.35971 | AN30: 33.25365 | AO30: 28.56172 | AP30: 37.25597 | AQ30: 41.94595 | AR30: 50.435 | AS30: 68.43672 | AT30: 60.56509 | AU30: 46.15041 | AV30: 73.09789 | AW30: 70.54352 | AX30: 64.98528 | AY30: 60.95152 | AZ30: 55.62813 | BA30: 43.67708 | BB30: 38.68716 | BC30: 44.76187 | BD30: 37.60253 | BE30: 35.83958 | BF30: 32.48972 | BG30: 29.07223 | BH30: 23.40258 | BI30: 20.12407 | BJ30: 13.82863 | BK30: 7.62665 | BL30: -0.73916 | BM30: 76.45921 | BN30: 40.0675 | BO30: 35.6599 | BP30: 30.86575 | BQ30: 35.09962 | BR30: 37.26541 | BS30: 33.76785 | BT30: 28.89491 | BU30: 37.40851 | BV30: 42.00397 | BW30: 50.46477 | BX30: 68.43561 | BY30: 60.56121 | BZ30: 46.11431 | CA30: 73.06526 | CB30: 70.51936 | CC30: 64.96762 | CD30: 60.95307 | CE30: 55.65059 | CF30: 43.75616 | CG30: 38.87375 | CH30: 45.05058 | CI30: 38.11626 | CJ30: 36.63194 | CK30: 33.73527 | CL30: 30.99012 | CM30: 26.3384 | CN30: 24.3239 | CO30: 19.91669 | CP30: 15.60547 | CQ30: 9.98972 | CR30: 71.12519 | CS30: 64.72914 | CT30: 75.37668 | CU30: 73.7677 | CV30: 67.74432 | CW30: 78.03091 | CX30: 73.74555 | CY30: 67.71201 | CZ30: 78.01147
A31: 11:59:10 | B31: 0.1 | C31: 69.96296 | D31: -3.19032 | E31: -11.14582 | F31: -2.22907 | G31: 2.66508 | H31: 7.73 | I31: 10.92257 | J31: 14.43816 | K31: 21.39599 | L31: 27.86298 | M31: 33.95304 | N31: 51.6012 | O31: 62.00497 | P31: 50.89277 | Q31: 57.35617 | R31: 68.94238 | S31: 53.54078 | T31: 61.79382 | U31: 56.68056 | V31: 50.53395 | W31: 40.65721 | X31: 41.19875 | Y31: 37.50478 | Z31: 34.78783 | AA31: 32.08286 | AB31: 30.97831 | AC31: 27.82306 | AD31: 24.08615 | AE31: 18.70806 | AF31: 11.2626 | AG31: 2.50589 | AH31: 73.01457 | AI31: 36.19127 | AJ31: 26.59953 | AK31: 29.66471 | AL31: 31.32998 | AM31: 33.37864 | AN31: 33.49876 | AO31: 32.65076 | AP31: 36.7255 | AQ31: 41.02828 | AR31: 43.96575 | AS31: 59.82295 | AT31: 68.78436 | AU31: 56.09749 | AV31: 60.18126 | AW31: 70.95013 | AX31: 54.45943 | AY31: 61.88078 | AZ31: 56.06962 | BA31: 49.53056 | BB31: 39.29261 | BC31: 39.62711 | BD31: 35.79542 | BE31: 33.0039 | BF31: 30.23984 | BG31: 29.10016 | BH31: 25.92264 | BI31: 22.16999 | BJ31: 16.78341 | BK31: 9.33791 | BL31: 0.55605 | BM31: 72.99339 | BN31: 40.57094 | BO31: 30.37337 | BP31: 31.61668 | BQ31: 32.67203 | BR31: 34.29446 | BS31: 34.0825 | BT31: 32.94258 | BU31: 36.8889 | BV31: 41.12701 | BW31: 43.99664 | BX31: 59.82013 | BY31: 68.76642 | BZ31: 56.07108 | CA31: 60.14642 | CB31: 70.91465 | CC31: 54.43895 | CD31: 61.87599 | CE31: 56.09864 | CF31: 49.60588 | CG31: 39.46337 | CH31: 39.91554 | CI31: 36.31564 | CJ31: 33.7946 | CK31: 31.51733 | CL31: 31.07891 | CM31: 28.86982 | CN31: 26.4734 | CO31: 22.78989 | CP31: 17.29675 | CQ31: 11.17735 | CR31: 67.25312 | CS31: 64.35239 | CT31: 72.87483 | CU31: 69.74045 | CV31: 67.36394 | CW31: 75.04903 | CX31: 69.72147 | CY31: 67.33159 | CZ31: 75.06597
A32: 11:59:10 | B32: 0.1 | C32: 62.19321 | D32: -4.42711 | E32: -10.50605 | F32: -2.42591 | G32: 1.55035 | H32: 2.04236 | I32: 7.39336 | J32: 11.63174 | K32: 19.43729 | L32: 23.40205 | M32: 36.32883 | N32: 45.48914 | O32: 49.90092 | P32: 41.44938 | Q32: 45.18925 | R32: 54.26356 | S32: 41.86474 | T32: 44.09744 | U32: 43.89336 | V32: 45.11594 | W32: 41.03407 | X32: 44.19749 | Y32: 38.82283 | Z32: 37.63792 | AA32: 37.86322 | AB32: 34.41187 | AC32: 30.58738 | AD32: 25.84238 | AE32: 18.9615 | AF32: 11.28293 | AG32: 2.2436 | AH32: 66.54987 | AI32: 35.18472 | AJ32: 26.97826 | AK32: 30.07192 | AL32: 29.58808 | AM32: 26.89999 | AN32: 30.17809 | AO32: 29.77818 | AP32: 34.81693 | AQ32: 36.62749 | AR32: 46.43774 | AS32: 53.70995 | AT32: 56.67332 | AU32: 46.84145 | AV32: 48.46065 | AW32: 56.3036 | AX32: 43.15482 | AY32: 44.19386 | AZ32: 43.31274 | BA32: 44.05443 | BB32: 39.7121 | BC32: 42.64051 | BD32: 37.1152 | BE32: 35.84882 | BF32: 36.01785 | BG32: 32.53662 | BH32: 28.68667 | BI32: 23.92751 | BJ32: 17.03689 | BK32: 9.35834 | BL32: 0.29372 | BM32: 66.57204 | BN32: 39.02495 | BO32: 30.06366 | BP32: 32.20863 | BQ32: 30.74218 | BR32: 27.6591 | BS32: 30.80151 | BT32: 30.05083 | BU32: 34.97975 | BV32: 36.69918 | BW32: 46.46048 | BX32: 53.69968 | BY32: 56.66057 | BZ32: 46.84565 | CA32: 48.45379 | CB32: 56.29082 | CC32: 43.13944 | CD32: 44.18914 | CE32: 43.34596 | CF32: 44.14404 | CG32: 39.94001 | CH32: 42.97685 | CI32: 37.63329 | CJ32: 36.67075 | CK32: 37.32691 | CL32: 34.42813 | CM32: 31.64858 | CN32: 28.10764 | CO32: 22.95393 | CP32: 17.31488 | CQ32: 10.91549 | CR32: 64.13316 | CS32: 63.94092 | CT32: 72.60078 | CU32: 66.25151 | CV32: 66.95282 | CW32: 74.77486 | CX32: 66.22188 | CY32: 66.9205 | CZ32: 74.79177
A33: 11:59:10 | B33: 0.1 | C33: 74.56293 | D33: 0.74889 | E33: -0.64462 | F33: -8.02077 | G33: 0.2822 | H33: 10.49089 | I33: 16.02167 | J33: 14.69307 | K33: 16.69136 | L33: 31.02997 | M33: 51.57544 | N33: 60.10974 | O33: 54.87601 | P33: 57.71891 | Q33: 66.00735 | R33: 69.53884 | S33: 70.18991 | T33: 57.74736 | U33: 60.36032 | V33: 62.42178 | W33: 57.20583 | X33: 53.18061 | Y33: 41.73956 | Z33: 37.08401 | AA33: 35.33877 | AB33: 33.93773 | AC33: 32.43152 | AD33: 29.83206 | AE33: 17.21871 | AF33: 9.28596 | AG33: 0.73497 | AH33: 77.11834 | AI33: 40.75906 | AJ33: 35.95575 | AK33: 26.22383 | AL33: 28.483 | AM33: 34.5284 | AN33: 38.45525 | AO33: 32.84645 | AP33: 32.34672 | AQ33: 42.63212 | AR33: 61.70449 | AS33: 68.54022 | AT33: 61.92848 | AU33: 62.12152 | AV33: 69.05679 | AW33: 71.1731 | AX33: 71.31686 | AY33: 57.77254 | AZ33: 59.74517 | BA33: 61.31285 | BB33: 55.90258 | BC33: 51.62357 | BD33: 40.05111 | BE33: 35.29786 | BF33: 33.494 | BG33: 32.05944 | BH33: 30.52676 | BI33: 27.91922 | BJ33: 15.29424 | BK33: 7.3609 | BL33: -1.2165 | BM33: 77.11362 | BN33: 45.15678 | BO33: 39.15034 | BP33: 28.60725 | BQ33: 29.80318 | BR33: 35.2742 | BS33: 39.0738 | BT33: 33.13549 | BU33: 32.52818 | BV33: 42.75065 | BW33: 61.76754 | BX33: 68.54066 | BY33: 61.91312 | BZ33: 62.09063 | CA33: 69.02461 | CB33: 71.14636 | CC33: 71.2943 | CD33: 57.77257 | CE33: 59.7785 | CF33: 61.40842 | CG33: 56.04861 | CH33: 51.90476 | CI33: 40.5278 | CJ33: 36.09914 | CK33: 34.78361 | CL33: 34.03135 | CM33: 33.76881 | CN33: 31.82992 | CO33: 21.18281 | CP33: 15.25338 | CQ33: 9.45661 | CR33: 71.45311 | CS33: 64.86565 | CT33: 76.4062 | CU33: 74.17325 | CV33: 67.18244 | CW33: 78.69258 | CX33: 74.17038 | CY33: 67.15012 | CZ33: 78.69655
A34: 11:59:10 | B34: 0.1 | C34: 63.49656 | D34: 0.37731 | E34: -3.12934 | F34: -6.84903 | G34: 4.69119 | H34: 6.64759 | I34: 12.47437 | J34: 10.95125 | K34: 17.93256 | L34: 41.64093 | M34: 61.58158 | N34: 53.73212 | O34: 38.49 | P34: 50.99206 | Q34: 50.14642 | R34: 58.60718 | S34: 51.74793 | T34: 40.19535 | U34: 41.37513 | V34: 41.98494 | W34: 39.00683 | X34: 41.00048 | Y34: 36.4194 | Z34: 32.69229 | AA34: 29.01575 | AB34: 27.51233 | AC34: 26.18738 | AD34: 18.55168 | AE34: 12.15657 | AF34: 5.05696 | AG34: -0.69816 | AH34: 72.77833 | AI34: 39.77513 | AJ34: 32.73722 | AK34: 24.37835 | AL34: 33.91345 | AM34: 30.71093 | AN34: 35.78867 | AO34: 28.69966 | AP34: 32.71726 | AQ34: 53.08036 | AR34: 72.38515 | AS34: 63.30532 | AT34: 45.56876 | AU34: 55.4328 | AV34: 53.61355 | AW34: 60.23719 | AX34: 52.81221 | AY34: 40.19264 | AZ34: 40.80748 | BA34: 40.87638 | BB34: 37.63562 | BC34: 39.44086 | BD34: 34.7224 | BE34: 30.90133 | BF34: 27.17304 | BG34: 25.63565 | BH34: 24.28753 | BI34: 16.63597 | BJ34: 10.23203 | BK34: 3.1326 | BL34: -2.66032 | BM34: 72.81064 | BN34: 43.97204 | BO34: 35.68176 | BP34: 26.30697 | BQ34: 35.32576 | BR34: 31.4399 | BS34: 36.37165 | BT34: 29.00486 | BU34: 32.88072 | BV34: 53.12468 | BW34: 72.4203 | BX34: 63.32456 | BY34: 45.55351 | BZ34: 55.4021 | CA34: 53.57455 | CB34: 60.19497 | CC34: 52.77024 | CD34: 40.19067 | CE34: 40.83656 | CF34: 40.96534 | CG34: 37.8077 | CH34: 39.73365 | CI34: 35.22643 | CJ34: 31.72172 | CK34: 28.46873 | CL34: 27.56259 | CM34: 27.182 | CN34: 20.92061 | CO34: 16.13141 | CP34: 11.24332 | CQ34: 8.31996 | CR34: 64.6778 | CS34: 64.51241 | CT34: 72.9575 | CU34: 70.1086 | CV34: 66.74047 | CW34: 74.88037 | CX34: 70.14038 | CY34: 66.70811 | CZ34: 74.90669
A35: 11:59:10 | B35: 0.1 | C35: 62.66128 | D35: -1.33844 | E35: -2.66127 | F35: -2.68879 | G35: 8.07569 | H35: 9.2582 | I35: 11.79639 | J35: 14.3174 | K35: 30.08985 | L35: 47.26192 | M35: 60.46093 | N35: 53.87687 | O35: 46.95754 | P35: 51.69406 | Q35: 40.15104 | R35: 40.25986 | S35: 36.31371 | T35: 36.45329 | U35: 38.10391 | V35: 43.09275 | W35: 51.04516 | X35: 48.43313 | Y35: 50.83141 | Z35: 50.40582 | AA35: 47.18938 | AB35: 46.34907 | AC35: 45.78841 | AD35: 33.96719 | AE35: 22.92973 | AF35: 20.75354 | AG35: 8.98075 | AH35: 71.06789 | AI35: 38.05743 | AJ35: 34.59321 | AK35: 28.14805 | AL35: 37.92605 | AM35: 33.19929 | AN35: 34.86622 | AO35: 32.91841 | AP35: 45.22156 | AQ35: 59.73729 | AR35: 70.8396 | AS35: 63.56293 | AT35: 53.27702 | AU35: 56.59856 | AV35: 44.03665 | AW35: 41.95529 | AX35: 37.33392 | AY35: 36.41222 | AZ35: 37.46587 | BA35: 41.92319 | BB35: 49.67818 | BC35: 46.87051 | BD35: 49.11656 | BE35: 48.60646 | BF35: 45.34866 | BG35: 44.46996 | BH35: 43.88992 | BI35: 32.05445 | BJ35: 21.00519 | BK35: 18.82881 | BL35: 7.04528 | BM35: 71.12402 | BN35: 42.24541 | BO35: 38.02875 | BP35: 29.8583 | BQ35: 39.40898 | BR35: 33.93511 | BS35: 35.55136 | BT35: 33.22243 | BU35: 45.38378 | BV35: 59.8124 | BW35: 70.86861 | BX35: 63.57801 | BY35: 53.25764 | BZ35: 56.56941 | CA35: 44.00221 | CB35: 41.92371 | CC35: 37.31462 | CD35: 36.41426 | CE35: 37.5002 | CF35: 42.03902 | CG35: 49.85056 | CH35: 47.16734 | CI35: 49.64685 | CJ35: 49.48975 | CK35: 46.61536 | CL35: 46.49116 | CM35: 46.70222 | CN35: 35.9909 | CO35: 27.14047 | CP35: 26.80328 | CQ35: 17.18619 | CR35: 61.35678 | CS35: 64.09708 | CT35: 72.67969 | CU35: 70.05144 | CV35: 66.32586 | CW35: 74.85451 | CX35: 70.08241 | CY35: 66.29351 | CZ35: 74.88158
A36: 11:59:10 | B36: 0.1 | C36: 69.91372 | D36: -7.66441 | E36: -4.74618 | F36: -5.79414 | G36: 7.78976 | H36: 9.11695 | I36: 16.96107 | J36: 17.31031 | K36: 25.3259 | L36: 40.09245 | M36: 48.64339 | N36: 57.13599 | O36: 50.9509 | P36: 45.93913 | Q36: 64.09718 | R36: 49.68839 | S36: 56.13916 | T36: 56.82297 | U36: 49.94761 | V36: 48.91096 | W36: 47.13465 | X36: 50.52354 | Y36: 51.41475 | Z36: 51.18 | AA36: 49.48145 | AB36: 47.65942 | AC36: 44.83603 | AD36: 34.53619 | AE36: 24.6772 | AF36: 21.01291 | AG36: 10.57104 | AH36: 74.59029 | AI36: 32.03279 | AJ36: 32.10844 | AK36: 26.43311 | AL36: 37.17882 | AM36: 33.54904 | AN36: 38.97924 | AO36: 35.46176 | AP36: 40.49587 | AQ36: 52.81433 | AR36: 58.74384 | AS36: 65.59328 | AT36: 58.2259 | AU36: 50.31831 | AV36: 67.28424 | AW36: 52.1681 | AX36: 57.12652 | AY36: 56.8638 | AZ36: 49.36467 | BA36: 47.83524 | BB36: 45.78451 | BC36: 48.94379 | BD36: 49.70258 | BE36: 49.38335 | BF36: 47.63715 | BG36: 45.78384 | BH36: 42.93686 | BI36: 32.62242 | BJ36: 22.75248 | BK36: 19.08821 | BL36: 8.63791 | BM36: 74.61827 | BN36: 36.21445 | BO36: 35.50194 | BP36: 28.61003 | BQ36: 38.64729 | BR36: 34.32144 | BS36: 39.54855 | BT36: 35.75602 | BU36: 40.62905 | BV36: 52.88691 | BW36: 58.76318 | BX36: 65.63402 | BY36: 58.21771 | BZ36: 50.29435 | CA36: 67.26331 | CB36: 52.13731 | CC36: 57.10723 | CD36: 56.86753 | CE36: 49.40225 | CF36: 47.92423 | CG36: 45.94659 | CH36: 49.2523 | CI36: 50.22541 | CJ36: 50.23443 | CK36: 48.93894 | CL36: 47.69106 | CM36: 45.79624 | CN36: 36.6619 | CO36: 28.81802 | CP36: 27.12907 | CQ36: 18.78127 | CR36: 68.34085 | CS36: 63.69653 | CT36: 73.30301 | CU36: 73.03354 | CV36: 66.44353 | CW36: 78.0274 | CX36: 73.05572 | CY36: 66.41249 | CZ36: 78.06048
A37: 11:59:11 | B37: 0.1 | C37: 71.64911 | D37: -3.09361 | E37: -8.41245 | F37: -7.23198 | G37: -0.02345 | H37: 7.09547 | I37: 12.42337 | J37: 15.5515 | K37: 22.996 | L37: 29.13727 | M37: 45.18855 | N37: 67.41962 | O37: 52.82517 | P37: 44.64178 | Q37: 69.5115 | R37: 58.22014 | S37: 59.93774 | T37: 62.75252 | U37: 53.04964 | V37: 45.17646 | W37: 44.72173 | X37: 42.13123 | Y37: 37.95934 | Z37: 35.86601 | AA37: 34.35317 | AB37: 32.09996 | AC37: 31.16514 | AD37: 25.25562 | AE37: 16.74145 | AF37: 10.48931 | AG37: 3.33517 | AH37: 76.83981 | AI37: 37.18198 | AJ37: 30.00283 | AK37: 25.61291 | AL37: 28.26917 | AM37: 31.62695 | AN37: 35.07041 | AO37: 33.3798 | AP37: 38.61639 | AQ37: 41.18383 | AR37: 55.38155 | AS37: 75.68639 | AT37: 60.70148 | AU37: 48.96238 | AV37: 72.53831 | AW37: 60.88723 | AX37: 60.80201 | AY37: 62.59988 | AZ37: 52.5307 | BA37: 44.15857 | BB37: 43.35559 | BC37: 40.57968 | BD37: 36.25415 | BE37: 34.08208 | BF37: 32.50602 | BG37: 30.22182 | BH37: 29.26185 | BI37: 23.34236 | BJ37: 14.81682 | BK37: 8.56496 | BL37: 1.38201 | BM37: 76.82371 | BN37: 41.59164 | BO37: 33.49257 | BP37: 27.78979 | BQ37: 29.67226 | BR37: 32.44671 | BS37: 35.58689 | BT37: 33.64594 | BU37: 38.79236 | BV37: 41.24247 | BW37: 55.39602 | BX37: 75.68206 | BY37: 60.69674 | BZ37: 48.92622 | CA37: 72.50288 | CB37: 60.85568 | CC37: 60.78666 | CD37: 62.606 | CE37: 52.55662 | CF37: 44.23977 | CG37: 43.53242 | CH37: 40.86173 | CI37: 36.76595 | CJ37: 34.84673 | CK37: 33.82556 | CL37: 32.19234 | CM37: 32.38891 | CN37: 27.30613 | CO37: 20.7647 | CP37: 16.69579 | CQ37: 12.13668 | CR37: 68.63405 | CS37: 64.542 | CT37: 73.39772 | CU37: 74.01726 | CV37: 67.68452 | CW37: 78.20937 | CX37: 74.00449 | CY37: 67.68497 | CZ37: 78.19808
A38: 11:59:11 | B38: 0.1 | C38: 72.62242 | D38: 3.69371 | E38: -2.85077 | F38: -7.88548 | G38: 3.0368 | H38: -0.52612 | I38: 13.33997 | J38: 16.79984 | K38: 22.788 | L38: 41.42955 | M38: 58.70876 | N38: 64.23128 | O38: 49.39999 | P38: 55.97031 | Q38: 57.96183 | R38: 68.51306 | S38: 68.53904 | T38: 56.26263 | U38: 46.47432 | V38: 43.95142 | W38: 38.76465 | X38: 38.06508 | Y38: 35.80487 | Z38: 31.14156 | AA38: 32.78831 | AB38: 28.96949 | AC38: 30.24998 | AD38: 24.69662 | AE38: 16.35418 | AF38: 9.63956 | AG38: 3.31582 | AH38: 77.01147 | AI38: 43.88125 | AJ38: 34.53527 | AK38: 24.32912 | AL38: 32.31453 | AM38: 25.87865 | AN38: 35.01451 | AO38: 34.98296 | AP38: 38.18591 | AQ38: 54.03004 | AR38: 69.32141 | AS38: 72.64453 | AT38: 56.84243 | AU38: 60.65086 | AV38: 61.24425 | AW38: 70.1014 | AX38: 69.66737 | AY38: 56.22506 | AZ38: 45.94994 | BA38: 42.93941 | BB38: 37.39052 | BC38: 36.49789 | BD38: 34.09861 | BE38: 29.35595 | BF38: 30.94296 | BG38: 27.09016 | BH38: 28.34703 | BI38: 22.78259 | BJ38: 14.42918 | BK38: 7.71533 | BL38: 1.36188 | BM38: 77.01639 | BN38: 48.31781 | BO38: 38.13113 | BP38: 26.36585 | BQ38: 33.7256 | BR38: 26.89796 | BS38: 35.55788 | BT38: 35.27953 | BU38: 38.35934 | BV38: 54.12219 | BW38: 69.36831 | BX38: 72.6418 | BY38: 56.82779 | BZ38: 60.62257 | CA38: 61.2116 | CB38: 70.07513 | CC38: 69.64411 | CD38: 56.22105 | CE38: 45.97482 | CF38: 43.01131 | CG38: 37.53834 | CH38: 36.78999 | CI38: 34.60658 | CJ38: 30.16273 | CK38: 32.24132 | CL38: 29.11945 | CM38: 31.44125 | CN38: 26.8283 | CO38: 20.44614 | CP38: 15.84102 | CQ38: 12.1882 | CR38: 69.55 | CS38: 64.21912 | CT38: 74.41901 | CU38: 74.13232 | CV38: 68.44296 | CW38: 78.53229 | CX38: 74.14035 | CY38: 68.44263 | CZ38: 78.57024
A39: 11:59:11 | B39: 0.1 | C39: 67.39627 | D39: -0.37431 | E39: -8.9887 | F39: -1.10944 | G39: 3.09338 | H39: 4.28196 | I39: 12.49687 | J39: 19.3274 | K39: 34.94849 | L39: 53.27466 | M39: 52.3123 | N39: 51.55585 | O39: 56.07616 | P39: 52.54222 | Q39: 62.30966 | R39: 64.00002 | S39: 54.53214 | T39: 47.64465 | U39: 50.04438 | V39: 49.45998 | W39: 43.99871 | X39: 43.76527 | Y39: 36.06237 | Z39: 32.68468 | AA39: 30.72562 | AB39: 27.97366 | AC39: 27.75423 | AD39: 26.48604 | AE39: 16.97243 | AF39: 11.06324 | AG39: 3.3807 | AH39: 71.23424 | AI39: 40.36659 | AJ39: 29.22794 | AK39: 31.23467 | AL39: 32.29408 | AM39: 29.07597 | AN39: 34.87855 | AO39: 37.69093 | AP39: 49.48026 | AQ39: 66.08539 | AR39: 63.80092 | AS39: 60.4337 | AT39: 62.60976 | AU39: 57.5146 | AV39: 65.55176 | AW39: 65.98499 | AX39: 55.60793 | AY39: 47.70943 | AZ39: 49.36929 | BA39: 48.44402 | BB39: 42.6408 | BC39: 42.21427 | BD39: 34.36365 | BE39: 30.89407 | BF39: 28.88646 | BG39: 26.09509 | BH39: 25.84837 | BI39: 24.57211 | BJ39: 15.04798 | BK39: 9.13848 | BL39: 1.42919 | BM39: 71.23777 | BN39: 45.20283 | BO39: 32.97724 | BP39: 33.14784 | BQ39: 33.76257 | BR39: 29.91997 | BS39: 35.47801 | BT39: 37.99006 | BU39: 49.61285 | BV39: 66.1678 | BW39: 63.80979 | BX39: 60.44043 | BY39: 62.59499 | BZ39: 57.48858 | CA39: 65.52052 | CB39: 65.95355 | CC39: 55.58015 | CD39: 47.7084 | CE39: 49.40815 | CF39: 48.52411 | CG39: 42.81057 | CH39: 42.49599 | CI39: 34.88027 | CJ39: 31.72078 | CK39: 30.11927 | CL39: 28.08846 | CM39: 29.16799 | CN39: 28.62225 | CO39: 20.9929 | CP39: 17.14333 | CQ39: 12.15047 | CR39: 65.47734 | CS39: 64.18581 | CT39: 72.52563 | CU39: 69.27643 | CV39: 68.0547 | CW39: 75.82487 | CX39: 69.27426 | CY39: 68.05447 | CZ39: 75.82886
A40: 11:59:11 | B40: 0.1 | C40: 64.20308 | D40: -6.92735 | E40: -7.07766 | F40: 0.35191 | G40: 11.30445 | H40: 5.64552 | I40: 16.16922 | J40: 19.75988 | K40: 40.88638 | L40: 47.33517 | M40: 44.03922 | N40: 50.82647 | O40: 48.63371 | P40: 49.52964 | Q40: 58.37504 | R40: 59.32519 | S40: 55.61062 | T40: 52.32141 | U40: 51.84477 | V40: 52.68417 | W40: 48.48325 | X40: 41.99049 | Y40: 36.05344 | Z40: 32.79019 | AA40: 29.31333 | AB40: 27.48689 | AC40: 24.32738 | AD40: 22.18658 | AE40: 17.23904 | AF40: 10.90737 | AG40: 2.34441 | AH40: 67.97234 | AI40: 35.11485 | AJ40: 29.75839 | AK40: 31.35742 | AL40: 40.74191 | AM40: 30.63029 | AN40: 37.98373 | AO40: 37.86511 | AP40: 56.25174 | AQ40: 60.29545 | AR40: 55.45742 | AS40: 59.20682 | AT40: 55.55569 | AU40: 54.09096 | AV40: 61.43316 | AW40: 61.12307 | AX40: 56.67819 | AY40: 52.32129 | AZ40: 51.27249 | BA40: 51.64277 | BB40: 47.13946 | BC40: 40.44814 | BD40: 34.3444 | BE40: 31.00431 | BF40: 27.47054 | BG40: 25.60949 | BH40: 22.42553 | BI40: 20.27084 | BJ40: 15.31407 | BK40: 8.98299 | BL40: 0.39507 | BM40: 68.0079 | BN40: 40.3138 | BO40: 33.02665 | BP40: 33.26454 | BQ40: 42.22952 | BR40: 31.40652 | BS40: 38.48426 | BT40: 38.15876 | BU40: 56.41068 | BV40: 60.37678 | BW40: 55.50606 | BX40: 59.21012 | BY40: 55.51701 | BZ40: 54.0536 | CA40: 61.39901 | CB40: 61.09402 | CC40: 56.65602 | CD40: 52.32249 | CE40: 51.30328 | CF40: 51.72599 | CG40: 47.30244 | CH40: 40.72519 | CI40: 34.84004 | CJ40: 31.80243 | CK40: 28.73504 | CL40: 27.52996 | CM40: 25.46273 | CN40: 24.55232 | CO40: 21.38882 | CP40: 17.04942 | CQ40: 10.9586 | CR40: 63.08248 | CS40: 63.90714 | CT40: 72.26125 | CU40: 66.46628 | CV40: 67.69534 | CW40: 75.55322 | CX40: 66.46479 | CY40: 67.69518 | CZ40: 75.55721
A41: 11:59:11 | B41: 0.1 | C41: 59.28916 | D41: -2.66336 | E41: -5.3589 | F41: -4.65244 | G41: 10.70334 | H41: 9.91424 | I41: 13.43836 | J41: 28.4081 | K41: 39.1627 | L41: 35.42048 | M41: 36.76849 | N41: 44.88696 | O41: 36.71621 | P41: 36.46167 | Q41: 45.07288 | R41: 49.22343 | S41: 52.74649 | T41: 53.99913 | U41: 53.71113 | V41: 48.75573 | W41: 42.70446 | X41: 37.47652 | Y41: 34.49692 | Z41: 29.57518 | AA41: 26.45383 | AB41: 24.22488 | AC41: 19.3952 | AD41: 16.41456 | AE41: 11.31765 | AF41: 5.35898 | AG41: -0.58061 | AH41: 61.2092 | AI41: 38.15759 | AJ41: 32.03486 | AK41: 27.35379 | AL41: 40.07776 | AM41: 34.90976 | AN41: 35.81123 | AO41: 45.74301 | AP41: 54.87657 | AQ41: 49.33805 | AR41: 47.31548 | AS41: 53.6197 | AT41: 43.02667 | AU41: 41.08372 | AV41: 48.34556 | AW41: 50.94924 | AX41: 53.58968 | AY41: 53.90975 | AZ41: 53.15881 | BA41: 47.76938 | BB41: 41.37029 | BC41: 35.91949 | BD41: 32.78989 | BE41: 27.79203 | BF41: 24.61021 | BG41: 22.34802 | BH41: 17.49467 | BI41: 14.49856 | BJ41: 9.3928 | BK41: 3.43494 | BL41: -2.54225 | BM41: 61.35951 | BN41: 42.82704 | BO41: 35.31961 | BP41: 29.57661 | BQ41: 41.4481 | BR41: 35.76027 | BS41: 36.3951 | BT41: 46.01804 | BU41: 55.06487 | BV41: 49.45228 | BW41: 47.35011 | BX41: 53.60698 | BY41: 43.00444 | BZ41: 41.05282 | CA41: 48.29118 | CB41: 50.91817 | CC41: 53.56984 | CD41: 53.91373 | CE41: 53.18789 | CF41: 47.84246 | CG41: 41.52826 | CH41: 36.20707 | CI41: 33.3005 | CJ41: 28.57671 | CK41: 25.89697 | CL41: 24.28991 | CM41: 20.45289 | CN41: 18.76888 | CO41: 15.39126 | CP41: 11.66119 | CQ41: 8.39575 | CR41: 59.94959 | CS41: 63.50507 | CT41: 71.98473 | CU41: 63.32848 | CV41: 67.295 | CW41: 75.27706 | CX41: 63.32653 | CY41: 67.29478 | CZ41: 75.28104
A42: 11:59:11 | B42: 0.1 | C42: 54.85698 | D42: -0.31342 | E42: -6.64333 | F42: -5.66386 | G42: 4.30227 | H42: 9.51508 | I42: 14.21739 | J42: 29.87971 | K42: 40.35167 | L42: 29.49452 | M42: 33.51342 | N42: 52.32297 | O42: 35.47945 | P42: 41.33789 | Q42: 36.31474 | R42: 39.71223 | S42: 45.1148 | T42: 42.02392 | U42: 40.59239 | V42: 39.87067 | W42: 36.98746 | X42: 36.10757 | Y42: 34.33214 | Z42: 29.61232 | AA42: 26.89503 | AB42: 23.15175 | AC42: 20.12423 | AD42: 17.72991 | AE42: 11.59048 | AF42: 4.69081 | AG42: -0.92219 | AH42: 63.4149 | AI42: 39.77314 | AJ42: 30.7001 | AK42: 27.04517 | AL42: 32.61908 | AM42: 33.83871 | AN42: 36.39093 | AO42: 47.5991 | AP42: 56.39043 | AQ42: 43.75892 | AR42: 43.23837 | AS42: 60.87778 | AT42: 43.10093 | AU42: 46.38279 | AV42: 39.54478 | AW42: 41.33808 | AX42: 45.88654 | AY42: 42.02296 | AZ42: 39.99292 | BA42: 38.86795 | BB42: 35.6156 | BC42: 34.54793 | BD42: 32.62712 | BE42: 27.83235 | BF42: 25.05262 | BG42: 21.27446 | BH42: 18.22358 | BI42: 15.81404 | BJ42: 9.66577 | BK42: 2.76633 | BL42: -2.88528 | BM42: 63.52942 | BN42: 44.10018 | BO42: 34.35639 | BP42: 29.23631 | BQ42: 33.95311 | BR42: 34.6315 | BS42: 36.95387 | BT42: 47.84134 | BU42: 56.57187 | BV42: 43.88018 | BW42: 43.25594 | BX42: 60.88111 | BY42: 43.09537 | BZ42: 46.35676 | CA42: 39.5044 | CB42: 41.30857 | CC42: 45.86815 | CD42: 42.02261 | CE42: 40.02673 | CF42: 38.94441 | CG42: 35.78597 | CH42: 34.8402 | CI42: 33.13634 | CJ42: 28.60415 | CK42: 26.3187 | CL42: 23.21748 | CM42: 21.18404 | CN42: 20.08681 | CO42: 15.61775 | CP42: 10.91209 | CQ42: 8.10423 | CR42: 56.28724 | CS42: 63.04381 | CT42: 71.67607 | CU42: 62.26587 | CV42: 66.94325 | CW42: 74.97992 | CX42: 62.26557 | CY42: 66.94312 | CZ42: 74.9839
A43: 11:59:11 | B43: 0.1 | C43: 56.23483 | D43: -0.35297 | E43: -7.14715 | F43: -5.08964 | G43: -0.34798 | H43: 2.42761 | I43: 14.30781 | J43: 18.58421 | K43: 43.15257 | L43: 30.60145 | M43: 27.99432 | N43: 52.40676 | O43: 42.03828 | P43: 42.79702 | Q43: 41.68111 | R43: 45.87928 | S43: 46.71137 | T43: 45.6769 | U43: 45.44208 | V43: 43.22054 | W43: 36.93329 | X43: 36.20649 | Y43: 34.56389 | Z43: 30.18675 | AA43: 27.3525 | AB43: 23.57742 | AC43: 20.13007 | AD43: 17.81025 | AE43: 12.2403 | AF43: 5.14297 | AG43: -0.76675 | AH43: 62.91854 | AI43: 40.43028 | AJ43: 29.73456 | AK43: 26.50825 | AL43: 29.54498 | AM43: 27.11522 | AN43: 37.3343 | AO43: 36.08504 | AP43: 58.37086 | AQ43: 45.08427 | AR43: 38.29172 | AS43: 60.52193 | AT43: 49.717 | AU43: 47.48614 | AV43: 44.61058 | AW43: 47.63218 | AX43: 47.68932 | AY43: 45.61612 | AZ43: 44.89675 | BA43: 42.23586 | BB43: 35.55581 | BC43: 34.647 | BD43: 32.85682 | BE43: 28.41048 | BF43: 25.51015 | BG43: 21.6993 | BH43: 18.22947 | BI43: 15.8944 | BJ43: 10.31572 | BK43: 3.2187 | BL43: -2.73306 | BM43: 62.99881 | BN43: 45.14153 | BO43: 32.92022 | BP43: 28.51722 | BQ43: 31.00696 | BR43: 27.86936 | BS43: 37.93884 | BT43: 36.35316 | BU43: 58.52872 | BV43: 45.23574 | BW43: 38.34047 | BX43: 60.51595 | BY43: 49.70969 | BZ43: 47.45665 | CA43: 44.58084 | CB43: 47.60661 | CC43: 47.67423 | CD43: 45.62022 | CE43: 44.92755 | CF43: 42.32603 | CG43: 35.73386 | CH43: 34.93959 | CI43: 33.36951 | CJ43: 29.18016 | CK43: 26.77592 | CL43: 23.67452 | CM43: 21.19471 | CN43: 20.17679 | CO43: 16.23598 | CP43: 11.32829 | CQ43: 8.30706 | CR43: 53.77771 | CS43: 62.63557 | CT43: 71.39889 | CU43: 61.30381 | CV43: 66.6243 | CW43: 74.71219 | CX43: 61.30064 | CY43: 66.62404 | CZ43: 74.71613
A44: 11:59:11 | B44: 0.1 | C44: 59.05579 | D44: -2.22353 | E44: -6.39414 | F44: -3.37173 | G44: 7.27653 | H44: 5.60441 | I44: 15.15267 | J44: 14.86193 | K44: 40.19099 | L44: 32.23069 | M44: 27.91473 | N44: 48.26601 | O44: 40.00066 | P44: 42.88844 | Q44: 44.31482 | R44: 48.8359 | S44: 54.2901 | T44: 49.38638 | U44: 50.69857 | V44: 50.59433 | W44: 41.7417 | X44: 38.22019 | Y44: 34.94498 | Z44: 30.19585 | AA44: 27.20287 | AB44: 23.01587 | AC44: 19.2577 | AD44: 16.05923 | AE44: 10.49117 | AF44: 4.01759 | AG44: -1.55344 | AH44: 62.39824 | AI44: 38.91582 | AJ44: 28.43913 | AK44: 29.78109 | AL44: 36.60874 | AM44: 30.7533 | AN44: 37.38097 | AO44: 33.11814 | AP44: 55.21404 | AQ44: 47.04856 | AR44: 38.81796 | AS44: 56.46447 | AT44: 47.56804 | AU44: 47.71096 | AV44: 47.17158 | AW44: 50.45109 | AX44: 55.14948 | AY44: 49.32684 | AZ44: 50.07585 | BA44: 49.57848 | BB44: 40.41427 | BC44: 36.66176 | BD44: 33.24298 | BE44: 28.41142 | BF44: 25.36069 | BG44: 21.13827 | BH44: 17.35784 | BI44: 14.14264 | BJ44: 8.56638 | BK44: 2.09335 | BL44: -3.51674 | BM44: 62.46583 | BN44: 43.74008 | BO44: 31.24558 | BP44: 31.97965 | BQ44: 38.10863 | BR44: 31.59954 | BS44: 37.95438 | BT44: 33.40462 | BU44: 55.35236 | BV44: 47.1796 | BW44: 38.84578 | BX44: 56.46765 | BY44: 47.55664 | BZ44: 47.68089 | CA44: 47.13855 | CB44: 50.42269 | CC44: 55.12914 | CD44: 49.32977 | CE44: 50.1097 | CF44: 49.65391 | CG44: 40.57088 | CH44: 36.95328 | CI44: 33.74911 | CJ44: 29.18764 | CK44: 26.6348 | CL44: 23.10773 | CM44: 20.27569 | CN44: 18.49022 | CO44: 14.54058 | CP44: 10.27095 | CQ44: 7.46444 | CR44: 56.09528 | CS44: 62.23646 | CT44: 71.1225 | CU44: 59.66537 | CV44: 66.25021 | CW44: 74.43858 | CX44: 59.73306 | CY44: 66.24997 | CZ44: 74.44252
A45: 11:59:11 | B45: 0.1 | C45: 47.58844 | D45: -9.04617 | E45: -5.78703 | F45: -5.40636 | G45: 9.04157 | H45: 7.00686 | I45: 7.93671 | J45: 12.6777 | K45: 34.04453 | L45: 26.4481 | M45: 30.12838 | N45: 43.09017 | O45: 41.9643 | P45: 36.74749 | Q45: 33.58794 | R45: 33.30659 | S45: 42.00713 | T45: 36.16131 | U45: 36.80302 | V45: 33.80943 | W45: 33.39719 | X45: 34.63753 | Y45: 34.34808 | Z45: 29.68844 | AA45: 26.10988 | AB45: 21.30233 | AC45: 18.15623 | AD45: 14.38388 | AE45: 9.10908 | AF45: 3.22293 | AG45: -1.4336 | AH45: 52.40874 | AI45: 31.03561 | AJ45: 30.17948 | AK45: 26.64635 | AL45: 38.19698 | AM45: 32.61322 | AN45: 30.41063 | AO45: 30.64416 | AP45: 49.04552 | AQ45: 40.0698 | AR45: 40.85062 | AS45: 51.25531 | AT45: 49.01453 | AU45: 41.44573 | AV45: 36.99613 | AW45: 35.13472 | AX45: 42.88142 | AY45: 36.17435 | AZ45: 36.17548 | BA45: 32.74552 | BB45: 32.02713 | BC45: 33.08035 | BD45: 32.63446 | BE45: 27.90754 | BF45: 24.26791 | BG45: 19.42311 | BH45: 16.25524 | BI45: 12.46846 | BJ45: 7.18404 | BK45: 1.29876 | BL45: -3.39762 | BM45: 52.90229 | BN45: 36.21025 | BO45: 33.18777 | BP45: 28.68409 | BQ45: 39.54108 | BR45: 33.52843 | BS45: 30.98644 | BT45: 30.91952 | BU45: 49.19044 | BV45: 40.17558 | BW45: 40.88483 | BX45: 51.23399 | BY45: 49.00017 | BZ45: 41.41569 | CA45: 36.96395 | CB45: 35.10491 | CC45: 42.85798 | CD45: 36.17315 | CE45: 36.2118 | CF45: 32.83356 | CG45: 32.20289 | CH45: 33.37204 | CI45: 33.16074 | CJ45: 28.68109 | CK45: 25.52337 | CL45: 21.42906 | CM45: 19.22651 | CN45: 16.7198 | CO45: 13.21741 | CP45: 9.48892 | CQ45: 7.64022 | CR45: 49.97471 | CS45: 61.77383 | CT45: 70.81372 | CU45: 56.42012 | CV45: 65.80177 | CW45: 74.13123 | CX45: 56.41645 | CY45: 65.80147 | CZ45: 74.13516
A46: 11:59:11 | B46: 0.1 | C46: 46.74014 | D46: -16.83717 | E46: -8.76082 | F46: -4.27615 | G46: 5.59271 | H46: 5.37075 | I46: 8.67966 | J46: 17.78712 | K46: 24.12773 | L46: 33.60003 | M46: 38.4547 | N46: 33.35342 | O46: 32.26455 | P46: 35.00078 | Q46: 35.93475 | R46: 32.59643 | S46: 33.45492 | T46: 34.94511 | U46: 36.66302 | V46: 35.63126 | W46: 36.56153 | X46: 35.16611 | Y46: 34.32492 | Z46: 31.44067 | AA46: 27.66932 | AB46: 22.69382 | AC46: 19.68443 | AD46: 15.74706 | AE46: 11.52734 | AF46: 5.32623 | AG46: -0.29448 | AH46: 53.53955 | AI46: 25.08528 | AJ46: 26.58233 | AK46: 27.55363 | AL46: 34.74673 | AM46: 30.74245 | AN46: 31.13888 | AO46: 36.1228 | AP46: 39.28188 | AQ46: 46.19167 | AR46: 49.60449 | AS46: 42.06634 | AT46: 38.76753 | AU46: 39.84405 | AV46: 39.33551 | AW46: 34.46175 | AX46: 34.2988 | AY46: 34.86848 | AZ46: 36.05499 | BA46: 34.57577 | BB46: 35.19402 | BC46: 33.61575 | BD46: 32.61984 | BE46: 29.65993 | BF46: 25.82802 | BG46: 20.8155 | BH46: 17.78429 | BI46: 13.83081 | BJ46: 9.60229 | BK46: 3.40186 | BL46: -2.25938 | BM46: 53.88158 | BN46: 29.90309 | BO46: 29.22427 | BP46: 29.51707 | BQ46: 36.21058 | BR46: 31.65009 | BS46: 31.7497 | BT46: 36.41917 | BU46: 39.42239 | BV46: 46.26832 | BW46: 49.64893 | BX46: 42.06991 | BY46: 38.74912 | BZ46: 39.81604 | CA46: 39.30206 | CB46: 34.43405 | CC46: 34.28167 | CD46: 34.87263 | CE46: 36.08646 | CF46: 34.66161 | CG46: 35.36514 | CH46: 33.9104 | CI46: 33.13086 | CJ46: 30.42936 | CK46: 27.08121 | CL46: 22.80074 | CM46: 20.73611 | CN46: 18.15822 | CO46: 15.65647 | CP46: 11.52668 | CQ46: 8.76707 | CR46: 46.7512 | CS46: 61.35743 | CT46: 70.5358 | CU46: 53.25981 | CV46: 65.38669 | CW46: 73.85344 | CX46: 53.25637 | CY46: 65.38638 | CZ46: 73.85738
A47: 11:59:12 | B47: 0.1 | C47: 67.90564 | D47: -10.14275 | E47: -2.36208 | F47: -0.1019 | G47: 9.75407 | H47: 3.16209 | I47: 10.5908 | J47: 16.81146 | K47: 18.46149 | L47: 28.31614 | M47: 38.883 | N47: 59.26815 | O47: 51.17835 | P47: 46.2719 | Q47: 64.81549 | R47: 58.07381 | S47: 54.38261 | T47: 55.63659 | U47: 55.54476 | V47: 42.89655 | W47: 39.70668 | X47: 45.14255 | Y47: 35.27902 | Z47: 32.74528 | AA47: 28.88954 | AB47: 26.03255 | AC47: 24.02795 | AD47: 21.56378 | AE47: 14.41576 | AF47: 7.21444 | AG47: 0.53986 | AH47: 72.02647 | AI47: 31.86378 | AJ47: 33.70009 | AK47: 31.92669 | AL47: 38.93196 | AM47: 27.83776 | AN47: 33.00623 | AO47: 35.48676 | AP47: 33.91085 | AQ47: 40.88467 | AR47: 49.07597 | AS47: 67.4769 | AT47: 58.81406 | AU47: 50.72087 | AV47: 67.71639 | AW47: 60.69661 | AX47: 55.2148 | AY47: 55.44321 | AZ47: 55.12164 | BA47: 41.97089 | BB47: 38.29219 | BC47: 43.58711 | BD47: 33.57851 | BE47: 30.95415 | BF47: 27.04555 | BG47: 24.15633 | BH47: 22.12633 | BI47: 19.64812 | BJ47: 12.49107 | BK47: 5.29014 | BL47: -1.41734 | BM47: 72.02341 | BN47: 36.78913 | BO47: 36.64832 | BP47: 33.92186 | BQ47: 40.33591 | BR47: 28.5956 | BS47: 33.59987 | BT47: 35.79502 | BU47: 34.10393 | BV47: 40.96069 | BW47: 49.10358 | BX47: 67.47496 | BY47: 58.80936 | BZ47: 50.69695 | CA47: 67.68728 | CB47: 60.66853 | CC47: 55.19836 | CD47: 55.45189 | CE47: 55.14207 | CF47: 42.04182 | CG47: 38.48702 | CH47: 43.87303 | CI47: 34.08064 | CJ47: 31.78004 | CK47: 28.33374 | CL47: 26.09769 | CM47: 25.13846 | CN47: 23.89685 | CO47: 18.48093 | CP47: 13.38493 | CQ47: 9.44385 | CR47: 66.04585 | CS47: 61.74701 | CT47: 70.49756 | CU47: 70.07033 | CV47: 65.66675 | CW47: 74.75521 | CX47: 70.06535 | CY47: 65.66615 | CZ47: 74.76573
A48: 11:59:12 | B48: 0.1 | C48: 65.44637 | D48: -4.37888 | E48: -5.27505 | F48: -6.19862 | G48: 7.82793 | H48: -4.73237 | I48: 8.63601 | J48: 12.80102 | K48: 24.39946 | L48: 50.28236 | M48: 55.53982 | N48: 58.05075 | O48: 50.08744 | P48: 54.87311 | Q48: 61.33077 | R48: 51.37371 | S48: 48.05954 | T48: 45.04374 | U48: 49.62742 | V48: 45.63952 | W48: 41.56216 | X48: 43.71274 | Y48: 44.86505 | Z48: 43.08618 | AA48: 37.59053 | AB48: 36.24652 | AC48: 34.09456 | AD48: 26.60289 | AE48: 18.74775 | AF48: 11.59682 | AG48: 2.44193 | AH48: 72.48183 | AI48: 36.41315 | AJ48: 31.89799 | AK48: 25.64533 | AL48: 36.97158 | AM48: 21.55318 | AN48: 31.29391 | AO48: 30.48698 | AP48: 38.76756 | AQ48: 62.59731 | AR48: 66.50649 | AS48: 66.57909 | AT48: 56.8094 | AU48: 59.59389 | AV48: 64.44276 | AW48: 53.84118 | AX48: 48.97819 | AY48: 44.88184 | AZ48: 48.9843 | BA48: 44.62278 | BB48: 40.17064 | BC48: 42.14937 | BD48: 43.14836 | BE48: 41.29015 | BF48: 35.75417 | BG48: 34.36875 | BH48: 32.19484 | BI48: 24.68815 | BJ48: 16.82271 | BK48: 9.67189 | BL48: 0.49226 | BM48: 72.51781 | BN48: 41.19923 | BO48: 35.38086 | BP48: 27.4813 | BQ48: 38.35789 | BR48: 22.56157 | BS48: 31.84129 | BT48: 30.77425 | BU48: 38.89097 | BV48: 62.68818 | BW48: 66.54766 | BX48: 66.5808 | BY48: 56.78867 | BZ48: 59.56975 | CA48: 64.40459 | CB48: 53.79546 | CC48: 48.95241 | CD48: 44.88902 | CE48: 49.01901 | CF48: 44.70016 | CG48: 40.35519 | CH48: 42.44451 | CI48: 43.68363 | CJ48: 42.14958 | CK48: 36.96357 | CL48: 36.34049 | CM48: 35.08701 | CN48: 28.83347 | CO48: 22.93353 | CP48: 17.59637 | CQ48: 11.05287 | CR48: 62.70256 | CS48: 61.70156 | CT48: 69.97124 | CU48: 69.65434 | CV48: 65.75037 | CW48: 74.12434 | CX48: 69.69312 | CY48: 65.75001 | CZ48: 74.16672
A49: 11:59:12 | B49: 0.1 | C49: 68.79366 | D49: -8.99166 | E49: -4.484 | F49: 0.55097 | G49: 8.5047 | H49: 1.09319 | I49: 7.89741 | J49: 12.99073 | K49: 29.55698 | L49: 52.60843 | M49: 49.9352 | N49: 46.15228 | O49: 52.02825 | P49: 54.65621 | Q49: 66.5387 | R49: 62.97528 | S49: 58.73716 | T49: 47.70847 | U49: 46.37356 | V49: 53.28144 | W49: 52.66483 | X49: 51.50219 | Y49: 39.45023 | Z49: 34.99294 | AA49: 31.56133 | AB49: 30.29614 | AC49: 27.66998 | AD49: 24.35483 | AE49: 19.12141 | AF49: 12.27704 | AG49: 3.73902 | AH49: 72.04097 | AI49: 30.58266 | AJ49: 32.54978 | AK49: 32.02835 | AL49: 37.69769 | AM49: 27.37136 | AN49: 30.32063 | AO49: 30.90037 | AP49: 43.95434 | AQ49: 65.08993 | AR49: 61.51925 | AS49: 54.35849 | AT49: 58.33519 | AU49: 59.66866 | AV49: 69.56763 | AW49: 64.98416 | AX49: 59.85338 | AY49: 47.82291 | AZ49: 45.74577 | BA49: 52.1667 | BB49: 51.30059 | BC49: 49.96544 | BD49: 37.74696 | BE49: 33.20248 | BF49: 29.71853 | BG49: 28.41895 | BH49: 25.76783 | BI49: 22.43941 | BJ49: 17.19667 | BK49: 10.35246 | BL49: 1.78735 | BM49: 72.03082 | BN49: 35.49647 | BO49: 35.9349 | BP49: 33.8966 | BQ49: 39.14001 | BR49: 28.47832 | BS49: 30.94934 | BT49: 31.17681 | BU49: 44.11822 | BV49: 65.15055 | BW49: 61.57377 | BX49: 54.34859 | BY49: 58.31472 | BZ49: 59.63553 | CA49: 69.53506 | CB49: 64.95438 | CC49: 59.8305 | CD49: 47.81977 | CE49: 45.78347 | CF49: 52.26321 | CG49: 51.47215 | CH49: 50.23383 | CI49: 38.25333 | CJ49: 34.01492 | CK49: 31.00039 | CL49: 30.35136 | CM49: 28.82092 | CN49: 26.68462 | CO49: 23.1441 | CP49: 18.39461 | CQ49: 12.45097 | CR49: 65.32865 | CS49: 62.42389 | CT49: 70.67443 | CU49: 68.59561 | CV49: 65.45367 | CW49: 73.73123 | CX49: 68.58843 | CY49: 65.4213 | CZ49: 73.68444
A50: 11:59:12 | B50: 0.1 | C50: 58.53712 | D50: -5.10181 | E50: -2.38896 | F50: -5.89668 | G50: 1.99461 | H50: 2.98425 | I50: 11.44779 | J50: 14.11933 | K50: 42.93688 | L50: 44.78869 | M50: 39.23724 | N50: 49.53432 | O50: 46.97185 | P50: 48.44876 | Q50: 51.89866 | R50: 52.08115 | S50: 49.02451 | T50: 43.83882 | U50: 40.27852 | V50: 37.3787 | W50: 36.32584 | X50: 37.08987 | Y50: 35.31216 | Z50: 31.27795 | AA50: 29.96593 | AB50: 27.13665 | AC50: 25.28258 | AD50: 21.78967 | AE50: 17.47579 | AF50: 10.35748 | AG50: 2.71925 | AH50: 65.55586 | AI50: 35.51343 | AJ50: 34.58001 | AK50: 27.29827 | AL50: 30.07423 | AM50: 29.09429 | AN50: 33.74807 | AO50: 31.36758 | AP50: 57.90982 | AQ50: 57.88514 | AR50: 50.66901 | AS50: 57.59649 | AT50: 54.3562 | AU50: 53.10109 | AV50: 54.88255 | AW50: 54.05648 | AX50: 49.9173 | AY50: 43.86924 | AZ50: 39.69996 | BA50: 36.33469 | BB50: 34.94109 | BC50: 35.52991 | BD50: 33.60825 | BE50: 29.48843 | BF50: 28.12252 | BG50: 25.25813 | BH50: 23.38171 | BI50: 19.87362 | BJ50: 15.55082 | BK50: 8.4332 | BL50: 0.76796 | BM50: 65.64383 | BN50: 40.11492 | BO50: 37.76915 | BP50: 29.56464 | BQ50: 31.22409 | BR50: 30.01622 | BS50: 34.28522 | BT50: 31.62319 | BU50: 58.05397 | BV50: 57.97778 | BW50: 50.70208 | BX50: 57.59537 | BY50: 54.34441 | BZ50: 53.07233 | CA50: 54.84695 | CB50: 54.02871 | CC50: 49.89677 | CD50: 43.86972 | CE50: 39.72195 | CF50: 36.41807 | CG50: 35.11775 | CH50: 35.82132 | CI50: 34.11266 | CJ50: 30.31374 | CK50: 29.39944 | CL50: 27.2406 | CM50: 26.35013 | CN50: 24.16605 | CO50: 21.57241 | CP50: 16.57237 | CQ50: 11.4204 | CR50: 60.91393 | CS50: 62.0032 | CT50: 70.3698 | CU50: 63.93542 | CV50: 65.03255 | CW50: 73.42654 | CX50: 63.90205 | CY50: 65.00015 | CZ50: 73.34916
A51: 11:59:12 | B51: 0.1 | C51: 58.37956 | D51: -0.52272 | E51: -7.68061 | F51: -9.02465 | G51: -1.11375 | H51: 10.99659 | I51: 18.84133 | J51: 36.05669 | K51: 45.31002 | L51: 38.42383 | M51: 44.17268 | N51: 47.10011 | O51: 41.88509 | P51: 38.52934 | Q51: 40.47079 | R51: 44.92586 | S51: 40.4871 | T51: 40.46056 | U51: 40.81201 | V51: 43.12415 | W51: 45.27971 | X51: 56.7995 | Y51: 44.58461 | Z51: 40.20004 | AA51: 38.0715 | AB51: 38.58563 | AC51: 37.13299 | AD51: 25.58774 | AE51: 17.8499 | AF51: 12.1056 | AG51: 3.1895 | AH51: 61.82264 | AI51: 39.36488 | AJ51: 30.3503 | AK51: 24.04804 | AL51: 27.22731 | AM51: 35.73024 | AN51: 41.1925 | AO51: 53.9935 | AP51: 60.56385 | AQ51: 52.55183 | AR51: 54.58019 | AS51: 55.42611 | AT51: 49.00842 | AU51: 43.34908 | AV51: 43.40575 | AW51: 46.49393 | AX51: 41.49001 | AY51: 40.45621 | AZ51: 40.15814 | BA51: 42.05938 | BB51: 43.82966 | BC51: 55.23909 | BD51: 42.89408 | BE51: 38.40772 | BF51: 36.22762 | BG51: 36.70606 | BH51: 35.23402 | BI51: 23.67339 | BJ51: 15.92524 | BK51: 10.18097 | BL51: 1.23949 | BM51: 62.00398 | BN51: 43.75455 | BO51: 34.26866 | BP51: 26.30798 | BQ51: 28.45777 | BR51: 36.49912 | BS51: 41.75076 | BT51: 54.27099 | BU51: 60.72303 | BV51: 52.66945 | BW51: 54.60972 | BX51: 55.41686 | BY51: 48.99194 | BZ51: 43.31089 | CA51: 43.3623 | CB51: 46.4558 | CC51: 41.47015 | CD51: 40.45201 | CE51: 40.20834 | CF51: 42.14736 | CG51: 44.04495 | CH51: 55.52804 | CI51: 43.37467 | CJ51: 39.24288 | CK51: 37.53309 | CL51: 38.75721 | CM51: 38.07198 | CN51: 27.79167 | CO51: 21.9816 | CP51: 18.1433 | CQ51: 11.84689 | CR51: 57.61659 | CS51: 61.58929 | CT51: 70.09214 | CU51: 60.63755 | CV51: 64.61858 | CW51: 73.14886 | CX51: 60.6041 | CY51: 64.61173 | CZ51: 73.07149
A52: 11:59:12 | B52: 0.1 | C52: 60.98605 | D52: -2.86022 | E52: -7.01929 | F52: -4.99584 | G52: 6.58299 | H52: 11.51649 | I52: 16.57011 | J52: 29.82409 | K52: 32.50338 | L52: 46.83788 | M52: 38.0664 | N52: 37.67826 | O52: 49.5026 | P52: 48.20042 | Q52: 58.67014 | R52: 52.51539 | S52: 44.34605 | T52: 43.29259 | U52: 42.94224 | V52: 37.92993 | W52: 37.52741 | X52: 42.17754 | Y52: 36.59573 | Z52: 31.63878 | AA52: 32.1519 | AB52: 29.61109 | AC52: 25.53981 | AD52: 16.60971 | AE52: 11.67786 | AF52: 5.28752 | AG52: -0.45569 | AH52: 66.3255 | AI52: 36.27878 | AJ52: 30.02827 | AK52: 27.27509 | AL52: 35.20757 | AM52: 34.94509 | AN52: 38.6982 | AO52: 47.67661 | AP52: 48.05179 | AQ52: 60.0227 | AR52: 49.40912 | AS52: 45.8394 | AT52: 56.24472 | AU52: 52.6301 | AV52: 62.13345 | AW52: 54.60004 | AX52: 45.26372 | AY52: 43.20775 | AZ52: 42.40315 | BA52: 36.9059 | BB52: 36.12059 | BC52: 40.62801 | BD52: 34.8931 | BE52: 29.85104 | BF52: 30.3065 | BG52: 27.72873 | BH52: 23.64062 | BI52: 14.69418 | BJ52: 9.75301 | BK52: 3.36285 | BL52: -2.41353 | BM52: 66.36502 | BN52: 40.27828 | BO52: 33.45837 | BP52: 29.27966 | BQ52: 36.51924 | BR52: 35.64555 | BS52: 39.29342 | BT52: 47.92825 | BU52: 48.22041 | BV52: 60.1143 | BW52: 49.45998 | BX52: 45.83862 | BY52: 56.23047 | BZ52: 52.60159 | CA52: 62.10161 | CB52: 54.57005 | CC52: 45.24291 | CD52: 43.2122 | CE52: 42.42348 | CF52: 36.98515 | CG52: 36.30251 | CH52: 40.90147 | CI52: 35.3876 | CJ52: 30.66347 | CK52: 31.58511 | CL52: 29.63583 | CM52: 26.44881 | CN52: 18.93081 | CO52: 15.76596 | CP52: 11.53339 | CQ52: 8.47677 | CR52: 58.22954 | CS52: 61.39087 | CT52: 69.83487 | CU52: 63.53801 | CV52: 64.44246 | CW52: 72.89362 | CX52: 63.581 | CY52: 64.41007 | CZ52: 72.81649
A53: 11:59:12 | B53: 0.1 | C53: 58.64304 | D53: -6.43497 | E53: -12.47571 | F53: -3.78712 | G53: 2.22153 | H53: 12.11219 | I53: 21.77904 | J53: 15.21738 | K53: 37.82063 | L53: 45.70999 | M53: 32.2371 | N53: 39.19679 | O53: 46.39955 | P53: 48.78965 | Q53: 51.9914 | R53: 54.45767 | S53: 47.8596 | T53: 43.52187 | U53: 39.84665 | V53: 36.80368 | W53: 36.66929 | X53: 36.71527 | Y53: 34.82358 | Z53: 31.79716 | AA53: 29.90549 | AB53: 26.72669 | AC53: 23.13615 | AD53: 20.66484 | AE53: 15.72184 | AF53: 8.60875 | AG53: 1.98028 | AH53: 63.41014 | AI53: 32.47408 | AJ53: 24.46459 | AK53: 28.58775 | AL53: 30.86386 | AM53: 35.95995 | AN53: 44.11439 | AO53: 33.2155 | AP53: 52.47137 | AQ53: 59.63135 | AR53: 43.32352 | AS53: 47.0658 | AT53: 53.61021 | AU53: 53.07143 | AV53: 55.01476 | AW53: 56.82051 | AX53: 48.84219 | AY53: 43.55959 | AZ53: 39.3129 | BA53: 35.72517 | BB53: 35.29886 | BC53: 35.16193 | BD53: 33.11584 | BE53: 30.01373 | BF53: 28.06036 | BG53: 24.84982 | BH53: 21.23584 | BI53: 18.74961 | BJ53: 13.79704 | BK53: 6.68438 | BL53: 0.03164 | BM53: 63.44507 | BN53: 36.44136 | BO53: 27.92021 | BP53: 30.68378 | BQ53: 32.20494 | BR53: 36.66972 | BS53: 44.68845 | BT53: 33.54977 | BU53: 52.6088 | BV53: 59.7436 | BW53: 43.36133 | BX53: 47.06766 | BY53: 53.59378 | BZ53: 53.04555 | CA53: 54.98253 | CB53: 56.7907 | CC53: 48.82153 | CD53: 43.55928 | CE53: 39.33974 | CF53: 35.81496 | CG53: 35.47515 | CH53: 35.44911 | CI53: 33.63012 | CJ53: 30.81049 | CK53: 29.36024 | CL53: 26.77844 | CM53: 24.17512 | CN53: 23.0172 | CO53: 19.80649 | CP53: 14.80953 | CQ53: 10.68513 | CR53: 56.57477 | CS53: 60.98441 | CT53: 69.53136 | CU53: 60.95393 | CV53: 64.03551 | CW53: 72.59006 | CX53: 60.97964 | CY53: 64.00313 | CZ53: 72.51299
A54: 11:59:12 | B54: 0.1 | C54: 54.85479 | D54: -11.82264 | E54: -7.70292 | F54: -6.94242 | G54: 2.06465 | H54: 7.85033 | I54: 15.32995 | J54: 21.08569 | K54: 43.0435 | L54: 37.16471 | M54: 29.773 | N54: 49.54652 | O54: 41.65446 | P54: 45.32147 | Q54: 49.08422 | R54: 45.06706 | S54: 41.75026 | T54: 36.80803 | U54: 37.54629 | V54: 37.12173 | W54: 37.14905 | X54: 36.58529 | Y54: 34.55268 | Z54: 31.81995 | AA54: 28.85517 | AB54: 25.63731 | AC54: 23.71799 | AD54: 22.17247 | AE54: 14.79018 | AF54: 8.20679 | AG54: 0.88977 | AH54: 63.37981 | AI54: 29.1954 | AJ54: 29.5927 | AK54: 25.02789 | AL54: 31.73224 | AM54: 32.22496 | AN54: 37.86689 | AO54: 38.39699 | AP54: 58.59698 | AQ54: 51.39798 | AR54: 40.38226 | AS54: 57.99233 | AT54: 48.76423 | AU54: 50.14438 | AV54: 51.92844 | AW54: 47.33978 | AX54: 42.49064 | AY54: 36.87086 | AZ54: 36.9157 | BA54: 36.06461 | BB54: 35.76838 | BC54: 35.0334 | BD54: 32.84302 | BE54: 30.03371 | BF54: 27.01418 | BG54: 23.75808 | BH54: 21.81767 | BI54: 20.25674 | BJ54: 12.86557 | BK54: 6.28226 | BL54: -1.0648 | BM54: 63.47066 | BN54: 33.76125 | BO54: 32.9842 | BP54: 26.90911 | BQ54: 33.24911 | BR54: 33.0473 | BS54: 38.42216 | BT54: 38.64153 | BU54: 58.76631 | BV54: 51.51989 | BW54: 40.41868 | BX54: 57.99408 | BY54: 48.7496 | BZ54: 50.10548 | CA54: 51.89309 | CB54: 47.29631 | CC54: 42.47299 | CD54: 36.86985 | CE54: 36.95213 | CF54: 36.15158 | CG54: 35.94941 | CH54: 35.31739 | CI54: 33.36331 | CJ54: 30.82765 | CK54: 28.26039 | CL54: 25.75735 | CM54: 24.78159 | CN54: 24.47211 | CO54: 18.7975 | CP54: 14.35356 | CQ54: 9.69809 | CR54: 53.35171 | CS54: 60.59499 | CT54: 69.25597 | CU54: 60.56903 | CV54: 63.64486 | CW54: 72.31453 | CX54: 60.65341 | CY54: 63.61245 | CZ54: 72.2375
A55: 11:59:12 | B55: 0.1 | C55: 56.06343 | D55: -7.13605 | E55: -11.0722 | F55: -9.48336 | G55: 7.65739 | H55: 9.55883 | I55: 20.07798 | J55: 28.29351 | K55: 38.22566 | L55: 35.31107 | M55: 36.23556 | N55: 49.68073 | O55: 40.8933 | P55: 44.79147 | Q55: 50.94277 | R55: 47.50918 | S55: 45.73045 | T55: 43.30772 | U55: 42.99331 | V55: 43.49643 | W55: 41.01525 | X55: 39.39222 | Y55: 35.61687 | Z55: 31.04583 | AA55: 27.98198 | AB55: 24.7383 | AC55: 22.92568 | AD55: 20.02876 | AE55: 14.52728 | AF55: 6.66404 | AG55: 1.02362 | AH55: 61.4531 | AI55: 33.44601 | AJ55: 26.1892 | AK55: 22.45351 | AL55: 36.75712 | AM55: 33.74647 | AN55: 42.26888 | AO55: 46.08488 | AP55: 54.02223 | AQ55: 49.27741 | AR55: 46.42411 | AS55: 58.20375 | AT55: 47.64168 | AU55: 49.77119 | AV55: 54.13277 | AW55: 49.40466 | AX55: 46.69921 | AY55: 43.35189 | AZ55: 42.40913 | BA55: 42.43147 | BB55: 39.65596 | BC55: 37.84853 | BD55: 33.90866 | BE55: 29.26216 | BF55: 26.14085 | BG55: 22.86012 | BH55: 21.02382 | BI55: 18.11344 | BJ55: 12.60271 | BK55: 4.73959 | BL55: -0.93401 | BM55: 61.56443 | BN55: 37.97184 | BO55: 29.55402 | BP55: 24.59389 | BQ55: 38.12782 | BR55: 34.48685 | BS55: 42.82743 | BT55: 46.34956 | BU55: 54.19923 | BV55: 49.39022 | BW55: 46.46707 | BX55: 58.20373 | BY55: 47.62375 | BZ55: 49.74141 | CA55: 54.09991 | CB55: 49.37587 | CC55: 46.6812 | CD55: 43.35648 | CE55: 42.44295 | CF55: 42.51958 | CG55: 39.82491 | CH55: 38.12601 | CI55: 34.4286 | CJ55: 30.05049 | CK55: 27.40056 | CL55: 24.83759 | CM55: 24.04474 | CN55: 22.33199 | CO55: 18.53767 | CP55: 12.8225 | CQ55: 9.96626 | CR55: 53.22004 | CS55: 60.18289 | CT55: 68.95176 | CU55: 58.46578 | CV55: 63.23442 | CW55: 72.01047 | CX55: 58.57488 | CY55: 63.20201 | CZ55: 71.93348
A56: 11:59:12 | B56: 0.1 | C56: 52.979 | D56: -4.3868 | E56: -7.61801 | F56: -6.767 | G56: 7.50032 | H56: 10.57964 | I56: 16.27957 | J56: 32.89835 | K56: 31.73049 | L56: 25.95794 | M56: 41.3578 | N56: 39.67193 | O56: 35.77474 | P56: 34.12765 | Q56: 40.59303 | R56: 44.59698 | S56: 41.73464 | T56: 43.41414 | U56: 46.01717 | V56: 41.35799 | W56: 38.88908 | X56: 36.57846 | Y56: 36.67812 | Z56: 34.61292 | AA56: 36.97964 | AB56: 42.62365 | AC56: 37.89922 | AD56: 37.37975 | AE56: 31.50703 | AF56: 25.52226 | AG56: 14.64988 | AH56: 58.18904 | AI56: 36.06678 | AJ56: 28.37741 | AK56: 25.95462 | AL56: 36.22655 | AM56: 34.23938 | AN56: 38.73367 | AO56: 50.29457 | AP56: 48.84203 | AQ56: 39.86162 | AR56: 51.55463 | AS56: 49.00416 | AT56: 42.42188 | AU56: 38.87141 | AV56: 43.60107 | AW56: 46.34235 | AX56: 42.70451 | AY56: 43.3715 | AZ56: 45.40128 | BA56: 40.36457 | BB56: 37.51543 | BC56: 35.0282 | BD56: 34.95731 | BE56: 32.82579 | BF56: 35.12714 | BG56: 40.74399 | BH56: 35.99957 | BI56: 35.4619 | BJ56: 29.58139 | BK56: 23.59853 | BL56: 12.72529 | BM56: 58.53705 | BN56: 40.60345 | BO56: 31.35493 | BP56: 28.01999 | BQ56: 37.60469 | BR56: 34.92883 | BS56: 39.34116 | BT56: 50.55745 | BU56: 49.08061 | BV56: 39.96767 | BW56: 51.58126 | BX56: 49.01125 | BY56: 42.40738 | BZ56: 38.82708 | CA56: 43.56861 | CB56: 46.31345 | CC56: 42.67683 | CD56: 43.36852 | CE56: 45.43328 | CF56: 40.43977 | CG56: 37.68974 | CH56: 35.31873 | CI56: 35.50491 | CJ56: 33.64049 | CK56: 36.55338 | CL56: 42.76541 | CM56: 38.89777 | CN56: 39.9469 | CO56: 35.92331 | CP56: 31.90513 | CQ56: 22.20435 | CR56: 49.80128 | CS56: 59.77071 | CT56: 68.67421 | CU56: 55.54117 | CV56: 62.82218 | CW56: 71.73293 | CX56: 55.88291 | CY56: 62.78978 | CZ56: 71.65594
A57: 11:59:13 | B57: 0.1 | C57: 48.77972 | D57: -9.11663 | E57: -5.94937 | F57: -5.42015 | G57: 2.38272 | H57: 9.74618 | I57: 17.25995 | J57: 36.27084 | K57: 31.53226 | L57: 21.72334 | M57: 42.82066 | N57: 41.24948 | O57: 35.05202 | P57: 36.03746 | Q57: 33.83887 | R57: 35.15592 | S57: 31.81218 | T57: 33.52419 | U57: 36.71289 | V57: 34.1837 | W57: 33.61987 | X57: 35.39185 | Y57: 34.5743 | Z57: 30.58393 | AA57: 28.07084 | AB57: 26.49354 | AC57: 22.63345 | AD57: 19.5134 | AE57: 13.35047 | AF57: 6.33208 | AG57: 0.08109 | AH57: 58.0518 | AI57: 32.33286 | AJ57: 30.94016 | AK57: 25.88757 | AL57: 30.73888 | AM57: 33.33314 | AN57: 40.23032 | AO57: 54.00499 | AP57: 48.76365 | AQ57: 35.28396 | AR57: 53.04508 | AS57: 50.42666 | AT57: 41.49336 | AU57: 41.09132 | AV57: 37.30258 | AW57: 37.06932 | AX57: 32.7349 | AY57: 33.4501 | AZ57: 36.09415 | BA57: 33.13627 | BB57: 32.24329 | BC57: 33.81414 | BD57: 32.86647 | BE57: 28.80061 | BF57: 26.22721 | BG57: 24.61533 | BH57: 20.73318 | BI57: 17.59659 | BJ57: 11.42541 | BK57: 4.40785 | BL57: -1.87801 | BM57: 58.33942 | BN57: 37.46216 | BO57: 34.17936 | BP57: 27.7478 | BQ57: 31.88152 | BR57: 34.02363 | BS57: 40.84713 | BT57: 54.26416 | BU57: 48.99744 | BV57: 35.38563 | BW57: 53.06652 | BX57: 50.4477 | BY57: 41.4798 | BZ57: 41.06524 | CA57: 37.27625 | CB57: 37.03851 | CC57: 32.71832 | CD57: 33.45344 | CE57: 36.12864 | CF57: 33.22098 | CG57: 32.41872 | CH57: 34.11599 | CI57: 33.37985 | CJ57: 29.59685 | CK57: 27.51746 | CL57: 26.58717 | CM57: 23.65566 | CN57: 21.97255 | CO57: 17.54028 | CP57: 12.50266 | CQ57: 9.01103 | CR57: 46.14731 | CS57: 59.3549 | CT57: 68.39635 | CU57: 55.22565 | CV57: 62.40649 | CW57: 71.45507 | CX57: 55.5219 | CY57: 62.37409 | CZ57: 71.37809
A58: 11:59:13 | B58: 0.1 | C58: 53.09556 | D58: -8.13889 | E58: -10.27863 | F58: -3.8205 | G58: 3.93134 | H58: 8.53953 | I58: 14.84632 | J58: 28.39503 | K58: 37.23152 | L58: 28.43159 | M58: 32.88596 | N58: 45.81604 | O58: 39.14373 | P58: 38.97272 | Q58: 39.55762 | R58: 42.25436 | S58: 46.92912 | T58: 43.00307 | U58: 42.8585 | V58: 40.65237 | W58: 37.217 | X58: 36.46172 | Y58: 34.8013 | Z58: 32.23143 | AA58: 29.51218 | AB58: 25.86253 | AC58: 23.09633 | AD58: 20.51194 | AE58: 16.1821 | AF58: 10.08604 | AG58: 5.57325 | AH58: 58.73603 | AI58: 33.45943 | AJ58: 26.72763 | AK58: 28.2297 | AL58: 32.20856 | AM58: 32.85891 | AN58: 37.88452 | AO58: 46.01025 | AP58: 52.68357 | AQ58: 42.66345 | AR58: 43.62865 | AS58: 54.06008 | AT58: 46.41946 | AU58: 43.72321 | AV58: 42.60305 | AW58: 43.983 | AX58: 47.84044 | AY58: 42.98851 | AZ58: 42.3064 | BA58: 39.65839 | BB58: 35.85571 | BC58: 34.89562 | BD58: 33.09519 | BE58: 30.44347 | BF58: 27.67088 | BG58: 23.98466 | BH58: 21.19624 | BI58: 18.59555 | BJ58: 14.25732 | BK58: 8.16145 | BL58: 3.62316 | BM58: 58.84296 | BN58: 38.46274 | BO58: 30.14529 | BP58: 30.13612 | BQ58: 33.48066 | BR58: 33.68037 | BS58: 38.5466 | BT58: 46.23278 | BU58: 52.84646 | BV58: 42.79298 | BW58: 43.6656 | BX58: 54.056 | BY58: 46.40497 | BZ58: 43.6954 | CA58: 42.5722 | CB58: 43.95782 | CC58: 47.82419 | CD58: 42.9904 | CE58: 42.33986 | CF58: 39.73536 | CG58: 36.026 | CH58: 35.19402 | CI58: 33.6076 | CJ58: 31.25372 | CK58: 28.92521 | CL58: 25.95278 | CM58: 24.11665 | CN58: 22.97356 | CO58: 20.32984 | CP58: 16.20571 | CQ58: 14.50606 | CR58: 51.07503 | CS58: 58.89683 | CT58: 68.08794 | CU58: 56.4058 | CV58: 61.9484 | CW58: 71.14666 | CX58: 56.50541 | CY58: 61.93835 | CZ58: 71.06969
A59: 11:59:13 | B59: 0.1 | C59: 52.17032 | D59: -6.946 | E59: -15.61234 | F59: 0.44734 | G59: 6.31937 | H59: 5.38457 | I59: 15.22822 | J59: 15.52206 | K59: 37.7161 | L59: 34.47284 | M59: 30.07844 | N59: 45.53455 | O59: 34.38564 | P59: 37.13554 | Q59: 38.69803 | R59: 45.59776 | S59: 44.45609 | T59: 42.26673 | U59: 44.02221 | V59: 38.02247 | W59: 35.34438 | X59: 35.66935 | Y59: 35.69086 | Z59: 32.30746 | AA59: 30.55527 | AB59: 27.60447 | AC59: 23.67517 | AD59: 21.63848 | AE59: 19.30151 | AF59: 13.01266 | AG59: 5.65273 | AH59: 57.34935 | AI59: 34.51478 | AJ59: 22.32179 | AK59: 32.46357 | AL59: 35.08163 | AM59: 30.91508 | AN59: 37.98344 | AO59: 33.98693 | AP59: 52.82391 | AQ59: 48.0736 | AR59: 41.46121 | AS59: 53.75458 | AT59: 41.96484 | AU59: 41.88074 | AV59: 41.62112 | AW59: 47.25347 | AX59: 45.47115 | AY59: 42.18143 | AZ59: 43.4633 | BA59: 37.01523 | BB59: 33.97284 | BC59: 34.09624 | BD59: 33.98215 | BE59: 30.51454 | BF59: 28.71377 | BG59: 25.7272 | BH59: 21.77501 | BI59: 19.72086 | BJ59: 17.37647 | BK59: 11.08798 | BL59: 3.70527 | BM59: 57.5123 | BN59: 39.30499 | BO59: 25.92776 | BP59: 34.37052 | BQ59: 36.43623 | BR59: 31.80279 | BS59: 38.57418 | BT59: 34.28913 | BU59: 52.97318 | BV59: 48.17933 | BW59: 41.51394 | BX59: 53.74962 | BY59: 41.9541 | BZ59: 41.84781 | CA59: 41.58463 | CB59: 47.22466 | CC59: 45.44238 | CD59: 42.18575 | CE59: 43.48898 | CF59: 37.091 | CG59: 34.14516 | CH59: 34.40028 | CI59: 34.49969 | CJ59: 31.35851 | CK59: 29.97497 | CL59: 27.69022 | CM59: 24.70301 | CN59: 24.20419 | CO59: 23.52579 | CP59: 19.10752 | CQ59: 14.38988 | CR59: 48.65788 | CS59: 58.48404 | CT59: 67.81033 | CU59: 53.88054 | CV59: 61.58636 | CW59: 70.86903 | CX59: 54.0666 | CY59: 61.58593 | CZ59: 70.79205
A60: 11:59:13 | B60: 0.1 | C60: 47.5675 | D60: -5.76202 | E60: -13.15482 | F60: -1.60062 | G60: 8.21956 | H60: 6.20469 | I60: 17.80733 | J60: 12.49308 | K60: 29.87717 | L60: 29.81634 | M60: 26.59375 | N60: 30.29859 | O60: 33.55862 | P60: 34.68235 | Q60: 36.20445 | R60: 35.5895 | S60: 36.74142 | T60: 36.74123 | U60: 36.37811 | V60: 37.41171 | W60: 39.24336 | X60: 37.27481 | Y60: 35.57678 | Z60: 31.96231 | AA60: 29.54636 | AB60: 27.10605 | AC60: 23.41068 | AD60: 20.008 | AE60: 18.77802 | AF60: 12.13228 | AG60: 4.07672 | AH60: 52.38162 | AI60: 34.51153 | AJ60: 23.48711 | AK60: 29.43787 | AL60: 37.56416 | AM60: 29.8914 | AN60: 40.27544 | AO60: 31.18599 | AP60: 44.63956 | AQ60: 43.50817 | AR60: 37.77509 | AS60: 38.78738 | AT60: 40.15733 | AU60: 39.53291 | AV60: 39.54548 | AW60: 37.50838 | AX60: 37.48509 | AY60: 36.83813 | AZ60: 35.76614 | BA60: 36.3175 | BB60: 37.88856 | BC60: 35.71909 | BD60: 33.87344 | BE60: 30.17296 | BF60: 27.7058 | BG60: 25.22713 | BH60: 21.51144 | BI60: 18.09086 | BJ60: 16.85268 | BK60: 10.20753 | BL60: 2.12759 | BM60: 53.37921 | BN60: 39.06779 | BO60: 26.55799 | BP60: 31.35719 | BQ60: 39.11443 | BR60: 30.62413 | BS60: 40.817 | BT60: 31.51072 | BU60: 44.77613 | BV60: 43.61815 | BW60: 37.81441 | BX60: 38.77378 | BY60: 40.13885 | BZ60: 39.5051 | CA60: 39.51658 | CB60: 37.47826 | CC60: 37.46819 | CD60: 36.83372 | CE60: 35.79952 | CF60: 36.4119 | CG60: 38.05591 | CH60: 36.0112 | CI60: 34.37708 | CJ60: 30.99288 | CK60: 28.95033 | CL60: 27.21297 | CM60: 24.37791 | CN60: 22.54742 | CO60: 23.01521 | CP60: 18.15861 | CQ60: 12.87851 | CR60: 44.94227 | CS60: 58.06969 | CT60: 67.53256 | CU60: 49.95507 | CV60: 61.1717 | CW60: 70.59129 | CX60: 50.36728 | CY60: 61.17127 | CZ60: 70.51432
A61: 11:59:13 | B61: 0.1 | C61: 48.41524 | D61: -2.97855 | E61: -1.89742 | F61: -2.72703 | G61: 9.59479 | H61: 11.14617 | I61: 18.74429 | J61: 10.87112 | K61: 21.39433 | L61: 24.34315 | M61: 25.04812 | N61: 28.04842 | O61: 32.29227 | P61: 35.20786 | Q61: 38.19025 | R61: 36.68163 | S61: 35.01907 | T61: 37.3204 | U61: 38.38325 | V61: 40.69035 | W61: 41.81464 | X61: 38.91113 | Y61: 36.84139 | Z61: 31.88238 | AA61: 29.29357 | AB61: 26.90015 | AC61: 22.73318 | AD61: 18.9376 | AE61: 15.12199 | AF61: 8.10223 | AG61: 2.89953 | AH61: 51.64164 | AI61: 36.8391 | AJ61: 35.12611 | AK61: 28.38783 | AL61: 38.34837 | AM61: 35.08724 | AN61: 41.27927 | AO61: 29.10236 | AP61: 36.71399 | AQ61: 37.9903 | AR61: 36.30679 | AS61: 36.92197 | AT61: 38.66913 | AU61: 40.04631 | AV61: 41.39385 | AW61: 38.7847 | AX61: 35.86557 | AY61: 37.35519 | AZ61: 37.7245 | BA61: 39.60462 | BB61: 40.47755 | BC61: 37.34449 | BD61: 35.13916 | BE61: 30.09692 | BF61: 27.45362 | BG61: 25.02244 | BH61: 20.83398 | BI61: 17.02165 | BJ61: 13.1971 | BK61: 6.17776 | BL61: 0.94534 | BM61: 53.64081 | BN61: 41.19807 | BO61: 38.40533 | BP61: 30.2393 | BQ61: 39.62356 | BR61: 35.8221 | BS61: 41.90308 | BT61: 29.40185 | BU61: 36.87354 | BV61: 38.0946 | BW61: 36.3529 | BX61: 36.92961 | BY61: 38.65273 | BZ61: 40.01749 | CA61: 41.35997 | CB61: 38.75514 | CC61: 35.84674 | CD61: 37.35562 | CE61: 37.76184 | CF61: 39.6971 | CG61: 40.63676 | CH61: 37.64221 | CI61: 35.64297 | CJ61: 30.89922 | CK61: 28.69331 | CL61: 26.98331 | CM61: 23.71861 | CN61: 21.30295 | CO61: 19.17162 | CP61: 14.27666 | CQ61: 11.86872 | CR61: 45.96765 | CS61: 57.61136 | CT61: 67.2241 | CU61: 49.17453 | CV61: 60.71032 | CW61: 70.28284 | CX61: 51.15214 | CY61: 60.70989 | CZ61: 70.20587
A62: 11:59:13 | B62: 0.1 | C62: 46.77406 | D62: -6.02623 | E62: 2.89005 | F62: -6.17818 | G62: 4.06539 | H62: 9.59509 | I62: 18.01574 | J62: 15.55148 | K62: 18.11068 | L62: 21.20478 | M62: 24.45576 | N62: 25.38583 | O62: 29.31394 | P62: 30.898 | Q62: 33.95346 | R62: 34.60071 | S62: 38.1681 | T62: 39.06466 | U62: 34.89787 | V62: 38.52325 | W62: 38.5442 | X62: 35.50446 | Y62: 35.67033 | Z62: 29.80405 | AA62: 27.9544 | AB62: 26.48408 | AC62: 23.16806 | AD62: 19.05807 | AE62: 14.0231 | AF62: 7.69678 | AG62: 1.37492 | AH62: 49.34665 | AI62: 34.99662 | AJ62: 40.00739 | AK62: 25.81637 | AL62: 33.18512 | AM62: 33.93372 | AN62: 41.11285 | AO62: 34.0481 | AP62: 34.22928 | AQ62: 33.92194 | AR62: 35.28427 | AS62: 33.94596 | AT62: 35.64333 | AU62: 35.64945 | AV62: 37.11987 | AW62: 36.58678 | AX62: 38.88644 | AY62: 39.13023 | AZ62: 34.30569 | BA62: 37.43809 | BB62: 37.19902 | BC62: 33.93818 | BD62: 33.96673 | BE62: 28.02393 | BF62: 26.10825 | BG62: 24.60599 | BH62: 21.26794 | BI62: 17.14255 | BJ62: 12.09827 | BK62: 5.77255 | BL62: -0.58186 | BM62: 50.6405 | BN62: 39.97404 | BO62: 43.30205 | BP62: 27.89136 | BQ62: 34.52911 | BR62: 34.7383 | BS62: 41.73505 | BT62: 34.34642 | BU62: 34.42369 | BV62: 34.00056 | BW62: 35.32219 | BX62: 33.94909 | BY62: 35.61679 | BZ62: 35.62074 | CA62: 37.08726 | CB62: 36.5566 | CC62: 38.86964 | CD62: 39.12857 | CE62: 34.33782 | CF62: 37.52734 | CG62: 37.36253 | CH62: 34.2397 | CI62: 34.47385 | CJ62: 28.79496 | CK62: 27.42569 | CL62: 26.58422 | CM62: 24.1961 | CN62: 21.38939 | CO62: 18.15974 | CP62: 13.91798 | CQ62: 10.27802 | CR62: 43.86736 | CS62: 57.19634 | CT62: 66.94628 | CU62: 46.46355 | CV62: 60.29433 | CW62: 70.00502 | CX62: 47.78307 | CY62: 60.2939 | CZ62: 69.92805
A63: 11:59:13 | B63: 0.1 | C63: 49.14056 | D63: 0.35114 | E63: -2.31802 | F63: -2.22629 | G63: 5.94389 | H63: 8.6306 | I63: 17.85627 | J63: 16.53848 | K63: 19.12319 | L63: 13.88816 | M63: 18.03373 | N63: 26.77459 | O63: 33.85852 | P63: 31.80264 | Q63: 33.36816 | R63: 41.22619 | S63: 39.4678 | T63: 34.83095 | U63: 36.49665 | V63: 35.36329 | W63: 38.8725 | X63: 38.87144 | Y63: 35.2907 | Z63: 32.93647 | AA63: 32.1894 | AB63: 30.41379 | AC63: 29.0783 | AD63: 24.49119 | AE63: 17.86275 | AF63: 11.59151 | AG63: 4.02331 | AH63: 51.53199 | AI63: 40.92679 | AJ63: 34.82591 | AK63: 30.5603 | AL63: 34.77019 | AM63: 32.43286 | AN63: 40.67701 | AO63: 34.71073 | AP63: 35.00945 | AQ63: 26.92588 | AR63: 28.36399 | AS63: 34.93528 | AT63: 40.75113 | AU63: 36.69455 | AV63: 36.23916 | AW63: 43.09684 | AX63: 40.62757 | AY63: 34.79372 | AZ63: 35.90196 | BA63: 34.30772 | BB63: 37.45901 | BC63: 37.34563 | BD63: 33.58302 | BE63: 31.14792 | BF63: 30.34795 | BG63: 28.53597 | BH63: 27.17663 | BI63: 22.57693 | BJ63: 15.93798 | BK63: 9.66702 | BL63: 2.07251 | BM63: 52.35802 | BN63: 45.5786 | BO63: 38.36462 | BP63: 32.74841 | BQ63: 36.19505 | BR63: 33.16375 | BS63: 41.27647 | BT63: 35.00414 | BU63: 35.20769 | BV63: 27.02168 | BW63: 28.39336 | BX63: 34.93401 | BY63: 40.73885 | BZ63: 36.66569 | CA63: 36.21712 | CB63: 43.08086 | CC63: 40.61419 | CD63: 34.80344 | CE63: 35.93903 | CF63: 34.40601 | CG63: 37.65057 | CH63: 37.61678 | CI63: 34.10012 | CJ63: 31.97501 | CK63: 31.63838 | CL63: 30.5069 | CM63: 30.21289 | CN63: 26.66694 | CO63: 21.9413 | CP63: 17.78107 | CQ63: 12.75951 | CR63: 47.52378 | CS63: 56.73515 | CT63: 66.63758 | CU63: 49.83676 | CV63: 59.83252 | CW63: 69.69631 | CX63: 50.46876 | CY63: 59.83209 | CZ63: 69.61935
A64: 11:59:13 | B64: 0.1 | C64: 73.1297 | D64: -3.71169 | E64: -4.55064 | F64: -5.14178 | G64: -0.03117 | H64: 7.6009 | I64: 19.37779 | J64: 13.58291 | K64: 19.63338 | L64: 20.26634 | M64: 44.70422 | N64: 53.73326 | O64: 46.81014 | P64: 57.67227 | Q64: 63.07209 | R64: 70.74607 | S64: 65.75812 | T64: 53.86657 | U64: 47.46163 | V64: 46.35896 | W64: 49.46337 | X64: 51.74969 | Y64: 46.34296 | Z64: 38.0529 | AA64: 42.32283 | AB64: 39.14455 | AC64: 35.73804 | AD64: 33.11072 | AE64: 21.20521 | AF64: 14.04289 | AG64: 3.76595 | AH64: 75.43182 | AI64: 37.07207 | AJ64: 32.04127 | AK64: 27.91552 | AL64: 27.91925 | AM64: 32.33484 | AN64: 41.84316 | AO64: 31.99259 | AP64: 35.30103 | AQ64: 32.33368 | AR64: 54.80338 | AS64: 62.35846 | AT64: 53.82984 | AU64: 61.89773 | AV64: 66.43708 | AW64: 72.44903 | AX64: 66.90983 | AY64: 54.03034 | AZ64: 46.9679 | BA64: 45.31816 | BB64: 48.06371 | BC64: 50.19655 | BD64: 44.64262 | BE64: 36.25968 | BF64: 40.4788 | BG64: 37.266 | BH64: 33.83463 | BI64: 31.19783 | BJ64: 19.28059 | BK64: 12.11794 | BL64: 1.81928 | BM64: 75.41507 | BN64: 41.92291 | BO64: 35.19015 | BP64: 30.11803 | BQ64: 29.16979 | BR64: 33.16163 | BS64: 42.42962 | BT64: 32.29642 | BU64: 35.4651 | BV64: 32.40269 | BW64: 54.84605 | BX64: 62.36173 | BY64: 53.81569 | BZ64: 61.88097 | CA64: 66.40544 | CB64: 72.42191 | CC64: 66.88742 | CD64: 54.02639 | CE64: 46.99312 | CF64: 45.40138 | CG64: 48.25063 | CH64: 50.48647 | CI64: 45.14518 | CJ64: 37.12578 | CK64: 41.7604 | CL64: 39.24785 | CM64: 36.97991 | CN64: 35.10514 | CO64: 25.21077 | CP64: 19.98306 | CQ64: 12.28845 | CR64: 70.8763 | CS64: 62.808 | CT64: 75.15181 | CU64: 73.18935 | CV64: 65.11113 | CW64: 77.60419 | CX64: 73.17116 | CY64: 65.09419 | CZ64: 77.58791
A65: 11:59:13 | B65: 0.1 | C65: 70.18971 | D65: -11.4367 | E65: -1.36311 | F65: 1.82655 | G65: 3.9408 | H65: 7.08931 | I65: 15.23396 | J65: 14.70464 | K65: 21.38132 | L65: 31.06338 | M65: 55.62892 | N65: 47.02666 | O65: 46.04914 | P65: 61.88883 | Q65: 60.59441 | R65: 68.94923 | S65: 60.59794 | T65: 47.26835 | U65: 47.39923 | V65: 46.37851 | W65: 46.54044 | X65: 52.57033 | Y65: 40.16115 | Z65: 34.14578 | AA65: 33.33614 | AB65: 31.86581 | AC65: 29.55607 | AD65: 26.92763 | AE65: 17.81583 | AF65: 10.23484 | AG65: 2.82047 | AH65: 73.11249 | AI65: 31.25935 | AJ65: 34.53886 | AK65: 35.05058 | AL65: 32.6066 | AM65: 31.8108 | AN65: 37.34498 | AO65: 33.39983 | AP65: 36.90656 | AQ65: 42.74946 | AR65: 65.97267 | AS65: 56.64403 | AT65: 51.76819 | AU65: 66.44 | AV65: 63.60217 | AW65: 70.91454 | AX65: 61.55576 | AY65: 47.32728 | AZ65: 46.87027 | BA65: 45.2836 | BB65: 45.15624 | BC65: 51.01237 | BD65: 38.47159 | BE65: 32.36647 | BF65: 31.49045 | BG65: 29.98438 | BH65: 27.65379 | BI65: 25.01433 | BJ65: 15.89126 | BK65: 8.31035 | BL65: 0.87193 | BM65: 73.10149 | BN65: 36.58265 | BO65: 37.43733 | BP65: 37.20339 | BQ65: 33.84402 | BR65: 32.62689 | BS65: 37.88053 | BT65: 33.72208 | BU65: 37.07495 | BV65: 42.80573 | BW65: 65.99977 | BX65: 56.66089 | BY65: 51.74458 | BZ65: 66.40533 | CA65: 63.56938 | CB65: 70.88383 | CC65: 61.53348 | CD65: 47.32757 | CE65: 46.89737 | CF65: 45.37586 | CG65: 45.33594 | CH65: 51.29589 | CI65: 38.92999 | CJ65: 33.09932 | CK65: 32.79431 | CL65: 32.05 | CM65: 30.73275 | CN65: 28.99261 | CO65: 21.86279 | CP65: 16.41457 | CQ65: 11.50539 | CR65: 68.53075 | CS65: 63.00695 | CT65: 72.7574 | CU65: 70.3721 | CV65: 64.84666 | CW65: 74.8616 | CX65: 70.34222 | CY65: 64.81779 | CZ65: 74.85832
A66: 11:59:13 | B66: 0.1 | C66: 53.4056 | D66: -2.68367 | E66: -3.36972 | F66: 1.89826 | G66: 7.04694 | H66: 0.79624 | I66: 14.20117 | J66: 9.04443 | K66: 19.63974 | L66: 22.31493 | M66: 40.53666 | N66: 36.21772 | O66: 36.34686 | P66: 46.2498 | Q66: 48.1338 | R66: 50.81416 | S66: 39.73891 | T66: 35.60211 | U66: 36.13253 | V66: 35.40943 | W66: 35.62251 | X66: 37.00294 | Y66: 35.61645 | Z66: 30.90128 | AA66: 30.26665 | AB66: 27.94886 | AC66: 24.32293 | AD66: 19.54858 | AE66: 14.44294 | AF66: 8.73003 | AG66: 1.988 | AH66: 56.92783 | AI66: 38.1421 | AJ66: 33.76461 | AK66: 34.61129 | AL66: 35.39937 | AM66: 24.86607 | AN66: 36.4286 | AO66: 28.00513 | AP66: 35.17469 | AQ66: 34.91261 | AR66: 50.70672 | AS66: 45.07672 | AT66: 42.42306 | AU66: 51.40395 | AV66: 51.12815 | AW66: 52.73804 | AX66: 40.75403 | AY66: 35.60238 | AZ66: 35.5002 | BA66: 34.34588 | BB66: 34.2282 | BC66: 35.43614 | BD66: 33.90853 | BE66: 29.1186 | BF66: 28.4241 | BG66: 26.06944 | BH66: 22.42312 | BI66: 17.63245 | BJ66: 12.51813 | BK66: 6.80576 | BL66: 0.03742 | BM66: 57.20483 | BN66: 42.8822 | BO66: 37.10699 | BP66: 36.80488 | BQ66: 36.72898 | BR66: 25.73164 | BS66: 36.99999 | BT66: 28.33268 | BU66: 35.35121 | BV66: 34.99102 | BW66: 50.72865 | BX66: 45.07264 | BY66: 42.39776 | BZ66: 51.37392 | CA66: 51.09477 | CB66: 52.70572 | CC66: 40.72234 | CD66: 35.60108 | CE66: 35.53779 | CF66: 34.43037 | CG66: 34.40791 | CH66: 35.73434 | CI66: 34.42256 | CJ66: 29.90771 | CK66: 29.69488 | CL66: 28.08434 | CM66: 25.33648 | CN66: 21.88523 | CO66: 18.53347 | CP66: 14.88815 | CQ66: 10.78733 | CR66: 64.89697 | CS66: 62.57207 | CT66: 72.45057 | CU66: 66.74006 | CV66: 64.41235 | CW66: 74.18517 | CX66: 66.71012 | CY66: 64.38347 | CZ66: 74.1274
A67: 11:59:14 | B67: 0.1 | C67: 44.4036 | D67: -1.30094 | E67: -5.0944 | F67: 4.66843 | G67: 3.46144 | H67: 3.49663 | I67: 13.95203 | J67: 13.89246 | K67: 18.15125 | L67: 17.06168 | M67: 31.50748 | N67: 30.57354 | O67: 30.17747 | P67: 34.59084 | Q67: 34.1515 | R67: 35.74786 | S67: 31.1043 | T67: 32.275 | U67: 33.42712 | V67: 33.47988 | W67: 34.76112 | X67: 36.02537 | Y67: 33.89207 | Z67: 31.75859 | AA67: 28.50418 | AB67: 27.49674 | AC67: 23.41645 | AD67: 18.76008 | AE67: 14.40662 | AF67: 8.82611 | AG67: 2.15247 | AH67: 48.80044 | AI67: 37.99772 | AJ67: 32.57045 | AK67: 37.48993 | AL67: 32.52567 | AM67: 29.09895 | AN67: 35.53833 | AO67: 32.05586 | AP67: 34.00149 | AQ67: 30.24094 | AR67: 41.77457 | AS67: 39.13391 | AT67: 36.68605 | AU67: 39.64132 | AV67: 37.54435 | AW67: 37.68627 | AX67: 32.08389 | AY67: 32.19796 | AZ67: 32.8073 | BA67: 32.44255 | BB67: 33.37089 | BC67: 34.4635 | BD67: 32.18324 | BE67: 29.97988 | BF67: 26.66097 | BG67: 25.61849 | BH67: 21.51674 | BI67: 16.84383 | BJ67: 12.48228 | BK67: 6.90192 | BL67: 0.20061 | BM67: 49.74695 | BN67: 42.21378 | BO67: 36.24362 | BP67: 39.54327 | BQ67: 33.8724 | BR67: 30.04105 | BS67: 36.04179 | BT67: 32.35306 | BU67: 34.15795 | BV67: 30.33559 | BW67: 41.79213 | BX67: 39.13282 | BY67: 36.66704 | BZ67: 39.6122 | CA67: 37.50636 | CB67: 37.65349 | CC67: 32.06227 | CD67: 32.1999 | CE67: 32.83864 | CF67: 32.5265 | CG67: 33.55284 | CH67: 34.75351 | CI67: 32.70448 | CJ67: 30.7432 | CK67: 27.95215 | CL67: 27.59234 | CM67: 24.41093 | CN67: 21.17599 | CO67: 18.42778 | CP67: 15.12785 | CQ67: 10.92993 | CR67: 61.56667 | CS67: 62.15603 | CT67: 72.17267 | CU67: 63.40985 | CV67: 63.99634 | CW67: 73.90727 | CX67: 63.37991 | CY67: 63.96745 | CZ67: 73.84951
A68: 11:59:14 | B68: 0.1 | C68: 74.45895 | D68: -0.25516 | E68: -10.13968 | F68: 2.19556 | G68: 7.76987 | H68: 8.37999 | I68: 16.97991 | J68: 12.24194 | K68: 17.25601 | L68: 19.57398 | M68: 29.8991 | N68: 45.46397 | O68: 59.2959 | P68: 49.00936 | Q68: 53.06279 | R68: 66.90495 | S68: 60.71675 | T68: 64.3773 | U68: 68.92631 | V68: 68.09203 | W68: 62.67866 | X68: 53.86945 | Y68: 43.59166 | Z68: 36.19711 | AA68: 35.47156 | AB68: 33.05438 | AC68: 31.19844 | AD68: 26.34587 | AE68: 17.82975 | AF68: 11.09406 | AG68: 3.3102 | AH68: 75.3167 | AI68: 39.28336 | AJ68: 26.56741 | AK68: 34.76403 | AL68: 36.46401 | AM68: 32.88001 | AN68: 39.59217 | AO68: 30.62469 | AP68: 33.08937 | AQ68: 32.49809 | AR68: 40.47828 | AS68: 53.11314 | AT68: 66.24699 | AU68: 53.99228 | AV68: 55.77164 | AW68: 68.97861 | AX68: 61.26695 | AY68: 64.55755 | AZ68: 68.34575 | BA68: 67.02611 | BB68: 61.4101 | BC68: 52.29789 | BD68: 41.91998 | BE68: 34.40709 | BF68: 33.62819 | BG68: 31.175 | BH68: 29.2974 | BI68: 24.43169 | BJ68: 15.90479 | BK68: 9.16963 | BL68: 1.36297 | BM68: 75.34427 | BN68: 43.33054 | BO68: 29.82497 | BP68: 36.97629 | BQ68: 37.77536 | BR68: 33.67119 | BS68: 40.17072 | BT68: 30.93343 | BU68: 33.2721 | BV68: 32.58743 | BW68: 40.51422 | BX68: 53.10754 | BY68: 66.24171 | BZ68: 53.96539 | CA68: 55.74076 | CB68: 68.95028 | CC68: 61.25739 | CD68: 64.56522 | CE68: 68.37971 | CF68: 67.11479 | CG68: 61.54488 | CH68: 52.60482 | CI68: 42.36425 | CJ68: 35.23464 | CK68: 34.91561 | CL68: 33.19761 | CM68: 32.30334 | CN68: 28.50478 | CO68: 21.93917 | CP68: 17.27583 | CQ68: 11.93561 | CR68: 72.26749 | CS68: 64.14525 | CT68: 77.1293 | CU68: 73.08395 | CV68: 64.99718 | CW68: 77.75593 | CX68: 73.1096 | CY68: 65.02447 | CZ68: 77.76799
A69: 11:59:14 | B69: 0.1 | C69: 70.50117 | D69: 4.66487 | E69: -6.70975 | F69: -3.53596 | G69: 8.02885 | H69: 5.40417 | I69: 8.99264 | J69: 10.00772 | K69: 14.02 | L69: 22.17036 | M69: 30.63122 | N69: 38.00388 | O69: 63.26247 | P69: 54.35054 | Q69: 50.08501 | R69: 67.04296 | S69: 56.3651 | T69: 62.89617 | U69: 62.20543 | V69: 61.97804 | W69: 52.19289 | X69: 47.46278 | Y69: 39.60703 | Z69: 32.4128 | AA69: 34.3897 | AB69: 29.89739 | AC69: 30.39632 | AD69: 25.39951 | AE69: 16.87991 | AF69: 10.26382 | AG69: 2.57658 | AH69: 72.93781 | AI69: 44.99286 | AJ69: 31.31875 | AK69: 30.29758 | AL69: 36.93623 | AM69: 30.10618 | AN69: 32.00439 | AO69: 28.10083 | AP69: 29.67319 | AQ69: 35.39934 | AR69: 41.55639 | AS69: 45.15418 | AT69: 69.41102 | AU69: 60.21564 | AV69: 53.41958 | AW69: 68.66047 | AX69: 57.75615 | AY69: 62.88758 | AZ69: 61.4979 | BA69: 60.84101 | BB69: 50.92418 | BC69: 45.89582 | BD69: 37.91976 | BE69: 30.62442 | BF69: 32.54762 | BG69: 28.01723 | BH69: 28.494 | BI69: 23.48608 | BJ69: 14.95516 | BK69: 8.33942 | BL69: 0.6246 | BM69: 72.93954 | BN69: 49.28969 | BO69: 34.94072 | BP69: 32.59715 | BQ69: 38.33686 | BR69: 30.92258 | BS69: 32.66088 | BT69: 28.37241 | BU69: 29.861 | BV69: 35.49332 | BW69: 41.59352 | BX69: 45.13025 | BY69: 69.38682 | BZ69: 60.19227 | CA69: 53.38688 | CB69: 68.63135 | CC69: 57.72286 | CD69: 62.8718 | CE69: 61.52184 | CF69: 60.93764 | CG69: 51.05496 | CH69: 46.17967 | CI69: 38.3828 | CJ69: 31.44671 | CK69: 33.79898 | CL69: 30.05402 | CM69: 31.52579 | CN69: 27.4726 | CO69: 20.86671 | CP69: 16.42373 | CQ69: 11.32395 | CR69: 67.07768 | CS69: 63.51399 | CT69: 72.49488 | CU69: 69.97823 | CV69: 65.34937 | CW69: 74.34026 | CX69: 69.97757 | CY69: 65.32051 | CZ69: 74.3334
A70: 11:59:14 | B70: 0.1 | C70: 59.54129 | D70: 5.29055 | E70: -7.58372 | F70: 2.97325 | G70: 0.24197 | H70: 5.68994 | I70: 12.64584 | J70: 11.66018 | K70: 18.03741 | L70: 22.75164 | M70: 32.08489 | N70: 50.83688 | O70: 58.79327 | P70: 45.68264 | Q70: 39.02857 | R70: 45.95019 | S70: 39.09785 | T70: 40.93462 | U70: 42.36949 | V70: 40.87063 | W70: 39.54832 | X70: 40.63692 | Y70: 38.38802 | Z70: 33.11172 | AA70: 37.69025 | AB70: 32.61954 | AC70: 28.87468 | AD70: 24.3946 | AE70: 17.94534 | AF70: 11.32987 | AG70: 3.04598 | AH70: 66.59975 | AI70: 45.50422 | AJ70: 29.94414 | AK70: 35.72209 | AL70: 29.06339 | AM70: 30.31824 | AN70: 35.13383 | AO70: 30.10899 | AP70: 33.57371 | AQ70: 35.78024 | AR70: 42.08186 | AS70: 59.06541 | AT70: 65.36732 | AU70: 51.47501 | AV70: 42.42136 | AW70: 47.62797 | AX70: 40.08189 | AY70: 40.95262 | AZ70: 41.72783 | BA70: 39.77776 | BB70: 38.15946 | BC70: 39.08492 | BD70: 36.68866 | BE70: 31.3185 | BF70: 35.85258 | BG70: 30.74307 | BH70: 26.97378 | BI70: 22.47951 | BJ70: 16.02068 | BK70: 9.4054 | BL70: 1.09429 | BM70: 66.63263 | BN70: 50.07668 | BO70: 33.56832 | BP70: 37.85698 | BQ70: 30.35724 | BR70: 31.12647 | BS70: 35.75166 | BT70: 30.40672 | BU70: 33.73785 | BV70: 35.86786 | BW70: 42.11671 | BX70: 59.069 | BY70: 65.34533 | BZ70: 51.44971 | CA70: 42.38656 | CB70: 47.59178 | CC70: 40.0597 | CD70: 40.94971 | CE70: 41.7609 | CF70: 39.86975 | CG70: 38.34063 | CH70: 39.37267 | CI70: 37.18444 | CJ70: 32.17082 | CK70: 37.05317 | CL70: 32.65458 | CM70: 29.95975 | CN70: 26.67108 | CO70: 21.96343 | CP70: 17.49015 | CQ70: 11.79602 | CR70: 62.41582 | CS70: 63.10453 | CT70: 71.97428 | CU70: 66.47839 | CV70: 64.93964 | CW70: 73.6823 | CX70: 66.4577 | CY70: 64.91077 | CZ70: 73.55043
A71: 11:59:14 | B71: 0.1 | C71: 64.80704 | D71: -0.25423 | E71: -11.12348 | F71: -0.07528 | G71: 2.83611 | H71: 5.50619 | I71: 10.96426 | J71: 15.43464 | K71: 26.6497 | L71: 44.71957 | M71: 53.83525 | N71: 62.74981 | O71: 50.84355 | P71: 55.95455 | Q71: 54.73056 | R71: 40.54752 | S71: 40.38869 | T71: 38.05522 | U71: 37.64322 | V71: 41.22536 | W71: 47.1692 | X71: 46.99912 | Y71: 46.43425 | Z71: 44.59413 | AA71: 46.84374 | AB71: 38.38841 | AC71: 39.00251 | AD71: 36.3326 | AE71: 21.65827 | AF71: 14.02339 | AG71: 5.09014 | AH71: 72.46819 | AI71: 41.05264 | AJ71: 27.05653 | AK71: 33.18066 | AL71: 30.32218 | AM71: 31.3197 | AN71: 32.7952 | AO71: 33.24739 | AP71: 41.63204 | AQ71: 57.34389 | AR71: 64.43457 | AS71: 71.17261 | AT71: 57.97897 | AU71: 60.61063 | AV71: 58.2896 | AW71: 42.63678 | AX71: 41.23776 | AY71: 38.14011 | AZ71: 37.00214 | BA71: 40.06851 | BB71: 45.81715 | BC71: 45.41438 | BD71: 44.73054 | BE71: 42.79883 | BF71: 45.00945 | BG71: 36.51156 | BH71: 37.10007 | BI71: 34.41911 | BJ71: 19.73394 | BK71: 12.09885 | BL71: 3.14344 | BM71: 72.48458 | BN71: 46.1049 | BO71: 30.72579 | BP71: 35.39674 | BQ71: 31.44628 | BR71: 32.31634 | BS71: 33.28635 | BT71: 33.51845 | BU71: 41.86294 | BV71: 57.42883 | BW71: 64.46882 | BX71: 71.17279 | BY71: 57.96193 | BZ71: 60.58123 | CA71: 58.25741 | CB71: 42.60723 | CC71: 41.21897 | CD71: 38.13636 | CE71: 37.03802 | CF71: 40.17489 | CG71: 45.98171 | CH71: 45.73277 | CI71: 45.23956 | CJ71: 43.6676 | CK71: 46.19888 | CL71: 38.44937 | CM71: 40.17703 | CN71: 38.38387 | CO71: 25.6592 | CP71: 20.10064 | CQ71: 13.6358 | CR71: 61.73255 | CS71: 62.64397 | CT71: 71.66567 | CU71: 69.27715 | CV71: 64.47925 | CW71: 74.53887 | CX71: 69.2974 | CY71: 64.45038 | CZ71: 74.52692
A72: 11:59:14 | B72: 0.1 | C72: 52.86107 | D72: 1.37822 | E72: -7.89939 | F72: -1.88602 | G72: 1.16096 | H72: 4.44178 | I72: 13.25079 | J72: 18.47671 | K72: 31.90006 | L72: 40.99525 | M72: 41.29967 | N72: 48.72276 | O72: 42.99026 | P72: 43.55386 | Q72: 41.56038 | R72: 37.62206 | S72: 38.29744 | T72: 35.79472 | U72: 38.45849 | V72: 39.05543 | W72: 40.92554 | X72: 42.03409 | Y72: 41.73569 | Z72: 40.6628 | AA72: 41.66028 | AB72: 34.19571 | AC72: 33.97821 | AD72: 31.06312 | AE72: 20.63192 | AF72: 13.1311 | AG72: 5.52049 | AH72: 58.99477 | AI72: 42.10355 | AJ72: 29.86057 | AK72: 31.34583 | AL72: 29.45584 | AM72: 29.36631 | AN72: 35.53905 | AO72: 36.55798 | AP72: 47.21587 | AQ72: 53.85618 | AR72: 51.70578 | AS72: 57.53608 | AT72: 49.5179 | AU72: 48.58833 | AV72: 44.95605 | AW72: 39.66726 | AX72: 39.17454 | AY72: 35.83504 | AZ72: 37.8245 | BA72: 37.95956 | BB72: 39.54955 | BC72: 40.47134 | BD72: 40.01434 | BE72: 38.87256 | BF72: 39.81452 | BG72: 32.31765 | BH72: 32.07679 | BI72: 29.14877 | BJ72: 18.70755 | BK72: 11.20677 | BL72: 3.57462 | BM72: 59.09186 | BN72: 46.83304 | BO72: 33.60381 | BP72: 33.5789 | BQ72: 30.78948 | BR72: 30.16485 | BS72: 36.09323 | BT72: 36.8427 | BU72: 47.35102 | BV72: 53.92054 | BW72: 51.73398 | BX72: 57.52977 | BY72: 49.49823 | BZ72: 48.56081 | CA72: 44.92304 | CB72: 39.63656 | CC72: 39.15409 | CD72: 35.8344 | CE72: 37.86158 | CF72: 38.05334 | CG72: 39.72328 | CH72: 40.76175 | CI72: 40.56404 | CJ72: 39.70015 | CK72: 40.99342 | CL72: 34.29009 | CM72: 35.07911 | CN72: 33.21785 | CO72: 24.54635 | CP72: 19.30565 | CQ72: 14.16143 | CR72: 56.73865 | CS72: 62.2284 | CT72: 71.38783 | CU72: 65.18743 | CV72: 64.06374 | CW72: 73.09589 | CX72: 65.18623 | CY72: 64.03487 | CZ72: 72.96402
A73: 11:59:14 | B73: 0.1 | C73: 73.98827 | D73: -0.92984 | E73: -11.95284 | F73: -2.73763 | G73: -2.2402 | H73: 7.36764 | I73: 14.09959 | J73: 19.96409 | K73: 26.32746 | L73: 33.94604 | M73: 39.41157 | N73: 55.10909 | O73: 54.92095 | P73: 48.027 | Q73: 67.1618 | R73: 65.5515 | S73: 69.42975 | T73: 61.21445 | U73: 59.51632 | V73: 57.47408 | W73: 61.69804 | X73: 58.10557 | Y73: 45.11853 | Z73: 38.51468 | AA73: 46.18615 | AB73: 35.76027 | AC73: 35.02047 | AD73: 33.28378 | AE73: 19.40175 | AF73: 12.42913 | AG73: 4.85995 | AH73: 75.82271 | AI73: 39.39325 | AJ73: 25.55222 | AK73: 30.32175 | AL73: 26.94132 | AM73: 31.89752 | AN73: 36.64252 | AO73: 38.29331 | AP73: 42.0948 | AQ73: 46.5316 | AR73: 50.62358 | AS73: 62.98873 | AT73: 62.2189 | AU73: 52.94915 | AV73: 69.86227 | AW73: 68.05089 | AX73: 70.09998 | AY73: 61.42732 | AZ73: 58.85529 | BA73: 56.45834 | BB73: 60.33947 | BC73: 56.54926 | BD73: 43.44086 | BE73: 36.71954 | BF73: 44.34332 | BG73: 33.87955 | BH73: 33.11619 | BI73: 31.37134 | BJ73: 17.47746 | BK73: 10.50455 | BL73: 2.91578 | BM73: 75.8148 | BN73: 43.97467 | BO73: 28.90968 | BP73: 32.5696 | BQ73: 28.34045 | BR73: 32.67669 | BS73: 37.1967 | BT73: 38.59216 | BU73: 42.27544 | BV73: 46.60892 | BW73: 50.66547 | BX73: 62.98322 | BY73: 62.21405 | BZ73: 52.92096 | CA73: 69.83038 | CB73: 68.02148 | CC73: 70.08383 | CD73: 61.43171 | CE73: 58.89384 | CF73: 56.5399 | CG73: 60.50515 | CH73: 56.83681 | CI73: 43.89973 | CJ73: 37.59396 | CK73: 45.6041 | CL73: 35.9584 | CM73: 36.33588 | CN73: 35.23538 | CO73: 23.37246 | CP73: 18.52765 | CQ73: 13.43243 | CR73: 71.77423 | CS73: 63.67216 | CT73: 76.24962 | CU73: 73.56293 | CV73: 65.50031 | CW73: 78.00569 | CX73: 73.55387 | CY73: 65.49225 | CZ73: 77.99897
A74: 11:59:14 | B74: 0.1 | C74: 71.80605 | D74: -9.16763 | E74: -7.35834 | F74: -1.56065 | G74: -2.32714 | H74: 5.3867 | I74: 19.65836 | J74: 22.45596 | K74: 18.92133 | L74: 25.21833 | M74: 29.46001 | N74: 47.46648 | O74: 61.28769 | P74: 59.76944 | Q74: 56.43666 | R74: 70.25613 | S74: 63.60175 | T74: 60.58504 | U74: 52.15246 | V74: 53.8674 | W74: 55.35754 | X74: 52.80695 | Y74: 41.94781 | Z74: 38.94298 | AA74: 45.48505 | AB74: 35.68126 | AC74: 35.08588 | AD74: 31.37733 | AE74: 20.62294 | AF74: 13.22582 | AG74: 5.21667 | AH74: 74.18416 | AI74: 30.4362 | AJ74: 28.85268 | AK74: 30.91732 | AL74: 25.80688 | AM74: 30.86328 | AN74: 41.6736 | AO74: 40.49323 | AP74: 34.82491 | AQ74: 38.77118 | AR74: 40.1698 | AS74: 55.16713 | AT74: 67.72665 | AU74: 65.21597 | AV74: 59.15559 | AW74: 71.96887 | AX74: 64.80395 | AY74: 60.67915 | AZ74: 51.55361 | BA74: 52.76103 | BB74: 53.99223 | BC74: 51.24342 | BD74: 40.25906 | BE74: 37.13672 | BF74: 43.64416 | BG74: 33.80241 | BH74: 33.18299 | BI74: 29.46374 | BJ74: 18.69839 | BK74: 11.30133 | BL74: 3.27052 | BM74: 74.17088 | BN74: 34.73843 | BO74: 31.93393 | BP74: 33.0172 | BQ74: 27.20798 | BR74: 31.76643 | BS74: 42.22157 | BT74: 40.77159 | BU74: 35.00999 | BV74: 38.86794 | BW74: 40.20264 | BX74: 55.15472 | BY74: 67.7059 | BZ74: 65.1907 | CA74: 59.12209 | CB74: 71.94014 | CC74: 64.78006 | CD74: 60.66685 | CE74: 51.58574 | CF74: 52.85423 | CG74: 54.1624 | CH74: 51.53432 | CI74: 40.73236 | CJ74: 38.06647 | CK74: 44.87918 | CL74: 35.81622 | CM74: 36.291 | CN74: 33.45598 | CO74: 24.57829 | CP74: 19.34256 | CQ74: 13.84851 | CR74: 68.24792 | CS74: 64.32521 | CT74: 74.10001 | CU74: 70.68333 | CV74: 66.19328 | CW74: 76.42307 | CX74: 70.6702 | CY74: 66.16434 | CZ74: 76.41056
A75: 11:59:14 | B75: 0.1 | C75: 65.00053 | D75: -6.75343 | E75: -6.64315 | F75: -1.31954 | G75: 7.99909 | H75: 10.70216 | I75: 21.15183 | J75: 15.85507 | K75: 21.15687 | L75: 20.0903 | M75: 23.31149 | N75: 37.3547 | O75: 50.38873 | P75: 59.52259 | Q75: 51.53317 | R75: 49.73022 | S75: 46.91721 | T75: 41.38651 | U75: 41.12531 | V75: 42.56152 | W75: 42.92622 | X75: 42.34618 | Y75: 37.81393 | Z75: 33.03922 | AA75: 33.08926 | AB75: 30.87237 | AC75: 27.81668 | AD75: 25.48267 | AE75: 20.73133 | AF75: 13.09654 | AG75: 5.83225 | AH75: 70.08105 | AI75: 34.19547 | AJ75: 29.07481 | AK75: 31.11132 | AL75: 36.59115 | AM75: 35.76213 | AN75: 43.46381 | AO75: 34.34992 | AP75: 37.10416 | AQ75: 33.05093 | AR75: 33.64577 | AS75: 45.30699 | AT75: 56.34057 | AU75: 64.84059 | AV75: 55.57963 | AW75: 51.40051 | AX75: 47.96104 | AY75: 41.50092 | AZ75: 40.56703 | BA75: 41.46145 | BB75: 41.58309 | BC75: 40.76448 | BD75: 36.12373 | BE75: 31.25285 | BF75: 31.2445 | BG75: 28.99432 | BH75: 25.9152 | BI75: 23.56732 | BJ75: 18.8066 | BK75: 11.17181 | BL75: 3.88601 | BM75: 70.08588 | BN75: 38.83755 | BO75: 32.00233 | BP75: 33.13769 | BQ75: 37.93502 | BR75: 36.65527 | BS75: 44.06116 | BT75: 34.63928 | BU75: 37.32542 | BV75: 33.1492 | BW75: 33.69634 | BX75: 45.30084 | BY75: 56.32372 | BZ75: 64.84295 | CA75: 55.5565 | CB75: 51.3604 | CC75: 47.93801 | CD75: 41.49133 | CE75: 40.60781 | CF75: 41.55389 | CG75: 41.74847 | CH75: 41.09309 | CI75: 36.60425 | CJ75: 32.05525 | CK75: 32.53858 | CL75: 30.96387 | CM75: 28.96241 | CN75: 27.79797 | CO75: 24.74624 | CP75: 19.22786 | CQ75: 14.49962 | CR75: 64.31419 | CS75: 63.92307 | CT75: 72.99055 | CU75: 68.56863 | CV75: 65.7905 | CW75: 74.66904 | CX75: 68.56905 | CY75: 65.76152 | CZ75: 74.53377
A76: 11:59:14 | B76: 0.1 | C76: 71.19002 | D76: -3.1773 | E76: -11.8474 | F76: -4.01778 | G76: -0.65305 | H76: 7.67228 | I76: 22.16119 | J76: 18.34833 | K76: 22.09157 | L76: 28.67272 | M76: 35.0629 | N76: 52.43731 | O76: 69.01564 | P76: 65.83755 | Q76: 60.30241 | R76: 52.15385 | S76: 51.51553 | T76: 43.5765 | U76: 43.143 | V76: 47.78913 | W76: 49.29137 | X76: 50.02558 | Y76: 39.32259 | Z76: 34.50704 | AA76: 31.73145 | AB76: 31.7403 | AC76: 27.95119 | AD76: 25.5526 | AE76: 19.78033 | AF76: 12.64774 | AG76: 4.69694 | AH76: 77.42789 | AI76: 37.68684 | AJ76: 22.91161 | AK76: 29.57577 | AL76: 28.71899 | AM76: 32.48502 | AN76: 44.63361 | AO76: 36.36332 | AP76: 38.13286 | AQ76: 41.38939 | AR76: 45.53211 | AS76: 59.8254 | AT76: 75.70352 | AU76: 70.81489 | AV76: 63.98003 | AW76: 54.02609 | AX76: 52.62296 | AY76: 43.57584 | AZ76: 42.61599 | BA76: 46.66818 | BB76: 47.93689 | BC76: 48.47865 | BD76: 37.63563 | BE76: 32.71991 | BF76: 29.88595 | BG76: 29.86361 | BH76: 26.0473 | BI76: 23.63743 | BJ76: 17.85558 | BK76: 10.72366 | BL76: 2.74974 | BM76: 77.41324 | BN76: 42.32868 | BO76: 25.98319 | BP76: 31.9488 | BQ76: 30.14073 | BR76: 33.30281 | BS76: 45.18882 | BT76: 36.64852 | BU76: 38.29609 | BV76: 41.47071 | BW76: 45.56333 | BX76: 59.81924 | BY76: 75.69061 | BZ76: 70.77937 | CA76: 63.94671 | CB76: 53.99805 | CC76: 52.59716 | CD76: 43.57452 | CE76: 42.63599 | CF76: 46.76705 | CG76: 48.10391 | CH76: 48.75595 | CI76: 38.10644 | CJ76: 33.53017 | CK76: 31.19756 | CL76: 31.7896 | CM76: 29.21736 | CN76: 27.83086 | CO76: 23.85297 | CP76: 18.78411 | CQ76: 13.34325 | CR76: 68.57346 | CS76: 63.53485 | CT76: 72.71496 | CU76: 75.01126 | CV76: 67.08133 | CW76: 79.0482 | CX76: 74.99844 | CY76: 67.06693 | CZ76: 79.03737
A77: 11:59:15 | B77: 0.1 | C77: 68.68184 | D77: -4.16424 | E77: -6.90842 | F77: -1.70943 | G77: 1.91419 | H77: 2.59751 | I77: 16.16734 | J77: 13.00736 | K77: 21.34564 | L77: 35.30134 | M77: 60.6455 | N77: 61.42604 | O77: 64.29023 | P77: 63.31828 | Q77: 54.7461 | R77: 55.01874 | S77: 51.72337 | T77: 45.28162 | U77: 40.82448 | V77: 38.20431 | W77: 37.90899 | X77: 37.93389 | Y77: 36.048 | Z77: 34.35316 | AA77: 31.60847 | AB77: 29.50122 | AC77: 27.87125 | AD77: 24.1468 | AE77: 18.52129 | AF77: 11.71027 | AG77: 3.67839 | AH77: 76.1288 | AI77: 35.73675 | AJ77: 29.92204 | AK77: 30.82838 | AL77: 30.88577 | AM77: 28.14603 | AN77: 38.19671 | AO77: 30.99928 | AP77: 36.69186 | AQ77: 46.38914 | AR77: 71.21168 | AS77: 69.78984 | AT77: 71.43898 | AU77: 68.00711 | AV77: 58.38387 | AW77: 57.07185 | AX77: 52.5416 | AY77: 45.17551 | AZ77: 40.36235 | BA77: 37.11586 | BB77: 36.54595 | BC77: 36.37218 | BD77: 34.34057 | BE77: 32.56671 | BF77: 29.76577 | BG77: 27.62195 | BH77: 25.96952 | BI77: 22.23118 | BJ77: 16.59667 | BK77: 9.78558 | BL77: 1.72884 | BM77: 76.13336 | BN77: 40.23856 | BO77: 33.04773 | BP77: 32.89314 | BQ77: 32.25841 | BR77: 29.01936 | BS77: 38.70155 | BT77: 31.28583 | BU77: 36.85885 | BV77: 46.43743 | BW77: 71.24796 | BX77: 69.79095 | BY77: 71.41435 | BZ77: 67.98087 | CA77: 58.35244 | CB77: 57.04641 | CC77: 52.52349 | CD77: 45.18111 | CE77: 40.38576 | CF77: 37.20439 | CG77: 36.71409 | CH77: 36.66156 | CI77: 34.85597 | CJ77: 33.36913 | CK77: 31.03108 | CL77: 29.6218 | CM77: 28.98475 | CN77: 26.5041 | CO77: 22.53419 | CP77: 17.83304 | CQ77: 12.35503 | CR77: 66.19487 | CS77: 63.14053 | CT77: 72.4116 | CU77: 73.6495 | CV77: 67.69841 | CW77: 77.72148 | CX77: 73.65552 | CY77: 67.68144 | CZ77: 77.74103
A78: 11:59:15 | B78: 0.1 | C78: 68.67346 | D78: -1.23555 | E78: -10.13098 | F78: -3.46102 | G78: 4.04231 | H78: 0.17663 | I78: 9.19751 | J78: 13.81604 | K78: 18.86253 | L78: 29.03745 | M78: 60.78938 | N78: 62.08963 | O78: 50.66094 | P78: 57.92132 | Q78: 60.754 | R78: 52.85146 | S78: 63.19136 | T78: 46.01009 | U78: 45.27397 | V78: 38.21899 | W78: 36.31647 | X78: 40.5889 | Y78: 36.81599 | Z78: 34.55621 | AA78: 31.51286 | AB78: 30.44526 | AC78: 28.13493 | AD78: 23.34241 | AE78: 19.34278 | AF78: 12.46114 | AG78: 4.28622 | AH78: 74.94363 | AI78: 38.46729 | AJ78: 27.71281 | AK78: 28.88367 | AL78: 32.1031 | AM78: 25.47945 | AN78: 31.31638 | AO78: 32.21207 | AP78: 34.01357 | AQ78: 40.26182 | AR78: 71.0739 | AS78: 70.95151 | AT78: 57.818 | AU78: 62.30515 | AV78: 64.0892 | AW78: 54.54141 | AX78: 64.28814 | AY78: 46.16163 | AZ78: 44.65454 | BA78: 37.21863 | BB78: 34.94006 | BC78: 39.01252 | BD78: 35.11196 | BE78: 32.76949 | BF78: 29.66946 | BG78: 28.56652 | BH78: 26.23484 | BI78: 21.42683 | BJ78: 17.41779 | BK78: 10.53654 | BL78: 2.34149 | BM78: 74.95027 | BN78: 42.70916 | BO78: 31.632 | BP78: 30.92686 | BQ78: 33.36002 | BR78: 26.42204 | BS78: 31.91953 | BT78: 32.51004 | BU78: 34.17254 | BV78: 40.28873 | BW78: 71.09628 | BX78: 70.95911 | BY78: 57.80568 | BZ78: 62.26086 | CA78: 64.06252 | CB78: 54.5044 | CC78: 64.27301 | CD78: 46.1636 | CE78: 44.68948 | CF78: 37.29543 | CG78: 35.11586 | CH78: 39.3195 | CI78: 35.62042 | CJ78: 33.57175 | CK78: 30.95983 | CL78: 30.5543 | CM78: 29.1787 | CN78: 25.6946 | CO78: 23.45818 | CP78: 18.57628 | CQ78: 12.88646 | CR78: 66.42972 | CS78: 62.76406 | CT78: 72.13681 | CU78: 72.35006 | CV78: 67.32584 | CW78: 77.04781 | CX78: 72.35336 | CY78: 67.30891 | CZ78: 77.00227
A79: 11:59:15 | B79: 0.1 | C79: 70.68288 | D79: 0.022 | E79: -6.39516 | F79: -3.12173 | G79: 5.52615 | H79: 7.2495 | I79: 14.01479 | J79: 11.12441 | K79: 18.46651 | L79: 36.06394 | M79: 59.91111 | N79: 62.12611 | O79: 45.58858 | P79: 60.12096 | Q79: 64.12981 | R79: 62.32808 | S79: 60.38195 | T79: 57.45951 | U79: 52.52694 | V79: 37.04426 | W79: 35.98952 | X79: 41.19398 | Y79: 37.69533 | Z79: 32.36119 | AA79: 29.30682 | AB79: 28.58646 | AC79: 25.54475 | AD79: 21.23038 | AE79: 15.58631 | AF79: 8.73277 | AG79: 1.67922 | AH79: 75.95038 | AI79: 39.28011 | AJ79: 31.39155 | AK79: 29.0348 | AL79: 33.88171 | AM79: 31.71559 | AN79: 36.71598 | AO79: 29.44798 | AP79: 33.72468 | AQ79: 48.11082 | AR79: 70.40027 | AS79: 70.70435 | AT79: 52.51992 | AU79: 64.79057 | AV79: 67.32735 | AW79: 64.84177 | AX79: 61.40857 | AY79: 57.36565 | AZ79: 52.1209 | BA79: 36.04319 | BB79: 34.6111 | BC79: 39.61056 | BD79: 35.99421 | BE79: 30.58017 | BF79: 27.46233 | BG79: 26.7086 | BH79: 23.64279 | BI79: 19.31482 | BJ79: 13.66158 | BK79: 6.80836 | BL79: -0.27491 | BM79: 75.95721 | BN79: 43.25079 | BO79: 35.02069 | BP79: 31.0744 | BQ79: 35.14436 | BR79: 32.47957 | BS79: 37.30503 | BT79: 29.74606 | BU79: 33.88938 | BV79: 48.18275 | BW79: 70.43245 | BX79: 70.70364 | BY79: 52.50549 | BZ79: 64.76302 | CA79: 67.29569 | CB79: 64.81354 | CC79: 61.37736 | CD79: 57.36925 | CE79: 52.13997 | CF79: 36.12084 | CG79: 34.78889 | CH79: 39.92534 | CI79: 36.49747 | CJ79: 31.36073 | CK79: 28.75282 | CL79: 28.67571 | CM79: 26.63511 | CN79: 23.5502 | CO79: 19.60606 | CP79: 14.89822 | CQ79: 10.50777 | CR79: 68.76664 | CS79: 62.73901 | CT79: 73.28599 | CU79: 73.75266 | CV79: 66.87865 | CW79: 77.86853 | CX79: 73.75912 | CY79: 66.86174 | CZ79: 77.87947
A80: 11:59:15 | B80: 0.1 | C80: 70.07253 | D80: 0.47619 | E80: -10.47112 | F80: -6.00088 | G80: 5.41648 | H80: 8.3112 | I80: 13.95721 | J80: 19.44688 | K80: 37.72141 | L80: 48.17767 | M80: 54.69896 | N80: 47.29726 | O80: 50.94738 | P80: 56.66281 | Q80: 69.17456 | R80: 65.63921 | S80: 59.04948 | T80: 50.72591 | U80: 44.85542 | V80: 45.54407 | W80: 46.33981 | X80: 41.86551 | Y80: 41.59279 | Z80: 42.43893 | AA80: 44.56963 | AB80: 42.63105 | AC80: 37.65109 | AD80: 34.77588 | AE80: 30.13799 | AF80: 23.29228 | AG80: 13.13608 | AH80: 73.43165 | AI80: 40.36021 | AJ80: 25.80747 | AK80: 25.14658 | AL80: 34.05898 | AM80: 34.02288 | AN80: 35.78349 | AO80: 38.25846 | AP80: 52.88696 | AQ80: 60.76445 | AR80: 65.88202 | AS80: 56.27772 | AT80: 56.95187 | AU80: 61.79037 | AV80: 71.94974 | AW80: 68.10873 | AX80: 60.19965 | AY80: 50.96499 | AZ80: 44.32067 | BA80: 44.38112 | BB80: 45.04449 | BC80: 40.30447 | BD80: 39.87874 | BE80: 40.64959 | BF80: 42.73472 | BG80: 40.75056 | BH80: 35.7523 | BI80: 32.85997 | BJ80: 28.21336 | BK80: 21.36786 | BL80: 11.20733 | BM80: 73.41389 | BN80: 44.67162 | BO80: 29.07114 | BP80: 26.98052 | BQ80: 35.49548 | BR80: 35.00233 | BS80: 36.28497 | BT80: 38.61443 | BU80: 53.06339 | BV80: 60.84323 | BW80: 65.92232 | BX80: 56.27599 | BY80: 56.92921 | BZ80: 61.75885 | CA80: 71.91647 | CB80: 68.07561 | CC80: 60.17117 | CD80: 50.95808 | CE80: 44.34404 | CF80: 44.48927 | CG80: 45.18863 | CH80: 40.60234 | CI80: 40.41962 | CJ80: 41.48149 | CK80: 43.9002 | CL80: 42.79221 | CM80: 38.59092 | CN80: 37.13431 | CO80: 34.10684 | CP80: 29.46748 | CQ80: 21.2102 | CR80: 66.52211 | CS80: 63.07933 | CT80: 71.95815 | CU80: 69.75322 | CV80: 66.50563 | CW80: 76.46513 | CX80: 69.74133 | CY80: 66.48866 | CZ80: 76.41962
A81: 11:59:15 | B81: 0.1 | C81: 64.74118 | D81: -5.14159 | E81: -9.68293 | F81: -1.29079 | G81: 8.83413 | H81: 12.53125 | I81: 22.64384 | J81: 28.19794 | K81: 38.19041 | L81: 43.48807 | M81: 51.56029 | N81: 40.63215 | O81: 43.41196 | P81: 56.0729 | Q81: 56.55526 | R81: 57.06484 | S81: 55.15158 | T81: 44.786 | U81: 41.42082 | V81: 44.43717 | W81: 44.53148 | X81: 44.02104 | Y81: 40.68671 | Z81: 40.68784 | AA81: 39.52402 | AB81: 38.20622 | AC81: 36.59899 | AD81: 30.91336 | AE81: 26.47379 | AF81: 17.01424 | AG81: 6.59175 | AH81: 69.81776 | AI81: 35.40425 | AJ81: 27.19 | AK81: 31.11919 | AL81: 37.69784 | AM81: 37.35541 | AN81: 44.86771 | AO81: 46.61851 | AP81: 53.43488 | AQ81: 56.42497 | AR81: 62.80515 | AS81: 49.45609 | AT81: 49.33937 | AU81: 61.162 | AV81: 59.27124 | AW81: 59.62079 | AX81: 56.26408 | AY81: 44.83691 | AZ81: 40.81183 | BA81: 43.36891 | BB81: 43.18571 | BC81: 42.46526 | BD81: 38.97488 | BE81: 38.896 | BF81: 37.68683 | BG81: 36.32433 | BH81: 34.70073 | BI81: 28.99799 | BJ81: 24.54912 | BK81: 15.08949 | BL81: 4.65424 | BM81: 69.94009 | BN81: 40.41557 | BO81: 30.43664 | BP81: 33.08438 | BQ81: 39.00974 | BR81: 38.17761 | BS81: 45.42511 | BT81: 46.93519 | BU81: 53.57666 | BV81: 56.51316 | BW81: 62.85519 | BX81: 49.46372 | BY81: 49.31483 | BZ81: 61.14354 | CA81: 59.24149 | CB81: 59.59188 | CC81: 56.24342 | CD81: 44.83709 | CE81: 40.84587 | CF81: 43.45756 | CG81: 43.34947 | CH81: 42.74961 | CI81: 39.49271 | CJ81: 39.73057 | CK81: 38.88613 | CL81: 38.41552 | CM81: 37.5043 | CN81: 33.21732 | CO81: 30.42993 | CP81: 23.00491 | CQ81: 14.87832 | CR81: 63.76801 | CS81: 62.77444 | CT81: 71.5213 | CU81: 67.89816 | CV81: 66.09721 | CW81: 76.18773 | CX81: 68.0194 | CY81: 66.08022 | CZ81: 76.14221
A82: 11:59:15 | B82: 0.1 | C82: 68.49931 | D82: 0.65669 | E82: 3.55706 | F82: 9.60892 | G82: 22.54474 | H82: 23.15788 | I82: 28.58878 | J82: 26.84617 | K82: 38.40191 | L82: 50.33417 | M82: 51.70887 | N82: 37.16062 | O82: 60.21193 | P82: 55.3817 | Q82: 65.03984 | R82: 60.28707 | S82: 58.17793 | T82: 53.29847 | U82: 47.89748 | V82: 44.90112 | W82: 38.1049 | X82: 40.16288 | Y82: 37.28728 | Z82: 31.90656 | AA82: 29.19223 | AB82: 27.44764 | AC82: 23.98296 | AD82: 20.0818 | AE82: 14.67326 | AF82: 8.48634 | AG82: 0.48116 | AH82: 73.20481 | AI82: 40.18443 | AJ82: 40.43789 | AK82: 41.13948 | AL82: 50.95156 | AM82: 49.36208 | AN82: 50.7509 | AO82: 45.94148 | AP82: 53.43121 | AQ82: 63.08505 | AR82: 63.16088 | AS82: 44.77541 | AT82: 66.61029 | AU82: 60.80138 | AV82: 68.1131 | AW82: 62.41409 | AX82: 59.30781 | AY82: 53.2935 | AZ82: 47.25351 | BA82: 43.9241 | BB82: 36.74207 | BC82: 38.58625 | BD82: 35.59502 | BE82: 30.12059 | BF82: 27.35078 | BG82: 25.5695 | BH82: 22.08316 | BI82: 18.16578 | BJ82: 12.74911 | BK82: 6.56361 | BL82: -1.47546 | BM82: 73.40252 | BN82: 43.76982 | BO82: 43.84521 | BP82: 43.05545 | BQ82: 52.26614 | BR82: 50.33978 | BS82: 51.30769 | BT82: 46.27098 | BU82: 53.57766 | BV82: 63.16728 | BW82: 63.20618 | BX82: 44.76173 | BY82: 66.59435 | BZ82: 60.76697 | CA82: 68.08292 | CB82: 62.39199 | CC82: 59.28414 | CD82: 53.2951 | CE82: 47.29196 | CF82: 43.99908 | CG82: 36.91269 | CH82: 38.90403 | CI82: 36.07837 | CJ82: 30.93436 | CK82: 28.61745 | CL82: 27.55916 | CM82: 25.03851 | CN82: 22.4773 | CO82: 18.70972 | CP82: 14.54125 | CQ82: 9.32979 | CR82: 66.19102 | CS82: 62.5759 | CT82: 71.23634 | CU82: 70.96928 | CV82: 66.16339 | CW82: 75.91457 | CX82: 71.12143 | CY82: 66.14652 | CZ82: 75.86929
A83: 11:59:15 | B83: 0.1 | C83: 65.71493 | D83: 12.16446 | E83: 7.95657 | F83: 7.96424 | G83: 15.94218 | H83: 19.51509 | I83: 20.01472 | J83: 18.49965 | K83: 39.06641 | L83: 50.00195 | M83: 41.35685 | N83: 49.79932 | O83: 58.31539 | P83: 48.94814 | Q83: 58.5394 | R83: 64.47856 | S83: 55.62308 | T83: 48.88045 | U83: 50.51176 | V83: 49.01079 | W83: 38.76892 | X83: 41.37656 | Y83: 40.21814 | Z83: 33.2863 | AA83: 28.36506 | AB83: 28.18366 | AC83: 22.87583 | AD83: 19.26067 | AE83: 14.27979 | AF83: 8.09101 | AG83: 1.17209 | AH83: 69.19044 | AI83: 52.34515 | AJ83: 45.80057 | AK83: 39.50388 | AL83: 43.85509 | AM83: 44.48392 | AN83: 42.48885 | AO83: 36.00278 | AP83: 54.36149 | AQ83: 62.91554 | AR83: 52.62728 | AS83: 58.16108 | AT83: 64.91167 | AU83: 53.41204 | AV83: 61.70576 | AW83: 66.49731 | AX83: 56.64212 | AY83: 48.98413 | AZ83: 49.85136 | BA83: 48.02357 | BB83: 37.41353 | BC83: 39.78666 | BD83: 38.51895 | BE83: 31.50418 | BF83: 26.521 | BG83: 26.30531 | BH83: 20.97507 | BI83: 17.34521 | BJ83: 12.35424 | BK83: 6.16386 | BL83: -0.78229 | BM83: 69.2112 | BN83: 56.58643 | BO83: 49.29625 | BP83: 41.33981 | BQ83: 45.02413 | BR83: 45.35965 | BS83: 43.10206 | BT83: 36.26952 | BU83: 54.53966 | BV83: 62.99653 | BW83: 52.67123 | BX83: 58.16127 | BY83: 64.88731 | BZ83: 53.37951 | CA83: 61.66173 | CB83: 66.46348 | CC83: 56.62183 | CD83: 48.99051 | CE83: 49.88972 | CF83: 48.0972 | CG83: 37.58288 | CH83: 40.10325 | CI83: 39.01494 | CJ83: 32.27322 | CK83: 27.80331 | CL83: 28.2616 | CM83: 23.88678 | CN83: 21.58145 | CO83: 18.45618 | CP83: 14.23316 | CQ83: 10.01244 | CR83: 62.42227 | CS83: 62.774 | CT83: 70.92511 | CU83: 65.72241 | CV83: 66.05356 | CW83: 75.65887 | CX83: 65.74356 | CY83: 66.03619 | CZ83: 75.61372
A84: 11:59:15 | B84: 0.1 | C84: 56.62336 | D84: 12.3719 | E84: 4.74074 | F84: 2.81701 | G84: 4.92102 | H84: 10.77626 | I84: 15.26713 | J84: 36.47188 | K84: 34.94675 | L84: 34.79578 | M84: 44.50127 | N84: 41.64856 | O84: 43.31831 | P84: 42.79308 | Q84: 44.39101 | R84: 48.40023 | S84: 51.46096 | T84: 46.95969 | U84: 47.87701 | V84: 45.35085 | W84: 38.53292 | X84: 38.71061 | Y84: 37.52466 | Z84: 30.75427 | AA84: 27.14399 | AB84: 23.23774 | AC84: 18.58602 | AD84: 14.52812 | AE84: 9.89952 | AF84: 4.93864 | AG84: -0.764 | AH84: 62.32675 | AI84: 52.62046 | AJ84: 42.22407 | AK84: 35.35903 | AL84: 34.87533 | AM84: 35.80178 | AN84: 38.02217 | AO84: 54.49454 | AP84: 51.23417 | AQ84: 48.06223 | AR84: 54.88667 | AS84: 50.6448 | AT84: 49.75156 | AU84: 47.54416 | AV84: 47.58415 | AW84: 50.2876 | AX84: 52.26934 | AY84: 46.95941 | AZ84: 47.28071 | BA84: 44.33904 | BB84: 37.15278 | BC84: 37.13113 | BD84: 35.82285 | BE84: 28.97291 | BF84: 25.30126 | BG84: 21.36193 | BH84: 16.68582 | BI84: 12.61254 | BJ84: 7.97511 | BK84: 3.0146 | BL84: -2.72578 | BM84: 62.49234 | BN84: 57.34152 | BO84: 45.84428 | BP84: 37.50452 | BQ84: 36.4091 | BR84: 36.56937 | BS84: 38.60058 | BT84: 54.76576 | BU84: 51.40986 | BV84: 48.15172 | BW84: 54.91548 | BX84: 50.65308 | BY84: 49.73231 | BZ84: 47.51632 | CA84: 47.55138 | CB84: 50.26005 | CC84: 52.24856 | CD84: 46.94476 | CE84: 47.30952 | CF84: 44.41665 | CG84: 37.33098 | CH84: 37.44228 | CI84: 36.32233 | CJ84: 29.75096 | CK84: 26.58212 | CL84: 23.31403 | CM84: 19.62339 | CN84: 16.93172 | CO84: 14.00602 | CP84: 11.24739 | CQ84: 8.21295 | CR84: 59.26909 | CS84: 62.3729 | CT84: 70.64876 | CU84: 61.81767 | CV84: 65.64687 | CW84: 75.38165 | CX84: 61.78429 | CY84: 65.62949 | CZ84: 75.3365
A85: 11:59:15 | B85: 0.1 | C85: 59.10738 | D85: 3.01411 | E85: -3.17751 | F85: 0.3653 | G85: 6.46779 | H85: 8.57821 | I85: 19.10066 | J85: 35.42171 | K85: 41.45985 | L85: 31.03899 | M85: 28.79768 | N85: 51.30648 | O85: 37.47421 | P85: 49.92693 | Q85: 55.41152 | R85: 50.17293 | S85: 43.7989 | T85: 37.35224 | U85: 39.80568 | V85: 44.98351 | W85: 37.21656 | X85: 36.9301 | Y85: 35.66447 | Z85: 31.43179 | AA85: 27.27879 | AB85: 26.48778 | AC85: 20.90276 | AD85: 17.44198 | AE85: 11.92931 | AF85: 6.15619 | AG85: 0.65717 | AH85: 64.9475 | AI85: 44.53356 | AJ85: 34.30605 | AK85: 33.69798 | AL85: 35.63959 | AM85: 32.78658 | AN85: 41.05471 | AO85: 52.89205 | AP85: 57.31245 | AQ85: 44.74786 | AR85: 38.95753 | AS85: 59.69952 | AT85: 44.80773 | AU85: 54.90334 | AV85: 58.55741 | AW85: 52.1467 | AX85: 44.73989 | AY85: 37.33208 | AZ85: 39.15337 | BA85: 43.87568 | BB85: 35.92126 | BC85: 35.35436 | BD85: 33.95787 | BE85: 29.65224 | BF85: 25.43338 | BG85: 24.60969 | BH85: 19.00356 | BI85: 15.52647 | BJ85: 10.00425 | BK85: 4.23199 | BL85: -1.30209 | BM85: 65.02845 | BN85: 49.84135 | BO85: 37.91512 | BP85: 35.93311 | BQ85: 37.03941 | BR85: 33.50885 | BS85: 41.60471 | BT85: 53.1501 | BU85: 57.49273 | BV85: 44.85835 | BW85: 38.98712 | BX85: 59.70137 | BY85: 44.79855 | BZ85: 54.87651 | CA85: 58.52499 | CB85: 52.11615 | CC85: 44.71609 | CD85: 37.33203 | CE85: 39.18918 | CF85: 43.97046 | CG85: 36.07191 | CH85: 35.66129 | CI85: 34.47021 | CJ85: 30.41429 | CK85: 26.74247 | CL85: 26.56649 | CM85: 21.88514 | CN85: 19.74072 | CO85: 16.02127 | CP85: 12.45144 | CQ85: 9.61585 | CR85: 57.16813 | CS85: 61.93867 | CT85: 70.34277 | CU85: 62.66062 | CV85: 65.1877 | CW85: 75.07309 | CX85: 62.74178 | CY85: 65.17033 | CZ85: 75.02794
A86: 11:59:15 | B86: 0.1 | C86: 52.01915 | D86: 3.43082 | E86: -6.31742 | F86: -3.21978 | G86: 8.0278 | H86: 7.18955 | I86: 21.52197 | J86: 29.34153 | K86: 42.34315 | L86: 24.80042 | M86: 33.27913 | N86: 50.32799 | O86: 38.56628 | P86: 46.36112 | Q86: 41.03925 | R86: 36.98524 | S86: 33.76342 | T86: 35.3393 | U86: 37.76321 | V86: 37.17146 | W86: 36.51402 | X86: 34.84205 | Y86: 34.62575 | Z86: 30.74519 | AA86: 26.02668 | AB86: 22.28877 | AC86: 18.15578 | AD86: 14.25212 | AE86: 9.30442 | AF86: 3.46447 | AG86: -0.96281 | AH86: 60.70972 | AI86: 43.93248 | AJ86: 29.76566 | AK86: 30.51571 | AL86: 36.7868 | AM86: 31.51296 | AN86: 43.83486 | AO86: 47.37095 | AP86: 58.05695 | AQ86: 39.24622 | AR86: 43.35741 | AS86: 58.64111 | AT86: 45.06497 | AU86: 51.48523 | AV86: 44.21902 | AW86: 38.8567 | AX86: 34.7791 | AY86: 35.29301 | AZ86: 37.08328 | BA86: 36.09482 | BB86: 35.16786 | BC86: 33.28194 | BD86: 32.91389 | BE86: 28.96886 | BF86: 24.18565 | BG86: 20.41091 | BH86: 16.25623 | BI86: 12.33652 | BJ86: 7.37946 | BK86: 1.54047 | BL86: -2.925 | BM86: 60.87136 | BN86: 48.54993 | BO86: 32.9005 | BP86: 32.8007 | BQ86: 38.10367 | BR86: 32.36302 | BS86: 44.40311 | BT86: 47.62817 | BU86: 58.22979 | BV86: 39.38534 | BW86: 43.3831 | BX86: 58.63608 | BY86: 45.04698 | BZ86: 51.45334 | CA86: 44.18425 | CB86: 38.82812 | CC86: 34.75734 | CD86: 35.29558 | CE86: 37.12209 | CF86: 36.18604 | CG86: 35.32889 | CH86: 33.57262 | CI86: 33.44256 | CJ86: 29.71947 | CK86: 25.44334 | CL86: 22.37437 | CM86: 19.17184 | CN86: 16.58634 | CO86: 13.42638 | CP86: 9.76226 | CQ86: 8.05462 | CR86: 53.93837 | CS86: 61.52314 | CT86: 70.06494 | CU86: 58.32916 | CV86: 64.77499 | CW86: 74.79541 | CX86: 58.32719 | CY86: 64.75761 | CZ86: 74.75026
A87: 11:59:16 | B87: 0.1 | C87: 60.62474 | D87: -1.1466 | E87: -8.99863 | F87: -4.9234 | G87: 5.24918 | H87: 8.18932 | I87: 15.89159 | J87: 26.36079 | K87: 28.87689 | L87: 26.64841 | M87: 51.30303 | N87: 41.93523 | O87: 43.92622 | P87: 54.78117 | Q87: 47.30587 | R87: 56.04238 | S87: 46.16479 | T87: 44.1243 | U87: 44.7664 | V87: 42.28046 | W87: 35.66367 | X87: 37.81483 | Y87: 35.25436 | Z87: 31.93025 | AA87: 27.81066 | AB87: 24.84279 | AC87: 22.9603 | AD87: 17.21391 | AE87: 10.94902 | AF87: 5.29591 | AG87: -0.32841 | AH87: 66.29697 | AI87: 39.0778 | AJ87: 27.23397 | AK87: 28.6423 | AL87: 33.87357 | AM87: 33.06675 | AN87: 37.80112 | AO87: 44.09698 | AP87: 45.0832 | AQ87: 38.5261 | AR87: 61.83453 | AS87: 51.41399 | AT87: 50.31998 | AU87: 59.45872 | AV87: 50.64346 | AW87: 58.12775 | AX87: 47.04436 | AY87: 44.05912 | AZ87: 44.12007 | BA87: 41.30903 | BB87: 34.30488 | BC87: 36.24465 | BD87: 33.54353 | BE87: 30.14678 | BF87: 25.97011 | BG87: 22.96272 | BH87: 21.06039 | BI87: 15.29883 | BJ87: 9.0241 | BK87: 3.37184 | BL87: -2.28796 | BM87: 66.33029 | BN87: 43.70905 | BO87: 30.13424 | BP87: 30.96648 | BQ87: 35.20389 | BR87: 33.98369 | BS87: 38.32565 | BT87: 44.37695 | BU87: 45.24104 | BV87: 38.61854 | BW87: 61.87506 | BX87: 51.42876 | BY87: 50.30173 | BZ87: 59.43035 | CA87: 50.61217 | CB87: 58.09759 | CC87: 47.02583 | CD87: 44.06257 | CE87: 44.1566 | CF87: 41.38396 | CG87: 34.47823 | CH87: 36.54729 | CI87: 34.07249 | CJ87: 30.93635 | CK87: 27.21024 | CL87: 25.00204 | CM87: 23.97068 | CN87: 19.48831 | CO87: 15.03761 | CP87: 11.58143 | CQ87: 8.61909 | CR87: 58.8012 | CS87: 61.19962 | CT87: 69.76899 | CU87: 64.50493 | CV87: 64.32958 | CW87: 74.48772 | CX87: 64.53477 | CY87: 64.3122 | CZ87: 74.44257
A88: 11:59:16 | B88: 0.1 | C88: 66.93081 | D88: -5.39093 | E88: -8.15199 | F88: 2.34901 | G88: 8.77786 | H88: 14.20947 | I88: 16.88504 | J88: 24.42667 | K88: 21.2618 | L88: 35.52396 | M88: 47.08994 | N88: 55.49096 | O88: 40.6575 | P88: 53.93411 | Q88: 64.67667 | R88: 56.88258 | S88: 58.98833 | T88: 51.8998 | U88: 44.15572 | V88: 37.28786 | W88: 38.39436 | X88: 40.06535 | Y88: 35.3905 | Z88: 30.39392 | AA88: 25.79478 | AB88: 23.5359 | AC88: 20.24564 | AD88: 17.17696 | AE88: 10.45567 | AF88: 4.5348 | AG88: -0.58228 | AH88: 70.69381 | AI88: 35.28864 | AJ88: 29.55141 | AK88: 34.90163 | AL88: 36.81935 | AM88: 39.99519 | AN88: 39.53387 | AO88: 42.71447 | AP88: 37.22428 | AQ88: 47.85435 | AR88: 57.7958 | AS88: 64.14189 | AT88: 47.84616 | AU88: 58.14187 | AV88: 68.10081 | AW88: 58.52605 | AX88: 60.04449 | AY88: 51.95849 | AZ88: 43.69018 | BA88: 36.24603 | BB88: 37.00881 | BC88: 38.50319 | BD88: 33.68188 | BE88: 28.61597 | BF88: 23.95188 | BG88: 21.6587 | BH88: 18.34337 | BI88: 15.26257 | BJ88: 8.53093 | BK88: 2.6105 | BL88: -2.5415 | BM88: 70.68986 | BN88: 39.60318 | BO88: 33.35264 | BP88: 36.98907 | BQ88: 38.12112 | BR88: 40.89819 | BS88: 40.1388 | BT88: 42.99535 | BU88: 37.40849 | BV88: 47.92136 | BW88: 57.80679 | BX88: 64.14781 | BY88: 47.84235 | BZ88: 58.10948 | CA88: 68.0686 | CB88: 58.499 | CC88: 60.02264 | CD88: 51.95748 | CE88: 43.71289 | CF88: 36.31983 | CG88: 37.18668 | CH88: 38.79475 | CI88: 34.19393 | CJ88: 29.37981 | CK88: 25.22897 | CL88: 23.59583 | CM88: 21.4114 | CN88: 19.38132 | CO88: 14.52242 | CP88: 10.77838 | CQ88: 8.4081 | CR88: 63.9577 | CS88: 60.98577 | CT88: 69.50571 | CU88: 67.73506 | CV88: 64.07324 | CW88: 74.21038 | CX88: 67.72875 | CY88: 64.04092 | CZ88: 74.16524
A89: 11:59:16 | B89: 0.1 | C89: 55.63491 | D89: 2.13588 | E89: -3.65511 | F89: -3.21726 | G89: 1.07328 | H89: 13.06014 | I89: 14.87302 | J89: 19.45711 | K89: 19.97611 | L89: 25.45434 | M89: 37.20998 | N89: 49.75565 | O89: 40.36804 | P89: 38.46948 | Q89: 52.72167 | R89: 43.75147 | S89: 49.77787 | T89: 41.27834 | U89: 37.0019 | V89: 35.28389 | W89: 35.88897 | X89: 35.38419 | Y89: 35.20811 | Z89: 29.98121 | AA89: 26.93819 | AB89: 23.94229 | AC89: 20.7453 | AD89: 17.67391 | AE89: 13.26762 | AF89: 6.79877 | AG89: 0.47138 | AH89: 59.87465 | AI89: 41.91299 | AJ89: 34.28499 | AK89: 29.49868 | AL89: 30.83363 | AM89: 38.2018 | AN89: 37.44468 | AO89: 37.53316 | AP89: 35.99285 | AQ89: 37.66012 | AR89: 47.6571 | AS89: 58.32226 | AT89: 47.62581 | AU89: 43.16741 | AV89: 55.80796 | AW89: 45.95535 | AX89: 50.61415 | AY89: 41.32425 | AZ89: 36.44926 | BA89: 34.22272 | BB89: 34.49857 | BC89: 33.82522 | BD89: 33.50381 | BE89: 28.20249 | BF89: 25.09545 | BG89: 22.06506 | BH89: 18.84476 | BI89: 15.75818 | BJ89: 11.34264 | BK89: 4.87469 | BL89: -1.48853 | BM89: 59.92364 | BN89: 46.14563 | BO89: 37.77487 | BP89: 31.72689 | BQ89: 32.1524 | BR89: 39.06173 | BS89: 38.01164 | BT89: 37.79474 | BU89: 36.18369 | BV89: 37.72149 | BW89: 47.68993 | BX89: 58.31338 | BY89: 47.60353 | BZ89: 43.13741 | CA89: 55.77452 | CB89: 45.92188 | CC89: 50.59435 | CD89: 41.32078 | CE89: 36.47766 | CF89: 34.30949 | CG89: 34.67816 | CH89: 34.11771 | CI89: 34.02891 | CJ89: 28.9707 | CK89: 26.37122 | CL89: 24.00874 | CM89: 21.79592 | CN89: 20.0229 | CO89: 17.36832 | CP89: 13.02933 | CQ89: 9.40763 | CR89: 59.2031 | CS89: 60.63251 | CT89: 69.22852 | CU89: 62.54606 | CV89: 63.71995 | CW89: 73.93303 | CX89: 62.5126 | CY89: 63.68761 | CZ89: 73.8879
A90: 11:59:16 | B90: 0.1 | C90: 45.97872 | D90: 0.9499 | E90: -4.33153 | F90: -5.20641 | G90: 4.94746 | H90: 8.56084 | I90: 15.33871 | J90: 20.03048 | K90: 16.25306 | L90: 23.13065 | M90: 31.73035 | N90: 35.55746 | O90: 30.33635 | P90: 31.53547 | Q90: 36.19141 | R90: 33.71082 | S90: 36.03246 | T90: 35.61489 | U90: 34.75774 | V90: 36.21146 | W90: 36.20214 | X90: 35.07795 | Y90: 35.77426 | Z90: 30.99179 | AA90: 28.67882 | AB90: 25.30085 | AC90: 23.51742 | AD90: 20.03363 | AE90: 15.94846 | AF90: 9.17451 | AG90: 2.27427 | AH90: 50.98321 | AI90: 40.96046 | AJ90: 32.52763 | AK90: 27.14753 | AL90: 34.06536 | AM90: 32.43372 | AN90: 37.49435 | AO90: 38.19077 | AP90: 32.8132 | AQ90: 36.14189 | AR90: 42.34212 | AS90: 44.14839 | AT90: 37.06262 | AU90: 36.23705 | AV90: 39.58508 | AW90: 35.65897 | AX90: 36.90435 | AY90: 35.62653 | AZ90: 34.15337 | BA90: 35.1379 | BB90: 34.83138 | BC90: 33.5105 | BD90: 34.05807 | BE90: 29.20795 | BF90: 26.83613 | BG90: 23.42242 | BH90: 21.617 | BI90: 18.11733 | BJ90: 14.02364 | BK90: 7.25007 | BL90: 0.31847 | BM90: 52.45216 | BN90: 45.45855 | BO90: 35.9707 | BP90: 29.15218 | BQ90: 35.51243 | BR90: 33.17894 | BS90: 38.06984 | BT90: 38.49127 | BU90: 33.02879 | BV90: 36.2327 | BW90: 42.37248 | BX90: 44.14696 | BY90: 37.04417 | BZ90: 36.20874 | CA90: 39.54264 | CB90: 35.62878 | CC90: 36.88531 | CD90: 35.62756 | CE90: 34.1862 | CF90: 35.22661 | CG90: 35.00489 | CH90: 33.80939 | CI90: 34.58075 | CJ90: 29.99802 | CK90: 28.10691 | CL90: 25.41015 | CM90: 24.55738 | CN90: 22.45004 | CO90: 20.00679 | CP90: 15.3898 | CQ90: 11.11936 | CR90: 55.52367 | CS90: 60.17101 | CT90: 68.91975 | CU90: 58.86701 | CV90: 63.25856 | CW90: 73.62425 | CX90: 58.83352 | CY90: 63.22622 | CZ90: 73.57912
A91: 11:59:16 | B91: 0.1 | C91: 49.41998 | D91: -1.44507 | E91: -7.08482 | F91: -3.97169 | G91: 3.17337 | H91: 6.63213 | I91: 18.75701 | J91: 15.07828 | K91: 17.48376 | L91: 20.95596 | M91: 29.05972 | N91: 39.02132 | O91: 30.06368 | P91: 31.74913 | Q91: 34.40311 | R91: 31.54149 | S91: 33.35488 | T91: 34.64938 | U91: 34.66192 | V91: 34.2823 | W91: 35.26598 | X91: 33.96865 | Y91: 34.38743 | Z91: 30.80228 | AA91: 27.32227 | AB91: 24.21737 | AC91: 21.4503 | AD91: 17.07181 | AE91: 12.58404 | AF91: 5.93395 | AG91: 0.7075 | AH91: 58.99981 | AI91: 39.00808 | AJ91: 30.53656 | AK91: 29.35921 | AL91: 33.09158 | AM91: 30.64317 | AN91: 40.93684 | AO91: 34.28394 | AP91: 33.4761 | AQ91: 33.31544 | AR91: 40.11577 | AS91: 47.71717 | AT91: 36.84657 | AU91: 36.93241 | AV91: 37.80074 | AW91: 33.51669 | AX91: 34.1916 | AY91: 34.70229 | AZ91: 34.04432 | BA91: 33.17884 | BB91: 33.90176 | BC91: 32.40435 | BD91: 32.67902 | BE91: 29.02002 | BF91: 25.48213 | BG91: 22.33978 | BH91: 19.55042 | BI91: 15.15598 | BJ91: 10.6593 | BK91: 4.01013 | BL91: -1.24889 | BM91: 59.27944 | BN91: 43.33206 | BO91: 34.2233 | BP91: 31.53537 | BQ91: 34.5775 | BR91: 31.34224 | BS91: 41.49165 | BT91: 34.60261 | BU91: 33.66213 | BV91: 33.39197 | BW91: 40.18897 | BX91: 47.73933 | BY91: 36.83273 | BZ91: 36.91454 | CA91: 37.77041 | CB91: 33.48874 | CC91: 34.16145 | CD91: 34.70129 | CE91: 34.07825 | CF91: 33.2744 | CG91: 34.07255 | CH91: 32.70185 | CI91: 33.19501 | CJ91: 29.80396 | CK91: 26.73847 | CL91: 24.33139 | CM91: 22.45925 | CN91: 19.42878 | CO91: 16.61533 | CP91: 12.2149 | CQ91: 9.6422 | CR91: 52.2301 | CS91: 59.75525 | CT91: 68.64183 | CU91: 57.48184 | CV91: 62.8429 | CW91: 73.34634 | CX91: 57.70718 | CY91: 62.81056 | CZ91: 73.30122
A92: 11:59:16 | B92: 0.1 | C92: 64.34091 | D92: 2.34207 | E92: 2.84949 | F92: 0.63419 | G92: 8.86757 | H92: 7.1809 | I92: 13.76217 | J92: 13.78828 | K92: 23.77958 | L92: 46.78107 | M92: 58.50502 | N92: 57.90168 | O92: 39.09132 | P92: 50.1764 | Q92: 55.19015 | R92: 44.29029 | S92: 43.88179 | T92: 35.76073 | U92: 39.93761 | V92: 39.9027 | W92: 45.36625 | X92: 43.63204 | Y92: 35.53311 | Z92: 33.33296 | AA92: 28.66786 | AB92: 25.23102 | AC92: 22.46799 | AD92: 19.3054 | AE92: 15.03724 | AF92: 8.08028 | AG92: 1.56511 | AH92: 73.16671 | AI92: 42.28475 | AJ92: 39.60246 | AK92: 32.34425 | AL92: 37.98539 | AM92: 32.04754 | AN92: 35.43592 | AO92: 32.23626 | AP92: 38.57735 | AQ92: 58.99262 | AR92: 69.18114 | AS92: 67.07115 | AT92: 46.31299 | AU92: 54.74514 | AV92: 58.74438 | AW92: 46.07929 | AX92: 45.04263 | AY92: 35.74665 | AZ92: 39.29891 | BA92: 38.81807 | BB92: 43.97766 | BC92: 42.08414 | BD92: 33.82842 | BE92: 31.55051 | BF92: 26.82607 | BG92: 23.35223 | BH92: 20.56687 | BI92: 17.38919 | BJ92: 13.11272 | BK92: 6.15569 | BL92: -0.38982 | BM92: 73.19209 | BN92: 46.54955 | BO92: 42.86369 | BP92: 34.28439 | BQ92: 39.43974 | BR92: 32.87651 | BS92: 35.97108 | BT92: 32.53796 | BU92: 38.72423 | BV92: 59.06037 | BW92: 69.21713 | BX92: 67.0896 | BY92: 46.3082 | BZ92: 54.7155 | CA92: 58.71509 | CB92: 46.05123 | CC92: 45.01991 | CD92: 35.74754 | CE92: 39.33658 | CF92: 38.91428 | CG92: 44.15919 | CH92: 42.36372 | CI92: 34.34049 | CJ92: 32.34293 | CK92: 28.10435 | CL92: 25.33334 | CM92: 23.55231 | CN92: 21.73828 | CO92: 19.06059 | CP92: 14.29694 | CQ92: 10.3952 | CR92: 62.14245 | CS92: 59.49354 | CT92: 68.36494 | CU92: 70.77573 | CV92: 63.34769 | CW92: 74.91751 | CX92: 70.79651 | CY92: 63.38173 | CZ92: 74.93634
A93: 11:59:16 | B93: 0.1 | C93: 69.57317 | D93: 1.29455 | E93: -1.29031 | F93: -1.6161 | G93: 6.51276 | H93: 5.15495 | I93: 15.49598 | J93: 17.39767 | K93: 22.953 | L93: 35.65807 | M93: 49.30479 | N93: 63.57529 | O93: 64.12041 | P93: 43.62612 | Q93: 54.68718 | R93: 56.73123 | S93: 52.28036 | T93: 53.32024 | U93: 44.18479 | V93: 44.67415 | W93: 41.95033 | X93: 43.97699 | Y93: 39.82999 | Z93: 38.9404 | AA93: 33.65763 | AB93: 31.09126 | AC93: 26.28384 | AD93: 22.93514 | AE93: 17.66716 | AF93: 10.10355 | AG93: 1.93053 | AH93: 76.13115 | AI93: 41.81075 | AJ93: 34.81142 | AK93: 30.04352 | AL93: 35.78985 | AM93: 29.6478 | AN93: 37.41837 | AO93: 35.44264 | AP93: 38.4082 | AQ93: 48.05843 | AR93: 59.14552 | AS93: 72.08987 | AT93: 71.17621 | AU93: 49.3277 | AV93: 57.85147 | AW93: 58.76252 | AX93: 52.89211 | AY93: 53.55554 | AZ93: 43.67959 | BA93: 43.57925 | BB93: 40.60924 | BC93: 42.40192 | BD93: 38.12109 | BE93: 37.15497 | BF93: 31.81106 | BG93: 29.21717 | BH93: 24.38297 | BI93: 21.01933 | BJ93: 15.74226 | BK93: 8.17897 | BL93: -0.02309 | BM93: 76.13083 | BN93: 46.4856 | BO93: 37.82078 | BP93: 31.96803 | BQ93: 37.13567 | BR93: 30.45779 | BS93: 37.95727 | BT93: 35.72327 | BU93: 38.57374 | BV93: 48.11895 | BW93: 59.16233 | BX93: 72.08877 | BY93: 71.17711 | BZ93: 49.32619 | CA93: 57.81593 | CB93: 58.75811 | CC93: 52.87716 | CD93: 53.57582 | CE93: 43.70985 | CF93: 43.67165 | CG93: 40.77037 | CH93: 42.70848 | CI93: 38.64329 | CJ93: 37.94659 | CK93: 33.13634 | CL93: 31.07663 | CM93: 27.36948 | CN93: 25.29135 | CO93: 21.70071 | CP93: 16.2141 | CQ93: 10.6833 | CR93: 68.0693 | CS93: 59.7416 | CT93: 72.69627 | CU93: 74.47009 | CV93: 66.27867 | CW93: 78.6572 | CX93: 74.46907 | CY93: 66.27824 | CZ93: 78.65967
A94: 11:59:16 | B94: 0.1 | C94: 76.45733 | D94: -0.87688 | E94: -1.37522 | F94: -3.55579 | G94: 4.02351 | H94: 3.67124 | I94: 11.24814 | J94: 9.54834 | K94: 14.88656 | L94: 28.56031 | M94: 37.55061 | N94: 51.21352 | O94: 69.29362 | P94: 61.95071 | Q94: 54.73035 | R94: 73.94651 | S94: 64.06078 | T94: 68.61943 | U94: 62.06303 | V94: 57.83242 | W94: 52.21313 | X94: 53.96563 | Y94: 44.41205 | Z94: 32.16843 | AA94: 30.16595 | AB94: 32.34837 | AC94: 30.34135 | AD94: 26.63934 | AE94: 15.74642 | AF94: 7.96767 | AG94: 0.49338 | AH94: 79.11633 | AI94: 39.71622 | AJ94: 34.91489 | AK94: 29.95786 | AL94: 33.08435 | AM94: 28.12073 | AN94: 33.82854 | AO94: 27.81921 | AP94: 30.09013 | AQ94: 41.12754 | AR94: 48.30558 | AS94: 59.08418 | AT94: 75.756 | AU94: 67.61046 | AV94: 57.9632 | AW94: 75.53768 | AX94: 65.5365 | AY94: 68.55882 | AZ94: 61.33614 | BA94: 56.82957 | BB94: 50.88385 | BC94: 52.39682 | BD94: 42.74673 | BE94: 30.38643 | BF94: 28.32542 | BG94: 30.46733 | BH94: 28.44103 | BI94: 24.72607 | BJ94: 13.82217 | BK94: 6.04328 | BL94: -1.46236 | BM94: 79.09244 | BN94: 44.38696 | BO94: 37.91069 | BP94: 32.18331 | BQ94: 34.52554 | BR94: 28.90882 | BS94: 34.46609 | BT94: 28.13481 | BU94: 30.27066 | BV94: 41.20432 | BW94: 48.34546 | BX94: 59.07902 | BY94: 75.73158 | BZ94: 67.59261 | CA94: 57.93096 | CB94: 75.50997 | CC94: 65.51025 | CD94: 68.56033 | CE94: 61.3796 | CF94: 56.90958 | CG94: 51.04296 | CH94: 52.69678 | CI94: 43.17448 | CJ94: 31.17345 | CK94: 29.58538 | CL94: 32.53178 | CM94: 31.39881 | CN94: 28.6842 | CO94: 19.6077 | CP94: 14.13612 | CQ94: 9.32425 | CR94: 73.43063 | CS94: 66.0372 | CT94: 78.01637 | CU94: 76.181 | CV94: 68.70477 | CW94: 80.27501 | CX94: 76.15744 | CY94: 68.68092 | CZ94: 80.25748
A95: 11:59:16 | B95: 0.1 | C95: 73.48502 | D95: -8.85182 | E95: -0.59995 | F95: 2.41171 | G95: 4.6503 | H95: 7.18099 | I95: 14.83567 | J95: 13.495 | K95: 15.09552 | L95: 26.03671 | M95: 31.02264 | N95: 42.79958 | O95: 66.16724 | P95: 72.73705 | Q95: 47.93591 | R95: 56.6722 | S95: 53.6617 | T95: 49.74387 | U95: 51.16565 | V95: 45.89919 | W95: 50.04074 | X95: 55.38596 | Y95: 42.46684 | Z95: 31.39808 | AA95: 32.72469 | AB95: 33.51895 | AC95: 29.2756 | AD95: 22.68938 | AE95: 14.30416 | AF95: 8.24561 | AG95: 0.69843 | AH95: 78.64896 | AI95: 32.2634 | AJ95: 35.79692 | AK95: 34.68907 | AL95: 32.73206 | AM95: 32.66071 | AN95: 36.53058 | AO95: 31.68188 | AP95: 31.31945 | AQ95: 38.75005 | AR95: 41.24744 | AS95: 50.81519 | AT95: 72.07578 | AU95: 77.96703 | AV95: 51.88561 | AW95: 58.24712 | AX95: 54.78227 | AY95: 49.56451 | AZ95: 50.72439 | BA95: 44.80367 | BB95: 48.62184 | BC95: 53.84882 | BD95: 40.79208 | BE95: 29.6161 | BF95: 30.87768 | BG95: 31.643 | BH95: 27.37422 | BI95: 20.77623 | BJ95: 12.37917 | BK95: 6.3212 | BL95: -1.25294 | BM95: 78.62597 | BN95: 37.6889 | BO95: 38.94942 | BP95: 36.7506 | BQ95: 33.96632 | BR95: 33.59589 | BS95: 37.01923 | BT95: 32.00504 | BU95: 31.52531 | BV95: 38.82664 | BW95: 41.25373 | BX95: 50.81153 | BY95: 72.0517 | BZ95: 77.93933 | CA95: 51.85487 | CB95: 58.21084 | CC95: 54.75884 | CD95: 49.57138 | CE95: 50.74519 | CF95: 44.89159 | CG95: 48.81932 | CH95: 54.11994 | CI95: 41.23594 | CJ95: 30.40446 | CK95: 32.20527 | CL95: 33.54334 | CM95: 30.37653 | CN95: 24.73575 | CO95: 18.43129 | CP95: 14.43102 | CQ95: 9.44608 | CR95: 70.87842 | CS95: 64.37484 | CT95: 75.54102 | CU95: 76.02954 | CV95: 68.79723 | CW95: 80.72963 | CX95: 76.00523 | CY95: 68.76997 | CZ95: 80.70975
A96: 11:59:16 | B96: 0.1 | C96: 69.08286 | D96: -7.02924 | E96: -4.78963 | F96: -2.24364 | G96: 3.84376 | H96: 9.02016 | I96: 16.77617 | J96: 18.8709 | K96: 19.50535 | L96: 31.756 | M96: 57.86244 | N96: 54.48088 | O96: 56.90574 | P96: 66.07123 | Q96: 50.2112 | R96: 57.32926 | S96: 44.32157 | T96: 43.84822 | U96: 42.16648 | V96: 47.75388 | W96: 37.86639 | X96: 40.70276 | Y96: 35.70786 | Z96: 31.74094 | AA96: 31.01985 | AB96: 32.62143 | AC96: 30.69742 | AD96: 24.43261 | AE96: 19.18207 | AF96: 9.36815 | AG96: 2.19482 | AH96: 74.88475 | AI96: 34.78561 | AJ96: 31.53506 | AK96: 30.55544 | AL96: 31.57343 | AM96: 33.95528 | AN96: 38.91447 | AO96: 37.25348 | AP96: 34.94323 | AQ96: 43.16326 | AR96: 68.36446 | AS96: 63.3012 | AT96: 62.91897 | AU96: 71.1832 | AV96: 53.94344 | AW96: 59.43887 | AX96: 45.35151 | AY96: 43.89945 | AZ96: 41.64093 | BA96: 46.71915 | BB96: 36.50716 | BC96: 39.14024 | BD96: 34.00785 | BE96: 29.95321 | BF96: 29.17396 | BG96: 30.74055 | BH96: 28.79751 | BI96: 22.51733 | BJ96: 17.25769 | BK96: 7.44378 | BL96: 0.24514 | BM96: 74.89028 | BN96: 39.52015 | BO96: 34.77734 | BP96: 32.63902 | BQ96: 32.83904 | BR96: 34.76068 | BS96: 39.47331 | BT96: 37.54775 | BU96: 35.1098 | BV96: 43.22234 | BW96: 68.4107 | BX96: 63.30804 | BY96: 62.89513 | BZ96: 71.15603 | CA96: 53.92208 | CB96: 59.46304 | CC96: 45.34216 | CD96: 43.91132 | CE96: 41.67243 | CF96: 46.81638 | CG96: 36.68323 | CH96: 39.44033 | CI96: 34.50984 | CJ96: 30.76524 | CK96: 30.50199 | CL96: 32.79162 | CM96: 31.71653 | CN96: 26.75132 | CO96: 23.04056 | CP96: 15.54338 | CQ96: 10.87389 | CR96: 68.74847 | CS96: 64.04718 | CT96: 74.58775 | CU96: 73.93489 | CV96: 69.07394 | CW96: 79.57316 | CX96: 73.90646 | CY96: 69.04668 | CZ96: 79.54633
A97: 11:59:17 | B97: 0.1 | C97: 74.26776 | D97: 0.90923 | E97: -8.64798 | F97: -5.17209 | G97: 2.76186 | H97: 6.72503 | I97: 10.63628 | J97: 13.94671 | K97: 16.65547 | L97: 43.76833 | M97: 57.50927 | N97: 45.94778 | O97: 48.7198 | P97: 56.68242 | Q97: 61.44118 | R97: 69.65077 | S97: 70.75034 | T97: 65.28333 | U97: 61.37672 | V97: 58.05507 | W97: 43.66833 | X97: 45.75034 | Y97: 39.64444 | Z97: 32.82285 | AA97: 33.14354 | AB97: 29.46996 | AC97: 25.59406 | AD97: 25.01728 | AE97: 15.32858 | AF97: 8.8898 | AG97: 1.92672 | AH97: 75.94447 | AI97: 41.80591 | AJ97: 28.49894 | AK97: 26.79146 | AL97: 31.29316 | AM97: 31.70323 | AN97: 33.63932 | AO97: 32.08185 | AP97: 31.604 | AQ97: 55.8908 | AR97: 68.46008 | AS97: 54.91708 | AT97: 54.64209 | AU97: 61.45379 | AV97: 64.23181 | AW97: 71.60291 | AX97: 71.57381 | AY97: 65.41435 | AZ97: 60.81001 | BA97: 57.08289 | BB97: 42.33327 | BC97: 44.17944 | BD97: 37.94822 | BE97: 31.04143 | BF97: 31.29562 | BG97: 27.59456 | BH97: 23.6907 | BI97: 23.10265 | BJ97: 13.40393 | BK97: 6.96574 | BL97: -0.02458 | BM97: 75.93234 | BN97: 46.57007 | BO97: 31.62469 | BP97: 28.73858 | BQ97: 32.52782 | BR97: 32.57778 | BS97: 34.26456 | BT97: 32.36048 | BU97: 31.75844 | BV97: 55.95723 | BW97: 68.48505 | BX97: 54.92099 | BY97: 54.61575 | BZ97: 61.42032 | CA97: 64.20164 | CB97: 71.57076 | CC97: 71.55753 | CD97: 65.41221 | CE97: 60.84184 | CF97: 57.1543 | CG97: 42.49317 | CH97: 44.4799 | CI97: 38.43678 | CJ97: 31.81914 | CK97: 32.62439 | CL97: 29.48375 | CM97: 26.83073 | CN97: 27.23148 | CO97: 19.31171 | CP97: 15.12363 | CQ97: 10.68033 | CR97: 71.34285 | CS97: 64.96818 | CT97: 76.18903 | CU97: 72.90063 | CV97: 68.73035 | CW97: 79.29957 | CX97: 72.88892 | CY97: 68.70299 | CZ97: 79.27274
A98: 11:59:17 | B98: 0.1 | C98: 63.21635 | D98: 1.0071 | E98: -4.00549 | F98: -3.07441 | G98: 3.04533 | H98: 7.69915 | I98: 5.35101 | J98: 14.89766 | K98: 29.00879 | L98: 42.78265 | M98: 46.58065 | N98: 40.15869 | O98: 43.91031 | P98: 51.95673 | Q98: 58.04073 | R98: 54.75285 | S98: 59.49235 | T98: 51.98991 | U98: 48.21983 | V98: 49.66031 | W98: 40.39397 | X98: 40.87762 | Y98: 35.91869 | Z98: 31.10271 | AA98: 30.01604 | AB98: 26.15276 | AC98: 25.05981 | AD98: 20.91057 | AE98: 15.36966 | AF98: 10.71702 | AG98: 1.06248 | AH98: 68.33123 | AI98: 41.59139 | AJ98: 32.30714 | AK98: 29.42311 | AL98: 32.53175 | AM98: 33.26703 | AN98: 26.88576 | AO98: 33.55354 | AP98: 43.97016 | AQ98: 55.28759 | AR98: 57.82586 | AS98: 49.22964 | AT98: 50.25972 | AU98: 56.69521 | AV98: 60.95645 | AW98: 56.74046 | AX98: 60.43568 | AY98: 52.17441 | AZ98: 47.6687 | BA98: 48.58634 | BB98: 39.05882 | BC98: 39.30479 | BD98: 34.21858 | BE98: 29.32001 | BF98: 28.17292 | BG98: 24.27395 | BH98: 23.1587 | BI98: 18.99639 | BJ98: 13.4446 | BK98: 8.79201 | BL98: -0.89054 | BM98: 68.36409 | BN98: 46.29498 | BO98: 35.53535 | BP98: 31.5324 | BQ98: 33.97386 | BR98: 34.12836 | BS98: 27.40194 | BT98: 33.90174 | BU98: 44.12951 | BV98: 55.36813 | BW98: 57.88343 | BX98: 49.25559 | BY98: 50.24216 | BZ98: 56.68832 | CA98: 60.91942 | CB98: 56.70029 | CC98: 60.38995 | CD98: 52.15277 | CE98: 47.66309 | CF98: 48.66205 | CG98: 39.21975 | CH98: 39.60252 | CI98: 34.71918 | CJ98: 30.10219 | CK98: 29.44799 | CL98: 26.28101 | CM98: 26.15236 | CN98: 23.09101 | CO98: 19.56425 | CP98: 16.7402 | CQ98: 9.79445 | CR98: 64.95649 | CS98: 64.5498 | CT98: 74.18759 | CU98: 67.37897 | CV98: 68.29814 | CW98: 78.99251 | CX98: 67.35185 | CY98: 68.27092 | CZ98: 78.96568
A99: 11:59:17 | B99: 0.1 | C99: 62.49197 | D99: -8.88924 | E99: -4.5846 | F99: -4.89163 | G99: 8.74483 | H99: 7.47401 | I99: 13.66052 | J99: 18.12531 | K99: 26.48531 | L99: 39.64554 | M99: 56.21649 | N99: 56.36433 | O99: 49.26876 | P99: 56.36671 | Q99: 55.82996 | R99: 47.7703 | S99: 46.1235 | T99: 38.04713 | U99: 40.41355 | V99: 38.13822 | W99: 39.16341 | X99: 43.52455 | Y99: 37.75718 | Z99: 31.76263 | AA99: 29.71889 | AB99: 25.93933 | AC99: 23.03233 | AD99: 19.08716 | AE99: 11.74 | AF99: 5.56432 | AG99: -0.48862 | AH99: 69.6219 | AI99: 30.02322 | AJ99: 31.28983 | AK99: 26.28036 | AL99: 38.35174 | AM99: 32.3784 | AN99: 36.35703 | AO99: 36.28023 | AP99: 41.80921 | AQ99: 52.11896 | AR99: 66.39449 | AS99: 65.44291 | AT99: 56.45913 | AU99: 60.76647 | AV99: 59.50497 | AW99: 49.46406 | AX99: 47.26403 | AY99: 38.16166 | AZ99: 39.76511 | BA99: 37.11227 | BB99: 37.75984 | BC99: 41.94745 | BD99: 36.07154 | BE99: 29.97945 | BF99: 27.87175 | BG99: 24.06303 | BH99: 21.13061 | BI99: 17.17243 | BJ99: 9.81531 | BK99: 3.64005 | BL99: -2.44889 | BM99: 69.62058 | BN99: 34.69709 | BO99: 34.30033 | BP99: 28.31867 | BQ99: 39.80219 | BR99: 33.25359 | BS99: 36.96483 | BT99: 36.54527 | BU99: 41.94569 | BV99: 52.17597 | BW99: 66.41797 | BX99: 65.45187 | BY99: 56.47617 | BZ99: 60.72598 | CA99: 59.47266 | CB99: 49.43877 | CC99: 47.2421 | CD99: 38.16117 | CE99: 39.80043 | CF99: 37.19284 | CG99: 37.94484 | CH99: 42.25682 | CI99: 36.54211 | CJ99: 30.76036 | CK99: 29.19698 | CL99: 25.98381 | CM99: 24.16621 | CN99: 21.29219 | CO99: 15.76614 | CP99: 11.79429 | CQ99: 8.4649 | CR99: 61.67981 | CS99: 64.14185 | CT99: 73.91028 | CU99: 66.85901 | CV99: 67.95543 | CW99: 78.7188 | CX99: 66.85837 | CY99: 67.92799 | CZ99: 78.69196
A100: 11:59:17 | B100: 0.1 | C100: 61.75452 | D100: -6.97981 | E100: -5.65797 | F100: -1.75515 | G100: 7.63754 | H100: 1.81829 | I100: 15.20166 | J100: 13.40405 | K100: 19.66994 | L100: 34.67924 | M100: 49.22425 | N100: 60.44431 | O100: 57.27531 | P100: 44.89132 | Q100: 51.60424 | R100: 43.59923 | S100: 43.72843 | T100: 34.80354 | U100: 36.29716 | V100: 34.34818 | W100: 38.22314 | X100: 44.98865 | Y100: 38.19376 | Z100: 31.89695 | AA100: 30.12586 | AB100: 26.21899 | AC100: 20.98582 | AD100: 16.81868 | AE100: 12.29633 | AF100: 7.39288 | AG100: 1.14073 | AH100: 69.55373 | AI100: 32.32082 | AJ100: 30.38757 | AK100: 31.08158 | AL100: 36.8564 | AM100: 25.69173 | AN100: 37.47637 | AO100: 32.85119 | AP100: 34.93189 | AQ100: 47.62675 | AR100: 59.76542 | AS100: 68.69052 | AT100: 64.55664 | AU100: 49.46255 | AV100: 54.81312 | AW100: 46.08179 | AX100: 44.55457 | AY100: 34.78546 | AZ100: 35.69041 | BA100: 33.27514 | BB100: 36.81045 | BC100: 43.42255 | BD100: 36.50146 | BE100: 30.11821 | BF100: 28.27726 | BG100: 24.34383 | BH100: 19.08537 | BI100: 14.90331 | BJ100: 10.37186 | BK100: 5.46814 | BL100: -0.81393 | BM100: 69.56352 | BN100: 36.01138 | BO100: 33.63482 | BP100: 33.15459 | BQ100: 38.34512 | BR100: 26.45283 | BS100: 38.03448 | BT100: 33.21119 | BU100: 35.11225 | BV100: 47.73143 | BW100: 59.8003 | BX100: 68.6892 | BY100: 64.54035 | BZ100: 49.43279 | CA100: 54.78057 | CB100: 46.04498 | CC100: 44.53387 | CD100: 34.78259 | CE100: 35.72105 | CF100: 33.36815 | CG100: 37.00417 | CH100: 43.71723 | CI100: 36.98193 | CJ100: 30.87904 | CK100: 29.63356 | CL100: 26.24165 | CM100: 22.03597 | CN100: 19.18931 | CO100: 16.31653 | CP100: 13.67995 | CQ100: 9.99269 | CR100: 58.52647 | CS100: 63.7287 | CT100: 73.6326 | CU100: 66.73985 | CV100: 67.54479 | CW100: 78.44118 | CX100: 66.73885 | CY100: 67.51735 | CZ100: 78.41434
A101: 11:59:17 | B101: 0.1 | C101: 68.89922 | D101: -2.54604 | E101: -1.88682 | F101: -0.96894 | G101: 13.41628 | H101: 10.1909 | I101: 18.19814 | J101: 13.70801 | K101: 25.70633 | L101: 45.83942 | M101: 54.61103 | N101: 50.7029 | O101: 45.30472 | P101: 54.56231 | Q101: 57.54236 | R101: 63.54754 | S101: 65.09189 | T101: 54.5494 | U101: 50.15092 | V101: 52.59301 | W101: 48.51261 | X101: 45.38459 | Y101: 41.81387 | Z101: 39.40083 | AA101: 44.0651 | AB101: 35.96449 | AC101: 33.93406 | AD101: 30.3006 | AE101: 22.57469 | AF101: 14.7124 | AG101: 5.11125 | AH101: 72.11758 | AI101: 36.99859 | AJ101: 34.63611 | AK101: 31.21564 | AL101: 42.21671 | AM101: 34.97036 | AN101: 40.62055 | AO101: 32.2406 | AP101: 40.9184 | AQ101: 58.04896 | AR101: 65.75412 | AS101: 59.32544 | AT101: 52.20655 | AU101: 59.39836 | AV101: 60.46684 | AW101: 65.51784 | AX101: 66.0983 | AY101: 54.6572 | AZ101: 49.55707 | BA101: 51.52469 | BB101: 47.15269 | BC101: 43.81671 | BD101: 40.10941 | BE101: 37.61089 | BF101: 42.22165 | BG101: 34.08671 | BH101: 32.03417 | BI101: 28.38523 | BJ101: 20.65045 | BK101: 12.78795 | BL101: 3.16752 | BM101: 72.13261 | BN101: 41.4006 | BO101: 37.82944 | BP101: 33.3668 | BQ101: 43.54064 | BR101: 35.81223 | BS101: 41.20721 | BT101: 32.54203 | BU101: 41.07272 | BV101: 58.12321 | BW101: 65.79916 | BX101: 59.32635 | BY101: 52.18478 | BZ101: 59.36969 | CA101: 60.43465 | CB101: 65.49001 | CC101: 66.07706 | CD101: 54.67004 | CE101: 49.59 | CF101: 51.61227 | CG101: 47.3213 | CH101: 44.11595 | CI101: 40.61832 | CJ101: 38.437 | CK101: 43.48748 | CL101: 36.0607 | CM101: 34.94735 | CN101: 32.60252 | CO101: 26.41451 | CP101: 20.83768 | CQ101: 13.57181 | CR101: 67.06599 | CS101: 63.72187 | CT101: 73.33789 | CU101: 70.12201 | CV101: 67.15681 | CW101: 78.13637 | CX101: 70.13463 | CY101: 67.12934 | CZ101: 78.10954
A102: 11:59:17 | B102: 0.1 | C102: 65.76625 | D102: -4.7356 | E102: -5.26093 | F102: -2.63593 | G102: 5.12457 | H102: 7.36695 | I102: 7.72259 | J102: 12.68156 | K102: 24.98112 | L102: 55.06181 | M102: 52.71186 | N102: 40.67225 | O102: 46.82352 | P102: 50.46397 | Q102: 56.05177 | R102: 61.24358 | S102: 58.7403 | T102: 52.34834 | U102: 46.38623 | V102: 40.03529 | W102: 38.22729 | X102: 35.72069 | Y102: 35.79848 | Z102: 31.13257 | AA102: 29.56309 | AB102: 24.64775 | AC102: 20.83996 | AD102: 16.12171 | AE102: 11.30029 | AF102: 4.83292 | AG102: -0.35505 | AH102: 71.81697 | AI102: 34.70502 | AJ102: 29.75928 | AK102: 29.0512 | AL102: 33.61091 | AM102: 31.56555 | AN102: 29.6042 | AO102: 30.45929 | AP102: 38.71857 | AQ102: 67.63006 | AR102: 64.44765 | AS102: 49.47643 | AT102: 53.25539 | AU102: 55.41877 | AV102: 59.264 | AW102: 63.32654 | AX102: 59.50616 | AY102: 52.46048 | AZ102: 45.90388 | BA102: 38.9685 | BB102: 36.8816 | BC102: 34.15176 | BD102: 34.09711 | BE102: 29.35062 | BF102: 27.71892 | BG102: 22.77157 | BH102: 18.93916 | BI102: 14.2063 | BJ102: 9.37528 | BK102: 2.90868 | BL102: -2.31276 | BM102: 71.87482 | BN102: 38.39368 | BO102: 32.61561 | BP102: 31.04004 | BQ102: 35.09439 | BR102: 32.33297 | BS102: 30.00887 | BT102: 30.74051 | BU102: 38.84959 | BV102: 67.7058 | BW102: 64.51178 | BX102: 49.48165 | BY102: 53.23611 | BZ102: 55.3946 | CA102: 59.23459 | CB102: 63.30461 | CC102: 59.48798 | CD102: 52.43017 | CE102: 45.92808 | CF102: 39.05704 | CG102: 37.04449 | CH102: 34.45309 | CI102: 34.5976 | CJ102: 30.12741 | CK102: 29.00235 | CL102: 24.67667 | CM102: 21.90547 | CN102: 18.42544 | CO102: 15.3677 | CP102: 11.12715 | CQ102: 8.56879 | CR102: 63.07789 | CS102: 63.5431 | CT102: 73.07751 | CU102: 69.16628 | CV102: 66.76935 | CW102: 77.85995 | CX102: 69.22089 | CY102: 66.74191 | CZ102: 77.83312
A103: 11:59:17 | B103: 0.1 | C103: 68.93245 | D103: 1.91597 | E103: -6.07306 | F103: 1.79594 | G103: 6.12315 | H103: 4.18016 | I103: 10.75771 | J103: 14.67391 | K103: 24.29546 | L103: 49.90569 | M103: 57.73954 | N103: 42.47131 | O103: 47.47733 | P103: 63.18428 | Q103: 54.04972 | R103: 66.65952 | S103: 51.41284 | T103: 49.52937 | U103: 43.89674 | V103: 39.0014 | W103: 38.53043 | X103: 39.5291 | Y103: 36.24954 | Z103: 35.8195 | AA103: 34.61227 | AB103: 32.28129 | AC103: 28.98471 | AD103: 23.49348 | AE103: 17.67438 | AF103: 12.48276 | AG103: 2.06207 | AH103: 73.99394 | AI103: 42.65807 | AJ103: 29.56413 | AK103: 34.49804 | AL103: 34.84801 | AM103: 29.30374 | AN103: 32.67944 | AO103: 33.33137 | AP103: 38.67212 | AQ103: 62.65082 | AR103: 68.64265 | AS103: 52.00135 | AT103: 53.37826 | AU103: 67.98399 | AV103: 56.6805 | AW103: 68.86102 | AX103: 52.23025 | AY103: 49.44633 | AZ103: 43.32722 | BA103: 37.97991 | BB103: 37.16988 | BC103: 37.95468 | BD103: 34.54405 | BE103: 34.02486 | BF103: 32.77621 | BG103: 30.39845 | BH103: 27.08511 | BI103: 21.57671 | BJ103: 15.74957 | BK103: 10.55798 | BL103: 0.1148 | BM103: 73.99725 | BN103: 47.28802 | BO103: 32.54709 | BP103: 36.61349 | BQ103: 36.18742 | BR103: 30.11735 | BS103: 33.21989 | BT103: 33.68906 | BU103: 38.79739 | BV103: 62.74207 | BW103: 68.67772 | BX103: 52.01822 | BY103: 53.3635 | BZ103: 67.95499 | CA103: 56.64976 | CB103: 68.82779 | CC103: 52.21061 | CD103: 49.45061 | CE103: 43.35532 | CF103: 38.06776 | CG103: 37.33879 | CH103: 38.26714 | CI103: 35.05704 | CJ103: 34.87564 | CK103: 33.95984 | CL103: 32.51412 | CM103: 29.97926 | CN103: 25.96075 | CO103: 21.79673 | CP103: 18.54221 | CQ103: 10.57464 | CR103: 66.01151 | CS103: 63.96264 | CT103: 72.7193 | CU103: 71.32505 | CV103: 66.90602 | CW103: 77.58383 | CX103: 71.33069 | CY103: 66.87836 | CZ103: 77.55698
A104: 11:59:17 | B104: 0.1 | C104: 75.20776 | D104: -0.12889 | E104: -4.56041 | F104: -0.15515 | G104: 11.81506 | H104: 4.74332 | I104: 13.42854 | J104: 13.23972 | K104: 21.54775 | L104: 53.80208 | M104: 51.59776 | N104: 34.81439 | O104: 54.81477 | P104: 57.39661 | Q104: 66.16625 | R104: 72.0377 | S104: 70.27865 | T104: 59.95216 | U104: 57.46786 | V104: 53.64275 | W104: 42.19197 | X104: 46.01299 | Y104: 41.38239 | Z104: 33.31273 | AA104: 31.05756 | AB104: 32.4017 | AC104: 31.02519 | AD104: 25.87737 | AE104: 17.59552 | AF104: 11.0601 | AG104: 3.12457 | AH104: 77.2411 | AI104: 40.45346 | AJ104: 33.03659 | AK104: 32.65479 | AL104: 40.27489 | AM104: 30.48222 | AN104: 35.96273 | AO104: 31.58421 | AP104: 35.93055 | AQ104: 66.1689 | AR104: 63.3334 | AS104: 43.99447 | AT104: 60.6475 | AU104: 62.58 | AV104: 69.13133 | AW104: 73.5061 | AX104: 71.60073 | AY104: 60.04177 | AZ104: 56.857 | BA104: 52.63869 | BB104: 40.87278 | BC104: 44.41991 | BD104: 39.6974 | BE104: 31.53356 | BF104: 29.20932 | BG104: 30.52522 | BH104: 29.12187 | BI104: 23.96325 | BJ104: 15.67062 | BK104: 9.1356 | BL104: 1.17768 | BM104: 77.24739 | BN104: 45.37774 | BO104: 36.45107 | BP104: 34.80265 | BQ104: 41.56787 | BR104: 31.48355 | BS104: 36.58976 | BT104: 31.81947 | BU104: 36.09118 | BV104: 66.23009 | BW104: 63.39295 | BX104: 44.00643 | BY104: 60.62432 | BZ104: 62.5527 | CA104: 69.10175 | CB104: 73.48 | CC104: 71.576 | CD104: 60.04004 | CE104: 56.88996 | CF104: 52.71556 | CG104: 41.02737 | CH104: 44.74184 | CI104: 40.16212 | CJ104: 32.31692 | CK104: 30.57427 | CL104: 32.44202 | CM104: 32.24559 | CN104: 28.04413 | CO104: 21.72414 | CP104: 17.17435 | CQ104: 11.73898 | CR104: 72.11397 | CS104: 65.70466 | CT104: 76.57646 | CU104: 74.18814 | CV104: 67.43082 | CW104: 78.43971 | CX104: 74.19885 | CY104: 67.40283 | CZ104: 78.44936
A105: 11:59:17 | B105: 0.1 | C105: 67.25069 | D105: -2.28501 | E105: -2.29642 | F105: -4.64469 | G105: 4.78699 | H105: 6.32664 | I105: 12.42622 | J105: 13.37174 | K105: 21.71254 | L105: 52.79887 | M105: 49.45457 | N105: 31.51811 | O105: 62.27908 | P105: 56.30259 | Q105: 60.02712 | R105: 60.28808 | S105: 58.22843 | T105: 44.03486 | U105: 43.60527 | V105: 49.36236 | W105: 38.73697 | X105: 40.32537 | Y105: 36.32172 | Z105: 34.15228 | AA105: 31.15821 | AB105: 28.25313 | AC105: 24.59704 | AD105: 19.56557 | AE105: 14.81824 | AF105: 8.58947 | AG105: 2.13618 | AH105: 72.70464 | AI105: 39.49387 | AJ105: 34.93349 | AK105: 27.73341 | AL105: 32.97607 | AM105: 31.61893 | AN105: 34.85445 | AO105: 30.99133 | AP105: 36.30125 | AQ105: 64.96224 | AR105: 61.52232 | AS105: 39.18695 | AT105: 68.23398 | AU105: 62.1711 | AV105: 63.0773 | AW105: 61.77613 | AX105: 59.55485 | AY105: 44.18176 | AZ105: 42.97861 | BA105: 48.27642 | BB105: 37.42711 | BC105: 38.73721 | BD105: 34.62672 | BE105: 32.36099 | BF105: 29.30458 | BG105: 26.3786 | BH105: 22.6935 | BI105: 17.64957 | BJ105: 12.89335 | BK105: 6.66523 | BL105: 0.18237 | BM105: 72.7184 | BN105: 44.1889 | BO105: 38.36249 | BP105: 29.93458 | BQ105: 34.19632 | BR105: 32.57509 | BS105: 35.41486 | BT105: 31.25839 | BU105: 36.43715 | BV105: 65.03091 | BW105: 61.58172 | BX105: 39.18754 | BY105: 68.21411 | BZ105: 62.14902 | CA105: 63.0346 | CB105: 61.74964 | CC105: 59.5283 | CD105: 44.17789 | CE105: 43.01189 | CF105: 48.36736 | CG105: 37.5806 | CH105: 39.06494 | CI105: 35.11405 | CJ105: 33.16702 | CK105: 30.71853 | CL105: 28.24957 | CM105: 25.82484 | CN105: 21.93932 | CO105: 18.97808 | CP105: 14.79396 | CQ105: 10.97411 | CR105: 66.93582 | CS105: 65.41084 | CT105: 73.48448 | CU105: 70.18416 | CV105: 67.13053 | CW105: 77.04568 | CX105: 70.19473 | CY105: 67.10257 | CZ105: 77.01884
A106: 11:59:17 | B106: 0.1 | C106: 73.10262 | D106: 3.87819 | E106: -8.77073 | F106: -12.44937 | G106: 4.29108 | H106: 2.54978 | I106: 9.70437 | J106: 12.62901 | K106: 25.14198 | L106: 54.86991 | M106: 43.78305 | N106: 32.04504 | O106: 63.13618 | P106: 54.32898 | Q106: 62.39797 | R106: 70.57545 | S106: 64.57629 | T106: 62.45501 | U106: 57.21057 | V106: 52.81253 | W106: 45.3402 | X106: 49.21747 | Y106: 41.6939 | Z106: 32.90852 | AA106: 32.70126 | AB106: 31.65975 | AC106: 26.74703 | AD106: 25.15743 | AE106: 13.9404 | AF106: 7.50471 | AG106: 0.57773 | AH106: 75.83759 | AI106: 44.88248 | AJ106: 26.23503 | AK106: 20.07027 | AL106: 33.04219 | AM106: 27.87129 | AN106: 31.43082 | AO106: 30.51102 | AP106: 38.90672 | AQ106: 67.61647 | AR106: 55.80851 | AS106: 39.5566 | AT106: 69.16407 | AU106: 60.14279 | AV106: 65.59671 | AW106: 72.22487 | AX106: 65.55911 | AY106: 62.55262 | AZ106: 56.60342 | BA106: 51.79699 | BB106: 44.00539 | BC106: 47.63 | BD106: 40.01759 | BE106: 31.12574 | BF106: 30.85426 | BG106: 29.78547 | BH106: 24.84309 | BI106: 23.24387 | BJ106: 12.01565 | BK106: 5.58017 | BL106: -1.37892 | BM106: 75.83348 | BN106: 49.6783 | BO106: 29.20904 | BP106: 22.57626 | BQ106: 34.53392 | BR106: 28.66643 | BS106: 31.91344 | BT106: 30.80372 | BU106: 39.02458 | BV106: 67.69673 | BW106: 55.86333 | BX106: 39.55052 | BY106: 69.13999 | BZ106: 60.1167 | CA106: 65.56348 | CB106: 72.19789 | CC106: 65.5386 | CD106: 62.55122 | CE106: 56.63672 | CF106: 51.87631 | CG106: 44.16612 | CH106: 47.94973 | CI106: 40.46735 | CJ106: 31.91127 | CK106: 32.19692 | CL106: 31.64748 | CM106: 28.03767 | CN106: 27.23136 | CO106: 17.96934 | CP106: 13.66899 | CQ106: 9.44014 | CR106: 70.61008 | CS106: 66.31705 | CT106: 75.13911 | CU106: 73.18739 | CV106: 68.01803 | CW106: 77.74602 | CX106: 73.18358 | CY106: 67.99031 | CZ106: 77.72488
A107: 11:59:18 | B107: 0.1 | C107: 68.36568 | D107: 1.80438 | E107: -6.75337 | F107: -8.06409 | G107: 12.01141 | H107: 3.36469 | I107: 10.70519 | J107: 9.05253 | K107: 30.29606 | L107: 47.86231 | M107: 31.76437 | N107: 39.62145 | O107: 55.32172 | P107: 50.30855 | Q107: 53.47264 | R107: 62.4404 | S107: 64.10606 | T107: 62.17503 | U107: 57.50104 | V107: 50.02518 | W107: 41.82216 | X107: 42.04605 | Y107: 40.4847 | Z107: 30.79088 | AA107: 31.28149 | AB107: 27.26924 | AC107: 21.06586 | AD107: 19.59657 | AE107: 10.98994 | AF107: 5.35271 | AG107: -0.74545 | AH107: 70.10965 | AI107: 43.33208 | AJ107: 30.24264 | AK107: 23.14523 | AL107: 40.43139 | AM107: 30.0891 | AN107: 32.785 | AO107: 27.53141 | AP107: 44.96932 | AQ107: 60.69947 | AR107: 43.58869 | AS107: 47.086 | AT107: 61.98689 | AU107: 54.59733 | AV107: 56.74721 | AW107: 64.51318 | AX107: 65.0154 | AY107: 62.26636 | AZ107: 56.91499 | BA107: 49.02148 | BB107: 40.48767 | BC107: 40.46921 | BD107: 38.78945 | BE107: 29.00709 | BF107: 29.43751 | BG107: 25.39459 | BH107: 19.16227 | BI107: 17.68214 | BJ107: 9.06528 | BK107: 3.42842 | BL107: -2.71142 | BM107: 70.10883 | BN107: 48.44561 | BO107: 33.65714 | BP107: 24.89562 | BQ107: 41.71086 | BR107: 31.16761 | BS107: 33.33405 | BT107: 27.83208 | BU107: 45.1058 | BV107: 60.76171 | BW107: 43.64816 | BX107: 47.07856 | BY107: 61.96381 | BZ107: 54.56886 | CA107: 56.71668 | CB107: 64.47893 | CC107: 64.996 | CD107: 62.26286 | CE107: 56.9463 | CF107: 49.09885 | CG107: 40.64587 | CH107: 40.77008 | CI107: 39.27156 | CJ107: 29.80765 | CK107: 30.72321 | CL107: 27.23187 | CM107: 22.29853 | CN107: 21.79093 | CO107: 15.04541 | CP107: 11.57248 | CQ107: 8.30745 | CR107: 66.92365 | CS107: 66.07457 | CT107: 73.43901 | CU107: 68.63856 | CV107: 67.79082 | CW107: 76.46711 | CX107: 68.60982 | CY107: 67.76283 | CZ107: 76.44026
A108: 11:59:18 | B108: 0.1 | C108: 66.6807 | D108: 3.59057 | E108: -14.64275 | F108: -6.21272 | G108: 5.79549 | H108: 1.92033 | I108: 10.01635 | J108: 6.86842 | K108: 31.50231 | L108: 43.12164 | M108: 23.96586 | N108: 40.69773 | O108: 57.50949 | P108: 52.81657 | Q108: 57.50002 | R108: 64.01137 | S108: 57.91433 | T108: 51.63311 | U108: 47.18246 | V108: 49.53273 | W108: 42.56995 | X108: 40.9386 | Y108: 38.29968 | Z108: 31.42432 | AA108: 27.73804 | AB108: 27.8701 | AC108: 23.04956 | AD108: 18.31328 | AE108: 12.41799 | AF108: 7.086 | AG108: 0.25111 | AH108: 70.4539 | AI108: 44.34586 | AJ108: 22.90582 | AK108: 25.08359 | AL108: 33.94684 | AM108: 26.4212 | AN108: 32.71822 | AO108: 25.27341 | AP108: 45.76156 | AQ108: 56.94926 | AR108: 35.54476 | AS108: 47.85491 | AT108: 64.5044 | AU108: 56.78268 | AV108: 61.14552 | AW108: 66.20234 | AX108: 58.93961 | AY108: 51.78635 | AZ108: 46.55639 | BA108: 48.41441 | BB108: 41.26029 | BC108: 39.34699 | BD108: 36.60709 | BE108: 29.64384 | BF108: 25.89299 | BG108: 25.9931 | BH108: 21.1478 | BI108: 16.39804 | BJ108: 10.49306 | BK108: 5.16156 | BL108: -1.70354 | BM108: 70.4566 | BN108: 49.00098 | BO108: 26.72873 | BP108: 26.92472 | BQ108: 35.15801 | BR108: 27.17638 | BS108: 33.29523 | BT108: 25.5938 | BU108: 45.88428 | BV108: 57.06273 | BW108: 35.60719 | BX108: 47.84306 | BY108: 64.49323 | BZ108: 56.7529 | CA108: 61.11426 | CB108: 66.17103 | CC108: 58.91605 | CD108: 51.78046 | CE108: 46.58723 | CF108: 48.50983 | CG108: 41.41181 | CH108: 39.66324 | CI108: 37.08933 | CJ108: 30.41103 | CK108: 27.18727 | CL108: 27.92378 | CM108: 24.18441 | CN108: 20.5729 | CO108: 16.51952 | CP108: 13.31642 | CQ108: 9.11436 | CR108: 65.49253 | CS108: 65.91956 | CT108: 73.19353 | CU108: 67.75563 | CV108: 67.66503 | CW108: 76.19228 | CX108: 67.75966 | CY108: 67.63683 | CZ108: 76.16543
A109: 11:59:18 | B109: 0.1 | C109: 60.70387 | D109: 1.28051 | E109: -21.35148 | F109: -6.97604 | G109: 0.76728 | H109: 4.33631 | I109: 15.30846 | J109: 20.13383 | K109: 42.37305 | L109: 42.98029 | M109: 29.39435 | N109: 49.1413 | O109: 53.72016 | P109: 58.06552 | Q109: 54.3527 | R109: 52.31923 | S109: 43.21154 | T109: 39.19707 | U109: 38.47142 | V109: 43.40026 | W109: 40.99708 | X109: 37.13734 | Y109: 36.31093 | Z109: 31.01629 | AA109: 27.81533 | AB109: 25.91396 | AC109: 21.5248 | AD109: 16.95492 | AE109: 12.47544 | AF109: 6.43486 | AG109: 0.32012 | AH109: 66.02872 | AI109: 41.3226 | AJ109: 16.14625 | AK109: 24.85433 | AL109: 29.30949 | AM109: 28.20496 | AN109: 37.6249 | AO109: 38.03698 | AP109: 57.49892 | AQ109: 57.06707 | AR109: 39.88069 | AS109: 57.14236 | AT109: 60.78576 | AU109: 62.3666 | AV109: 58.09953 | AW109: 54.53972 | AX109: 44.38331 | AY109: 39.23667 | AZ109: 37.82873 | BA109: 42.27358 | BB109: 39.65384 | BC109: 35.57569 | BD109: 34.61012 | BE109: 29.23151 | BF109: 25.97366 | BG109: 24.03545 | BH109: 19.62458 | BI109: 15.03946 | BJ109: 10.55055 | BK109: 4.51079 | BL109: -1.64033 | BM109: 66.05336 | BN109: 45.80671 | BO109: 20.08192 | BP109: 26.77175 | BQ109: 30.53281 | BR109: 28.95891 | BS109: 38.19054 | BT109: 38.35915 | BU109: 57.65369 | BV109: 57.18021 | BW109: 39.9118 | BX109: 57.13734 | BY109: 60.76284 | BZ109: 62.33475 | CA109: 58.06578 | CB109: 54.5083 | CC109: 44.36023 | CD109: 39.23645 | CE109: 37.8616 | CF109: 42.36855 | CG109: 39.81333 | CH109: 35.86974 | CI109: 35.10795 | CJ109: 30.0295 | CK109: 27.23392 | CL109: 26.02128 | CM109: 22.57272 | CN109: 19.27628 | CO109: 16.57226 | CP109: 12.69998 | CQ109: 9.25689 | CR109: 62.00852 | CS109: 65.47708 | CT109: 72.88727 | CU109: 63.91248 | CV109: 67.22493 | CW109: 75.89647 | CX109: 63.88234 | CY109: 67.1967 | CZ109: 75.86961
A110: 11:59:18 | B110: 0.1 | C110: 47.80853 | D110: -0.95715 | E110: -15.10493 | F110: -6.8294 | G110: 10.53529 | H110: -1.53371 | I110: 8.01998 | J110: 26.06144 | K110: 34.20552 | L110: 31.06074 | M110: 26.33598 | N110: 36.96298 | O110: 36.80163 | P110: 39.76649 | Q110: 35.63044 | R110: 37.54049 | S110: 34.50769 | T110: 34.42432 | U110: 36.80359 | V110: 37.60216 | W110: 36.65502 | X110: 35.11722 | Y110: 35.15244 | Z110: 33.16558 | AA110: 28.67587 | AB110: 25.88873 | AC110: 22.61433 | AD110: 18.71903 | AE110: 13.81424 | AF110: 7.56793 | AG110: 0.40587 | AH110: 53.27171 | AI110: 39.20848 | AJ110: 22.51987 | AK110: 24.36948 | AL110: 39.26115 | AM110: 24.83379 | AN110: 29.84029 | AO110: 43.72495 | AP110: 48.97476 | AQ110: 45.04667 | AR110: 36.93962 | AS110: 45.21481 | AT110: 43.73347 | AU110: 44.64093 | AV110: 38.91412 | AW110: 39.70538 | AX110: 35.40018 | AY110: 34.38374 | AZ110: 36.14932 | BA110: 36.59998 | BB110: 35.2909 | BC110: 33.54441 | BD110: 33.43966 | BE110: 31.37794 | BF110: 26.83335 | BG110: 24.01002 | BH110: 20.71465 | BI110: 16.80304 | BJ110: 11.88934 | BK110: 5.64352 | BL110: -1.55125 | BM110: 53.92163 | BN110: 43.60283 | BO110: 26.08577 | BP110: 26.22961 | BQ110: 40.64049 | BR110: 25.88566 | BS110: 30.42772 | BT110: 43.97224 | BU110: 49.09996 | BV110: 45.16435 | BW110: 36.97699 | BX110: 45.21152 | BY110: 43.71398 | BZ110: 44.61239 | CA110: 38.8792 | CB110: 39.67259 | CC110: 35.40855 | CD110: 34.39217 | CE110: 36.19614 | CF110: 36.68365 | CG110: 35.46201 | CH110: 33.85069 | CI110: 33.96801 | CJ110: 32.20494 | CK110: 28.11589 | CL110: 26.00464 | CM110: 23.62753 | CN110: 21.09275 | CO110: 17.84204 | CP110: 13.80009 | CQ110: 9.25368 | CR110: 58.68879 | CS110: 65.06085 | CT110: 72.60939 | CU110: 60.59352 | CV110: 66.80876 | CW110: 75.61873 | CX110: 60.56336 | CY110: 66.78053 | CZ110: 75.59187
A111: 11:59:18 | B111: 0.1 | C111: 63.58001 | D111: 1.56511 | E111: -5.32454 | F111: -6.93695 | G111: 8.78107 | H111: 5.96752 | I111: 8.06481 | J111: 20.94159 | K111: 27.84042 | L111: 43.83918 | M111: 46.04185 | N111: 40.45969 | O111: 54.83031 | P111: 55.63552 | Q111: 59.81935 | R111: 54.23968 | S111: 50.00653 | T111: 44.80264 | U111: 39.62727 | V111: 36.42614 | W111: 36.12726 | X111: 36.08386 | Y111: 35.66367 | Z111: 31.77243 | AA111: 28.23457 | AB111: 25.76186 | AC111: 22.36197 | AD111: 17.56337 | AE111: 13.65289 | AF111: 7.35824 | AG111: 0.18626 | AH111: 68.32277 | AI111: 41.77232 | AJ111: 31.87595 | AK111: 25.29067 | AL111: 37.73943 | AM111: 30.71191 | AN111: 30.54849 | AO111: 38.68313 | AP111: 43.26042 | AQ111: 56.56564 | AR111: 57.14316 | AS111: 49.12315 | AT111: 61.22729 | AU111: 60.41961 | AV111: 63.26175 | AW111: 56.1358 | AX111: 51.0006 | AY111: 44.81897 | AZ111: 39.13728 | BA111: 35.37215 | BB111: 34.744 | BC111: 34.50861 | BD111: 33.95337 | BE111: 29.98915 | BF111: 26.39333 | BG111: 23.88262 | BH111: 20.46218 | BI111: 15.64735 | BJ111: 11.728 | BK111: 5.43382 | BL111: -1.7741 | BM111: 68.33882 | BN111: 46.03321 | BO111: 35.29864 | BP111: 27.42403 | BQ111: 39.05173 | BR111: 31.52561 | BS111: 31.19935 | BT111: 38.94399 | BU111: 43.41675 | BV111: 56.65476 | BW111: 57.18668 | BX111: 49.1287 | BY111: 61.20851 | BZ111: 60.39142 | CA111: 63.23219 | CB111: 56.10986 | CC111: 50.98038 | CD111: 44.81934 | CE111: 39.15904 | CF111: 35.44962 | CG111: 34.92883 | CH111: 34.81569 | CI111: 34.47572 | CJ111: 30.75907 | CK111: 27.64461 | CL111: 25.89024 | CM111: 23.36272 | CN111: 19.95734 | CO111: 17.75652 | CP111: 13.53065 | CQ111: 9.12312 | CR111: 61.43233 | CS111: 64.63866 | CT111: 72.30529 | CU111: 66.00018 | CV111: 66.38797 | CW111: 75.31941 | CX111: 66.01353 | CY111: 66.35976 | CZ111: 75.29254
A112: 11:59:18 | B112: 0.1 | C112: 57.44328 | D112: 2.63468 | E112: -8.11254 | F112: -2.6361 | G112: 8.61119 | H112: 9.74947 | I112: 16.18726 | J112: 22.87655 | K112: 25.36972 | L112: 45.77968 | M112: 36.0099 | N112: 39.77397 | O112: 45.177 | P112: 47.44587 | Q112: 56.90496 | R112: 47.33946 | S112: 46.92039 | T112: 41.73877 | U112: 39.73383 | V112: 38.96748 | W112: 36.90738 | X112: 34.26192 | Y112: 34.7713 | Z112: 30.62537 | AA112: 27.32114 | AB112: 26.13874 | AC112: 23.60121 | AD112: 19.26636 | AE112: 15.2522 | AF112: 7.7164 | AG112: 0.735 | AH112: 62.41925 | AI112: 42.68335 | AJ112: 27.10609 | AK112: 29.50246 | AL112: 37.35263 | AM112: 33.43584 | AN112: 39.20233 | AO112: 41.36932 | AP112: 40.59801 | AQ112: 58.62051 | AR112: 47.61463 | AS112: 48.44963 | AT112: 51.69621 | AU112: 51.95492 | AV112: 60.24313 | AW112: 49.39313 | AX112: 47.80576 | AY112: 41.81434 | AZ112: 39.11124 | BA112: 37.94496 | BB112: 35.54964 | BC112: 32.69012 | BD112: 33.06562 | BE112: 28.84318 | BF112: 25.4793 | BG112: 24.25935 | BH112: 21.70193 | BI112: 17.35016 | BJ112: 13.3273 | BK112: 5.7924 | BL112: -1.22087 | BM112: 62.73176 | BN112: 47.06554 | BO112: 30.15679 | BP112: 31.62083 | BQ112: 38.70209 | BR112: 34.16058 | BS112: 39.86351 | BT112: 41.67561 | BU112: 40.75701 | BV112: 58.69582 | BW112: 47.67216 | BX112: 48.45319 | BY112: 51.66782 | BZ112: 51.92052 | CA112: 60.20476 | CB112: 49.34756 | CC112: 47.78288 | CD112: 41.81307 | CE112: 39.14709 | CF112: 38.02602 | CG112: 35.71082 | CH112: 32.99361 | CI112: 33.57699 | CJ112: 29.6289 | CK112: 26.74575 | CL112: 26.27438 | CM112: 24.58487 | CN112: 21.66811 | CO112: 19.33389 | CP112: 13.91171 | CQ112: 9.56735 | CR112: 57.42361 | CS112: 64.22968 | CT112: 72.02824 | CU112: 60.81608 | CV112: 65.97956 | CW112: 75.04275 | CX112: 60.78272 | CY112: 65.95132 | CZ112: 75.01588
A113: 11:59:18 | B113: 0.1 | C113: 48.0599 | D113: 3.2056 | E113: -2.10906 | F113: 1.82883 | G113: 6.72758 | H113: 9.16824 | I113: 17.10167 | J113: 20.19449 | K113: 23.2223 | L113: 34.56336 | M113: 30.46145 | N113: 34.2156 | O113: 36.37057 | P113: 35.59279 | Q113: 38.29177 | R113: 37.56245 | S113: 37.91187 | T113: 37.67043 | U113: 37.80398 | V113: 38.92414 | W113: 39.04424 | X113: 37.17077 | Y113: 35.46806 | Z113: 31.23983 | AA113: 28.9183 | AB113: 26.34021 | AC113: 22.96252 | AD113: 18.83221 | AE113: 14.39495 | AF113: 8.27888 | AG113: 1.23393 | AH113: 51.35492 | AI113: 43.90252 | AJ113: 35.0638 | AK113: 33.93053 | AL113: 36.0111 | AM113: 33.07191 | AN113: 39.96566 | AO113: 38.47429 | AP113: 39.13338 | AQ113: 46.99445 | AR113: 41.86102 | AS113: 42.72044 | AT113: 42.84738 | AU113: 40.65671 | AV113: 41.56059 | AW113: 39.533 | AX113: 38.71259 | AY113: 37.67382 | AZ113: 37.19512 | BA113: 37.86026 | BB113: 37.68737 | BC113: 35.60361 | BD113: 33.76515 | BE113: 29.45727 | BF113: 27.07467 | BG113: 24.46244 | BH113: 21.06248 | BI113: 16.9159 | BJ113: 12.4704 | BK113: 6.35417 | BL113: -0.72325 | BM113: 52.02946 | BN113: 48.57211 | BO113: 38.32239 | BP113: 35.99796 | BQ113: 37.4791 | BR113: 33.84467 | BS113: 40.54285 | BT113: 38.75737 | BU113: 39.31672 | BV113: 47.04986 | BW113: 41.90234 | BX113: 42.71877 | BY113: 42.83082 | BZ113: 40.63335 | CA113: 41.5093 | CB113: 39.49897 | CC113: 38.69389 | CD113: 37.67638 | CE113: 37.22523 | CF113: 37.9468 | CG113: 37.85609 | CH113: 35.91028 | CI113: 34.27116 | CJ113: 30.23978 | CK113: 28.3651 | CL113: 26.42649 | CM113: 23.97487 | CN113: 21.25798 | CO113: 18.43438 | CP113: 14.48761 | CQ113: 10.09676 | CR113: 54.14202 | CS113: 63.81369 | CT113: 71.75038 | CU113: 57.53292 | CV113: 65.56362 | CW113: 74.76489 | CX113: 57.49942 | CY113: 65.53538 | CZ113: 74.73803
A114: 11:59:18 | B114: 0.1 | C114: 45.41404 | D114: 3.63518 | E114: -2.91503 | F114: -0.50365 | G114: 1.82513 | H114: 6.22215 | I114: 7.10652 | J114: 15.44639 | K114: 17.31016 | L114: 25.43964 | M114: 29.67636 | N114: 29.73619 | O114: 33.68619 | P114: 34.5444 | Q114: 33.56797 | R114: 32.68501 | S114: 33.45731 | T114: 35.10197 | U114: 37.37921 | V114: 35.86431 | W114: 35.96827 | X114: 34.00674 | Y114: 34.5034 | Z114: 30.79935 | AA114: 29.12448 | AB114: 27.80338 | AC114: 24.42872 | AD114: 19.53333 | AE114: 15.26876 | AF114: 8.38657 | AG114: 0.51531 | AH114: 48.96484 | AI114: 44.25153 | AJ114: 34.46941 | AK114: 31.50318 | AL114: 30.39389 | AM114: 30.44132 | AN114: 29.23748 | AO114: 33.61452 | AP114: 33.59184 | AQ114: 38.13693 | AR114: 40.48468 | AS114: 38.45327 | AT114: 39.97717 | AU114: 39.84749 | AV114: 36.64273 | AW114: 34.73581 | AX114: 34.27424 | AY114: 35.09078 | AZ114: 36.74933 | BA114: 34.801 | BB114: 34.59452 | BC114: 32.42191 | BD114: 32.7962 | BE114: 29.01808 | BF114: 27.28046 | BG114: 25.92361 | BH114: 22.52867 | BI114: 17.61806 | BJ114: 13.34375 | BK114: 6.46185 | BL114: -1.44246 | BM114: 50.52293 | BN114: 48.90359 | BO114: 38.05006 | BP114: 33.38734 | BQ114: 31.67822 | BR114: 31.15984 | BS114: 29.82787 | BT114: 33.88814 | BU114: 33.8082 | BV114: 38.21804 | BW114: 40.52327 | BX114: 38.45628 | BY114: 39.95017 | BZ114: 39.81628 | CA114: 36.60519 | CB114: 34.7052 | CC114: 34.25974 | CD114: 35.08615 | CE114: 36.7826 | CF114: 34.88934 | CG114: 34.76995 | CH114: 32.73055 | CI114: 33.31029 | CJ114: 29.80125 | CK114: 28.57307 | CL114: 27.98764 | CM114: 25.45904 | CN114: 21.83941 | CO114: 19.36929 | CP114: 14.49818 | CQ114: 9.39608 | CR114: 50.48354 | CS114: 63.35082 | CT114: 71.44157 | CU114: 53.87123 | CV114: 65.10077 | CW114: 74.45615 | CX114: 53.83771 | CY114: 65.07253 | CZ114: 74.42929
A115: 11:59:18 | B115: 0.1 | C115: 44.06097 | D115: -4.69495 | E115: -7.12708 | F115: -11.48457 | G115: 2.45334 | H115: 1.81978 | I115: 9.01193 | J115: 14.01785 | K115: 19.6553 | L115: 19.69331 | M115: 26.26139 | N115: 26.15585 | O115: 28.12086 | P115: 30.50834 | Q115: 30.77858 | R115: 30.46906 | S115: 32.0078 | T115: 33.66297 | U115: 36.04401 | V115: 32.87788 | W115: 34.84283 | X115: 34.37575 | Y115: 34.7314 | Z115: 29.90868 | AA115: 27.41592 | AB115: 25.74809 | AC115: 22.93399 | AD115: 17.85764 | AE115: 13.72586 | AF115: 6.75389 | AG115: -0.38799 | AH115: 46.77753 | AI115: 35.59673 | AJ115: 29.44775 | AK115: 19.27636 | AL115: 31.67532 | AM115: 26.72045 | AN115: 30.59006 | AO115: 32.75581 | AP115: 35.17099 | AQ115: 32.33158 | AR115: 37.37566 | AS115: 34.45815 | AT115: 34.97278 | AU115: 35.32549 | AV115: 33.88662 | AW115: 32.59295 | AX115: 32.83526 | AY115: 33.59922 | AZ115: 35.41416 | BA115: 31.80348 | BB115: 33.45367 | BC115: 32.81003 | BD115: 33.02406 | BE115: 28.12775 | BF115: 25.5734 | BG115: 23.86552 | BH115: 21.03448 | BI115: 15.9424 | BJ115: 11.80089 | BK115: 4.82959 | BL115: -2.35191 | BM115: 47.68272 | BN115: 40.74609 | BO115: 32.58165 | BP115: 21.123 | BQ115: 33.17405 | BR115: 27.54053 | BS115: 31.12831 | BT115: 33.08291 | BU115: 35.32444 | BV115: 32.39573 | BW115: 37.41632 | BX115: 34.46465 | BY115: 34.95672 | BZ115: 35.29653 | CA115: 33.85099 | CB115: 32.56396 | CC115: 32.81068 | CD115: 33.60214 | CE115: 35.44855 | CF115: 31.89144 | CG115: 33.63005 | CH115: 33.10918 | CI115: 33.54087 | CJ115: 28.8962 | CK115: 26.85687 | CL115: 25.919 | CM115: 23.92728 | CN115: 20.16937 | CO115: 17.79604 | CP115: 12.85789 | CQ115: 8.61173 | CR115: 47.20435 | CS115: 62.93412 | CT115: 71.16364 | CU115: 50.58796 | CV115: 64.6841 | CW115: 74.17823 | CX115: 50.55442 | CY115: 64.65585 | CZ115: 74.15137
A116: 11:59:18 | B116: 0.1 | C116: 66.18151 | D116: -4.19698 | E116: -6.09795 | F116: -13.39831 | G116: 6.14545 | H116: 3.54629 | I116: 12.22703 | J116: 16.53669 | K116: 16.40573 | L116: 23.91087 | M116: 44.88163 | N116: 64.47445 | O116: 46.62641 | P116: 40.80751 | Q116: 54.10378 | R116: 34.62582 | S116: 38.3983 | T116: 36.14984 | U116: 34.96338 | V116: 34.53545 | W116: 35.05506 | X116: 41.42105 | Y116: 36.86485 | Z116: 33.97945 | AA116: 32.82246 | AB116: 35.79021 | AC116: 27.84357 | AD116: 24.22417 | AE116: 16.79784 | AF116: 6.96049 | AG116: 0.00742 | AH116: 74.71643 | AI116: 36.40509 | AJ116: 30.36654 | AK116: 20.2057 | AL116: 35.05976 | AM116: 28.65643 | AN116: 34.78731 | AO116: 34.82577 | AP116: 32.215 | AQ116: 35.8714 | AR116: 53.89424 | AS116: 73.3013 | AT116: 54.19053 | AU116: 45.70392 | AV116: 57.46163 | AW116: 36.99986 | AX116: 39.49787 | AY116: 36.15591 | AZ116: 34.35683 | BA116: 33.46391 | BB116: 33.68444 | BC116: 39.83955 | BD116: 35.16211 | BE116: 32.19293 | BF116: 30.96576 | BG116: 33.91598 | BH116: 25.94569 | BI116: 22.3093 | BJ116: 14.87318 | BK116: 5.036 | BL116: -1.9488 | BM116: 74.72374 | BN116: 41.01968 | BO116: 33.5359 | BP116: 22.66698 | BQ116: 36.3768 | BR116: 29.52048 | BS116: 35.35931 | BT116: 35.11477 | BU116: 32.40034 | BV116: 35.93829 | BW116: 53.91296 | BX116: 73.31221 | BY116: 54.18301 | BZ116: 45.67636 | CA116: 57.43068 | CB116: 36.97613 | CC116: 39.47537 | CD116: 36.15664 | CE116: 34.38911 | CF116: 33.55665 | CG116: 33.86412 | CH116: 40.15283 | CI116: 35.66593 | CJ116: 32.99046 | CK116: 32.44633 | CL116: 35.7725 | CM116: 28.75761 | CN116: 26.4626 | CO116: 20.73602 | CP116: 13.07721 | CQ116: 8.85059 | CR116: 64.06731 | CS116: 62.51786 | CT116: 70.88574 | CU116: 72.6155 | CV116: 64.41641 | CW116: 76.82884 | CX116: 72.62131 | CY116: 64.42351 | CZ116: 76.83926
A117: 11:59:19 | B117: 0.1 | C117: 67.04331 | D117: -7.67554 | E117: -8.97294 | F117: 0.19134 | G117: 12.34616 | H117: 4.28102 | I117: 13.90861 | J117: 12.95867 | K117: 17.77641 | L117: 29.52236 | M117: 47.9412 | N117: 66.92003 | O117: 55.90606 | P117: 45.51374 | Q117: 50.60265 | R117: 43.283 | S117: 47.50877 | T117: 44.89661 | U117: 49.72153 | V117: 48.80013 | W117: 49.68414 | X117: 48.94749 | Y117: 38.09468 | Z117: 34.36178 | AA117: 31.44659 | AB117: 29.49749 | AC117: 26.27892 | AD117: 20.02423 | AE117: 15.49586 | AF117: 8.42384 | AG117: 1.04776 | AH117: 75.35004 | AI117: 33.32497 | AJ117: 28.68899 | AK117: 32.25655 | AL117: 41.37116 | AM117: 29.99997 | AN117: 36.31873 | AO117: 30.81551 | AP117: 33.86404 | AQ117: 42.29774 | AR117: 57.75874 | AS117: 75.35004 | AT117: 63.34083 | AU117: 50.5239 | AV117: 53.72702 | AW117: 45.42918 | AX117: 48.38333 | AY117: 44.8196 | AZ117: 49.08832 | BA117: 47.74166 | BB117: 48.3018 | BC117: 47.38548 | BD117: 36.41276 | BE117: 32.57141 | BF117: 29.60488 | BG117: 27.61867 | BH117: 24.37916 | BI117: 18.10899 | BJ117: 13.5709 | BK117: 6.49932 | BL117: -0.90817 | BM117: 75.34676 | BN117: 38.36267 | BO117: 32.21287 | BP117: 34.26271 | BQ117: 42.8077 | BR117: 30.97603 | BS117: 36.89226 | BT117: 31.11356 | BU117: 34.06406 | BV117: 42.38317 | BW117: 57.77562 | BX117: 75.34676 | BY117: 63.33054 | BZ117: 50.4963 | CA117: 53.69162 | CB117: 45.39848 | CC117: 48.36378 | CD117: 44.82322 | CE117: 49.12307 | CF117: 47.82769 | CG117: 48.47938 | CH117: 47.67898 | CI117: 36.87777 | CJ117: 33.39398 | CK117: 30.86347 | CL117: 29.61932 | CM117: 27.27515 | CN117: 22.31125 | CO117: 19.5951 | CP117: 14.55168 | CQ117: 9.89964 | CR117: 65.16801 | CS117: 62.06044 | CT117: 70.57747 | CU117: 73.689 | CV117: 67.64407 | CW117: 77.49985 | CX117: 73.68855 | CY117: 67.64568 | CZ117: 77.47827
A118: 11:59:19 | B118: 0.1 | C118: 51.08312 | D118: -6.6171 | E118: -4.31132 | F118: -2.14279 | G118: 11.42622 | H118: 3.33099 | I118: 12.56848 | J118: 16.76296 | K118: 19.14896 | L118: 29.40955 | M118: 35.97851 | N118: 51.08312 | O118: 40.9913 | P118: 35.40079 | Q118: 35.91478 | R118: 36.61193 | S118: 37.11534 | T118: 33.95219 | U118: 37.57285 | V118: 37.05126 | W118: 37.88692 | X118: 34.26986 | Y118: 34.64426 | Z118: 31.90187 | AA118: 28.53332 | AB118: 27.54728 | AC118: 23.77116 | AD118: 20.09282 | AE118: 15.62222 | AF118: 9.37685 | AG118: 1.91996 | AH118: 59.48262 | AI118: 33.37474 | AJ118: 32.92143 | AK118: 31.08691 | AL118: 40.86941 | AM118: 28.64407 | AN118: 35.02666 | AO118: 34.37672 | AP118: 35.66738 | AQ118: 41.93372 | AR118: 45.68872 | AS118: 59.48262 | AT118: 48.1571 | AU118: 40.28213 | AV118: 39.15956 | AW118: 38.50851 | AX118: 38.08378 | AY118: 33.89053 | AZ118: 36.96571 | BA118: 36.00046 | BB118: 36.51527 | BC118: 32.71113 | BD118: 32.93887 | BE118: 30.11635 | BF118: 26.69054 | BG118: 25.66582 | BH118: 21.87237 | BI118: 18.17718 | BJ118: 13.69724 | BK118: 7.45239 | BL118: -0.03234 | BM118: 59.48057 | BN118: 37.6656 | BO118: 36.29197 | BP118: 33.33778 | BQ118: 42.27414 | BR118: 29.60258 | BS118: 35.65048 | BT118: 34.63703 | BU118: 35.87563 | BV118: 42.00304 | BW118: 45.69876 | BX118: 59.48057 | BY118: 48.14172 | BZ118: 40.25243 | CA118: 39.12737 | CB118: 38.47908 | CC118: 38.06555 | CD118: 33.89342 | CE118: 37.00162 | CF118: 36.09455 | CG118: 36.68857 | CH118: 33.0055 | CI118: 33.44774 | CJ118: 30.92692 | CK118: 27.96592 | CL118: 27.73684 | CM118: 24.74969 | CN118: 22.42848 | CO118: 19.73976 | CP118: 15.52823 | CQ118: 10.6898 | CR118: 61.97876 | CS118: 61.64477 | CT118: 70.29962 | CU118: 70.49625 | CV118: 67.29139 | CW118: 77.22632 | CX118: 70.49573 | CY118: 67.29293 | CZ118: 77.20477
A119: 11:59:19 | B119: 0.1 | C119: 74.94568 | D119: -4.57071 | E119: -11.13068 | F119: 4.33935 | G119: 11.74805 | H119: -1.63982 | I119: 13.58945 | J119: 17.26392 | K119: 18.44866 | L119: 27.47556 | M119: 50.58021 | N119: 66.2963 | O119: 49.26563 | P119: 49.63068 | Q119: 70.38535 | R119: 59.77445 | S119: 69.88877 | T119: 59.93088 | U119: 50.45275 | V119: 40.47726 | W119: 38.54077 | X119: 43.10725 | Y119: 35.84346 | Z119: 36.96516 | AA119: 31.68426 | AB119: 27.59618 | AC119: 26.43419 | AD119: 21.79509 | AE119: 15.99117 | AF119: 9.17352 | AG119: 1.56936 | AH119: 79.44616 | AI119: 35.39737 | AJ119: 26.07389 | AK119: 36.45686 | AL119: 41.3018 | AM119: 23.49232 | AN119: 34.86401 | AO119: 35.80324 | AP119: 34.05079 | AQ119: 39.94102 | AR119: 60.33142 | AS119: 75.04645 | AT119: 57.04638 | AU119: 53.64233 | AV119: 73.60396 | AW119: 61.37268 | AX119: 70.87264 | AY119: 59.89086 | AZ119: 50.01814 | BA119: 39.45677 | BB119: 37.16891 | BC119: 41.54411 | BD119: 34.13364 | BE119: 35.16455 | BF119: 29.85154 | BG119: 25.71541 | BH119: 24.53429 | BI119: 19.87998 | BJ119: 14.06651 | BK119: 7.249 | BL119: -0.38062 | BM119: 79.43761 | BN119: 39.80627 | BO119: 29.66162 | BP119: 38.45278 | BQ119: 42.73565 | BR119: 24.35394 | BS119: 35.31758 | BT119: 36.10962 | BU119: 34.22899 | BV119: 40.02144 | BW119: 60.35153 | BX119: 75.05439 | BY119: 57.04573 | BZ119: 53.61179 | CA119: 73.57359 | CB119: 61.34675 | CC119: 70.85522 | CD119: 59.91444 | CE119: 50.04118 | CF119: 39.53667 | CG119: 37.35515 | CH119: 41.83769 | CI119: 34.65402 | CJ119: 36.0482 | CK119: 31.01113 | CL119: 27.77639 | CM119: 27.43021 | CN119: 24.06721 | CO119: 19.98643 | CP119: 15.3376 | CQ119: 10.30569 | CR119: 73.28667 | CS119: 65.09976 | CT119: 78.07101 | CU119: 77.75465 | CV119: 69.59546 | CW119: 82.29546 | CX119: 77.74509 | CY119: 69.58676 | CZ119: 82.30167
A120: 11:59:19 | B120: 0.1 | C120: 76.97119 | D120: -5.61562 | E120: -17.52744 | F120: -0.48111 | G120: 11.12926 | H120: 4.12565 | I120: 12.73469 | J120: 16.07559 | K120: 19.29722 | L120: 38.39392 | M120: 67.11362 | N120: 69.11063 | O120: 48.80167 | P120: 66.52705 | Q120: 72.56299 | R120: 59.35978 | S120: 65.15456 | T120: 67.60515 | U120: 64.92648 | V120: 53.77909 | W120: 52.41427 | X120: 48.6807 | Y120: 39.44786 | Z120: 37.30664 | AA120: 30.34665 | AB120: 29.34372 | AC120: 25.51109 | AD120: 19.80767 | AE120: 13.76525 | AF120: 7.24532 | AG120: 0.31554 | AH120: 83.0805 | AI120: 35.49473 | AJ120: 18.94839 | AK120: 31.62869 | AL120: 40.01254 | AM120: 29.53282 | AN120: 34.06142 | AO120: 34.65944 | AP120: 33.30483 | AQ120: 49.04478 | AR120: 77.43673 | AS120: 77.82266 | AT120: 56.33694 | AU120: 70.88456 | AV120: 75.9666 | AW120: 61.15731 | AX120: 66.17572 | AY120: 67.5113 | AZ120: 64.37826 | BA120: 52.82346 | BB120: 51.01295 | BC120: 47.13399 | BD120: 37.75508 | BE120: 35.51744 | BF120: 28.50938 | BG120: 27.46331 | BH120: 23.61166 | BI120: 17.89216 | BJ120: 11.84081 | BK120: 5.32111 | BL120: -1.63886 | BM120: 83.08586 | BN120: 40.16558 | BO120: 22.13062 | BP120: 33.64269 | BQ120: 41.41071 | BR120: 30.4355 | BS120: 34.63675 | BT120: 34.98797 | BU120: 33.45382 | BV120: 49.09113 | BW120: 77.47394 | BX120: 77.826 | BY120: 56.32856 | BZ120: 70.8566 | CA120: 75.93297 | CB120: 61.13465 | CC120: 66.14215 | CD120: 67.51098 | CE120: 64.40649 | CF120: 52.89403 | CG120: 51.1982 | CH120: 47.42338 | CI120: 38.23949 | CJ120: 36.32768 | CK120: 29.74249 | CL120: 29.50165 | CM120: 26.51782 | CN120: 22.13242 | CO120: 17.72102 | CP120: 13.42185 | CQ120: 9.15006 | CR120: 73.86943 | CS120: 66.53636 | CT120: 78.549 | CU120: 80.35992 | CV120: 72.69368 | CW120: 84.70927 | CX120: 80.36694 | CY120: 72.69926 | CZ120: 84.72108
A121: 11:59:19 | B121: 0.1 | C121: 75.79055 | D121: -6.02583 | E121: -11.64868 | F121: -1.78701 | G121: -0.312 | H121: 5.74618 | I121: 16.72119 | J121: 14.24973 | K121: 19.19588 | L121: 36.68468 | M121: 67.63838 | N121: 61.23403 | O121: 46.81363 | P121: 72.69276 | Q121: 69.20917 | R121: 66.76585 | S121: 64.86388 | T121: 60.40037 | U121: 54.77837 | V121: 43.44927 | W121: 40.36002 | X121: 48.53428 | Y121: 38.27141 | Z121: 35.49571 | AA121: 30.55643 | AB121: 28.73075 | AC121: 25.26298 | AD121: 18.61627 | AE121: 13.11726 | AF121: 6.38218 | AG121: 0.15838 | AH121: 80.69164 | AI121: 34.20993 | AJ121: 25.35948 | AK121: 29.88861 | AL121: 27.96829 | AM121: 30.7694 | AN121: 38.40253 | AO121: 32.66 | AP121: 33.98504 | AQ121: 47.83347 | AR121: 77.99411 | AS121: 70.47463 | AT121: 52.54774 | AU121: 77.18522 | AV121: 72.82439 | AW121: 68.60213 | AX121: 65.98502 | AY121: 60.2905 | AZ121: 54.27696 | BA121: 42.47729 | BB121: 38.96098 | BC121: 46.96404 | BD121: 36.57035 | BE121: 33.70859 | BF121: 28.71544 | BG121: 26.85305 | BH121: 23.36276 | BI121: 16.70048 | BJ121: 11.19262 | BK121: 4.45808 | BL121: -1.79421 | BM121: 80.67873 | BN121: 38.848 | BO121: 28.70126 | BP121: 31.68866 | BQ121: 29.10022 | BR121: 31.66186 | BS121: 38.88544 | BT121: 32.9521 | BU121: 34.12382 | BV121: 47.8635 | BW121: 78.01421 | BX121: 70.47943 | BY121: 52.51783 | BZ121: 77.15446 | CA121: 72.79287 | CB121: 68.57257 | CC121: 65.96556 | CD121: 60.29509 | CE121: 54.29971 | CF121: 42.54029 | CG121: 39.15007 | CH121: 47.25546 | CI121: 37.08162 | CJ121: 34.51764 | CK121: 29.95341 | CL121: 28.81027 | CM121: 26.25446 | CN121: 20.97862 | CO121: 17.15479 | CP121: 12.60172 | CQ121: 8.97944 | CR121: 72.89807 | CS121: 65.45905 | CT121: 77.34419 | CU121: 77.63475 | CV121: 71.03509 | CW121: 82.2819 | CX121: 77.61989 | CY121: 71.03899 | CZ121: 82.26622
A122: 11:59:19 | B122: 0.1 | C122: 72.72104 | D122: -8.67188 | E122: -8.9433 | F122: 0.30083 | G122: 5.67777 | H122: 1.74313 | I122: 14.04328 | J122: 16.1662 | K122: 19.40948 | L122: 26.31462 | M122: 51.15179 | N122: 59.73763 | O122: 62.71878 | P122: 63.07976 | Q122: 61.5946 | R122: 66.20171 | S122: 69.36809 | T122: 53.58867 | U122: 42.53156 | V122: 38.88119 | W122: 36.66296 | X122: 43.34145 | Y122: 38.41146 | Z122: 31.94437 | AA122: 28.65987 | AB122: 26.56898 | AC122: 22.43013 | AD122: 16.04443 | AE122: 10.18003 | AF122: 4.46852 | AG122: -0.96944 | AH122: 76.05623 | AI122: 30.06998 | AJ122: 27.46111 | AK122: 33.1691 | AL122: 34.99923 | AM122: 26.48531 | AN122: 36.45504 | AO122: 34.85564 | AP122: 35.40984 | AQ122: 38.53125 | AR122: 61.27187 | AS122: 68.06042 | AT122: 69.21575 | AU122: 68.38993 | AV122: 64.71419 | AW122: 68.06437 | AX122: 70.24306 | AY122: 53.92058 | AZ122: 42.06026 | BA122: 37.88347 | BB122: 35.27699 | BC122: 41.74562 | BD122: 36.71916 | BE122: 30.16769 | BF122: 26.81705 | BG122: 24.69247 | BH122: 20.53082 | BI122: 14.12926 | BJ122: 8.25498 | BK122: 2.54406 | BL122: -2.93041 | BM122: 76.04144 | BN122: 33.95518 | BO122: 30.57841 | BP122: 35.28412 | BQ122: 36.51639 | BR122: 27.35483 | BS122: 37.02744 | BT122: 35.19791 | BU122: 35.63689 | BV122: 38.60363 | BW122: 61.29285 | BX122: 68.05608 | BY122: 69.19831 | BZ122: 68.37034 | CA122: 64.6786 | CB122: 68.03555 | CC122: 70.22256 | CD122: 53.91239 | CE122: 42.07826 | CF122: 37.96236 | CG122: 35.45544 | CH122: 42.06872 | CI122: 37.20362 | CJ122: 30.92432 | CK122: 28.09376 | CL122: 26.61758 | CM122: 23.39921 | CN122: 18.32986 | CO122: 14.31264 | CP122: 10.71664 | CQ122: 8.01264 | CR122: 70.00382 | CS122: 65.18676 | CT122: 74.8304 | CU122: 73.47809 | CV122: 70.80434 | CW122: 81.01725 | CX122: 73.46326 | CY122: 70.8078 | CZ122: 81.07376
A123: 11:59:19 | B123: 0.1 | C123: 70.15477 | D123: -3.20416 | E123: -1.9314 | F123: 1.67091 | G123: 10.45721 | H123: 1.72089 | I123: 12.4343 | J123: 15.48573 | K123: 21.06873 | L123: 21.54015 | M123: 45.02163 | N123: 51.7899 | O123: 59.26118 | P123: 65.06306 | Q123: 63.73029 | R123: 64.07524 | S123: 62.43955 | T123: 42.75824 | U123: 38.10428 | V123: 37.36243 | W123: 35.43712 | X123: 37.12938 | Y123: 37.27666 | Z123: 31.28703 | AA123: 28.30105 | AB123: 25.56416 | AC123: 21.22945 | AD123: 15.91213 | AE123: 11.4474 | AF123: 4.84238 | AG123: -0.58141 | AH123: 74.01019 | AI123: 36.71332 | AJ123: 34.55252 | AK123: 32.78186 | AL123: 39.88212 | AM123: 26.72932 | AN123: 33.70088 | AO123: 34.16209 | AP123: 36.592 | AQ123: 33.79269 | AR123: 55.42871 | AS123: 60.54385 | AT123: 65.30141 | AU123: 70.3513 | AV123: 67.19209 | AW123: 65.78082 | AX123: 63.67783 | AY123: 42.82458 | AZ123: 37.51833 | BA123: 36.34103 | BB123: 34.05595 | BC123: 35.55433 | BD123: 35.56986 | BE123: 29.51094 | BF123: 26.45665 | BG123: 23.68749 | BH123: 19.32983 | BI123: 13.99622 | BJ123: 9.52251 | BK123: 2.91817 | BL123: -2.54518 | BM123: 74.00349 | BN123: 40.78682 | BO123: 37.60318 | BP123: 34.62122 | BQ123: 41.30767 | BR123: 27.57627 | BS123: 34.18318 | BT123: 34.45071 | BU123: 36.73551 | BV123: 33.87511 | BW123: 55.45717 | BX123: 60.55092 | BY123: 65.27678 | BZ123: 70.32204 | CA123: 67.1621 | CB123: 65.75308 | CC123: 63.65322 | CD123: 42.82216 | CE123: 37.54705 | CF123: 36.41677 | CG123: 34.23502 | CH123: 35.85929 | CI123: 36.08379 | CJ123: 30.26759 | CK123: 27.75054 | CL123: 25.63641 | CM123: 22.2225 | CN123: 18.2522 | CO123: 15.50396 | CP123: 11.07013 | CQ123: 8.47797 | CR123: 67.58963 | CS123: 65.08015 | CT123: 74.57509 | CU123: 71.39645 | CV123: 70.4297 | CW123: 80.74008 | CX123: 71.38882 | CY123: 70.43318 | CZ123: 80.79659
A124: 11:59:19 | B124: 0.1 | C124: 70.37362 | D124: 4.12891 | E124: -2.17012 | F124: 1.65174 | G124: 9.84908 | H124: 1.34476 | I124: 14.28905 | J124: 14.15571 | K124: 17.91422 | L124: 42.13676 | M124: 53.93256 | N124: 46.2802 | O124: 52.30305 | P124: 63.6741 | Q124: 66.72077 | R124: 63.76437 | S124: 61.49028 | T124: 52.09684 | U124: 41.98975 | V124: 35.75857 | W124: 34.21802 | X124: 37.95465 | Y124: 36.76166 | Z124: 33.02998 | AA124: 32.90238 | AB124: 31.71596 | AC124: 27.49464 | AD124: 22.7717 | AE124: 16.76342 | AF124: 9.80895 | AG124: 2.80299 | AH124: 73.82018 | AI124: 44.16055 | AJ124: 35.48141 | AK124: 33.92368 | AL124: 39.52505 | AM124: 26.65799 | AN124: 36.41169 | AO124: 32.61627 | AP124: 32.92542 | AQ124: 54.02574 | AR124: 64.85782 | AS124: 55.45671 | AT124: 58.17557 | AU124: 68.31885 | AV124: 69.61759 | AW124: 65.91145 | AX124: 62.66554 | AY124: 52.31462 | AZ124: 41.51862 | BA124: 34.72949 | BB124: 32.83183 | BC124: 36.37989 | BD124: 35.0548 | BE124: 31.24196 | BF124: 31.05721 | BG124: 29.83788 | BH124: 25.59451 | BI124: 20.85686 | BJ124: 14.83884 | BK124: 7.88451 | BL124: 0.85096 | BM124: 73.81638 | BN124: 48.48128 | BO124: 39.12012 | BP124: 35.90582 | BQ124: 40.95741 | BR124: 27.57066 | BS124: 36.96941 | BT124: 32.91846 | BU124: 33.06055 | BV124: 54.08849 | BW124: 64.8993 | BX124: 55.46082 | BY124: 58.15147 | BZ124: 68.28598 | CA124: 69.58467 | CB124: 65.88181 | CC124: 62.64281 | CD124: 52.30923 | CE124: 41.5813 | CF124: 34.81072 | CG124: 33.01246 | CH124: 36.68576 | CI124: 35.57172 | CJ124: 32.05312 | CK124: 32.36527 | CL124: 31.80683 | CM124: 28.551 | CN124: 25.03777 | CO124: 20.78485 | CP124: 16.02223 | CQ124: 11.5783 | CR124: 67.71011 | CS124: 65.26643 | CT124: 74.34435 | CU124: 71.0174 | CV124: 70.02658 | CW124: 80.46951 | CX124: 71.01534 | CY124: 70.03008 | CZ124: 80.52599
A125: 11:59:19 | B125: 0.1 | C125: 69.51927 | D125: 5.19522 | E125: -5.19856 | F125: -0.00729 | G125: 12.61295 | H125: -2.08095 | I125: 14.97398 | J125: 12.50783 | K125: 29.24516 | L125: 46.44174 | M125: 40.87716 | N125: 42.7443 | O125: 56.10023 | P125: 51.89844 | Q125: 62.85721 | R125: 67.66917 | S125: 54.89545 | T125: 46.80064 | U125: 49.85245 | V125: 46.65414 | W125: 41.2421 | X125: 45.55675 | Y125: 37.66464 | Z125: 33.05198 | AA125: 33.55807 | AB125: 31.69749 | AC125: 27.57996 | AD125: 24.65778 | AE125: 16.98186 | AF125: 9.59161 | AG125: 2.67066 | AH125: 72.4319 | AI125: 45.57127 | AJ125: 31.43661 | AK125: 31.89867 | AL125: 42.21158 | AM125: 22.40587 | AN125: 36.8299 | AO125: 31.17068 | AP125: 44.36594 | AQ125: 59.26113 | AR125: 52.35944 | AS125: 50.97021 | AT125: 62.80465 | AU125: 56.41256 | AV125: 66.08064 | AW125: 69.69305 | AX125: 56.04231 | AY125: 46.8735 | AZ125: 49.32363 | BA125: 45.61402 | BB125: 39.88326 | BC125: 43.98153 | BD125: 35.9761 | BE125: 31.26242 | BF125: 31.71265 | BG125: 29.82002 | BH125: 25.67846 | BI125: 22.74251 | BJ125: 15.05722 | BK125: 7.66727 | BL125: 0.72017 | BM125: 72.4272 | BN125: 50.08487 | BO125: 34.60945 | BP125: 33.96915 | BQ125: 43.68248 | BR125: 23.41157 | BS125: 37.36122 | BT125: 31.5022 | BU125: 44.52158 | BV125: 59.3452 | BW125: 52.3903 | BX125: 50.96956 | BY125: 62.78839 | BZ125: 56.38354 | CA125: 66.04784 | CB125: 69.66405 | CC125: 56.01719 | CD125: 46.87136 | CE125: 49.34477 | CF125: 45.6972 | CG125: 40.05445 | CH125: 44.28845 | CI125: 36.44914 | CJ125: 32.08883 | CK125: 33.02383 | CL125: 31.77132 | CM125: 28.68736 | CN125: 26.93097 | CO125: 21.00224 | CP125: 15.73732 | CQ125: 11.4298 | CR125: 67.21227 | CS125: 65.06963 | CT125: 74.05787 | CU125: 70.1087 | CV125: 69.56944 | CW125: 80.16116 | CX125: 70.10832 | CY125: 69.57292 | CZ125: 80.21764
A126: 11:59:19 | B126: 0.1 | C126: 68.04861 | D126: 1.41563 | E126: 1.26009 | F126: -0.25269 | G126: 13.80958 | H126: 1.29326 | I126: 13.02744 | J126: 14.90015 | K126: 30.21138 | L126: 46.22786 | M126: 37.04493 | N126: 36.13007 | O126: 54.93928 | P126: 46.80001 | Q126: 62.1241 | R126: 66.93609 | S126: 53.30905 | T126: 42.88174 | U126: 45.29743 | V126: 49.64256 | W126: 42.43874 | X126: 43.59335 | Y126: 36.75207 | Z126: 32.18866 | AA126: 32.30444 | AB126: 29.34339 | AC126: 25.08765 | AD126: 22.82634 | AE126: 15.31728 | AF126: 8.72496 | AG126: 2.16563 | AH126: 70.9833 | AI126: 40.13499 | AJ126: 38.27334 | AK126: 29.86616 | AL126: 43.25323 | AM126: 26.52949 | AN126: 35.15594 | AO126: 32.40409 | AP126: 44.50836 | AQ126: 59.37285 | AR126: 48.66442 | AS126: 43.78365 | AT126: 61.66055 | AU126: 50.82956 | AV126: 65.51248 | AW126: 68.82167 | AX126: 54.3456 | AY126: 42.97974 | AZ126: 44.7141 | BA126: 48.63858 | BB126: 41.11602 | BC126: 42.02377 | BD126: 35.05826 | BE126: 30.39975 | BF126: 30.45966 | BG126: 27.46712 | BH126: 23.18591 | BI126: 20.91115 | BJ126: 13.39262 | BK126: 6.80074 | BL126: 0.21378 | BM126: 70.97456 | BN126: 44.30617 | BO126: 41.55473 | BP126: 31.44778 | BQ126: 44.73684 | BR126: 27.37632 | BS126: 35.75402 | BT126: 32.65292 | BU126: 44.6302 | BV126: 59.46723 | BW126: 48.71652 | BX126: 43.77428 | BY126: 61.64114 | BZ126: 50.79758 | CA126: 65.48044 | CB126: 68.79124 | CC126: 54.32462 | CD126: 42.97774 | CE126: 44.74751 | CF126: 48.71542 | CG126: 41.27004 | CH126: 42.32217 | CI126: 35.54317 | CJ126: 31.21707 | CK126: 31.76006 | CL126: 29.38747 | CM126: 26.21902 | CN126: 25.10663 | CO126: 19.33603 | CP126: 14.99516 | CQ126: 10.93034 | CR126: 66.53889 | CS126: 64.87137 | CT126: 73.79839 | CU126: 68.48347 | CV126: 69.15364 | CW126: 79.8834 | CX126: 68.45306 | CY126: 69.15714 | CZ126: 79.93987
A127: 11:59:20 | B127: 0.1 | C127: 71.66367 | D127: 1.54202 | E127: -1.79974 | F127: -6.00718 | G127: 9.39363 | H127: 1.52203 | I127: 15.54855 | J127: 12.76331 | K127: 30.14649 | L127: 47.35172 | M127: 38.41415 | N127: 39.61599 | O127: 55.11103 | P127: 46.20557 | Q127: 59.85278 | R127: 69.96269 | S127: 63.3367 | T127: 58.9269 | U127: 57.94887 | V127: 48.05319 | W127: 43.29646 | X127: 39.34883 | Y127: 36.24315 | Z127: 31.39709 | AA127: 27.40028 | AB127: 24.52348 | AC127: 22.71684 | AD127: 20.73332 | AE127: 11.88416 | AF127: 5.51305 | AG127: 7.23132 | AH127: 73.67555 | AI127: 41.95347 | AJ127: 34.84198 | AK127: 25.70461 | AL127: 38.51006 | AM127: 26.42504 | AN127: 37.617 | AO127: 30.85056 | AP127: 44.92402 | AQ127: 60.50833 | AR127: 49.48946 | AS127: 47.88307 | AT127: 61.61069 | AU127: 50.93275 | AV127: 63.23987 | AW127: 71.72036 | AX127: 64.20012 | AY127: 59.01558 | AZ127: 57.32299 | BA127: 47.05038 | BB127: 41.94835 | BC127: 37.80246 | BD127: 34.53285 | BE127: 29.62294 | BF127: 25.5585 | BG127: 22.64388 | BH127: 20.81409 | BI127: 18.81982 | BJ127: 9.95914 | BK127: 3.58858 | BL127: 5.29567 | BM127: 73.65889 | BN127: 46.48579 | BO127: 38.09984 | BP127: 27.55165 | BQ127: 39.84106 | BR127: 27.30369 | BS127: 38.14171 | BT127: 31.15491 | BU127: 45.07202 | BV127: 60.59479 | BW127: 49.5333 | BX127: 47.88706 | BY127: 61.59228 | BZ127: 50.8992 | CA127: 63.20642 | CB127: 71.69209 | CC127: 64.18111 | CD127: 59.0133 | CE127: 57.35683 | CF127: 47.12801 | CG127: 42.11232 | CH127: 38.08128 | CI127: 35.05704 | CJ127: 30.36804 | CK127: 26.81587 | CL127: 24.6668 | CM127: 23.93465 | CN127: 22.81269 | CO127: 16.01615 | CP127: 11.71997 | CQ127: 16.07854 | CR127: 69.18598 | CS127: 65.28236 | CT127: 74.24856 | CU127: 71.17593 | CV127: 68.69405 | CW127: 79.57484 | CX127: 71.15927 | CY127: 68.69753 | CZ127: 79.63132
A128: 11:59:20 | B128: 0.1 | C128: 57.94496 | D128: 0.14469 | E128: -12.86551 | F128: -11.20087 | G128: 4.84351 | H128: 2.23823 | I128: 7.03171 | J128: 13.43254 | K128: 35.89346 | L128: 44.04159 | M128: 34.12849 | N128: 33.64025 | O128: 44.58405 | P128: 37.83073 | Q128: 47.58498 | R128: 57.07581 | S128: 49.62396 | T128: 43.79199 | U128: 43.59911 | V128: 36.39743 | W128: 35.7402 | X128: 35.1108 | Y128: 35.80074 | Z128: 30.54788 | AA128: 26.64677 | AB128: 23.06267 | AC128: 18.99382 | AD128: 13.4491 | AE128: 9.51899 | AF128: 3.71567 | AG128: -1.19378 | AH128: 60.87282 | AI128: 41.1526 | AJ128: 25.27162 | AK128: 18.96336 | AL128: 33.92955 | AM128: 26.62755 | AN128: 28.32847 | AO128: 31.94338 | AP128: 50.84047 | AQ128: 56.90812 | AR128: 44.78123 | AS128: 41.88313 | AT128: 51.08518 | AU128: 42.6799 | AV128: 50.98218 | AW128: 58.78455 | AX128: 50.48066 | AY128: 43.79903 | AZ128: 43.03267 | BA128: 35.33115 | BB128: 34.37242 | BC128: 33.54779 | BD128: 34.09586 | BE128: 28.76401 | BF128: 24.80609 | BG128: 21.1855 | BH128: 17.09448 | BI128: 11.5336 | BJ128: 7.59386 | BK128: 1.79145 | BL128: -3.15437 | BM128: 60.94216 | BN128: 45.94958 | BO128: 29.08906 | BP128: 20.6168 | BQ128: 35.41211 | BR128: 27.42134 | BS128: 28.84053 | BT128: 32.26311 | BU128: 50.98586 | BV128: 56.98718 | BW128: 44.81617 | BX128: 41.85782 | BY128: 51.05488 | BZ128: 42.6498 | CA128: 50.94735 | CB128: 58.75208 | CC128: 50.45874 | CD128: 43.79617 | CE128: 43.06144 | CF128: 35.41735 | CG128: 34.54665 | CH128: 33.842 | CI128: 34.60529 | CJ128: 29.55054 | CK128: 26.05558 | CL128: 23.13121 | CM128: 19.96941 | CN128: 15.80872 | CO128: 13.67479 | CP128: 9.96268 | CQ128: 7.81698 | CR128: 65.84403 | CS128: 64.93002 | CT128: 73.22516 | CU128: 67.6358 | CV128: 68.27802 | CW128: 79.29697 | CX128: 67.60611 | CY128: 68.2815 | CZ128: 79.35345
A129: 11:59:20 | B129: 0.1 | C129: 64.57693 | D129: -1.34892 | E129: -15.61288 | F129: -9.34565 | G129: 7.22079 | H129: 2.81799 | I129: 14.10531 | J129: 14.47488 | K129: 28.97985 | L129: 42.44416 | M129: 52.03557 | N129: 43.93537 | O129: 45.90202 | P129: 54.87131 | Q129: 56.1452 | R129: 60.06108 | S129: 51.36591 | T129: 48.672 | U129: 53.23577 | V129: 48.53653 | W129: 45.44282 | X129: 42.60616 | Y129: 38.26492 | Z129: 35.86113 | AA129: 32.68738 | AB129: 27.0046 | AC129: 23.71473 | AD129: 20.19397 | AE129: 14.10291 | AF129: 8.39537 | AG129: 2.10221 | AH129: 69.5871 | AI129: 38.89521 | AJ129: 21.76599 | AK129: 22.81402 | AL129: 36.2504 | AM129: 26.38918 | AN129: 36.38456 | AO129: 32.90739 | AP129: 43.91008 | AQ129: 54.88126 | AR129: 63.37523 | AS129: 52.77522 | AT129: 52.24687 | AU129: 59.87565 | AV129: 58.88326 | AW129: 62.37709 | AX129: 52.43186 | AY129: 48.63837 | AZ129: 52.58541 | BA129: 47.52784 | BB129: 44.11379 | BC129: 41.04816 | BD129: 36.56011 | BE129: 34.07325 | BF129: 30.84934 | BG129: 25.12702 | BH129: 21.81237 | BI129: 18.279 | BJ129: 12.17815 | BK129: 6.47118 | BL129: 0.15234 | BM129: 69.60229 | BN129: 43.35565 | BO129: 25.17323 | BP129: 24.90695 | BQ129: 37.58471 | BR129: 27.07162 | BS129: 37.02163 | BT129: 33.23563 | BU129: 44.05344 | BV129: 54.96175 | BW129: 63.43009 | BX129: 52.78607 | BY129: 52.22851 | BZ129: 59.85335 | CA129: 58.85318 | CB129: 62.34639 | CC129: 52.40982 | CD129: 48.64088 | CE129: 52.62212 | CF129: 47.62179 | CG129: 44.27026 | CH129: 41.33994 | CI129: 37.06898 | CJ129: 34.88194 | CK129: 32.05683 | CL129: 27.08698 | CM129: 24.8989 | CN129: 22.46927 | CO129: 18.12485 | CP129: 14.69647 | CQ129: 10.84599 | CR129: 63.77097 | CS129: 64.65547 | CT129: 72.9529 | CU129: 67.22272 | CV129: 67.87364 | CW129: 79.02644 | CX129: 67.23567 | CY129: 67.87714 | CZ129: 79.08292
A130: 11:59:20 | B130: 0.1 | C130: 63.97312 | D130: -5.703 | E130: -4.37482 | F130: -11.36807 | G130: 2.15711 | H130: 7.73721 | I130: 14.17525 | J130: 14.02563 | K130: 34.98386 | L130: 49.32322 | M130: 55.085 | N130: 42.75469 | O130: 57.02461 | P130: 60.01797 | Q130: 54.41875 | R130: 56.83425 | S130: 44.49335 | T130: 38.12064 | U130: 41.85437 | V130: 46.09548 | W130: 44.60265 | X130: 41.97032 | Y130: 36.72717 | Z130: 34.84089 | AA130: 39.42687 | AB130: 32.66 | AC130: 29.8752 | AD130: 27.3205 | AE130: 17.25461 | AF130: 9.48328 | AG130: 1.00648 | AH130: 70.77113 | AI130: 33.70717 | AJ130: 32.42845 | AK130: 21.39874 | AL130: 30.91952 | AM130: 32.27689 | AN130: 36.76865 | AO130: 32.08593 | AP130: 49.51772 | AQ130: 62.14253 | AR130: 66.43788 | AS130: 51.07982 | AT130: 63.3122 | AU130: 65.17073 | AV130: 57.35109 | AW130: 59.18394 | AX130: 45.58102 | AY130: 38.18836 | AZ130: 41.14244 | BA130: 44.98607 | BB130: 43.29607 | BC130: 40.41087 | BD130: 35.0255 | BE130: 33.0558 | BF130: 37.57798 | BG130: 30.78254 | BH130: 27.97641 | BI130: 25.40543 | BJ130: 15.3301 | BK130: 7.55874 | BL130: -0.94804 | BM130: 70.81204 | BN130: 38.29424 | BO130: 35.75366 | BP130: 23.70621 | BQ130: 32.23852 | BR130: 33.0837 | BS130: 37.29179 | BT130: 32.35918 | BU130: 49.69408 | BV130: 62.22604 | BW130: 66.4819 | BX130: 51.07436 | BY130: 63.29318 | BZ130: 65.14184 | CA130: 57.31776 | CB130: 59.15217 | CC130: 45.55875 | CD130: 38.18337 | CE130: 41.18066 | CF130: 45.05773 | CG130: 43.44574 | CH130: 40.69943 | CI130: 35.53548 | CJ130: 33.8535 | CK130: 38.92858 | CL130: 32.76955 | CM130: 30.84126 | CN130: 29.55551 | CO130: 21.2098 | CP130: 15.5927 | CQ130: 9.73642 | CR130: 60.88166 | CS130: 64.26971 | CT130: 72.64851 | CU130: 67.83839 | CV130: 67.42047 | CW130: 78.73494 | CX130: 67.88694 | CY130: 67.42395 | CZ130: 78.79137
A131: 11:59:20 | B131: 0.1 | C131: 65.85057 | D131: -4.59137 | E131: -14.63934 | F131: -3.28484 | G131: 4.01732 | H131: 4.70863 | I131: 10.82478 | J131: 14.1047 | K131: 38.86737 | L131: 51.23817 | M131: 56.89642 | N131: 36.36591 | O131: 54.84548 | P131: 63.64434 | Q131: 51.02206 | R131: 55.74758 | S131: 40.26099 | T131: 37.28146 | U131: 38.87379 | V131: 39.79921 | W131: 43.22309 | X131: 43.24684 | Y131: 38.47768 | Z131: 33.44501 | AA131: 37.48916 | AB131: 31.35416 | AC131: 27.22613 | AD131: 23.55696 | AE131: 14.66997 | AF131: 7.2236 | AG131: 0.40396 | AH131: 72.72137 | AI131: 35.85007 | AJ131: 22.01044 | AK131: 28.08063 | AL131: 33.17278 | AM131: 30.16914 | AN131: 32.17332 | AO131: 32.81923 | AP131: 53.64778 | AQ131: 64.04065 | AR131: 68.08681 | AS131: 45.83447 | AT131: 60.97584 | AU131: 68.6666 | AV131: 54.0331 | AW131: 58.09545 | AX131: 41.37878 | AY131: 37.29915 | AZ131: 38.3121 | BA131: 38.63976 | BB131: 41.87595 | BC131: 41.6606 | BD131: 36.78431 | BE131: 31.65907 | BF131: 35.63846 | BG131: 29.47488 | BH131: 25.32535 | BI131: 21.64177 | BJ131: 12.74528 | BK131: 5.2991 | BL131: -1.5525 | BM131: 72.73682 | BN131: 40.30733 | BO131: 25.71262 | BP131: 29.90279 | BQ131: 34.68678 | BR131: 31.16497 | BS131: 32.71405 | BT131: 33.19056 | BU131: 53.76797 | BV131: 64.12457 | BW131: 68.13269 | BX131: 45.85442 | BY131: 60.95207 | BZ131: 68.6387 | CA131: 53.99951 | CB131: 58.06481 | CC131: 41.35487 | CD131: 37.29791 | CE131: 38.34192 | CF131: 38.74305 | CG131: 42.03574 | CH131: 41.97777 | CI131: 37.26727 | CJ131: 32.45832 | CK131: 36.99483 | CL131: 31.48389 | CM131: 28.28211 | CN131: 25.83794 | CO131: 18.73585 | CP131: 13.34843 | CQ131: 9.24098 | CR131: 62.97649 | CS131: 63.91429 | CT131: 72.37252 | CU131: 69.90133 | CV131: 67.39236 | CW131: 78.48198 | CX131: 69.91626 | CY131: 67.42485 | CZ131: 78.53834
A132: 11:59:20 | B132: 0.1 | C132: 61.01968 | D132: 1.25831 | E132: -6.246 | F132: -4.45155 | G132: 6.74023 | H132: 5.23701 | I132: 15.97622 | J132: 22.63725 | K132: 29.6936 | L132: 49.21301 | M132: 58.03415 | N132: 34.70861 | O132: 46.26056 | P132: 57.03953 | Q132: 48.5279 | R132: 45.89046 | S132: 37.23437 | T132: 36.814 | U132: 35.86561 | V132: 35.05151 | W132: 34.84631 | X132: 34.86328 | Y132: 34.95467 | Z132: 30.43375 | AA132: 27.3245 | AB132: 24.77219 | AC132: 21.5606 | AD132: 15.75638 | AE132: 11.04021 | AF132: 4.8316 | AG132: -0.4325 | AH132: 70.41776 | AI132: 42.10387 | AJ132: 31.03304 | AK132: 26.61492 | AL132: 35.7216 | AM132: 30.39558 | AN132: 37.42904 | AO132: 41.31193 | AP132: 44.5269 | AQ132: 61.53806 | AR132: 69.39618 | AS132: 43.646 | AT132: 52.4795 | AU132: 62.04006 | AV132: 51.43785 | AW132: 48.21049 | AX132: 38.29834 | AY132: 36.81375 | AZ132: 35.22884 | BA132: 34.01873 | BB132: 33.47571 | BC132: 33.29126 | BD132: 33.24509 | BE132: 28.65349 | BF132: 25.48237 | BG132: 22.89222 | BH132: 19.66037 | BI132: 13.84019 | BJ132: 9.11504 | BK132: 2.90763 | BL132: -2.39559 | BM132: 70.51472 | BN132: 46.58624 | BO132: 34.41175 | BP132: 28.49851 | BQ132: 37.07596 | BR132: 31.22152 | BS132: 37.91672 | BT132: 41.6217 | BU132: 44.68268 | BV132: 61.6075 | BW132: 69.44271 | BX132: 43.6629 | BY132: 52.46078 | BZ132: 62.01116 | CA132: 51.40534 | CB132: 48.1743 | CC132: 38.27583 | CD132: 36.81648 | CE132: 35.26279 | CF132: 34.10072 | CG132: 33.65729 | CH132: 33.59431 | CI132: 33.76579 | CJ132: 29.4253 | CK132: 26.74782 | CL132: 24.91504 | CM132: 22.53958 | CN132: 18.05576 | CO132: 15.14272 | CP132: 11.13674 | CQ132: 8.53182 | CR132: 59.86547 | CS132: 63.50418 | CT132: 72.09575 | CU132: 68.56908 | CV132: 67.62119 | CW132: 78.23936 | CX132: 68.61396 | CY132: 67.65561 | CZ132: 78.29565
A133: 11:59:20 | B133: 0.1 | C133: 70.88599 | D133: 5.10783 | E133: 0.79197 | F133: 3.97807 | G133: 7.06566 | H133: -0.20071 | I133: 12.80987 | J133: 19.58958 | K133: 33.51846 | L133: 45.74783 | M133: 54.70351 | N133: 41.97707 | O133: 43.23841 | P133: 55.26826 | Q133: 62.54304 | R133: 67.53563 | S133: 64.12033 | T133: 50.1902 | U133: 51.1969 | V133: 55.80196 | W133: 50.31555 | X133: 41.04603 | Y133: 37.80816 | Z133: 35.5358 | AA133: 29.37777 | AB133: 29.07629 | AC133: 24.71862 | AD133: 21.87447 | AE133: 13.5015 | AF133: 7.27958 | AG133: 0.33636 | AH133: 73.93214 | AI133: 44.80417 | AJ133: 38.4047 | AK133: 35.68658 | AL133: 36.93386 | AM133: 24.51814 | AN133: 34.91924 | AO133: 37.57451 | AP133: 48.58398 | AQ133: 58.24021 | AR133: 65.81026 | AS133: 51.24314 | AT133: 49.20152 | AU133: 60.2055 | AV133: 65.24921 | AW133: 69.72945 | AX133: 65.21671 | AY133: 50.30272 | AZ133: 50.553 | BA133: 54.71528 | BB133: 49.00585 | BC133: 39.49022 | BD133: 36.09211 | BE133: 33.75378 | BF133: 27.53494 | BG133: 27.19852 | BH133: 22.81672 | BI133: 19.95988 | BJ133: 11.57671 | BK133: 5.35513 | BL133: -1.62028 | BM133: 74.00575 | BN133: 49.13737 | BO133: 41.95053 | BP133: 37.64883 | BQ133: 38.48129 | BR133: 25.25188 | BS133: 35.48797 | BT133: 37.85561 | BU133: 48.73016 | BV133: 58.30964 | BW133: 65.85379 | BX133: 51.25623 | BY133: 49.18163 | BZ133: 60.17797 | CA133: 65.22107 | CB133: 69.70079 | CC133: 65.19466 | CD133: 50.30598 | CE133: 50.58981 | CF133: 54.80642 | CG133: 49.15569 | CH133: 39.78217 | CI133: 36.62973 | CJ133: 34.53082 | CK133: 28.81541 | CL133: 29.1637 | CM133: 25.87934 | CN133: 24.07899 | CO133: 17.58707 | CP133: 13.45084 | CQ133: 9.18638 | CR133: 69.01517 | CS133: 64.14705 | CT133: 73.47153 | CU133: 72.01266 | CV133: 67.47461 | CW133: 77.94902 | CX133: 72.0995 | CY133: 67.50966 | CZ133: 78.00525
A134: 11:59:20 | B134: 0.1 | C134: 65.2094 | D134: 7.46256 | E134: 6.61422 | F134: 1.73005 | G134: 9.56653 | H134: 8.69665 | I134: 11.73126 | J134: 11.94224 | K134: 22.63029 | L134: 51.47727 | M134: 50.54006 | N134: 38.57485 | O134: 57.98713 | P134: 52.80371 | Q134: 63.56416 | R134: 58.13501 | S134: 55.8784 | T134: 45.55489 | U134: 42.09418 | V134: 46.18271 | W134: 39.44542 | X134: 37.5993 | Y134: 35.91653 | Z134: 31.78226 | AA134: 26.5962 | AB134: 25.2091 | AC134: 20.47931 | AD134: 16.9376 | AE134: 10.43334 | AF134: 3.367 | AG134: -0.97897 | AH134: 71.30272 | AI134: 46.72331 | AJ134: 43.24687 | AK134: 32.33022 | AL134: 39.05496 | AM134: 34.08723 | AN134: 33.74395 | AO134: 30.52284 | AP134: 36.86488 | AQ134: 64.10496 | AR134: 61.94075 | AS134: 47.08952 | AT134: 64.25491 | AU134: 58.2228 | AV134: 66.69951 | AW134: 60.13985 | AX134: 57.05878 | AY134: 45.67847 | AZ134: 41.46135 | BA134: 45.08335 | BB134: 38.11655 | BC134: 36.01849 | BD134: 34.21184 | BE134: 30.00074 | BF134: 24.75416 | BG134: 23.3319 | BH134: 18.57851 | BI134: 15.02229 | BJ134: 8.50869 | BK134: 1.44263 | BL134: -2.94714 | BM134: 72.25337 | BN134: 50.44916 | BO134: 46.08323 | BP134: 34.11166 | BQ134: 40.5387 | BR134: 34.96958 | BS134: 34.27639 | BT134: 30.84648 | BU134: 36.99819 | BV134: 64.18408 | BW134: 61.98832 | BX134: 47.09457 | BY134: 64.23521 | BZ134: 58.19533 | CA134: 66.66406 | CB134: 60.09201 | CC134: 57.03222 | CD134: 45.65736 | CE134: 41.4913 | CF134: 45.17576 | CG134: 38.26621 | CH134: 36.32686 | CI134: 34.71893 | CJ134: 30.77466 | CK134: 26.02596 | CL134: 25.27379 | CM134: 21.5674 | CN134: 19.23817 | CO134: 14.44177 | CP134: 9.63516 | CQ134: 8.13311 | CR134: 63.14337 | CS134: 63.8353 | CT134: 71.56015 | CU134: 68.14938 | CV134: 67.17579 | CW134: 77.67815 | CX134: 69.06743 | CY134: 67.21118 | CZ134: 77.73438
A135: 11:59:20 | B135: 0.1 | C135: 58.19183 | D135: 17.9158 | E135: 15.05402 | F135: 5.27935 | G135: 0.5219 | H135: 1.95467 | I135: 11.03134 | J135: 12.45889 | K135: 28.67899 | L135: 53.09023 | M135: 42.4226 | N135: 38.52235 | O135: 56.03642 | P135: 44.17198 | Q135: 45.84719 | R135: 39.71127 | S135: 38.28212 | T135: 35.19807 | U135: 35.62864 | V135: 34.71553 | W135: 36.05441 | X135: 35.74441 | Y135: 35.89302 | Z135: 30.4571 | AA135: 25.83781 | AB135: 23.82121 | AC135: 18.83272 | AD135: 14.29137 | AE135: 7.99615 | AF135: 2.86694 | AG135: -1.24097 | AH135: 67.25464 | AI135: 58.06272 | AJ135: 52.34756 | AK135: 37.64651 | AL135: 28.9729 | AM135: 27.48957 | AN135: 31.8652 | AO135: 31.42294 | AP135: 42.81567 | AQ135: 65.91014 | AR135: 53.82135 | AS135: 46.70577 | AT135: 62.65176 | AU135: 49.4031 | AV135: 49.21408 | AW135: 41.76268 | AX135: 39.3637 | AY135: 35.15524 | AZ135: 35.0134 | BA135: 33.6562 | BB135: 34.6851 | BC135: 34.18699 | BD135: 34.18221 | BE135: 28.67665 | BF135: 23.997 | BG135: 21.94272 | BH135: 16.93276 | BI135: 12.37601 | BJ135: 6.07129 | BK135: 0.94308 | BL135: -3.20744 | BM135: 67.49175 | BN135: 62.37201 | BO135: 55.76216 | BP135: 39.68982 | BQ135: 30.15945 | BR135: 28.44571 | BS135: 32.33115 | BT135: 31.78619 | BU135: 42.94217 | BV135: 65.99101 | BW135: 53.84986 | BX135: 46.70535 | BY135: 62.63391 | BZ135: 49.37656 | CA135: 49.18116 | CB135: 41.72642 | CC135: 39.3278 | CD135: 35.15932 | CE135: 35.0477 | CF135: 33.74545 | CG135: 34.85792 | CH135: 34.47709 | CI135: 34.70668 | CJ135: 29.45142 | CK135: 25.2487 | CL135: 23.92705 | CM135: 19.83091 | CN135: 16.59893 | CO135: 12.09263 | CP135: 9.25822 | CQ135: 7.83514 | CR135: 59.46423 | CS135: 63.37395 | CT135: 71.25218 | CU135: 64.46666 | CV135: 66.73444 | CW135: 77.37059 | CX135: 64.68001 | CY135: 66.76979 | CZ135: 77.4268
A136: 11:59:20 | B136: 0.1 | C136: 52.48101 | D136: 17.55658 | E136: 11.94207 | F136: -2.19315 | G136: -1.04161 | H136: -1.10886 | I136: 5.24169 | J136: 29.57504 | K136: 43.11543 | L136: 44.39972 | M136: 37.85195 | N136: 46.83495 | O136: 48.03683 | P136: 42.69612 | Q136: 39.31399 | R136: 34.65756 | S136: 32.31995 | T136: 34.24045 | U136: 35.63423 | V136: 35.9745 | W136: 36.96018 | X136: 36.92172 | Y136: 35.61697 | Z136: 30.94169 | AA136: 26.40188 | AB136: 21.76563 | AC136: 19.66654 | AD136: 17.25274 | AE136: 10.74567 | AF136: 5.63911 | AG136: -1.10257 | AH136: 62.17678 | AI136: 58.04681 | AJ136: 49.12383 | AK136: 30.45817 | AL136: 28.26064 | AM136: 24.15611 | AN136: 26.73537 | AO136: 47.34081 | AP136: 58.44085 | AQ136: 58.23352 | AR136: 48.57818 | AS136: 55.1046 | AT136: 55.07479 | AU136: 47.27271 | AV136: 42.76665 | AW136: 36.93021 | AX136: 33.17064 | AY136: 34.16761 | AZ136: 35.01497 | BA136: 34.89 | BB136: 35.60947 | BC136: 35.36687 | BD136: 33.90714 | BE136: 29.16056 | BF136: 24.56142 | BG136: 19.88737 | BH136: 17.76531 | BI136: 15.3374 | BJ136: 8.82078 | BK136: 3.71442 | BL136: -3.0676 | BM136: 62.76058 | BN136: 62.76058 | BO136: 52.53129 | BP136: 32.58484 | BQ136: 29.65784 | BR136: 24.9122 | BS136: 27.24946 | BT136: 47.63044 | BU136: 58.60336 | BV136: 58.33544 | BW136: 48.60937 | BX136: 55.10391 | BY136: 55.04884 | BZ136: 47.24065 | CA136: 42.73466 | CB136: 36.89987 | CC136: 33.15115 | CD136: 34.1694 | CE136: 35.04805 | CF136: 34.98465 | CG136: 35.81329 | CH136: 35.65942 | CI136: 34.42524 | CJ136: 29.94354 | CK136: 25.79892 | CL136: 21.87131 | CM136: 20.75866 | CN136: 19.53902 | CO136: 14.92952 | CP136: 11.72771 | CQ136: 7.94796 | CR136: 56.1437 | CS136: 62.9576 | CT136: 70.9744 | CU136: 62.07162 | CV136: 66.32409 | CW136: 77.09301 | CX136: 62.15539 | CY136: 66.35945 | CZ136: 77.14922
A137: 11:59:21 | B137: 0.1 | C137: 59.90948 | D137: 9.61723 | E137: 1.87058 | F137: -1.85595 | G137: -0.4037 | H137: 1.4137 | I137: 12.23327 | J137: 27.95243 | K137: 33.61195 | L137: 47.27409 | M137: 44.50728 | N137: 40.47755 | O137: 56.36625 | P137: 53.00238 | Q137: 52.90631 | R137: 44.5629 | S137: 39.24619 | T137: 33.80006 | U137: 35.29897 | V137: 34.90704 | W137: 41.06589 | X137: 38.98421 | Y137: 34.79442 | Z137: 31.59113 | AA137: 25.69305 | AB137: 23.56391 | AC137: 20.40067 | AD137: 19.3985 | AE137: 10.06174 | AF137: 3.50216 | AG137: -1.73141 | AH137: 66.79906 | AI137: 51.24654 | AJ137: 39.79034 | AK137: 31.05934 | AL137: 29.09999 | AM137: 25.28114 | AN137: 33.90198 | AO137: 45.61412 | AP137: 48.71404 | AQ137: 60.21058 | AR137: 55.94388 | AS137: 48.51301 | AT137: 62.96518 | AU137: 58.25261 | AV137: 56.37276 | AW137: 46.67534 | AX137: 40.32874 | AY137: 33.75513 | AZ137: 34.68015 | BA137: 33.79285 | BB137: 39.68824 | BC137: 37.42162 | BD137: 33.08513 | BE137: 29.80563 | BF137: 23.85158 | BG137: 21.68409 | BH137: 18.50116 | BI137: 17.48323 | BJ137: 8.13703 | BK137: 1.57785 | BL137: -3.69991 | BM137: 66.83238 | BN137: 56.59218 | BO137: 43.69859 | BP137: 33.18593 | BQ137: 30.59865 | BR137: 26.04316 | BS137: 34.43275 | BT137: 45.83496 | BU137: 48.86463 | BV137: 60.29592 | BW137: 55.99392 | BX137: 48.50597 | BY137: 62.94759 | BZ137: 58.22662 | CA137: 56.34107 | CB137: 46.64727 | CC137: 40.30724 | CD137: 33.75806 | CE137: 34.71451 | CF137: 33.8857 | CG137: 39.84907 | CH137: 37.71249 | CI137: 33.60514 | CJ137: 30.59809 | CK137: 25.1181 | CL137: 23.71745 | CM137: 21.44418 | CN137: 21.66214 | CO137: 14.09665 | CP137: 9.7292 | CQ137: 7.39877 | CR137: 56.77175 | CS137: 62.54706 | CT137: 70.70092 | CU137: 63.67146 | CV137: 65.94638 | CW137: 76.81723 | CX137: 63.70499 | CY137: 65.98187 | CZ137: 76.87343
A138: 11:59:21 | B138: 0.1 | C138: 54.56537 | D138: 5.78145 | E138: -4.47263 | F138: -1.85101 | G138: 0.42864 | H138: 3.1936 | I138: 16.37497 | J138: 31.19041 | K138: 42.79517 | L138: 42.87336 | M138: 41.99183 | N138: 48.58665 | O138: 45.14452 | P138: 45.95415 | Q138: 45.48829 | R138: 45.13795 | S138: 37.74132 | T138: 33.16788 | U138: 36.02617 | V138: 35.72696 | W138: 39.83907 | X138: 37.69177 | Y138: 37.4944 | Z138: 37.27765 | AA138: 36.14144 | AB138: 27.73357 | AC138: 25.52344 | AD138: 24.44998 | AE138: 16.34554 | AF138: 7.35606 | AG138: -0.45679 | AH138: 63.26716 | AI138: 46.85207 | AJ138: 32.85258 | AK138: 30.0433 | AL138: 30.59272 | AM138: 27.58878 | AN138: 38.24625 | AO138: 49.19102 | AP138: 58.10744 | AQ138: 56.67201 | AR138: 52.62787 | AS138: 56.83698 | AT138: 52.14397 | AU138: 50.61578 | AV138: 48.62353 | AW138: 47.38525 | AX138: 38.59943 | AY138: 33.19759 | AZ138: 35.38666 | BA138: 34.64567 | BB138: 38.47029 | BC138: 36.12523 | BD138: 35.78955 | BE138: 35.48495 | BF138: 34.29872 | BG138: 25.85802 | BH138: 23.62099 | BI138: 22.53559 | BJ138: 14.42091 | BK138: 5.43158 | BL138: -2.41483 | BM138: 63.37363 | BN138: 51.82884 | BO138: 36.28936 | BP138: 32.03145 | BQ138: 32.15967 | BR138: 28.38464 | BS138: 38.74706 | BT138: 49.50077 | BU138: 58.26754 | BV138: 56.78258 | BW138: 52.66297 | BX138: 56.83512 | BY138: 52.12689 | BZ138: 50.58316 | CA138: 48.58983 | CB138: 47.35306 | CC138: 38.58105 | CD138: 33.19787 | CE138: 35.42307 | CF138: 34.73661 | CG138: 38.64822 | CH138: 36.44369 | CI138: 36.30022 | CJ138: 36.33133 | CK138: 35.57291 | CL138: 27.77508 | CM138: 26.68504 | CN138: 26.71652 | CO138: 20.35051 | CP138: 13.36707 | CQ138: 8.42933 | CR138: 51.97627 | CS138: 62.09253 | CT138: 70.39304 | CU138: 60.42081 | CV138: 65.50634 | CW138: 76.50962 | CX138: 60.53564 | CY138: 65.54182 | CZ138: 76.56581
A139: 11:59:21 | B139: 0.1 | C139: 54.02093 | D139: -4.22031 | E139: -15.94335 | F139: -0.86225 | G139: 2.15187 | H139: 6.52455 | I139: 20.78268 | J139: 33.69547 | K139: 33.22388 | L139: 42.70159 | M139: 45.86687 | N139: 43.24561 | O139: 44.61379 | P139: 41.52769 | Q139: 37.66862 | R139: 37.30392 | S139: 33.34277 | T139: 37.30291 | U139: 36.45073 | V139: 37.60684 | W139: 44.22932 | X139: 42.42245 | Y139: 41.77934 | Z139: 39.63729 | AA139: 38.85564 | AB139: 31.15657 | AC139: 26.81257 | AD139: 26.25146 | AE139: 17.98261 | AF139: 8.35799 | AG139: 0.17684 | AH139: 62.71146 | AI139: 37.24962 | AJ139: 20.5411 | AK139: 30.74804 | AL139: 32.26947 | AM139: 30.78377 | AN139: 42.46389 | AO139: 51.48255 | AP139: 49.12064 | AQ139: 55.03372 | AR139: 57.30991 | AS139: 51.74469 | AT139: 51.08626 | AU139: 46.936 | AV139: 40.73069 | AW139: 39.24197 | AX139: 34.24982 | AY139: 37.22541 | AZ139: 35.8441 | BA139: 36.52491 | BB139: 42.84695 | BC139: 40.84158 | BD139: 40.09065 | BE139: 37.84423 | BF139: 37.01147 | BG139: 29.28052 | BH139: 24.91115 | BI139: 24.33534 | BJ139: 16.05816 | BK139: 6.43312 | BL139: -1.77907 | BM139: 62.80832 | BN139: 42.49465 | BO139: 23.84805 | BP139: 32.66935 | BQ139: 33.81284 | BR139: 31.54328 | BS139: 42.99589 | BT139: 51.72638 | BU139: 49.31767 | BV139: 55.12619 | BW139: 57.36309 | BX139: 51.74827 | BY139: 51.07583 | BZ139: 46.91047 | CA139: 40.69062 | CB139: 39.21203 | CC139: 34.22857 | CD139: 37.22893 | CE139: 35.87633 | CF139: 36.61662 | CG139: 43.02062 | CH139: 41.15216 | CI139: 40.56758 | CJ139: 38.67862 | CK139: 38.29209 | CL139: 31.19095 | CM139: 27.93173 | CN139: 28.55302 | CO139: 21.90051 | CP139: 14.39449 | CQ139: 8.95598 | CR139: 51.33801 | CS139: 61.67705 | CT139: 70.11525 | CU139: 60.36962 | CV139: 65.15703 | CW139: 76.23518 | CX139: 60.46328 | CY139: 65.19278 | CZ139: 76.29137
A140: 11:59:21 | B140: 0.1 | C140: 47.19395 | D140: -4.88628 | E140: -18.56916 | F140: -12.62136 | G140: 0.85235 | H140: 8.89106 | I140: 14.18939 | J140: 21.48605 | K140: 34.8838 | L140: 44.86796 | M140: 40.23389 | N140: 38.01785 | O140: 42.87331 | P140: 37.17712 | Q140: 31.19791 | R140: 32.63257 | S140: 30.86408 | T140: 34.27381 | U140: 34.66462 | V140: 32.98022 | W140: 34.71517 | X140: 34.89452 | Y140: 35.04005 | Z140: 30.2421 | AA140: 27.6091 | AB140: 22.15131 | AC140: 17.5928 | AD140: 12.65312 | AE140: 7.66191 | AF140: 2.22846 | AG140: -1.99072 | AH140: 57.84996 | AI140: 35.681 | AJ140: 19.71812 | AK140: 19.0876 | AL140: 30.12968 | AM140: 34.0408 | AN140: 36.45351 | AO140: 39.35986 | AP140: 49.85891 | AQ140: 57.84996 | AR140: 51.13264 | AS140: 46.55283 | AT140: 49.30572 | AU140: 42.55317 | AV140: 34.65985 | AW140: 34.69907 | AX140: 31.8259 | AY140: 34.16142 | AZ140: 34.08864 | BA140: 31.93122 | BB140: 33.32967 | BC140: 33.33079 | BD140: 33.33562 | BE140: 28.4601 | BF140: 25.76614 | BG140: 20.27419 | BH140: 15.69347 | BI140: 10.73681 | BJ140: 5.73687 | BK140: 0.30445 | BL140: -3.96523 | BM140: 57.92421 | BN140: 40.35811 | BO140: 23.4385 | BP140: 21.21322 | BQ140: 31.62366 | BR140: 34.91442 | BS140: 37.0172 | BT140: 39.62223 | BU140: 49.99669 | BV140: 57.92421 | BW140: 51.1593 | BX140: 46.54736 | BY140: 49.27136 | BZ140: 42.52608 | CA140: 34.62907 | CB140: 34.66821 | CC140: 31.80166 | CD140: 34.16834 | CE140: 34.12142 | CF140: 32.01926 | CG140: 33.50935 | CH140: 33.62799 | CI140: 33.83158 | CJ140: 29.2404 | CK140: 27.0281 | CL140: 22.21985 | CM140: 18.57776 | CN140: 15.04294 | CO140: 11.73736 | CP140: 8.57997 | CQ140: 7.21267 | CR140: 47.0769 | CS140: 61.26067 | CT140: 69.83732 | CU140: 57.26898 | CV140: 64.75681 | CW140: 75.95808 | CX140: 57.35201 | CY140: 64.79253 | CZ140: 76.01426
A141: 11:59:21 | B141: 0.1 | C141: 63.03983 | D141: -5.28691 | E141: -4.65601 | F141: -5.90167 | G141: 3.1589 | H141: 3.34663 | I141: 11.29227 | J141: 19.92941 | K141: 32.54067 | L141: 40.04311 | M141: 41.02219 | N141: 40.67664 | O141: 43.84303 | P141: 45.65017 | Q141: 51.66306 | R141: 56.52776 | S141: 59.93676 | T141: 50.00115 | U141: 49.64214 | V141: 46.27409 | W141: 40.99425 | X141: 38.82451 | Y141: 36.50153 | Z141: 31.70769 | AA141: 27.87593 | AB141: 24.64158 | AC141: 21.50476 | AD141: 17.13026 | AE141: 11.61692 | AF141: 4.97916 | AG141: -1.5462 | AH141: 65.50647 | AI141: 33.12992 | AJ141: 32.84301 | AK141: 25.72006 | AL141: 32.41782 | AM141: 28.30412 | AN141: 33.4273 | AO141: 38.42059 | AP141: 47.73936 | AQ141: 52.98659 | AR141: 52.35423 | AS141: 48.74296 | AT141: 50.63042 | AU141: 50.3127 | AV141: 54.80037 | AW141: 58.36165 | AX141: 60.9043 | AY141: 50.10013 | AZ141: 49.06416 | BA141: 45.23446 | BB141: 39.66537 | BC141: 37.26753 | BD141: 34.79145 | BE141: 29.92525 | BF141: 26.03345 | BG141: 22.76369 | BH141: 19.60424 | BI141: 15.2141 | BJ141: 9.69194 | BK141: 3.05454 | BL141: -3.51315 | BM141: 65.53172 | BN141: 36.94485 | BO141: 36.19444 | BP141: 27.69262 | BQ141: 33.87895 | BR141: 29.10085 | BS141: 33.94493 | BT141: 38.7289 | BU141: 47.9277 | BV141: 53.07283 | BW141: 52.40128 | BX141: 48.75739 | BY141: 50.61454 | BZ141: 50.28489 | CA141: 54.77388 | CB141: 58.33582 | CC141: 60.88381 | CD141: 50.09978 | CE141: 49.09702 | CF141: 45.32649 | CG141: 39.82176 | CH141: 37.55634 | CI141: 35.31351 | CJ141: 30.70692 | CK141: 27.30659 | CL141: 24.73269 | CM141: 22.54801 | CN141: 19.52116 | CO141: 15.73018 | CP141: 11.06886 | CQ141: 7.54353 | CR141: 61.29596 | CS141: 60.96173 | CT141: 69.53345 | CU141: 63.67416 | CV141: 64.32155 | CW141: 75.65062 | CX141: 63.69386 | CY141: 64.35735 | CZ141: 75.7068
A142: 11:59:21 | B142: 0.1 | C142: 59.53184 | D142: -3.04855 | E142: -2.9918 | F142: -1.69541 | G142: 6.86855 | H142: 6.01389 | I142: 12.91091 | J142: 14.8689 | K142: 42.98505 | L142: 35.42464 | M142: 33.16058 | N142: 49.13496 | O142: 41.16259 | P142: 47.25835 | Q142: 55.30812 | R142: 54.47578 | S142: 51.5074 | T142: 43.379 | U142: 42.6045 | V142: 43.36595 | W142: 36.16411 | X142: 36.20366 | Y142: 35.27351 | Z142: 31.02449 | AA142: 28.11822 | AB142: 24.10311 | AC142: 23.48875 | AD142: 17.58942 | AE142: 11.79156 | AF142: 6.04217 | AG142: -0.24487 | AH142: 64.29276 | AI142: 36.57078 | AJ142: 34.46597 | AK142: 30.37846 | AL142: 36.20808 | AM142: 29.9558 | AN142: 35.32926 | AO142: 32.15363 | AP142: 58.2577 | AQ142: 49.32071 | AR142: 44.01791 | AS142: 57.40505 | AT142: 48.38277 | AU142: 51.93366 | AV142: 58.09369 | AW142: 56.46938 | AX142: 52.43076 | AY142: 43.38745 | AZ142: 42.00351 | BA142: 42.31397 | BB142: 34.79655 | BC142: 34.64246 | BD142: 33.56674 | BE142: 29.24192 | BF142: 26.28308 | BG142: 22.22572 | BH142: 21.58926 | BI142: 15.67432 | BJ142: 9.86765 | BK142: 4.11755 | BL142: -2.20084 | BM142: 64.3739 | BN142: 40.75803 | BO142: 37.939 | BP142: 32.4338 | BQ142: 37.62247 | BR142: 30.65987 | BS142: 35.91686 | BT142: 32.44135 | BU142: 58.41018 | BV142: 49.43498 | BW142: 44.06214 | BX142: 57.4025 | BY142: 48.37051 | BZ142: 51.90288 | CA142: 58.05859 | CB142: 56.43538 | CC142: 52.40885 | CD142: 43.3811 | CE142: 42.03066 | CF142: 42.38145 | CG142: 34.97086 | CH142: 34.93325 | CI142: 34.08193 | CJ142: 30.02899 | CK142: 27.52351 | CL142: 24.21583 | CM142: 24.47539 | CN142: 19.84036 | CO142: 15.87209 | CP142: 12.18826 | CQ142: 8.64204 | CR142: 56.07598 | CS142: 60.63952 | CT142: 69.2662 | CU142: 61.15791 | CV142: 63.90875 | CW142: 75.37286 | CX142: 61.24167 | CY142: 63.94455 | CZ142: 75.42903
A143: 11:59:21 | B143: 0.1 | C143: 59.45297 | D143: -3.41455 | E143: -1.36588 | F143: -4.29299 | G143: 6.9595 | H143: 5.94965 | I143: 17.0048 | J143: 15.01495 | K143: 40.84808 | L143: 29.64547 | M143: 37.09805 | N143: 53.72161 | O143: 44.36707 | P143: 55.23625 | Q143: 51.59851 | R143: 45.11185 | S143: 37.73087 | T143: 35.09588 | U143: 39.29717 | V143: 39.88194 | W143: 42.16335 | X143: 38.97589 | Y143: 40.0006 | Z143: 36.77112 | AA143: 39.08141 | AB143: 37.69305 | AC143: 39.87153 | AD143: 33.97807 | AE143: 28.07999 | AF143: 20.84847 | AG143: 14.4043 | AH143: 65.64041 | AI143: 37.61223 | AJ143: 35.16134 | AK143: 29.3591 | AL143: 36.07265 | AM143: 29.83513 | AN143: 39.64265 | AO143: 33.00671 | AP143: 56.13717 | AQ143: 44.01583 | AR143: 47.62817 | AS143: 61.9924 | AT143: 51.21618 | AU143: 60.07453 | AV143: 54.67715 | AW143: 47.17597 | AX143: 38.78056 | AY143: 35.03185 | AZ143: 38.69065 | BA143: 38.79202 | BB143: 40.80338 | BC143: 37.39021 | BD143: 38.2953 | BE143: 34.97601 | BF143: 37.24139 | BG143: 35.81509 | BH143: 37.97192 | BI143: 32.06558 | BJ143: 26.15473 | BK143: 18.92442 | BL143: 12.47592 | BM143: 65.668 | BN143: 42.37326 | BO143: 38.39325 | BP143: 31.66516 | BQ143: 37.49287 | BR143: 30.60101 | BS143: 40.23771 | BT143: 33.28886 | BU143: 56.2993 | BV143: 44.16007 | BW143: 47.65896 | BX143: 61.99285 | BY143: 51.20293 | BZ143: 60.04694 | CA143: 54.64505 | CB143: 47.14661 | CC143: 38.7552 | CD143: 35.03481 | CE143: 38.7165 | CF143: 38.88366 | CG143: 40.97746 | CH143: 37.7095 | CI143: 38.81055 | CJ143: 35.84566 | CK143: 38.47697 | CL143: 37.79907 | CM143: 40.87675 | CN143: 36.11933 | CO143: 32.3238 | CP143: 27.1927 | CQ143: 22.61208 | CR143: 56.92712 | CS143: 60.18983 | CT143: 68.96279 | CU143: 63.22138 | CV143: 63.45677 | CW143: 75.06454 | CX143: 63.25125 | CY143: 63.49255 | CZ143: 75.12071
A144: 11:59:21 | B144: 0.1 | C144: 55.30459 | D144: -3.05296 | E144: -15.9893 | F144: -6.63368 | G144: 7.30329 | H144: 1.22326 | I144: 10.14604 | J144: 28.22936 | K144: 35.58712 | L144: 30.38182 | M144: 35.01897 | N144: 49.31255 | O144: 39.26532 | P144: 47.5651 | Q144: 41.17639 | R144: 39.06118 | S144: 34.50539 | T144: 35.6978 | U144: 40.31229 | V144: 45.24601 | W144: 42.93995 | X144: 46.4175 | Y144: 45.67179 | Z144: 41.03332 | AA144: 44.03598 | AB144: 42.93348 | AC144: 43.0832 | AD144: 38.52958 | AE144: 33.65884 | AF144: 24.26499 | AG144: 19.12496 | AH144: 59.42802 | AI144: 37.81038 | AJ144: 21.81066 | AK144: 24.77047 | AL144: 36.61343 | AM144: 24.84104 | AN144: 32.06623 | AO144: 46.34636 | AP144: 51.68074 | AQ144: 43.38454 | AR144: 45.57145 | AS144: 57.84827 | AT144: 45.58192 | AU144: 52.61735 | AV144: 44.40376 | AW144: 40.98893 | AX144: 35.44662 | AY144: 35.5925 | AZ144: 39.68928 | BA144: 44.15067 | BB144: 41.55759 | BC144: 44.83094 | BD144: 43.97212 | BE144: 39.23817 | BF144: 42.19201 | BG144: 41.05616 | BH144: 41.18182 | BI144: 36.6159 | BJ144: 31.73321 | BK144: 22.34157 | BL144: 17.19814 | BM144: 59.74355 | BN144: 42.50135 | BO144: 25.39184 | BP144: 26.63746 | BQ144: 38.03114 | BR144: 25.57092 | BS144: 32.70921 | BT144: 46.63013 | BU144: 51.85749 | BV144: 43.45789 | BW144: 45.60455 | BX144: 57.84137 | BY144: 45.55787 | BZ144: 52.58117 | CA144: 44.36886 | CB144: 40.95872 | CC144: 35.42664 | CD144: 35.59686 | CE144: 39.72493 | CF144: 44.24293 | CG144: 41.73024 | CH144: 45.15374 | CI144: 44.46735 | CJ144: 40.09562 | CK144: 43.48014 | CL144: 43.00273 | CM144: 44.17123 | CN144: 40.55586 | CO144: 37.93356 | CP144: 30.7669 | CQ144: 27.30383 | CR144: 52.67749 | CS144: 59.77627 | CT144: 68.68532 | CU144: 59.05902 | CV144: 63.04699 | CW144: 74.7869 | CX144: 59.05717 | CY144: 63.08278 | CZ144: 74.84307
A145: 11:59:21 | B145: 0.1 | C145: 55.73357 | D145: -5.26431 | E145: -11.26179 | F145: -9.03094 | G145: 5.08273 | H145: 5.74048 | I145: 14.79409 | J145: 30.89688 | K145: 28.72814 | L145: 25.5367 | M145: 28.29597 | N145: 35.98985 | O145: 32.64047 | P145: 40.15369 | Q145: 38.8283 | R145: 36.43557 | S145: 35.03534 | T145: 35.0367 | U145: 44.34808 | V145: 47.49239 | W145: 44.69998 | X145: 51.10267 | Y145: 44.50307 | Z145: 40.00511 | AA145: 44.55266 | AB145: 40.03448 | AC145: 40.68192 | AD145: 33.62067 | AE145: 29.74619 | AF145: 21.28159 | AG145: 15.37461 | AH145: 58.6676 | AI145: 34.10558 | AJ145: 25.59184 | AK145: 21.77673 | AL145: 34.78052 | AM145: 29.32827 | AN145: 37.52658 | AO145: 48.5783 | AP145: 45.07169 | AQ145: 39.22966 | AR145: 39.32513 | AS145: 44.65665 | AT145: 39.06139 | AU145: 44.7065 | AV145: 42.2748 | AW145: 38.31092 | AX145: 36.00446 | AY145: 34.95981 | AZ145: 43.56733 | BA145: 46.44521 | BB145: 43.30405 | BC145: 49.53944 | BD145: 42.80936 | BE145: 38.21124 | BF145: 42.70742 | BG145: 38.15717 | BH145: 38.78201 | BI145: 31.70717 | BJ145: 27.82076 | BK145: 19.35849 | BL145: 13.44881 | BM145: 59.06578 | BN145: 38.3744 | BO145: 28.8058 | BP145: 23.52887 | BQ145: 36.23609 | BR145: 30.02892 | BS145: 38.14082 | BT145: 48.83574 | BU145: 45.28164 | BV145: 39.3397 | BW145: 39.40777 | BX145: 44.65566 | BY145: 39.0678 | BZ145: 44.68219 | CA145: 42.24795 | CB145: 38.28198 | CC145: 35.98367 | CD145: 34.96561 | CE145: 43.61402 | CF145: 46.52959 | CG145: 43.49255 | CH145: 49.83176 | CI145: 43.29179 | CJ145: 39.06416 | CK145: 44.00372 | CL145: 40.11703 | CM145: 41.68073 | CN145: 35.70602 | CO145: 33.91682 | CP145: 27.95531 | CQ145: 23.41692 | CR145: 52.6753 | CS145: 59.36135 | CT145: 68.40767 | CU145: 56.47453 | CV145: 62.63194 | CW145: 74.50902 | CX145: 56.81782 | CY145: 62.66774 | CZ145: 74.56519
A146: 11:59:21 | B146: 0.1 | C146: 58.45284 | D146: -2.51015 | E146: -14.59084 | F146: -6.74393 | G146: 0.43945 | H146: 8.69926 | I146: 15.05396 | J146: 22.8233 | K146: 36.83537 | L146: 42.31836 | M146: 42.30798 | N146: 47.54782 | O146: 47.75909 | P146: 53.44953 | Q146: 52.51509 | R146: 46.13317 | S146: 44.14806 | T146: 38.51264 | U146: 36.79403 | V146: 36.42697 | W146: 37.7606 | X146: 37.6604 | Y146: 37.13328 | Z146: 33.90478 | AA146: 32.45255 | AB146: 29.93899 | AC146: 27.01391 | AD146: 20.60235 | AE146: 14.86356 | AF146: 6.80814 | AG146: 1.15672 | AH146: 64.12018 | AI146: 37.52337 | AJ146: 24.12173 | AK146: 24.76925 | AL146: 29.84827 | AM146: 33.39988 | AN146: 37.92703 | AO146: 40.11955 | AP146: 52.30041 | AQ146: 55.352 | AR146: 53.07039 | AS146: 56.14745 | AT146: 54.40543 | AU146: 58.40731 | AV146: 56.02651 | AW146: 48.28556 | AX146: 45.01684 | AY146: 38.64674 | AZ146: 36.12181 | BA146: 35.40031 | BB146: 36.36471 | BC146: 36.09599 | BD146: 35.42111 | BE146: 32.12209 | BF146: 30.60876 | BG146: 28.06213 | BH146: 25.11331 | BI146: 18.68771 | BJ146: 12.93831 | BK146: 4.88506 | BL146: -0.79197 | BM146: 64.13437 | BN146: 41.78799 | BO146: 28.09706 | BP146: 26.57531 | BQ146: 31.34882 | BR146: 34.20062 | BS146: 38.52111 | BT146: 40.39365 | BU146: 52.46897 | BV146: 55.4407 | BW146: 53.10887 | BX146: 56.15072 | BY146: 54.38834 | BZ146: 58.37897 | CA146: 55.99729 | CB146: 48.25583 | CC146: 44.99784 | CD146: 38.64333 | CE146: 36.15775 | CF146: 35.47772 | CG146: 36.54009 | CH146: 36.39303 | CI146: 35.94276 | CJ146: 32.90669 | CK146: 31.89947 | CL146: 29.94817 | CM146: 28.04813 | CN146: 22.68434 | CO146: 19.00568 | CP146: 13.16304 | CQ146: 9.81208 | CR146: 56.1691 | CS146: 58.92179 | CT146: 68.10719 | CU146: 61.67994 | CV146: 62.22161 | CW146: 74.20245 | CX146: 61.69474 | CY146: 62.25745 | CZ146: 74.25861
A147: 11:59:22 | B147: 0.1 | C147: 54.29052 | D147: -3.55736 | E147: -9.13123 | F147: -5.85637 | G147: 2.74593 | H147: 8.91058 | I147: 11.75286 | J147: 33.69806 | K147: 31.06056 | L147: 30.99332 | M147: 48.21803 | N147: 42.32722 | O147: 43.54517 | P147: 47.94692 | Q147: 50.36 | R147: 43.61614 | S147: 41.87961 | T147: 36.3299 | U147: 37.14068 | V147: 33.99794 | W147: 34.84254 | X147: 38.62365 | Y147: 35.57038 | Z147: 30.95984 | AA147: 26.68849 | AB147: 22.56869 | AC147: 18.41959 | AD147: 13.01512 | AE147: 7.43947 | AF147: 2.23094 | AG147: -1.72278 | AH147: 61.58213 | AI147: 36.82482 | AJ147: 27.82737 | AK147: 24.80983 | AL147: 32.33046 | AM147: 32.95969 | AN147: 34.16595 | AO147: 51.29927 | AP147: 47.90507 | AQ147: 44.25594 | AR147: 58.3133 | AS147: 51.87171 | AT147: 49.99005 | AU147: 52.71874 | AV147: 53.40691 | AW147: 45.78197 | AX147: 42.73032 | AY147: 36.48019 | AZ147: 36.50001 | BA147: 32.94046 | BB147: 33.44556 | BC147: 37.04881 | BD147: 33.86398 | BE147: 29.18277 | BF147: 24.84675 | BG147: 20.69241 | BH147: 16.51958 | BI147: 11.0994 | BJ147: 5.51463 | BK147: 0.3069 | BL147: -3.68929 | BM147: 61.6681 | BN147: 41.59087 | BO147: 31.17048 | BP147: 26.62183 | BQ147: 33.84962 | BR147: 33.73879 | BS147: 34.81603 | BT147: 51.57098 | BU147: 48.14987 | BV147: 44.34857 | BW147: 58.33731 | BX147: 51.8866 | BY147: 49.96909 | BZ147: 52.69015 | CA147: 53.36828 | CB147: 45.75141 | CC147: 42.71696 | CD147: 36.47813 | CE147: 36.53568 | CF147: 33.02696 | CG147: 33.63078 | CH147: 37.35342 | CI147: 34.38195 | CJ147: 29.94011 | CK147: 26.09586 | CL147: 22.6244 | CM147: 19.43806 | CN147: 15.34283 | CO147: 11.48686 | CP147: 8.58839 | CQ147: 7.37144 | CR147: 51.17429 | CS147: 58.51776 | CT147: 67.83398 | CU147: 58.42139 | CV147: 61.97841 | CW147: 73.93185 | CX147: 58.51518 | CY147: 62.01378 | CZ147: 73.98796
A148: 11:59:22 | B148: 0.1 | C148: 51.89458 | D148: -10.6111 | E148: -12.09945 | F148: -15.26598 | G148: 4.50589 | H148: 7.51589 | I148: 16.83695 | J148: 34.94145 | K148: 28.29096 | L148: 24.12846 | M148: 42.85459 | N148: 35.80673 | O148: 40.71582 | P148: 42.66281 | Q148: 46.78191 | R148: 43.67745 | S148: 39.39138 | T148: 39.29091 | U148: 36.01158 | V148: 35.22893 | W148: 35.04078 | X148: 36.44744 | Y148: 35.1825 | Z148: 29.53756 | AA148: 26.24082 | AB148: 21.75848 | AC148: 17.7078 | AD148: 12.08024 | AE148: 6.98026 | AF148: 2.13365 | AG148: -1.57583 | AH148: 58.48872 | AI148: 30.05617 | AJ148: 25.45855 | AK148: 18.14463 | AL148: 33.85191 | AM148: 30.87 | AN148: 39.60815 | AO148: 52.78822 | AP148: 45.29729 | AQ148: 38.09263 | AR148: 53.03963 | AS148: 45.20136 | AT148: 47.2323 | AU148: 47.19988 | AV148: 49.73512 | AW148: 45.81046 | AX148: 40.34303 | AY148: 39.31353 | AZ148: 35.44566 | BA148: 34.18518 | BB148: 33.62948 | BC148: 34.88469 | BD148: 33.47481 | BE148: 27.75861 | BF148: 24.39899 | BG148: 19.88015 | BH148: 15.8081 | BI148: 10.16443 | BJ148: 5.05547 | BK148: 0.20966 | BL148: -3.54379 | BM148: 58.58034 | BN148: 34.65694 | BO148: 28.83673 | BP148: 20.44083 | BQ148: 35.30383 | BR148: 31.52891 | BS148: 40.20715 | BT148: 53.04821 | BU148: 45.49248 | BV148: 38.22012 | BW148: 53.06582 | BX148: 45.21141 | BY148: 47.21415 | BZ148: 47.16805 | CA148: 49.70365 | CB148: 45.77994 | CC148: 40.31498 | CD148: 39.31289 | CE148: 35.47742 | CF148: 34.26988 | CG148: 33.8205 | CH148: 35.17587 | CI148: 33.98618 | CJ148: 28.52547 | CK148: 25.65166 | CL148: 21.85328 | CM148: 18.71548 | CN148: 14.44884 | CO148: 11.05813 | CP148: 8.50311 | CQ148: 7.56519 | CR148: 49.05303 | CS148: 58.11506 | CT148: 67.55829 | CU148: 55.83974 | CV148: 61.61721 | CW148: 73.65624 | CX148: 55.9308 | CY148: 61.65246 | CZ148: 73.71233
